Workbook

Sheet Auction-Rank (hidden)
A1: PlayerName | B1: PlayerID | C1: Pos | D1: OF Pos | E1: TEAM | F1: Age | G1: 1.RotoChamp | H1: 2.CBS | I1: 3. | J1: 4.ESPN | K1: 5.Yahoo_Proj | L1: 6.Yahoo_Mock | M1: 7.FantasyPro_Exp | N1: 8.FantasyPro_Proj | O1: 9.Exp_Avg | P1: 10.Import | Q1: RotoChamp | R1: Yahoo Staff | S1: FoxSports | T1: ESPN Tristan | U1: FakeTeams | V1: CBS Scott White | W1: TBD | X1: Fantasy Pros Avg | Y1: MC | Z1: Team In Sheet? | AA1: Rank Chosen | AB1: Filtered-Rank | AC1: Chosen Auction | AD1: Filtered Auction | AE1: Adjusted Filter | AF1: =IF(VLOOKUP(A2,'Name-Sort'!$D$2:$E$999,2,FALSE)="",A2,"") -> Jose Abreu | AG1: =IFERROR(INDEX($AF$1:$AF$999,SMALL(IF($AF$1:$AF$999<>"",ROW($AF$1:$AF$999)),ROW(AF1))),"") -> Jose Abreu
A2: Jose Abreu | B2: abreujo02 | C2: 1B | E2: CHW | F2: 30 | G2: 0.005472222222 | H2: 0.005833333333 | J2: 0.004611111111 | K2: 0.005277777778 | L2: 0.005944444444 | M2: 0.006388888889 | N2: 0.005833333333 | O2: 0.005623015873 | P2: =IFERROR(VLOOKUP(A2,'Import (Values)'!$B$2:$C$999,2,FALSE)/3120,"") ->  | Q2: 46 | R2: 43 | T2: 39 | U2: 61 | V2: 52 | X2: 40 | Y2: 40 | Z2: =IFERROR(INDEX('Guts-2'!$K$1:$K$30,MATCH(E2,'Guts-2'!$J$1:$J$30,0)),TRUE) -> TRUE | AA2: =IF(Z2=FALSE,"",IFERROR(CHOOSE('Guts-2'!$D$27,Q2,R2,S2,T2,U2,V2,W2,X2,Y2),"")) -> 40 | AB2: =IFERROR(RANK(AA2,$AA$2:$AA$750,1),"") -> 40 | AC2: =IFERROR(IF(INDEX('Auction-Rank'!$G$1:$P$999,MATCH($A2,'Auction-Rank'!$A$1:$A$999,0),'Guts-2'!$D$26)="","",INDEX('Auction-Rank'!$G$1:$P$999,MATCH($A2,'Auction-Rank'!$A$1:$A$999,0),'Guts-2'!$D$26)),"") -> 0.005623015873 | AD2: =IF(Z2=FALSE,"",IFERROR(IF(INDEX('Auction-Rank'!$G$1:$P$999,MATCH($A2,'Auction-Rank'!$A$1:$A$999,0),'Guts-2'!$D$26)="","",INDEX('Auction-Rank'!$G$1:$P$999,MATCH($A2,'Auction-Rank'!$A$1:$A$999,0),'Guts-2'!$D$26)),"")) -> 0.005623015873 | AE2: =IF(AD2="","",IF(Z2=FALSE,"",AD2*(SUMIF($AC$2:$AC$999,"<>""",$AC$2:$AC$999)/SUMIF($AD$2:$AD$999,"<>""",$AD$2:$AD$999)))) -> 0.005623015873 | AF2: =IF(VLOOKUP(A3,'Name-Sort'!$D$2:$E$999,2,FALSE)="",A3,"") -> Matt Adams | AG2: =IFERROR(INDEX($AF$1:$AF$999,SMALL(IF($AF$1:$AF$999<>"",ROW($AF$1:$AF$999)),ROW(AF2))),"") -> Matt Adams
A3: Matt Adams | B3: adamsma01 | C3: 1B | E3: STL | F3: 28 | P3: =IFERROR(VLOOKUP(A3,'Import (Values)'!$B$2:$C$999,2,FALSE)/3120,"") ->  | X3: 482 | Z3: =IFERROR(INDEX('Guts-2'!$K$1:$K$30,MATCH(E3,'Guts-2'!$J$1:$J$30,0)),TRUE) -> TRUE | AA3: =IF(Z3=FALSE,"",IFERROR(CHOOSE('Guts-2'!$D$27,Q3,R3,S3,T3,U3,V3,W3,X3,Y3),"")) -> 482 | AB3: =IFERROR(RANK(AA3,$AA$2:$AA$750,1),"") -> 471 | AC3: =IFERROR(IF(INDEX('Auction-Rank'!$G$1:$P$999,MATCH($A3,'Auction-Rank'!$A$1:$A$999,0),'Guts-2'!$D$26)="","",INDEX('Auction-Rank'!$G$1:$P$999,MATCH($A3,'Auction-Rank'!$A$1:$A$999,0),'Guts-2'!$D$26)),"") ->  | AD3: =IF(Z3=FALSE,"",IFERROR(IF(INDEX('Auction-Rank'!$G$1:$P$999,MATCH($A3,'Auction-Rank'!$A$1:$A$999,0),'Guts-2'!$D$26)="","",INDEX('Auction-Rank'!$G$1:$P$999,MATCH($A3,'Auction-Rank'!$A$1:$A$999,0),'Guts-2'!$D$26)),"")) ->  | AE3: =IF(AD3="","",IF(Z3=FALSE,"",AD3*(SUMIF($AC$2:$AC$999,"<>""",$AC$2:$AC$999)/SUMIF($AD$2:$AD$999,"<>""",$AD$2:$AD$999)))) ->  | AF3: =IF(VLOOKUP(A4,'Name-Sort'!$D$2:$E$999,2,FALSE)="",A4,"") -> Ozzie Albies | AG3: =IFERROR(INDEX($AF$1:$AF$999,SMALL(IF($AF$1:$AF$999<>"",ROW($AF$1:$AF$999)),ROW(AF3))),"") -> Ozzie Albies
A4: Ozzie Albies | B4: albieoz01 | C4: SS | E4: ATL | F4: 20 | P4: =IFERROR(VLOOKUP(A4,'Import (Values)'!$B$2:$C$999,2,FALSE)/3120,"") ->  | Z4: =IFERROR(INDEX('Guts-2'!$K$1:$K$30,MATCH(E4,'Guts-2'!$J$1:$J$30,0)),TRUE) -> TRUE | AA4: =IF(Z4=FALSE,"",IFERROR(CHOOSE('Guts-2'!$D$27,Q4,R4,S4,T4,U4,V4,W4,X4,Y4),"")) ->  | AC4: =IFERROR(IF(INDEX('Auction-Rank'!$G$1:$P$999,MATCH($A4,'Auction-Rank'!$A$1:$A$999,0),'Guts-2'!$D$26)="","",INDEX('Auction-Rank'!$G$1:$P$999,MATCH($A4,'Auction-Rank'!$A$1:$A$999,0),'Guts-2'!$D$26)),"") ->  | AD4: =IF(Z4=FALSE,"",IFERROR(IF(INDEX('Auction-Rank'!$G$1:$P$999,MATCH($A4,'Auction-Rank'!$A$1:$A$999,0),'Guts-2'!$D$26)="","",INDEX('Auction-Rank'!$G$1:$P$999,MATCH($A4,'Auction-Rank'!$A$1:$A$999,0),'Guts-2'!$D$26)),"")) ->  | AE4: =IF(AD4="","",IF(Z4=FALSE,"",AD4*(SUMIF($AC$2:$AC$999,"<>""",$AC$2:$AC$999)/SUMIF($AD$2:$AD$999,"<>""",$AD$2:$AD$999)))) ->  | AF4: =IF(VLOOKUP(A5,'Name-Sort'!$D$2:$E$999,2,FALSE)="",A5,"") -> Jorge Alfaro | AG4: =IFERROR(INDEX($AF$1:$AF$999,SMALL(IF($AF$1:$AF$999<>"",ROW($AF$1:$AF$999)),ROW(AF4))),"") -> Jorge Alfaro
A5: Jorge Alfaro | B5: alfarjo01 | C5: C | E5: PHI | F5: 23 | M5: -0.0008333333333 | O5: -0.0008333333333 | P5: =IFERROR(VLOOKUP(A5,'Import (Values)'!$B$2:$C$999,2,FALSE)/3120,"") ->  | Z5: =IFERROR(INDEX('Guts-2'!$K$1:$K$30,MATCH(E5,'Guts-2'!$J$1:$J$30,0)),TRUE) -> TRUE | AA5: =IF(Z5=FALSE,"",IFERROR(CHOOSE('Guts-2'!$D$27,Q5,R5,S5,T5,U5,V5,W5,X5,Y5),"")) ->  | AC5: =IFERROR(IF(INDEX('Auction-Rank'!$G$1:$P$999,MATCH($A5,'Auction-Rank'!$A$1:$A$999,0),'Guts-2'!$D$26)="","",INDEX('Auction-Rank'!$G$1:$P$999,MATCH($A5,'Auction-Rank'!$A$1:$A$999,0),'Guts-2'!$D$26)),"") -> -0.0008333333333 | AD5: =IF(Z5=FALSE,"",IFERROR(IF(INDEX('Auction-Rank'!$G$1:$P$999,MATCH($A5,'Auction-Rank'!$A$1:$A$999,0),'Guts-2'!$D$26)="","",INDEX('Auction-Rank'!$G$1:$P$999,MATCH($A5,'Auction-Rank'!$A$1:$A$999,0),'Guts-2'!$D$26)),"")) -> -0.0008333333333 | AE5: =IF(AD5="","",IF(Z5=FALSE,"",AD5*(SUMIF($AC$2:$AC$999,"<>""",$AC$2:$AC$999)/SUMIF($AD$2:$AD$999,"<>""",$AD$2:$AD$999)))) -> -0.0008333333333 | AF5: =IF(VLOOKUP(A6,'Name-Sort'!$D$2:$E$999,2,FALSE)="",A6,"") -> Anthony Alford | AG5: =IFERROR(INDEX($AF$1:$AF$999,SMALL(IF($AF$1:$AF$999<>"",ROW($AF$1:$AF$999)),ROW(AF5))),"") -> Anthony Alford
A6: Anthony Alford | B6: alforan01 | C6: OF | D6: CF | E6: TOR | F6: 22 | P6: =IFERROR(VLOOKUP(A6,'Import (Values)'!$B$2:$C$999,2,FALSE)/3120,"") ->  | Z6: =IFERROR(INDEX('Guts-2'!$K$1:$K$30,MATCH(E6,'Guts-2'!$J$1:$J$30,0)),TRUE) -> TRUE | AA6: =IF(Z6=FALSE,"",IFERROR(CHOOSE('Guts-2'!$D$27,Q6,R6,S6,T6,U6,V6,W6,X6,Y6),"")) ->  | AC6: =IFERROR(IF(INDEX('Auction-Rank'!$G$1:$P$999,MATCH($A6,'Auction-Rank'!$A$1:$A$999,0),'Guts-2'!$D$26)="","",INDEX('Auction-Rank'!$G$1:$P$999,MATCH($A6,'Auction-Rank'!$A$1:$A$999,0),'Guts-2'!$D$26)),"") ->  | AD6: =IF(Z6=FALSE,"",IFERROR(IF(INDEX('Auction-Rank'!$G$1:$P$999,MATCH($A6,'Auction-Rank'!$A$1:$A$999,0),'Guts-2'!$D$26)="","",INDEX('Auction-Rank'!$G$1:$P$999,MATCH($A6,'Auction-Rank'!$A$1:$A$999,0),'Guts-2'!$D$26)),"")) ->  | AE6: =IF(AD6="","",IF(Z6=FALSE,"",AD6*(SUMIF($AC$2:$AC$999,"<>""",$AC$2:$AC$999)/SUMIF($AD$2:$AD$999,"<>""",$AD$2:$AD$999)))) ->  | AF6: =IF(VLOOKUP(A7,'Name-Sort'!$D$2:$E$999,2,FALSE)="",A7,"") -> Cody Allen | AG6: =IFERROR(INDEX($AF$1:$AF$999,SMALL(IF($AF$1:$AF$999<>"",ROW($AF$1:$AF$999)),ROW(AF6))),"") -> Cody Allen
A7: Cody Allen | B7: allenco01 | C7: RP | E7: CLE | F7: 28 | G7: 0.003205555556 | H7: 0.0025 | J7: 0.001777777778 | K7: 0.001944444444 | L7: 0.00225 | M7: 0.002222222222 | N7: 0.002777777778 | O7: 0.002382539683 | P7: =IFERROR(VLOOKUP(A7,'Import (Values)'!$B$2:$C$999,2,FALSE)/3120,"") ->  | Q7: 106 | R7: 200 | T7: 187 | U7: 129 | V7: 134 | X7: 128 | Y7: 149 | Z7: =IFERROR(INDEX('Guts-2'!$K$1:$K$30,MATCH(E7,'Guts-2'!$J$1:$J$30,0)),TRUE) -> TRUE | AA7: =IF(Z7=FALSE,"",IFERROR(CHOOSE('Guts-2'!$D$27,Q7,R7,S7,T7,U7,V7,W7,X7,Y7),"")) -> 128 | AB7: 128 | AC7: =IFERROR(IF(INDEX('Auction-Rank'!$G$1:$P$999,MATCH($A7,'Auction-Rank'!$A$1:$A$999,0),'Guts-2'!$D$26)="","",INDEX('Auction-Rank'!$G$1:$P$999,MATCH($A7,'Auction-Rank'!$A$1:$A$999,0),'Guts-2'!$D$26)),"") -> 0.002382539683 | AD7: =IF(Z7=FALSE,"",IFERROR(IF(INDEX('Auction-Rank'!$G$1:$P$999,MATCH($A7,'Auction-Rank'!$A$1:$A$999,0),'Guts-2'!$D$26)="","",INDEX('Auction-Rank'!$G$1:$P$999,MATCH($A7,'Auction-Rank'!$A$1:$A$999,0),'Guts-2'!$D$26)),"")) -> 0.002382539683 | AE7: =IF(AD7="","",IF(Z7=FALSE,"",AD7*(SUMIF($AC$2:$AC$999,"<>""",$AC$2:$AC$999)/SUMIF($AD$2:$AD$999,"<>""",$AD$2:$AD$999)))) -> 0.002382539683 | AF7: =IF(VLOOKUP(A8,'Name-Sort'!$D$2:$E$999,2,FALSE)="",A8,"") -> Abraham Almonte | AG7: =IFERROR(INDEX($AF$1:$AF$999,SMALL(IF($AF$1:$AF$999<>"",ROW($AF$1:$AF$999)),ROW(AF7))),"") -> Abraham Almonte
A8: Abraham Almonte | B8: almonab01 | C8: OF | D8: LF,RF | E8: CLE | F8: 27 | P8: =IFERROR(VLOOKUP(A8,'Import (Values)'!$B$2:$C$999,2,FALSE)/3120,"") ->  | Z8: =IFERROR(INDEX('Guts-2'!$K$1:$K$30,MATCH(E8,'Guts-2'!$J$1:$J$30,0)),TRUE) -> TRUE | AA8: =IF(Z8=FALSE,"",IFERROR(CHOOSE('Guts-2'!$D$27,Q8,R8,S8,T8,U8,V8,W8,X8,Y8),"")) ->  | AC8: =IFERROR(IF(INDEX('Auction-Rank'!$G$1:$P$999,MATCH($A8,'Auction-Rank'!$A$1:$A$999,0),'Guts-2'!$D$26)="","",INDEX('Auction-Rank'!$G$1:$P$999,MATCH($A8,'Auction-Rank'!$A$1:$A$999,0),'Guts-2'!$D$26)),"") ->  | AD8: =IF(Z8=FALSE,"",IFERROR(IF(INDEX('Auction-Rank'!$G$1:$P$999,MATCH($A8,'Auction-Rank'!$A$1:$A$999,0),'Guts-2'!$D$26)="","",INDEX('Auction-Rank'!$G$1:$P$999,MATCH($A8,'Auction-Rank'!$A$1:$A$999,0),'Guts-2'!$D$26)),"")) ->  | AE8: =IF(AD8="","",IF(Z8=FALSE,"",AD8*(SUMIF($AC$2:$AC$999,"<>""",$AC$2:$AC$999)/SUMIF($AD$2:$AD$999,"<>""",$AD$2:$AD$999)))) ->  | AF8: =IF(VLOOKUP(A9,'Name-Sort'!$D$2:$E$999,2,FALSE)="",A9,"") -> Albert Almora | AG8: =IFERROR(INDEX($AF$1:$AF$999,SMALL(IF($AF$1:$AF$999<>"",ROW($AF$1:$AF$999)),ROW(AF8))),"") -> Albert Almora
A9: Albert Almora | B9: almoral01 | C9: OF | D9: CF | E9: CHC | F9: 22 | M9: -0.002222222222 | O9: -0.002222222222 | P9: =IFERROR(VLOOKUP(A9,'Import (Values)'!$B$2:$C$999,2,FALSE)/3120,"") ->  | X9: 469 | Z9: =IFERROR(INDEX('Guts-2'!$K$1:$K$30,MATCH(E9,'Guts-2'!$J$1:$J$30,0)),TRUE) -> TRUE | AA9: =IF(Z9=FALSE,"",IFERROR(CHOOSE('Guts-2'!$D$27,Q9,R9,S9,T9,U9,V9,W9,X9,Y9),"")) -> 469 | AB9: 459 | AC9: =IFERROR(IF(INDEX('Auction-Rank'!$G$1:$P$999,MATCH($A9,'Auction-Rank'!$A$1:$A$999,0),'Guts-2'!$D$26)="","",INDEX('Auction-Rank'!$G$1:$P$999,MATCH($A9,'Auction-Rank'!$A$1:$A$999,0),'Guts-2'!$D$26)),"") -> -0.002222222222 | AD9: =IF(Z9=FALSE,"",IFERROR(IF(INDEX('Auction-Rank'!$G$1:$P$999,MATCH($A9,'Auction-Rank'!$A$1:$A$999,0),'Guts-2'!$D$26)="","",INDEX('Auction-Rank'!$G$1:$P$999,MATCH($A9,'Auction-Rank'!$A$1:$A$999,0),'Guts-2'!$D$26)),"")) -> -0.002222222222 | AE9: =IF(AD9="","",IF(Z9=FALSE,"",AD9*(SUMIF($AC$2:$AC$999,"<>""",$AC$2:$AC$999)/SUMIF($AD$2:$AD$999,"<>""",$AD$2:$AD$999)))) -> -0.002222222222 | AF9: =IF(VLOOKUP(A10,'Name-Sort'!$D$2:$E$999,2,FALSE)="",A10,"") -> Yonder Alonso | AG9: =IFERROR(INDEX($AF$1:$AF$999,SMALL(IF($AF$1:$AF$999<>"",ROW($AF$1:$AF$999)),ROW(AF9))),"") -> Yonder Alonso
A10: Yonder Alonso | B10: alonsyo01 | C10: 1B | E10: OAK | F10: 29 | M10: -0.002222222222 | O10: -0.002222222222 | P10: =IFERROR(VLOOKUP(A10,'Import (Values)'!$B$2:$C$999,2,FALSE)/3120,"") ->  | X10: 542 | Z10: =IFERROR(INDEX('Guts-2'!$K$1:$K$30,MATCH(E10,'Guts-2'!$J$1:$J$30,0)),TRUE) -> TRUE | AA10: =IF(Z10=FALSE,"",IFERROR(CHOOSE('Guts-2'!$D$27,Q10,R10,S10,T10,U10,V10,W10,X10,Y10),"")) -> 542 | AB10: 519 | AC10: =IFERROR(IF(INDEX('Auction-Rank'!$G$1:$P$999,MATCH($A10,'Auction-Rank'!$A$1:$A$999,0),'Guts-2'!$D$26)="","",INDEX('Auction-Rank'!$G$1:$P$999,MATCH($A10,'Auction-Rank'!$A$1:$A$999,0),'Guts-2'!$D$26)),"") -> -0.002222222222 | AD10: =IF(Z10=FALSE,"",IFERROR(IF(INDEX('Auction-Rank'!$G$1:$P$999,MATCH($A10,'Auction-Rank'!$A$1:$A$999,0),'Guts-2'!$D$26)="","",INDEX('Auction-Rank'!$G$1:$P$999,MATCH($A10,'Auction-Rank'!$A$1:$A$999,0),'Guts-2'!$D$26)),"")) -> -0.002222222222 | AE10: =IF(AD10="","",IF(Z10=FALSE,"",AD10*(SUMIF($AC$2:$AC$999,"<>""",$AC$2:$AC$999)/SUMIF($AD$2:$AD$999,"<>""",$AD$2:$AD$999)))) -> -0.002222222222 | AF10: =IF(VLOOKUP(A11,'Name-Sort'!$D$2:$E$999,2,FALSE)="",A11,"") -> Aaron Altherr | AG10: =IFERROR(INDEX($AF$1:$AF$999,SMALL(IF($AF$1:$AF$999<>"",ROW($AF$1:$AF$999)),ROW(AF10))),"") -> Aaron Altherr
A11: Aaron Altherr | B11: altheaa01 | C11: OF | D11: LF,CF,RF | E11: PHI | F11: 26 | M11: -0.001944444444 | O11: -0.001944444444 | P11: =IFERROR(VLOOKUP(A11,'Import (Values)'!$B$2:$C$999,2,FALSE)/3120,"") ->  | U11: 241 | X11: 461 | Z11: =IFERROR(INDEX('Guts-2'!$K$1:$K$30,MATCH(E11,'Guts-2'!$J$1:$J$30,0)),TRUE) -> TRUE | AA11: =IF(Z11=FALSE,"",IFERROR(CHOOSE('Guts-2'!$D$27,Q11,R11,S11,T11,U11,V11,W11,X11,Y11),"")) -> 461 | AB11: 452 | AC11: =IFERROR(IF(INDEX('Auction-Rank'!$G$1:$P$999,MATCH($A11,'Auction-Rank'!$A$1:$A$999,0),'Guts-2'!$D$26)="","",INDEX('Auction-Rank'!$G$1:$P$999,MATCH($A11,'Auction-Rank'!$A$1:$A$999,0),'Guts-2'!$D$26)),"") -> -0.001944444444 | AD11: =IF(Z11=FALSE,"",IFERROR(IF(INDEX('Auction-Rank'!$G$1:$P$999,MATCH($A11,'Auction-Rank'!$A$1:$A$999,0),'Guts-2'!$D$26)="","",INDEX('Auction-Rank'!$G$1:$P$999,MATCH($A11,'Auction-Rank'!$A$1:$A$999,0),'Guts-2'!$D$26)),"")) -> -0.001944444444 | AE11: =IF(AD11="","",IF(Z11=FALSE,"",AD11*(SUMIF($AC$2:$AC$999,"<>""",$AC$2:$AC$999)/SUMIF($AD$2:$AD$999,"<>""",$AD$2:$AD$999)))) -> -0.001944444444 | AF11: =IF(VLOOKUP(A12,'Name-Sort'!$D$2:$E$999,2,FALSE)="",A12,"") -> Jose Altuve | AG11: =IFERROR(INDEX($AF$1:$AF$999,SMALL(IF($AF$1:$AF$999<>"",ROW($AF$1:$AF$999)),ROW(AF11))),"") -> Jose Altuve
A12: Jose Altuve | B12: altuvjo01 | C12: 2B | E12: HOU | F12: 26 | G12: 0.01137777778 | H12: 0.01083333333 | J12: 0.01191666667 | K12: 0.01166666667 | L12: 0.01361111111 | M12: 0.01194444444 | N12: 0.01138888889 | O12: 0.01181984127 | P12: =IFERROR(VLOOKUP(A12,'Import (Values)'!$B$2:$C$999,2,FALSE)/3120,"") -> 0.01121794872 | Q12: 3 | R12: 7 | T12: 2 | U12: 5 | V12: 3 | X12: 3 | Y12: 4 | Z12: =IFERROR(INDEX('Guts-2'!$K$1:$K$30,MATCH(E12,'Guts-2'!$J$1:$J$30,0)),TRUE) -> TRUE | AA12: =IF(Z12=FALSE,"",IFERROR(CHOOSE('Guts-2'!$D$27,Q12,R12,S12,T12,U12,V12,W12,X12,Y12),"")) -> 3 | AB12: 3 | AC12: =IFERROR(IF(INDEX('Auction-Rank'!$G$1:$P$999,MATCH($A12,'Auction-Rank'!$A$1:$A$999,0),'Guts-2'!$D$26)="","",INDEX('Auction-Rank'!$G$1:$P$999,MATCH($A12,'Auction-Rank'!$A$1:$A$999,0),'Guts-2'!$D$26)),"") -> 0.01181984127 | AD12: =IF(Z12=FALSE,"",IFERROR(IF(INDEX('Auction-Rank'!$G$1:$P$999,MATCH($A12,'Auction-Rank'!$A$1:$A$999,0),'Guts-2'!$D$26)="","",INDEX('Auction-Rank'!$G$1:$P$999,MATCH($A12,'Auction-Rank'!$A$1:$A$999,0),'Guts-2'!$D$26)),"")) -> 0.01181984127 | AE12: =IF(AD12="","",IF(Z12=FALSE,"",AD12*(SUMIF($AC$2:$AC$999,"<>""",$AC$2:$AC$999)/SUMIF($AD$2:$AD$999,"<>""",$AD$2:$AD$999)))) -> 0.01181984127 | AF12: =IF(VLOOKUP(A13,'Name-Sort'!$D$2:$E$999,2,FALSE)="",A13,"") -> Pedro Alvarez | AG12: =IFERROR(INDEX($AF$1:$AF$999,SMALL(IF($AF$1:$AF$999<>"",ROW($AF$1:$AF$999)),ROW(AF12))),"") -> Pedro Alvarez
A13: Pedro Alvarez | B13: alvarpe01 | C13: DH | E13: BAL | F13: 30 | M13: -0.001666666667 | O13: -0.001666666667 | P13: =IFERROR(VLOOKUP(A13,'Import (Values)'!$B$2:$C$999,2,FALSE)/3120,"") ->  | T13: 287 | X13: 422 | Z13: =IFERROR(INDEX('Guts-2'!$K$1:$K$30,MATCH(E13,'Guts-2'!$J$1:$J$30,0)),TRUE) -> TRUE | AA13: =IF(Z13=FALSE,"",IFERROR(CHOOSE('Guts-2'!$D$27,Q13,R13,S13,T13,U13,V13,W13,X13,Y13),"")) -> 422 | AB13: 418 | AC13: =IFERROR(IF(INDEX('Auction-Rank'!$G$1:$P$999,MATCH($A13,'Auction-Rank'!$A$1:$A$999,0),'Guts-2'!$D$26)="","",INDEX('Auction-Rank'!$G$1:$P$999,MATCH($A13,'Auction-Rank'!$A$1:$A$999,0),'Guts-2'!$D$26)),"") -> -0.001666666667 | AD13: =IF(Z13=FALSE,"",IFERROR(IF(INDEX('Auction-Rank'!$G$1:$P$999,MATCH($A13,'Auction-Rank'!$A$1:$A$999,0),'Guts-2'!$D$26)="","",INDEX('Auction-Rank'!$G$1:$P$999,MATCH($A13,'Auction-Rank'!$A$1:$A$999,0),'Guts-2'!$D$26)),"")) -> -0.001666666667 | AE13: =IF(AD13="","",IF(Z13=FALSE,"",AD13*(SUMIF($AC$2:$AC$999,"<>""",$AC$2:$AC$999)/SUMIF($AD$2:$AD$999,"<>""",$AD$2:$AD$999)))) -> -0.001666666667 | AF13: =IF(VLOOKUP(A14,'Name-Sort'!$D$2:$E$999,2,FALSE)="",A14,"") -> Tim Anderson | AG13: =IFERROR(INDEX($AF$1:$AF$999,SMALL(IF($AF$1:$AF$999<>"",ROW($AF$1:$AF$999)),ROW(AF13))),"") -> Tim Anderson
A14: Tim Anderson | B14: anderti01 | C14: 2B | E14: CHW | F14: 23 | K14: 0.0002777777778 | L14: 0.0004444444444 | M14: -0.0002777777778 | N14: 0.0008333333333 | O14: 0.0003194444444 | P14: =IFERROR(VLOOKUP(A14,'Import (Values)'!$B$2:$C$999,2,FALSE)/3120,"") ->  | R14: 224 | T14: 277 | V14: 292 | X14: 207 | Y14: 198 | Z14: =IFERROR(INDEX('Guts-2'!$K$1:$K$30,MATCH(E14,'Guts-2'!$J$1:$J$30,0)),TRUE) -> TRUE | AA14: =IF(Z14=FALSE,"",IFERROR(CHOOSE('Guts-2'!$D$27,Q14,R14,S14,T14,U14,V14,W14,X14,Y14),"")) -> 207 | AB14: 207 | AC14: =IFERROR(IF(INDEX('Auction-Rank'!$G$1:$P$999,MATCH($A14,'Auction-Rank'!$A$1:$A$999,0),'Guts-2'!$D$26)="","",INDEX('Auction-Rank'!$G$1:$P$999,MATCH($A14,'Auction-Rank'!$A$1:$A$999,0),'Guts-2'!$D$26)),"") -> 0.0003194444444 | AD14: =IF(Z14=FALSE,"",IFERROR(IF(INDEX('Auction-Rank'!$G$1:$P$999,MATCH($A14,'Auction-Rank'!$A$1:$A$999,0),'Guts-2'!$D$26)="","",INDEX('Auction-Rank'!$G$1:$P$999,MATCH($A14,'Auction-Rank'!$A$1:$A$999,0),'Guts-2'!$D$26)),"")) -> 0.0003194444444 | AE14: =IF(AD14="","",IF(Z14=FALSE,"",AD14*(SUMIF($AC$2:$AC$999,"<>""",$AC$2:$AC$999)/SUMIF($AD$2:$AD$999,"<>""",$AD$2:$AD$999)))) -> 0.0003194444444 | AF14: =IF(VLOOKUP(A15,'Name-Sort'!$D$2:$E$999,2,FALSE)="",A15,"") -> Tyler Anderson | AG14: =IFERROR(INDEX($AF$1:$AF$999,SMALL(IF($AF$1:$AF$999<>"",ROW($AF$1:$AF$999)),ROW(AF14))),"") -> Tyler Anderson
A15: Tyler Anderson | B15: anderty01 | C15: SP | E15: COL | F15: 27 | K15: 0.0002777777778 | L15: 0.0002777777778 | M15: -0.0008333333333 | O15: -9.259259259e-05 | P15: =IFERROR(VLOOKUP(A15,'Import (Values)'!$B$2:$C$999,2,FALSE)/3120,"") ->  | R15: 220 | X15: 278 | Z15: =IFERROR(INDEX('Guts-2'!$K$1:$K$30,MATCH(E15,'Guts-2'!$J$1:$J$30,0)),TRUE) -> TRUE | AA15: =IF(Z15=FALSE,"",IFERROR(CHOOSE('Guts-2'!$D$27,Q15,R15,S15,T15,U15,V15,W15,X15,Y15),"")) -> 278 | AB15: 278 | AC15: =IFERROR(IF(INDEX('Auction-Rank'!$G$1:$P$999,MATCH($A15,'Auction-Rank'!$A$1:$A$999,0),'Guts-2'!$D$26)="","",INDEX('Auction-Rank'!$G$1:$P$999,MATCH($A15,'Auction-Rank'!$A$1:$A$999,0),'Guts-2'!$D$26)),"") -> -9.259259259e-05 | AD15: =IF(Z15=FALSE,"",IFERROR(IF(INDEX('Auction-Rank'!$G$1:$P$999,MATCH($A15,'Auction-Rank'!$A$1:$A$999,0),'Guts-2'!$D$26)="","",INDEX('Auction-Rank'!$G$1:$P$999,MATCH($A15,'Auction-Rank'!$A$1:$A$999,0),'Guts-2'!$D$26)),"")) -> -9.259259259e-05 | AE15: =IF(AD15="","",IF(Z15=FALSE,"",AD15*(SUMIF($AC$2:$AC$999,"<>""",$AC$2:$AC$999)/SUMIF($AD$2:$AD$999,"<>""",$AD$2:$AD$999)))) -> -9.259259259e-05 | AF15: =IF(VLOOKUP(A16,'Name-Sort'!$D$2:$E$999,2,FALSE)="",A16,"") -> Matt Andriese | AG15: =IFERROR(INDEX($AF$1:$AF$999,SMALL(IF($AF$1:$AF$999<>"",ROW($AF$1:$AF$999)),ROW(AF15))),"") -> Matt Andriese
A16: Matt Andriese | B16: andrima01 | C16: SP | E16: TB | F16: 27 | G16: 0.0005861111111 | K16: 0 | L16: 0.0002777777778 | M16: -0.0002777777778 | N16: 0.0005555555556 | O16: 0.0002283333333 | P16: =IFERROR(VLOOKUP(A16,'Import (Values)'!$B$2:$C$999,2,FALSE)/3120,"") ->  | Q16: 236 | R16: 321 | X16: 334 | Y16: 284 | Z16: =IFERROR(INDEX('Guts-2'!$K$1:$K$30,MATCH(E16,'Guts-2'!$J$1:$J$30,0)),TRUE) -> TRUE | AA16: =IF(Z16=FALSE,"",IFERROR(CHOOSE('Guts-2'!$D$27,Q16,R16,S16,T16,U16,V16,W16,X16,Y16),"")) -> 334 | AB16: 333 | AC16: =IFERROR(IF(INDEX('Auction-Rank'!$G$1:$P$999,MATCH($A16,'Auction-Rank'!$A$1:$A$999,0),'Guts-2'!$D$26)="","",INDEX('Auction-Rank'!$G$1:$P$999,MATCH($A16,'Auction-Rank'!$A$1:$A$999,0),'Guts-2'!$D$26)),"") -> 0.0002283333333 | AD16: =IF(Z16=FALSE,"",IFERROR(IF(INDEX('Auction-Rank'!$G$1:$P$999,MATCH($A16,'Auction-Rank'!$A$1:$A$999,0),'Guts-2'!$D$26)="","",INDEX('Auction-Rank'!$G$1:$P$999,MATCH($A16,'Auction-Rank'!$A$1:$A$999,0),'Guts-2'!$D$26)),"")) -> 0.0002283333333 | AE16: =IF(AD16="","",IF(Z16=FALSE,"",AD16*(SUMIF($AC$2:$AC$999,"<>""",$AC$2:$AC$999)/SUMIF($AD$2:$AD$999,"<>""",$AD$2:$AD$999)))) -> 0.0002283333333 | AF16: =IF(VLOOKUP(A17,'Name-Sort'!$D$2:$E$999,2,FALSE)="",A17,"") -> Elvis Andrus | AG16: =IFERROR(INDEX($AF$1:$AF$999,SMALL(IF($AF$1:$AF$999<>"",ROW($AF$1:$AF$999)),ROW(AF16))),"") -> Elvis Andrus
A17: Elvis Andrus | B17: andruel01 | C17: SS | E17: TEX | F17: 28 | G17: 0.003322222222 | H17: 0.001666666667 | J17: 0.001277777778 | K17: 0.0005555555556 | L17: 0.0005277777778 | M17: 0.002222222222 | N17: 0.001388888889 | O17: 0.001565873016 | P17: =IFERROR(VLOOKUP(A17,'Import (Values)'!$B$2:$C$999,2,FALSE)/3120,"") ->  | Q17: 103 | R17: 157 | T17: 142 | U17: 149 | V17: 170 | X17: 163 | Y17: 174 | Z17: =IFERROR(INDEX('Guts-2'!$K$1:$K$30,MATCH(E17,'Guts-2'!$J$1:$J$30,0)),TRUE) -> TRUE | AA17: =IF(Z17=FALSE,"",IFERROR(CHOOSE('Guts-2'!$D$27,Q17,R17,S17,T17,U17,V17,W17,X17,Y17),"")) -> 163 | AB17: 163 | AC17: =IFERROR(IF(INDEX('Auction-Rank'!$G$1:$P$999,MATCH($A17,'Auction-Rank'!$A$1:$A$999,0),'Guts-2'!$D$26)="","",INDEX('Auction-Rank'!$G$1:$P$999,MATCH($A17,'Auction-Rank'!$A$1:$A$999,0),'Guts-2'!$D$26)),"") -> 0.001565873016 | AD17: =IF(Z17=FALSE,"",IFERROR(IF(INDEX('Auction-Rank'!$G$1:$P$999,MATCH($A17,'Auction-Rank'!$A$1:$A$999,0),'Guts-2'!$D$26)="","",INDEX('Auction-Rank'!$G$1:$P$999,MATCH($A17,'Auction-Rank'!$A$1:$A$999,0),'Guts-2'!$D$26)),"")) -> 0.001565873016 | AE17: =IF(AD17="","",IF(Z17=FALSE,"",AD17*(SUMIF($AC$2:$AC$999,"<>""",$AC$2:$AC$999)/SUMIF($AD$2:$AD$999,"<>""",$AD$2:$AD$999)))) -> 0.001565873016 | AF17: =IF(VLOOKUP(A18,'Name-Sort'!$D$2:$E$999,2,FALSE)="",A18,"") -> Norichika Aoki | AG17: =IFERROR(INDEX($AF$1:$AF$999,SMALL(IF($AF$1:$AF$999<>"",ROW($AF$1:$AF$999)),ROW(AF17))),"") -> Norichika Aoki
A18: Norichika Aoki | B18: aokino01 | C18: OF | D18: LF,CF | E18: HOU | F18: 35 | M18: -0.001944444444 | O18: -0.001944444444 | P18: =IFERROR(VLOOKUP(A18,'Import (Values)'!$B$2:$C$999,2,FALSE)/3120,"") ->  | X18: 503 | Z18: =IFERROR(INDEX('Guts-2'!$K$1:$K$30,MATCH(E18,'Guts-2'!$J$1:$J$30,0)),TRUE) -> TRUE | AA18: =IF(Z18=FALSE,"",IFERROR(CHOOSE('Guts-2'!$D$27,Q18,R18,S18,T18,U18,V18,W18,X18,Y18),"")) -> 503 | AB18: 492 | AC18: =IFERROR(IF(INDEX('Auction-Rank'!$G$1:$P$999,MATCH($A18,'Auction-Rank'!$A$1:$A$999,0),'Guts-2'!$D$26)="","",INDEX('Auction-Rank'!$G$1:$P$999,MATCH($A18,'Auction-Rank'!$A$1:$A$999,0),'Guts-2'!$D$26)),"") -> -0.001944444444 | AD18: =IF(Z18=FALSE,"",IFERROR(IF(INDEX('Auction-Rank'!$G$1:$P$999,MATCH($A18,'Auction-Rank'!$A$1:$A$999,0),'Guts-2'!$D$26)="","",INDEX('Auction-Rank'!$G$1:$P$999,MATCH($A18,'Auction-Rank'!$A$1:$A$999,0),'Guts-2'!$D$26)),"")) -> -0.001944444444 | AE18: =IF(AD18="","",IF(Z18=FALSE,"",AD18*(SUMIF($AC$2:$AC$999,"<>""",$AC$2:$AC$999)/SUMIF($AD$2:$AD$999,"<>""",$AD$2:$AD$999)))) -> -0.001944444444 | AF18: =IF(VLOOKUP(A19,'Name-Sort'!$D$2:$E$999,2,FALSE)="",A19,"") -> Chris Archer | AG18: =IFERROR(INDEX($AF$1:$AF$999,SMALL(IF($AF$1:$AF$999<>"",ROW($AF$1:$AF$999)),ROW(AF18))),"") -> Chris Archer
A19: Chris Archer | B19: archech01 | C19: SP | E19: TB | F19: 28 | G19: 0.004155555556 | H19: 0.005277777778 | J19: 0.004416666667 | K19: 0.004444444444 | L19: 0.005194444444 | M19: 0.004444444444 | N19: 0.004444444444 | O19: 0.004625396825 | P19: =IFERROR(VLOOKUP(A19,'Import (Values)'!$B$2:$C$999,2,FALSE)/3120,"") ->  | Q19: 77 | R19: 63 | T19: 54 | U19: 51 | V19: 70 | X19: 59 | Y19: 50 | Z19: =IFERROR(INDEX('Guts-2'!$K$1:$K$30,MATCH(E19,'Guts-2'!$J$1:$J$30,0)),TRUE) -> TRUE | AA19: =IF(Z19=FALSE,"",IFERROR(CHOOSE('Guts-2'!$D$27,Q19,R19,S19,T19,U19,V19,W19,X19,Y19),"")) -> 59 | AB19: 59 | AC19: =IFERROR(IF(INDEX('Auction-Rank'!$G$1:$P$999,MATCH($A19,'Auction-Rank'!$A$1:$A$999,0),'Guts-2'!$D$26)="","",INDEX('Auction-Rank'!$G$1:$P$999,MATCH($A19,'Auction-Rank'!$A$1:$A$999,0),'Guts-2'!$D$26)),"") -> 0.004625396825 | AD19: =IF(Z19=FALSE,"",IFERROR(IF(INDEX('Auction-Rank'!$G$1:$P$999,MATCH($A19,'Auction-Rank'!$A$1:$A$999,0),'Guts-2'!$D$26)="","",INDEX('Auction-Rank'!$G$1:$P$999,MATCH($A19,'Auction-Rank'!$A$1:$A$999,0),'Guts-2'!$D$26)),"")) -> 0.004625396825 | AE19: =IF(AD19="","",IF(Z19=FALSE,"",AD19*(SUMIF($AC$2:$AC$999,"<>""",$AC$2:$AC$999)/SUMIF($AD$2:$AD$999,"<>""",$AD$2:$AD$999)))) -> 0.004625396825 | AF19: =IF(VLOOKUP(A20,'Name-Sort'!$D$2:$E$999,2,FALSE)="",A20,"") -> Orlando Arcia | AG19: =IFERROR(INDEX($AF$1:$AF$999,SMALL(IF($AF$1:$AF$999<>"",ROW($AF$1:$AF$999)),ROW(AF19))),"") -> Orlando Arcia
A20: Orlando Arcia | B20: arciaor01 | C20: SS | E20: MIL | F20: 22 | H20: 0.0005555555556 | K20: 0 | L20: 0.0003333333333 | M20: -0.0005555555556 | O20: 8.333333333e-05 | P20: =IFERROR(VLOOKUP(A20,'Import (Values)'!$B$2:$C$999,2,FALSE)/3120,"") ->  | V20: 218 | X20: 311 | Z20: =IFERROR(INDEX('Guts-2'!$K$1:$K$30,MATCH(E20,'Guts-2'!$J$1:$J$30,0)),TRUE) -> TRUE | AA20: =IF(Z20=FALSE,"",IFERROR(CHOOSE('Guts-2'!$D$27,Q20,R20,S20,T20,U20,V20,W20,X20,Y20),"")) -> 311 | AB20: 310 | AC20: =IFERROR(IF(INDEX('Auction-Rank'!$G$1:$P$999,MATCH($A20,'Auction-Rank'!$A$1:$A$999,0),'Guts-2'!$D$26)="","",INDEX('Auction-Rank'!$G$1:$P$999,MATCH($A20,'Auction-Rank'!$A$1:$A$999,0),'Guts-2'!$D$26)),"") -> 8.333333333e-05 | AD20: =IF(Z20=FALSE,"",IFERROR(IF(INDEX('Auction-Rank'!$G$1:$P$999,MATCH($A20,'Auction-Rank'!$A$1:$A$999,0),'Guts-2'!$D$26)="","",INDEX('Auction-Rank'!$G$1:$P$999,MATCH($A20,'Auction-Rank'!$A$1:$A$999,0),'Guts-2'!$D$26)),"")) -> 8.333333333e-05 | AE20: =IF(AD20="","",IF(Z20=FALSE,"",AD20*(SUMIF($AC$2:$AC$999,"<>""",$AC$2:$AC$999)/SUMIF($AD$2:$AD$999,"<>""",$AD$2:$AD$999)))) -> 8.333333333e-05 | AF20: =IF(VLOOKUP(A21,'Name-Sort'!$D$2:$E$999,2,FALSE)="",A21,"") -> Nolan Arenado | AG20: =IFERROR(INDEX($AF$1:$AF$999,SMALL(IF($AF$1:$AF$999<>"",ROW($AF$1:$AF$999)),ROW(AF20))),"") -> Nolan Arenado
A21: Nolan Arenado | B21: arenano01 | C21: 3B | E21: COL | F21: 25 | G21: 0.01063611111 | H21: 0.01027777778 | J21: 0.01183333333 | K21: 0.0125 | L21: 0.01444444444 | M21: 0.01138888889 | N21: 0.01166666667 | O21: 0.01182103175 | P21: =IFERROR(VLOOKUP(A21,'Import (Values)'!$B$2:$C$999,2,FALSE)/3120,"") -> 0.01121794872 | Q21: 8 | R21: 4 | T21: 6 | U21: 6 | V21: 4 | X21: 4 | Y21: 5 | Z21: =IFERROR(INDEX('Guts-2'!$K$1:$K$30,MATCH(E21,'Guts-2'!$J$1:$J$30,0)),TRUE) -> TRUE | AA21: =IF(Z21=FALSE,"",IFERROR(CHOOSE('Guts-2'!$D$27,Q21,R21,S21,T21,U21,V21,W21,X21,Y21),"")) -> 4 | AB21: 4 | AC21: =IFERROR(IF(INDEX('Auction-Rank'!$G$1:$P$999,MATCH($A21,'Auction-Rank'!$A$1:$A$999,0),'Guts-2'!$D$26)="","",INDEX('Auction-Rank'!$G$1:$P$999,MATCH($A21,'Auction-Rank'!$A$1:$A$999,0),'Guts-2'!$D$26)),"") -> 0.01182103175 | AD21: =IF(Z21=FALSE,"",IFERROR(IF(INDEX('Auction-Rank'!$G$1:$P$999,MATCH($A21,'Auction-Rank'!$A$1:$A$999,0),'Guts-2'!$D$26)="","",INDEX('Auction-Rank'!$G$1:$P$999,MATCH($A21,'Auction-Rank'!$A$1:$A$999,0),'Guts-2'!$D$26)),"")) -> 0.01182103175 | AE21: =IF(AD21="","",IF(Z21=FALSE,"",AD21*(SUMIF($AC$2:$AC$999,"<>""",$AC$2:$AC$999)/SUMIF($AD$2:$AD$999,"<>""",$AD$2:$AD$999)))) -> 0.01182103175 | AF21: =IF(VLOOKUP(A22,'Name-Sort'!$D$2:$E$999,2,FALSE)="",A22,"") -> Jake Arrieta | AG21: =IFERROR(INDEX($AF$1:$AF$999,SMALL(IF($AF$1:$AF$999<>"",ROW($AF$1:$AF$999)),ROW(AF21))),"") -> Jake Arrieta
A22: Jake Arrieta | B22: arrieja01 | C22: SP | E22: CHC | F22: 31 | G22: 0.006222222222 | H22: 0.006388888889 | J22: 0.006277777778 | K22: 0.006388888889 | L22: 0.007833333333 | M22: 0.006666666667 | N22: 0.006388888889 | O22: 0.006595238095 | P22: =IFERROR(VLOOKUP(A22,'Import (Values)'!$B$2:$C$999,2,FALSE)/3120,"") ->  | Q22: 38 | R22: 37 | T22: 26 | U22: 28 | V22: 41 | X22: 38 | Y22: 28 | Z22: =IFERROR(INDEX('Guts-2'!$K$1:$K$30,MATCH(E22,'Guts-2'!$J$1:$J$30,0)),TRUE) -> TRUE | AA22: =IF(Z22=FALSE,"",IFERROR(CHOOSE('Guts-2'!$D$27,Q22,R22,S22,T22,U22,V22,W22,X22,Y22),"")) -> 38 | AB22: 38 | AC22: =IFERROR(IF(INDEX('Auction-Rank'!$G$1:$P$999,MATCH($A22,'Auction-Rank'!$A$1:$A$999,0),'Guts-2'!$D$26)="","",INDEX('Auction-Rank'!$G$1:$P$999,MATCH($A22,'Auction-Rank'!$A$1:$A$999,0),'Guts-2'!$D$26)),"") -> 0.006595238095 | AD22: =IF(Z22=FALSE,"",IFERROR(IF(INDEX('Auction-Rank'!$G$1:$P$999,MATCH($A22,'Auction-Rank'!$A$1:$A$999,0),'Guts-2'!$D$26)="","",INDEX('Auction-Rank'!$G$1:$P$999,MATCH($A22,'Auction-Rank'!$A$1:$A$999,0),'Guts-2'!$D$26)),"")) -> 0.006595238095 | AE22: =IF(AD22="","",IF(Z22=FALSE,"",AD22*(SUMIF($AC$2:$AC$999,"<>""",$AC$2:$AC$999)/SUMIF($AD$2:$AD$999,"<>""",$AD$2:$AD$999)))) -> 0.006595238095 | AF22: =IF(VLOOKUP(A23,'Name-Sort'!$D$2:$E$999,2,FALSE)="",A23,"") -> Javier Baez | AG22: =IFERROR(INDEX($AF$1:$AF$999,SMALL(IF($AF$1:$AF$999<>"",ROW($AF$1:$AF$999)),ROW(AF22))),"") -> Javier Baez
A23: Javier Baez | B23: baezja01 | C23: 2B | E23: CHC | F23: 24 | G23: -0.0001583333333 | J23: 0.00125 | K23: 0.0005555555556 | L23: 0.001333333333 | M23: 0 | N23: 0.0008333333333 | O23: 0.0006356481481 | P23: =IFERROR(VLOOKUP(A23,'Import (Values)'!$B$2:$C$999,2,FALSE)/3120,"") ->  | Q23: 275 | R23: 156 | T23: 202 | U23: 152 | V23: 287 | X23: 193 | Y23: 169 | Z23: =IFERROR(INDEX('Guts-2'!$K$1:$K$30,MATCH(E23,'Guts-2'!$J$1:$J$30,0)),TRUE) -> TRUE | AA23: =IF(Z23=FALSE,"",IFERROR(CHOOSE('Guts-2'!$D$27,Q23,R23,S23,T23,U23,V23,W23,X23,Y23),"")) -> 193 | AB23: 193 | AC23: =IFERROR(IF(INDEX('Auction-Rank'!$G$1:$P$999,MATCH($A23,'Auction-Rank'!$A$1:$A$999,0),'Guts-2'!$D$26)="","",INDEX('Auction-Rank'!$G$1:$P$999,MATCH($A23,'Auction-Rank'!$A$1:$A$999,0),'Guts-2'!$D$26)),"") -> 0.0006356481481 | AD23: =IF(Z23=FALSE,"",IFERROR(IF(INDEX('Auction-Rank'!$G$1:$P$999,MATCH($A23,'Auction-Rank'!$A$1:$A$999,0),'Guts-2'!$D$26)="","",INDEX('Auction-Rank'!$G$1:$P$999,MATCH($A23,'Auction-Rank'!$A$1:$A$999,0),'Guts-2'!$D$26)),"")) -> 0.0006356481481 | AE23: =IF(AD23="","",IF(Z23=FALSE,"",AD23*(SUMIF($AC$2:$AC$999,"<>""",$AC$2:$AC$999)/SUMIF($AD$2:$AD$999,"<>""",$AD$2:$AD$999)))) -> 0.0006356481481 | AF23: =IF(VLOOKUP(A24,'Name-Sort'!$D$2:$E$999,2,FALSE)="",A24,"") -> Pedro Baez | AG23: =IFERROR(INDEX($AF$1:$AF$999,SMALL(IF($AF$1:$AF$999<>"",ROW($AF$1:$AF$999)),ROW(AF23))),"") -> Pedro Baez
A24: Pedro Baez | B24: baezpe01 | C24: RP | E24: LAD | F24: 29 | K24: 0 | L24: 0 | M24: -0.001111111111 | O24: -0.0003703703704 | P24: =IFERROR(VLOOKUP(A24,'Import (Values)'!$B$2:$C$999,2,FALSE)/3120,"") ->  | X24: 500 | Z24: =IFERROR(INDEX('Guts-2'!$K$1:$K$30,MATCH(E24,'Guts-2'!$J$1:$J$30,0)),TRUE) -> TRUE | AA24: =IF(Z24=FALSE,"",IFERROR(CHOOSE('Guts-2'!$D$27,Q24,R24,S24,T24,U24,V24,W24,X24,Y24),"")) -> 500 | AB24: 489 | AC24: =IFERROR(IF(INDEX('Auction-Rank'!$G$1:$P$999,MATCH($A24,'Auction-Rank'!$A$1:$A$999,0),'Guts-2'!$D$26)="","",INDEX('Auction-Rank'!$G$1:$P$999,MATCH($A24,'Auction-Rank'!$A$1:$A$999,0),'Guts-2'!$D$26)),"") -> -0.0003703703704 | AD24: =IF(Z24=FALSE,"",IFERROR(IF(INDEX('Auction-Rank'!$G$1:$P$999,MATCH($A24,'Auction-Rank'!$A$1:$A$999,0),'Guts-2'!$D$26)="","",INDEX('Auction-Rank'!$G$1:$P$999,MATCH($A24,'Auction-Rank'!$A$1:$A$999,0),'Guts-2'!$D$26)),"")) -> -0.0003703703704 | AE24: =IF(AD24="","",IF(Z24=FALSE,"",AD24*(SUMIF($AC$2:$AC$999,"<>""",$AC$2:$AC$999)/SUMIF($AD$2:$AD$999,"<>""",$AD$2:$AD$999)))) -> -0.0003703703704 | AF24: =IF(VLOOKUP(A25,'Name-Sort'!$D$2:$E$999,2,FALSE)="",A25,"") -> Andrew Bailey | AG24: =IFERROR(INDEX($AF$1:$AF$999,SMALL(IF($AF$1:$AF$999<>"",ROW($AF$1:$AF$999)),ROW(AF24))),"") -> Andrew Bailey
A25: Andrew Bailey | B25: bailean01 | C25: RP | E25: LAA | F25: 32 | M25: -0.002222222222 | O25: -0.002222222222 | P25: =IFERROR(VLOOKUP(A25,'Import (Values)'!$B$2:$C$999,2,FALSE)/3120,"") ->  | X25: 512 | Z25: =IFERROR(INDEX('Guts-2'!$K$1:$K$30,MATCH(E25,'Guts-2'!$J$1:$J$30,0)),TRUE) -> TRUE | AA25: =IF(Z25=FALSE,"",IFERROR(CHOOSE('Guts-2'!$D$27,Q25,R25,S25,T25,U25,V25,W25,X25,Y25),"")) -> 512 | AB25: 499 | AC25: =IFERROR(IF(INDEX('Auction-Rank'!$G$1:$P$999,MATCH($A25,'Auction-Rank'!$A$1:$A$999,0),'Guts-2'!$D$26)="","",INDEX('Auction-Rank'!$G$1:$P$999,MATCH($A25,'Auction-Rank'!$A$1:$A$999,0),'Guts-2'!$D$26)),"") -> -0.002222222222 | AD25: =IF(Z25=FALSE,"",IFERROR(IF(INDEX('Auction-Rank'!$G$1:$P$999,MATCH($A25,'Auction-Rank'!$A$1:$A$999,0),'Guts-2'!$D$26)="","",INDEX('Auction-Rank'!$G$1:$P$999,MATCH($A25,'Auction-Rank'!$A$1:$A$999,0),'Guts-2'!$D$26)),"")) -> -0.002222222222 | AE25: =IF(AD25="","",IF(Z25=FALSE,"",AD25*(SUMIF($AC$2:$AC$999,"<>""",$AC$2:$AC$999)/SUMIF($AD$2:$AD$999,"<>""",$AD$2:$AD$999)))) -> -0.002222222222 | AF25: =IF(VLOOKUP(A26,'Name-Sort'!$D$2:$E$999,2,FALSE)="",A26,"") -> Homer Bailey | AG25: =IFERROR(INDEX($AF$1:$AF$999,SMALL(IF($AF$1:$AF$999<>"",ROW($AF$1:$AF$999)),ROW(AF25))),"") -> Homer Bailey
A26: Homer Bailey | B26: baileho02 | C26: SP | E26: CIN | F26: 30 | M26: -0.002222222222 | O26: -0.002222222222 | P26: =IFERROR(VLOOKUP(A26,'Import (Values)'!$B$2:$C$999,2,FALSE)/3120,"") ->  | X26: 465 | Z26: =IFERROR(INDEX('Guts-2'!$K$1:$K$30,MATCH(E26,'Guts-2'!$J$1:$J$30,0)),TRUE) -> TRUE | AA26: =IF(Z26=FALSE,"",IFERROR(CHOOSE('Guts-2'!$D$27,Q26,R26,S26,T26,U26,V26,W26,X26,Y26),"")) -> 465 | AB26: 455 | AC26: =IFERROR(IF(INDEX('Auction-Rank'!$G$1:$P$999,MATCH($A26,'Auction-Rank'!$A$1:$A$999,0),'Guts-2'!$D$26)="","",INDEX('Auction-Rank'!$G$1:$P$999,MATCH($A26,'Auction-Rank'!$A$1:$A$999,0),'Guts-2'!$D$26)),"") -> -0.002222222222 | AD26: =IF(Z26=FALSE,"",IFERROR(IF(INDEX('Auction-Rank'!$G$1:$P$999,MATCH($A26,'Auction-Rank'!$A$1:$A$999,0),'Guts-2'!$D$26)="","",INDEX('Auction-Rank'!$G$1:$P$999,MATCH($A26,'Auction-Rank'!$A$1:$A$999,0),'Guts-2'!$D$26)),"")) -> -0.002222222222 | AE26: =IF(AD26="","",IF(Z26=FALSE,"",AD26*(SUMIF($AC$2:$AC$999,"<>""",$AC$2:$AC$999)/SUMIF($AD$2:$AD$999,"<>""",$AD$2:$AD$999)))) -> -0.002222222222 | AF26: =IF(VLOOKUP(A27,'Name-Sort'!$D$2:$E$999,2,FALSE)="",A27,"") -> Jett Bandy | AG26: =IFERROR(INDEX($AF$1:$AF$999,SMALL(IF($AF$1:$AF$999<>"",ROW($AF$1:$AF$999)),ROW(AF26))),"") -> Jett Bandy
A27: Jett Bandy | B27: bandyje01 | C27: C | E27: MIL | F27: 27 | M27: -0.002222222222 | O27: -0.002222222222 | P27: =IFERROR(VLOOKUP(A27,'Import (Values)'!$B$2:$C$999,2,FALSE)/3120,"") ->  | X27: 454 | Z27: =IFERROR(INDEX('Guts-2'!$K$1:$K$30,MATCH(E27,'Guts-2'!$J$1:$J$30,0)),TRUE) -> TRUE | AA27: =IF(Z27=FALSE,"",IFERROR(CHOOSE('Guts-2'!$D$27,Q27,R27,S27,T27,U27,V27,W27,X27,Y27),"")) -> 454 | AB27: 446 | AC27: =IFERROR(IF(INDEX('Auction-Rank'!$G$1:$P$999,MATCH($A27,'Auction-Rank'!$A$1:$A$999,0),'Guts-2'!$D$26)="","",INDEX('Auction-Rank'!$G$1:$P$999,MATCH($A27,'Auction-Rank'!$A$1:$A$999,0),'Guts-2'!$D$26)),"") -> -0.002222222222 | AD27: =IF(Z27=FALSE,"",IFERROR(IF(INDEX('Auction-Rank'!$G$1:$P$999,MATCH($A27,'Auction-Rank'!$A$1:$A$999,0),'Guts-2'!$D$26)="","",INDEX('Auction-Rank'!$G$1:$P$999,MATCH($A27,'Auction-Rank'!$A$1:$A$999,0),'Guts-2'!$D$26)),"")) -> -0.002222222222 | AE27: =IF(AD27="","",IF(Z27=FALSE,"",AD27*(SUMIF($AC$2:$AC$999,"<>""",$AC$2:$AC$999)/SUMIF($AD$2:$AD$999,"<>""",$AD$2:$AD$999)))) -> -0.002222222222 | AF27: =IF(VLOOKUP(A28,'Name-Sort'!$D$2:$E$999,2,FALSE)="",A28,"") -> Tucker Barnhart | AG27: =IFERROR(INDEX($AF$1:$AF$999,SMALL(IF($AF$1:$AF$999<>"",ROW($AF$1:$AF$999)),ROW(AF27))),"") -> Tucker Barnhart
A28: Tucker Barnhart | B28: barnhtu01 | C28: C | E28: CIN | F28: 26 | M28: -0.003888888889 | O28: -0.003888888889 | P28: =IFERROR(VLOOKUP(A28,'Import (Values)'!$B$2:$C$999,2,FALSE)/3120,"") ->  | Z28: =IFERROR(INDEX('Guts-2'!$K$1:$K$30,MATCH(E28,'Guts-2'!$J$1:$J$30,0)),TRUE) -> TRUE | AA28: =IF(Z28=FALSE,"",IFERROR(CHOOSE('Guts-2'!$D$27,Q28,R28,S28,T28,U28,V28,W28,X28,Y28),"")) ->  | AC28: =IFERROR(IF(INDEX('Auction-Rank'!$G$1:$P$999,MATCH($A28,'Auction-Rank'!$A$1:$A$999,0),'Guts-2'!$D$26)="","",INDEX('Auction-Rank'!$G$1:$P$999,MATCH($A28,'Auction-Rank'!$A$1:$A$999,0),'Guts-2'!$D$26)),"") -> -0.003888888889 | AD28: =IF(Z28=FALSE,"",IFERROR(IF(INDEX('Auction-Rank'!$G$1:$P$999,MATCH($A28,'Auction-Rank'!$A$1:$A$999,0),'Guts-2'!$D$26)="","",INDEX('Auction-Rank'!$G$1:$P$999,MATCH($A28,'Auction-Rank'!$A$1:$A$999,0),'Guts-2'!$D$26)),"")) -> -0.003888888889 | AE28: =IF(AD28="","",IF(Z28=FALSE,"",AD28*(SUMIF($AC$2:$AC$999,"<>""",$AC$2:$AC$999)/SUMIF($AD$2:$AD$999,"<>""",$AD$2:$AD$999)))) -> -0.003888888889 | AF28: =IF(VLOOKUP(A29,'Name-Sort'!$D$2:$E$999,2,FALSE)="",A29,"") -> Kyle Barraclough | AG28: =IFERROR(INDEX($AF$1:$AF$999,SMALL(IF($AF$1:$AF$999<>"",ROW($AF$1:$AF$999)),ROW(AF28))),"") -> Kyle Barraclough
A29: Kyle Barraclough | B29: barraky01 | C29: RP | E29: MIA | F29: 26 | K29: 0 | L29: 0.0004166666667 | M29: -0.001111111111 | N29: 0.0008333333333 | O29: 3.472222222e-05 | P29: =IFERROR(VLOOKUP(A29,'Import (Values)'!$B$2:$C$999,2,FALSE)/3120,"") ->  | X29: 343 | Z29: =IFERROR(INDEX('Guts-2'!$K$1:$K$30,MATCH(E29,'Guts-2'!$J$1:$J$30,0)),TRUE) -> TRUE | AA29: =IF(Z29=FALSE,"",IFERROR(CHOOSE('Guts-2'!$D$27,Q29,R29,S29,T29,U29,V29,W29,X29,Y29),"")) -> 343 | AB29: 342 | AC29: =IFERROR(IF(INDEX('Auction-Rank'!$G$1:$P$999,MATCH($A29,'Auction-Rank'!$A$1:$A$999,0),'Guts-2'!$D$26)="","",INDEX('Auction-Rank'!$G$1:$P$999,MATCH($A29,'Auction-Rank'!$A$1:$A$999,0),'Guts-2'!$D$26)),"") -> 3.472222222e-05 | AD29: =IF(Z29=FALSE,"",IFERROR(IF(INDEX('Auction-Rank'!$G$1:$P$999,MATCH($A29,'Auction-Rank'!$A$1:$A$999,0),'Guts-2'!$D$26)="","",INDEX('Auction-Rank'!$G$1:$P$999,MATCH($A29,'Auction-Rank'!$A$1:$A$999,0),'Guts-2'!$D$26)),"")) -> 3.472222222e-05 | AE29: =IF(AD29="","",IF(Z29=FALSE,"",AD29*(SUMIF($AC$2:$AC$999,"<>""",$AC$2:$AC$999)/SUMIF($AD$2:$AD$999,"<>""",$AD$2:$AD$999)))) -> 3.472222222e-05 | AF29: =IF(VLOOKUP(A30,'Name-Sort'!$D$2:$E$999,2,FALSE)="",A30,"") -> Franklin Barreto | AG29: =IFERROR(INDEX($AF$1:$AF$999,SMALL(IF($AF$1:$AF$999<>"",ROW($AF$1:$AF$999)),ROW(AF29))),"") -> Franklin Barreto
A30: Franklin Barreto | B30: barrefr01 | C30: SS | E30: OAK | F30: 21 | P30: =IFERROR(VLOOKUP(A30,'Import (Values)'!$B$2:$C$999,2,FALSE)/3120,"") ->  | Z30: =IFERROR(INDEX('Guts-2'!$K$1:$K$30,MATCH(E30,'Guts-2'!$J$1:$J$30,0)),TRUE) -> TRUE | AA30: =IF(Z30=FALSE,"",IFERROR(CHOOSE('Guts-2'!$D$27,Q30,R30,S30,T30,U30,V30,W30,X30,Y30),"")) ->  | AC30: =IFERROR(IF(INDEX('Auction-Rank'!$G$1:$P$999,MATCH($A30,'Auction-Rank'!$A$1:$A$999,0),'Guts-2'!$D$26)="","",INDEX('Auction-Rank'!$G$1:$P$999,MATCH($A30,'Auction-Rank'!$A$1:$A$999,0),'Guts-2'!$D$26)),"") ->  | AD30: =IF(Z30=FALSE,"",IFERROR(IF(INDEX('Auction-Rank'!$G$1:$P$999,MATCH($A30,'Auction-Rank'!$A$1:$A$999,0),'Guts-2'!$D$26)="","",INDEX('Auction-Rank'!$G$1:$P$999,MATCH($A30,'Auction-Rank'!$A$1:$A$999,0),'Guts-2'!$D$26)),"")) ->  | AE30: =IF(AD30="","",IF(Z30=FALSE,"",AD30*(SUMIF($AC$2:$AC$999,"<>""",$AC$2:$AC$999)/SUMIF($AD$2:$AD$999,"<>""",$AD$2:$AD$999)))) ->  | AF30: =IF(VLOOKUP(A31,'Name-Sort'!$D$2:$E$999,2,FALSE)="",A31,"") -> Jake Barrett | AG30: =IFERROR(INDEX($AF$1:$AF$999,SMALL(IF($AF$1:$AF$999<>"",ROW($AF$1:$AF$999)),ROW(AF30))),"") -> Jake Barrett
A31: Jake Barrett | B31: barreja01 | C31: RP | E31: ARI | F31: 25 | K31: 0 | L31: 0 | M31: -0.001388888889 | O31: -0.000462962963 | P31: =IFERROR(VLOOKUP(A31,'Import (Values)'!$B$2:$C$999,2,FALSE)/3120,"") ->  | X31: 473 | Z31: =IFERROR(INDEX('Guts-2'!$K$1:$K$30,MATCH(E31,'Guts-2'!$J$1:$J$30,0)),TRUE) -> TRUE | AA31: =IF(Z31=FALSE,"",IFERROR(CHOOSE('Guts-2'!$D$27,Q31,R31,S31,T31,U31,V31,W31,X31,Y31),"")) -> 473 | AB31: 462 | AC31: =IFERROR(IF(INDEX('Auction-Rank'!$G$1:$P$999,MATCH($A31,'Auction-Rank'!$A$1:$A$999,0),'Guts-2'!$D$26)="","",INDEX('Auction-Rank'!$G$1:$P$999,MATCH($A31,'Auction-Rank'!$A$1:$A$999,0),'Guts-2'!$D$26)),"") -> -0.000462962963 | AD31: =IF(Z31=FALSE,"",IFERROR(IF(INDEX('Auction-Rank'!$G$1:$P$999,MATCH($A31,'Auction-Rank'!$A$1:$A$999,0),'Guts-2'!$D$26)="","",INDEX('Auction-Rank'!$G$1:$P$999,MATCH($A31,'Auction-Rank'!$A$1:$A$999,0),'Guts-2'!$D$26)),"")) -> -0.000462962963 | AE31: =IF(AD31="","",IF(Z31=FALSE,"",AD31*(SUMIF($AC$2:$AC$999,"<>""",$AC$2:$AC$999)/SUMIF($AD$2:$AD$999,"<>""",$AD$2:$AD$999)))) -> -0.000462962963 | AF31: =IF(VLOOKUP(A32,'Name-Sort'!$D$2:$E$999,2,FALSE)="",A32,"") -> Trevor Bauer | AG31: =IFERROR(INDEX($AF$1:$AF$999,SMALL(IF($AF$1:$AF$999<>"",ROW($AF$1:$AF$999)),ROW(AF31))),"") -> Trevor Bauer
A32: Trevor Bauer | B32: bauertr01 | C32: SP | E32: CLE | F32: 26 | G32: 0.0004638888889 | K32: 0.0002777777778 | L32: 0.0003611111111 | M32: -0.0002777777778 | O32: 0.00020625 | P32: =IFERROR(VLOOKUP(A32,'Import (Values)'!$B$2:$C$999,2,FALSE)/3120,"") ->  | Q32: 246 | R32: 284 | X32: 294 | Y32: 269 | Z32: =IFERROR(INDEX('Guts-2'!$K$1:$K$30,MATCH(E32,'Guts-2'!$J$1:$J$30,0)),TRUE) -> TRUE | AA32: =IF(Z32=FALSE,"",IFERROR(CHOOSE('Guts-2'!$D$27,Q32,R32,S32,T32,U32,V32,W32,X32,Y32),"")) -> 294 | AB32: 294 | AC32: =IFERROR(IF(INDEX('Auction-Rank'!$G$1:$P$999,MATCH($A32,'Auction-Rank'!$A$1:$A$999,0),'Guts-2'!$D$26)="","",INDEX('Auction-Rank'!$G$1:$P$999,MATCH($A32,'Auction-Rank'!$A$1:$A$999,0),'Guts-2'!$D$26)),"") -> 0.00020625 | AD32: =IF(Z32=FALSE,"",IFERROR(IF(INDEX('Auction-Rank'!$G$1:$P$999,MATCH($A32,'Auction-Rank'!$A$1:$A$999,0),'Guts-2'!$D$26)="","",INDEX('Auction-Rank'!$G$1:$P$999,MATCH($A32,'Auction-Rank'!$A$1:$A$999,0),'Guts-2'!$D$26)),"")) -> 0.00020625 | AE32: =IF(AD32="","",IF(Z32=FALSE,"",AD32*(SUMIF($AC$2:$AC$999,"<>""",$AC$2:$AC$999)/SUMIF($AD$2:$AD$999,"<>""",$AD$2:$AD$999)))) -> 0.00020625 | AF32: =IF(VLOOKUP(A33,'Name-Sort'!$D$2:$E$999,2,FALSE)="",A33,"") -> Jose Bautista | AG32: =IFERROR(INDEX($AF$1:$AF$999,SMALL(IF($AF$1:$AF$999<>"",ROW($AF$1:$AF$999)),ROW(AF32))),"") -> Jose Bautista
A33: Jose Bautista | B33: bautijo02 | C33: OF | D33: RF | E33: TOR | F33: 36 | G33: 0.004311111111 | H33: 0.004722222222 | J33: 0.003805555556 | K33: 0.001944444444 | L33: 0.002888888889 | M33: 0.003888888889 | N33: 0.004722222222 | O33: 0.003754761905 | P33: =IFERROR(VLOOKUP(A33,'Import (Values)'!$B$2:$C$999,2,FALSE)/3120,"") ->  | Q33: 72 | R33: 105 | T33: 61 | U33: 139 | V33: 60 | X33: 86 | Y33: 105 | Z33: =IFERROR(INDEX('Guts-2'!$K$1:$K$30,MATCH(E33,'Guts-2'!$J$1:$J$30,0)),TRUE) -> TRUE | AA33: =IF(Z33=FALSE,"",IFERROR(CHOOSE('Guts-2'!$D$27,Q33,R33,S33,T33,U33,V33,W33,X33,Y33),"")) -> 86 | AB33: 86 | AC33: =IFERROR(IF(INDEX('Auction-Rank'!$G$1:$P$999,MATCH($A33,'Auction-Rank'!$A$1:$A$999,0),'Guts-2'!$D$26)="","",INDEX('Auction-Rank'!$G$1:$P$999,MATCH($A33,'Auction-Rank'!$A$1:$A$999,0),'Guts-2'!$D$26)),"") -> 0.003754761905 | AD33: =IF(Z33=FALSE,"",IFERROR(IF(INDEX('Auction-Rank'!$G$1:$P$999,MATCH($A33,'Auction-Rank'!$A$1:$A$999,0),'Guts-2'!$D$26)="","",INDEX('Auction-Rank'!$G$1:$P$999,MATCH($A33,'Auction-Rank'!$A$1:$A$999,0),'Guts-2'!$D$26)),"")) -> 0.003754761905 | AE33: =IF(AD33="","",IF(Z33=FALSE,"",AD33*(SUMIF($AC$2:$AC$999,"<>""",$AC$2:$AC$999)/SUMIF($AD$2:$AD$999,"<>""",$AD$2:$AD$999)))) -> 0.003754761905 | AF33: =IF(VLOOKUP(A34,'Name-Sort'!$D$2:$E$999,2,FALSE)="",A34,"") -> Cam Bedrosian | AG33: =IFERROR(INDEX($AF$1:$AF$999,SMALL(IF($AF$1:$AF$999<>"",ROW($AF$1:$AF$999)),ROW(AF33))),"") -> Cam Bedrosian
A34: Cam Bedrosian | B34: bedroca01 | C34: RP | E34: LAA | F34: 25 | G34: -0.0004361111111 | H34: 0.001388888889 | K34: 0 | L34: 0.0003333333333 | M34: -0.0002777777778 | N34: 0.001111111111 | O34: 0.0003532407407 | P34: =IFERROR(VLOOKUP(A34,'Import (Values)'!$B$2:$C$999,2,FALSE)/3120,"") ->  | Q34: 300 | R34: 280 | T34: 285 | U34: 248 | V34: 235 | X34: 238 | Y34: 237 | Z34: =IFERROR(INDEX('Guts-2'!$K$1:$K$30,MATCH(E34,'Guts-2'!$J$1:$J$30,0)),TRUE) -> TRUE | AA34: =IF(Z34=FALSE,"",IFERROR(CHOOSE('Guts-2'!$D$27,Q34,R34,S34,T34,U34,V34,W34,X34,Y34),"")) -> 238 | AB34: 238 | AC34: =IFERROR(IF(INDEX('Auction-Rank'!$G$1:$P$999,MATCH($A34,'Auction-Rank'!$A$1:$A$999,0),'Guts-2'!$D$26)="","",INDEX('Auction-Rank'!$G$1:$P$999,MATCH($A34,'Auction-Rank'!$A$1:$A$999,0),'Guts-2'!$D$26)),"") -> 0.0003532407407 | AD34: =IF(Z34=FALSE,"",IFERROR(IF(INDEX('Auction-Rank'!$G$1:$P$999,MATCH($A34,'Auction-Rank'!$A$1:$A$999,0),'Guts-2'!$D$26)="","",INDEX('Auction-Rank'!$G$1:$P$999,MATCH($A34,'Auction-Rank'!$A$1:$A$999,0),'Guts-2'!$D$26)),"")) -> 0.0003532407407 | AE34: =IF(AD34="","",IF(Z34=FALSE,"",AD34*(SUMIF($AC$2:$AC$999,"<>""",$AC$2:$AC$999)/SUMIF($AD$2:$AD$999,"<>""",$AD$2:$AD$999)))) -> 0.0003532407407 | AF34: =IF(VLOOKUP(A35,'Name-Sort'!$D$2:$E$999,2,FALSE)="",A35,"") -> Cody Bellinger | AG34: =IFERROR(INDEX($AF$1:$AF$999,SMALL(IF($AF$1:$AF$999<>"",ROW($AF$1:$AF$999)),ROW(AF34))),"") -> Cody Bellinger
A35: Cody Bellinger | B35: bellico01 | C35: 1B | E35: LAD | F35: 21 | P35: =IFERROR(VLOOKUP(A35,'Import (Values)'!$B$2:$C$999,2,FALSE)/3120,"") ->  | Z35: =IFERROR(INDEX('Guts-2'!$K$1:$K$30,MATCH(E35,'Guts-2'!$J$1:$J$30,0)),TRUE) -> TRUE | AA35: =IF(Z35=FALSE,"",IFERROR(CHOOSE('Guts-2'!$D$27,Q35,R35,S35,T35,U35,V35,W35,X35,Y35),"")) ->  | AC35: =IFERROR(IF(INDEX('Auction-Rank'!$G$1:$P$999,MATCH($A35,'Auction-Rank'!$A$1:$A$999,0),'Guts-2'!$D$26)="","",INDEX('Auction-Rank'!$G$1:$P$999,MATCH($A35,'Auction-Rank'!$A$1:$A$999,0),'Guts-2'!$D$26)),"") ->  | AD35: =IF(Z35=FALSE,"",IFERROR(IF(INDEX('Auction-Rank'!$G$1:$P$999,MATCH($A35,'Auction-Rank'!$A$1:$A$999,0),'Guts-2'!$D$26)="","",INDEX('Auction-Rank'!$G$1:$P$999,MATCH($A35,'Auction-Rank'!$A$1:$A$999,0),'Guts-2'!$D$26)),"")) ->  | AE35: =IF(AD35="","",IF(Z35=FALSE,"",AD35*(SUMIF($AC$2:$AC$999,"<>""",$AC$2:$AC$999)/SUMIF($AD$2:$AD$999,"<>""",$AD$2:$AD$999)))) ->  | AF35: =IF(VLOOKUP(A36,'Name-Sort'!$D$2:$E$999,2,FALSE)="",A36,"") -> Josh Bell | AG35: =IFERROR(INDEX($AF$1:$AF$999,SMALL(IF($AF$1:$AF$999<>"",ROW($AF$1:$AF$999)),ROW(AF35))),"") -> Josh Bell
A36: Josh Bell | B36: belljo02 | C36: 1B | E36: PIT | F36: 24 | H36: 0.0002777777778 | K36: 0 | L36: 0.0003611111111 | M36: -0.001388888889 | N36: 0.0005555555556 | O36: -3.888888889e-05 | P36: =IFERROR(VLOOKUP(A36,'Import (Values)'!$B$2:$C$999,2,FALSE)/3120,"") ->  | V36: 229 | X36: 275 | Z36: =IFERROR(INDEX('Guts-2'!$K$1:$K$30,MATCH(E36,'Guts-2'!$J$1:$J$30,0)),TRUE) -> TRUE | AA36: =IF(Z36=FALSE,"",IFERROR(CHOOSE('Guts-2'!$D$27,Q36,R36,S36,T36,U36,V36,W36,X36,Y36),"")) -> 275 | AB36: 275 | AC36: =IFERROR(IF(INDEX('Auction-Rank'!$G$1:$P$999,MATCH($A36,'Auction-Rank'!$A$1:$A$999,0),'Guts-2'!$D$26)="","",INDEX('Auction-Rank'!$G$1:$P$999,MATCH($A36,'Auction-Rank'!$A$1:$A$999,0),'Guts-2'!$D$26)),"") -> -3.888888889e-05 | AD36: =IF(Z36=FALSE,"",IFERROR(IF(INDEX('Auction-Rank'!$G$1:$P$999,MATCH($A36,'Auction-Rank'!$A$1:$A$999,0),'Guts-2'!$D$26)="","",INDEX('Auction-Rank'!$G$1:$P$999,MATCH($A36,'Auction-Rank'!$A$1:$A$999,0),'Guts-2'!$D$26)),"")) -> -3.888888889e-05 | AE36: =IF(AD36="","",IF(Z36=FALSE,"",AD36*(SUMIF($AC$2:$AC$999,"<>""",$AC$2:$AC$999)/SUMIF($AD$2:$AD$999,"<>""",$AD$2:$AD$999)))) -> -3.888888889e-05 | AF36: =IF(VLOOKUP(A37,'Name-Sort'!$D$2:$E$999,2,FALSE)="",A37,"") -> Brandon Belt | AG36: =IFERROR(INDEX($AF$1:$AF$999,SMALL(IF($AF$1:$AF$999<>"",ROW($AF$1:$AF$999)),ROW(AF36))),"") -> Brandon Belt
A37: Brandon Belt | B37: beltbr01 | C37: 1B | E37: SF | F37: 28 | G37: 0.001855555556 | H37: 0.001111111111 | J37: 0.001777777778 | K37: 0.001944444444 | L37: 0.001583333333 | M37: 0.001388888889 | N37: 0.002222222222 | O37: 0.001697619048 | P37: =IFERROR(VLOOKUP(A37,'Import (Values)'!$B$2:$C$999,2,FALSE)/3120,"") ->  | Q37: 160 | R37: 119 | T37: 118 | U37: 134 | V37: 187 | X37: 143 | Y37: 127 | Z37: =IFERROR(INDEX('Guts-2'!$K$1:$K$30,MATCH(E37,'Guts-2'!$J$1:$J$30,0)),TRUE) -> TRUE | AA37: =IF(Z37=FALSE,"",IFERROR(CHOOSE('Guts-2'!$D$27,Q37,R37,S37,T37,U37,V37,W37,X37,Y37),"")) -> 143 | AB37: 143 | AC37: =IFERROR(IF(INDEX('Auction-Rank'!$G$1:$P$999,MATCH($A37,'Auction-Rank'!$A$1:$A$999,0),'Guts-2'!$D$26)="","",INDEX('Auction-Rank'!$G$1:$P$999,MATCH($A37,'Auction-Rank'!$A$1:$A$999,0),'Guts-2'!$D$26)),"") -> 0.001697619048 | AD37: =IF(Z37=FALSE,"",IFERROR(IF(INDEX('Auction-Rank'!$G$1:$P$999,MATCH($A37,'Auction-Rank'!$A$1:$A$999,0),'Guts-2'!$D$26)="","",INDEX('Auction-Rank'!$G$1:$P$999,MATCH($A37,'Auction-Rank'!$A$1:$A$999,0),'Guts-2'!$D$26)),"")) -> 0.001697619048 | AE37: =IF(AD37="","",IF(Z37=FALSE,"",AD37*(SUMIF($AC$2:$AC$999,"<>""",$AC$2:$AC$999)/SUMIF($AD$2:$AD$999,"<>""",$AD$2:$AD$999)))) -> 0.001697619048 | AF37: =IF(VLOOKUP(A38,'Name-Sort'!$D$2:$E$999,2,FALSE)="",A38,"") -> Adrian Beltre | AG37: =IFERROR(INDEX($AF$1:$AF$999,SMALL(IF($AF$1:$AF$999<>"",ROW($AF$1:$AF$999)),ROW(AF37))),"") -> Adrian Beltre
A38: Adrian Beltre | B38: beltrad01 | C38: 3B | E38: TEX | F38: 37 | G38: 0.004566666667 | H38: 0.005555555556 | J38: 0.004 | K38: 0.005 | L38: 0.005555555556 | M38: 0.005 | N38: 0.004722222222 | O38: 0.004914285714 | P38: =IFERROR(VLOOKUP(A38,'Import (Values)'!$B$2:$C$999,2,FALSE)/3120,"") ->  | Q38: 62 | R38: 48 | T38: 52 | U38: 44 | V38: 58 | X38: 56 | Y38: 56 | Z38: =IFERROR(INDEX('Guts-2'!$K$1:$K$30,MATCH(E38,'Guts-2'!$J$1:$J$30,0)),TRUE) -> TRUE | AA38: =IF(Z38=FALSE,"",IFERROR(CHOOSE('Guts-2'!$D$27,Q38,R38,S38,T38,U38,V38,W38,X38,Y38),"")) -> 56 | AB38: 56 | AC38: =IFERROR(IF(INDEX('Auction-Rank'!$G$1:$P$999,MATCH($A38,'Auction-Rank'!$A$1:$A$999,0),'Guts-2'!$D$26)="","",INDEX('Auction-Rank'!$G$1:$P$999,MATCH($A38,'Auction-Rank'!$A$1:$A$999,0),'Guts-2'!$D$26)),"") -> 0.004914285714 | AD38: =IF(Z38=FALSE,"",IFERROR(IF(INDEX('Auction-Rank'!$G$1:$P$999,MATCH($A38,'Auction-Rank'!$A$1:$A$999,0),'Guts-2'!$D$26)="","",INDEX('Auction-Rank'!$G$1:$P$999,MATCH($A38,'Auction-Rank'!$A$1:$A$999,0),'Guts-2'!$D$26)),"")) -> 0.004914285714 | AE38: =IF(AD38="","",IF(Z38=FALSE,"",AD38*(SUMIF($AC$2:$AC$999,"<>""",$AC$2:$AC$999)/SUMIF($AD$2:$AD$999,"<>""",$AD$2:$AD$999)))) -> 0.004914285714 | AF38: =IF(VLOOKUP(A39,'Name-Sort'!$D$2:$E$999,2,FALSE)="",A39,"") -> Carlos Beltran | AG38: =IFERROR(INDEX($AF$1:$AF$999,SMALL(IF($AF$1:$AF$999<>"",ROW($AF$1:$AF$999)),ROW(AF38))),"") -> Carlos Beltran
A39: Carlos Beltran | B39: beltrca01 | C39: DH | D39: RF | E39: TEX | F39: 39 | G39: 0.0007861111111 | H39: 0.001388888889 | J39: 0.0008611111111 | K39: 0.0002777777778 | L39: 0.0004444444444 | M39: 0.0008333333333 | N39: 0.001388888889 | O39: 0.0008543650794 | P39: =IFERROR(VLOOKUP(A39,'Import (Values)'!$B$2:$C$999,2,FALSE)/3120,"") ->  | Q39: 217 | R39: 194 | T39: 157 | U39: 151 | V39: 178 | X39: 189 | Y39: 168 | Z39: =IFERROR(INDEX('Guts-2'!$K$1:$K$30,MATCH(E39,'Guts-2'!$J$1:$J$30,0)),TRUE) -> TRUE | AA39: =IF(Z39=FALSE,"",IFERROR(CHOOSE('Guts-2'!$D$27,Q39,R39,S39,T39,U39,V39,W39,X39,Y39),"")) -> 189 | AB39: 189 | AC39: =IFERROR(IF(INDEX('Auction-Rank'!$G$1:$P$999,MATCH($A39,'Auction-Rank'!$A$1:$A$999,0),'Guts-2'!$D$26)="","",INDEX('Auction-Rank'!$G$1:$P$999,MATCH($A39,'Auction-Rank'!$A$1:$A$999,0),'Guts-2'!$D$26)),"") -> 0.0008543650794 | AD39: =IF(Z39=FALSE,"",IFERROR(IF(INDEX('Auction-Rank'!$G$1:$P$999,MATCH($A39,'Auction-Rank'!$A$1:$A$999,0),'Guts-2'!$D$26)="","",INDEX('Auction-Rank'!$G$1:$P$999,MATCH($A39,'Auction-Rank'!$A$1:$A$999,0),'Guts-2'!$D$26)),"")) -> 0.0008543650794 | AE39: =IF(AD39="","",IF(Z39=FALSE,"",AD39*(SUMIF($AC$2:$AC$999,"<>""",$AC$2:$AC$999)/SUMIF($AD$2:$AD$999,"<>""",$AD$2:$AD$999)))) -> 0.0008543650794 | AF39: =IF(VLOOKUP(A40,'Name-Sort'!$D$2:$E$999,2,FALSE)="",A40,"") -> Andrew Benintendi | AG39: =IFERROR(INDEX($AF$1:$AF$999,SMALL(IF($AF$1:$AF$999<>"",ROW($AF$1:$AF$999)),ROW(AF39))),"") -> Andrew Benintendi
A40: Andrew Benintendi | B40: beninan01 | C40: OF | D40: LF | E40: BOS | F40: 22 | G40: 0.004405555556 | H40: 0.002222222222 | J40: 0.002388888889 | K40: 0.001666666667 | L40: 0.001972222222 | M40: 0.004166666667 | N40: 0.003055555556 | O40: 0.00283968254 | P40: =IFERROR(VLOOKUP(A40,'Import (Values)'!$B$2:$C$999,2,FALSE)/3120,"") ->  | Q40: 68 | R40: 118 | T40: 119 | U40: 86 | V40: 171 | X40: 112 | Y40: 185 | Z40: =IFERROR(INDEX('Guts-2'!$K$1:$K$30,MATCH(E40,'Guts-2'!$J$1:$J$30,0)),TRUE) -> TRUE | AA40: =IF(Z40=FALSE,"",IFERROR(CHOOSE('Guts-2'!$D$27,Q40,R40,S40,T40,U40,V40,W40,X40,Y40),"")) -> 112 | AB40: 112 | AC40: =IFERROR(IF(INDEX('Auction-Rank'!$G$1:$P$999,MATCH($A40,'Auction-Rank'!$A$1:$A$999,0),'Guts-2'!$D$26)="","",INDEX('Auction-Rank'!$G$1:$P$999,MATCH($A40,'Auction-Rank'!$A$1:$A$999,0),'Guts-2'!$D$26)),"") -> 0.00283968254 | AD40: =IF(Z40=FALSE,"",IFERROR(IF(INDEX('Auction-Rank'!$G$1:$P$999,MATCH($A40,'Auction-Rank'!$A$1:$A$999,0),'Guts-2'!$D$26)="","",INDEX('Auction-Rank'!$G$1:$P$999,MATCH($A40,'Auction-Rank'!$A$1:$A$999,0),'Guts-2'!$D$26)),"")) -> 0.00283968254 | AE40: =IF(AD40="","",IF(Z40=FALSE,"",AD40*(SUMIF($AC$2:$AC$999,"<>""",$AC$2:$AC$999)/SUMIF($AD$2:$AD$999,"<>""",$AD$2:$AD$999)))) -> 0.00283968254 | AF40: =IF(VLOOKUP(A41,'Name-Sort'!$D$2:$E$999,2,FALSE)="",A41,"") -> Joaquin Benoit | AG40: =IFERROR(INDEX($AF$1:$AF$999,SMALL(IF($AF$1:$AF$999<>"",ROW($AF$1:$AF$999)),ROW(AF40))),"") -> Joaquin Benoit
A41: Joaquin Benoit | B41: benoijo01 | C41: RP | E41: PHI | F41: 39 | K41: 0 | L41: 0.0003333333333 | M41: -0.001111111111 | O41: -0.0002592592593 | P41: =IFERROR(VLOOKUP(A41,'Import (Values)'!$B$2:$C$999,2,FALSE)/3120,"") ->  | R41: 330 | X41: 385 | Z41: =IFERROR(INDEX('Guts-2'!$K$1:$K$30,MATCH(E41,'Guts-2'!$J$1:$J$30,0)),TRUE) -> TRUE | AA41: =IF(Z41=FALSE,"",IFERROR(CHOOSE('Guts-2'!$D$27,Q41,R41,S41,T41,U41,V41,W41,X41,Y41),"")) -> 385 | AB41: 383 | AC41: =IFERROR(IF(INDEX('Auction-Rank'!$G$1:$P$999,MATCH($A41,'Auction-Rank'!$A$1:$A$999,0),'Guts-2'!$D$26)="","",INDEX('Auction-Rank'!$G$1:$P$999,MATCH($A41,'Auction-Rank'!$A$1:$A$999,0),'Guts-2'!$D$26)),"") -> -0.0002592592593 | AD41: =IF(Z41=FALSE,"",IFERROR(IF(INDEX('Auction-Rank'!$G$1:$P$999,MATCH($A41,'Auction-Rank'!$A$1:$A$999,0),'Guts-2'!$D$26)="","",INDEX('Auction-Rank'!$G$1:$P$999,MATCH($A41,'Auction-Rank'!$A$1:$A$999,0),'Guts-2'!$D$26)),"")) -> -0.0002592592593 | AE41: =IF(AD41="","",IF(Z41=FALSE,"",AD41*(SUMIF($AC$2:$AC$999,"<>""",$AC$2:$AC$999)/SUMIF($AD$2:$AD$999,"<>""",$AD$2:$AD$999)))) -> -0.0002592592593 | AF41: =IF(VLOOKUP(A42,'Name-Sort'!$D$2:$E$999,2,FALSE)="",A42,"") -> Jose Berrios | AG41: =IFERROR(INDEX($AF$1:$AF$999,SMALL(IF($AF$1:$AF$999<>"",ROW($AF$1:$AF$999)),ROW(AF41))),"") -> Jose Berrios
A42: Jose Berrios | B42: berrijo01 | C42: SP | E42: MIN | F42: 22 | M42: -0.001666666667 | O42: -0.001666666667 | P42: =IFERROR(VLOOKUP(A42,'Import (Values)'!$B$2:$C$999,2,FALSE)/3120,"") ->  | X42: 379 | Z42: =IFERROR(INDEX('Guts-2'!$K$1:$K$30,MATCH(E42,'Guts-2'!$J$1:$J$30,0)),TRUE) -> TRUE | AA42: =IF(Z42=FALSE,"",IFERROR(CHOOSE('Guts-2'!$D$27,Q42,R42,S42,T42,U42,V42,W42,X42,Y42),"")) -> 379 | AB42: 378 | AC42: =IFERROR(IF(INDEX('Auction-Rank'!$G$1:$P$999,MATCH($A42,'Auction-Rank'!$A$1:$A$999,0),'Guts-2'!$D$26)="","",INDEX('Auction-Rank'!$G$1:$P$999,MATCH($A42,'Auction-Rank'!$A$1:$A$999,0),'Guts-2'!$D$26)),"") -> -0.001666666667 | AD42: =IF(Z42=FALSE,"",IFERROR(IF(INDEX('Auction-Rank'!$G$1:$P$999,MATCH($A42,'Auction-Rank'!$A$1:$A$999,0),'Guts-2'!$D$26)="","",INDEX('Auction-Rank'!$G$1:$P$999,MATCH($A42,'Auction-Rank'!$A$1:$A$999,0),'Guts-2'!$D$26)),"")) -> -0.001666666667 | AE42: =IF(AD42="","",IF(Z42=FALSE,"",AD42*(SUMIF($AC$2:$AC$999,"<>""",$AC$2:$AC$999)/SUMIF($AD$2:$AD$999,"<>""",$AD$2:$AD$999)))) -> -0.001666666667 | AF42: =IF(VLOOKUP(A43,'Name-Sort'!$D$2:$E$999,2,FALSE)="",A43,"") -> Dellin Betances | AG42: =IFERROR(INDEX($AF$1:$AF$999,SMALL(IF($AF$1:$AF$999<>"",ROW($AF$1:$AF$999)),ROW(AF42))),"") -> Dellin Betances
A43: Dellin Betances | B43: betande01 | C43: RP | E43: NYY | F43: 29 | G43: 0.001447222222 | H43: 0.001388888889 | J43: 0.001166666667 | K43: 0.001666666667 | L43: 0.001638888889 | M43: 0.001388888889 | N43: 0.0025 | O43: 0.001599603175 | P43: =IFERROR(VLOOKUP(A43,'Import (Values)'!$B$2:$C$999,2,FALSE)/3120,"") ->  | Q43: 185 | R43: 189 | T43: 159 | U43: 166 | V43: 176 | X43: 166 | Y43: 167 | Z43: =IFERROR(INDEX('Guts-2'!$K$1:$K$30,MATCH(E43,'Guts-2'!$J$1:$J$30,0)),TRUE) -> TRUE | AA43: =IF(Z43=FALSE,"",IFERROR(CHOOSE('Guts-2'!$D$27,Q43,R43,S43,T43,U43,V43,W43,X43,Y43),"")) -> 166 | AB43: 166 | AC43: =IFERROR(IF(INDEX('Auction-Rank'!$G$1:$P$999,MATCH($A43,'Auction-Rank'!$A$1:$A$999,0),'Guts-2'!$D$26)="","",INDEX('Auction-Rank'!$G$1:$P$999,MATCH($A43,'Auction-Rank'!$A$1:$A$999,0),'Guts-2'!$D$26)),"") -> 0.001599603175 | AD43: =IF(Z43=FALSE,"",IFERROR(IF(INDEX('Auction-Rank'!$G$1:$P$999,MATCH($A43,'Auction-Rank'!$A$1:$A$999,0),'Guts-2'!$D$26)="","",INDEX('Auction-Rank'!$G$1:$P$999,MATCH($A43,'Auction-Rank'!$A$1:$A$999,0),'Guts-2'!$D$26)),"")) -> 0.001599603175 | AE43: =IF(AD43="","",IF(Z43=FALSE,"",AD43*(SUMIF($AC$2:$AC$999,"<>""",$AC$2:$AC$999)/SUMIF($AD$2:$AD$999,"<>""",$AD$2:$AD$999)))) -> 0.001599603175 | AF43: =IF(VLOOKUP(A44,'Name-Sort'!$D$2:$E$999,2,FALSE)="",A44,"") -> Chad Bettis | AG43: =IFERROR(INDEX($AF$1:$AF$999,SMALL(IF($AF$1:$AF$999<>"",ROW($AF$1:$AF$999)),ROW(AF43))),"") -> Chad Bettis
A44: Chad Bettis | B44: bettich01 | C44: SP | E44: COL | F44: 27 | P44: =IFERROR(VLOOKUP(A44,'Import (Values)'!$B$2:$C$999,2,FALSE)/3120,"") ->  | Z44: =IFERROR(INDEX('Guts-2'!$K$1:$K$30,MATCH(E44,'Guts-2'!$J$1:$J$30,0)),TRUE) -> TRUE | AA44: =IF(Z44=FALSE,"",IFERROR(CHOOSE('Guts-2'!$D$27,Q44,R44,S44,T44,U44,V44,W44,X44,Y44),"")) ->  | AC44: =IFERROR(IF(INDEX('Auction-Rank'!$G$1:$P$999,MATCH($A44,'Auction-Rank'!$A$1:$A$999,0),'Guts-2'!$D$26)="","",INDEX('Auction-Rank'!$G$1:$P$999,MATCH($A44,'Auction-Rank'!$A$1:$A$999,0),'Guts-2'!$D$26)),"") ->  | AD44: =IF(Z44=FALSE,"",IFERROR(IF(INDEX('Auction-Rank'!$G$1:$P$999,MATCH($A44,'Auction-Rank'!$A$1:$A$999,0),'Guts-2'!$D$26)="","",INDEX('Auction-Rank'!$G$1:$P$999,MATCH($A44,'Auction-Rank'!$A$1:$A$999,0),'Guts-2'!$D$26)),"")) ->  | AE44: =IF(AD44="","",IF(Z44=FALSE,"",AD44*(SUMIF($AC$2:$AC$999,"<>""",$AC$2:$AC$999)/SUMIF($AD$2:$AD$999,"<>""",$AD$2:$AD$999)))) ->  | AF44: =IF(VLOOKUP(A45,'Name-Sort'!$D$2:$E$999,2,FALSE)="",A45,"") -> Mookie Betts | AG44: =IFERROR(INDEX($AF$1:$AF$999,SMALL(IF($AF$1:$AF$999<>"",ROW($AF$1:$AF$999)),ROW(AF44))),"") -> Mookie Betts
A45: Mookie Betts | B45: bettsmo01 | C45: OF | D45: RF | E45: BOS | F45: 24 | G45: 0.01129444444 | H45: 0.01083333333 | J45: 0.01186111111 | K45: 0.0125 | L45: 0.01433333333 | M45: 0.01194444444 | N45: 0.0125 | O45: 0.01218095238 | P45: =IFERROR(VLOOKUP(A45,'Import (Values)'!$B$2:$C$999,2,FALSE)/3120,"") -> 0.0141025641 | Q45: 4 | R45: 2 | T45: 3 | U45: 3 | V45: 2 | X45: 2 | Y45: 15 | Z45: =IFERROR(INDEX('Guts-2'!$K$1:$K$30,MATCH(E45,'Guts-2'!$J$1:$J$30,0)),TRUE) -> TRUE | AA45: =IF(Z45=FALSE,"",IFERROR(CHOOSE('Guts-2'!$D$27,Q45,R45,S45,T45,U45,V45,W45,X45,Y45),"")) -> 2 | AB45: 2 | AC45: =IFERROR(IF(INDEX('Auction-Rank'!$G$1:$P$999,MATCH($A45,'Auction-Rank'!$A$1:$A$999,0),'Guts-2'!$D$26)="","",INDEX('Auction-Rank'!$G$1:$P$999,MATCH($A45,'Auction-Rank'!$A$1:$A$999,0),'Guts-2'!$D$26)),"") -> 0.01218095238 | AD45: =IF(Z45=FALSE,"",IFERROR(IF(INDEX('Auction-Rank'!$G$1:$P$999,MATCH($A45,'Auction-Rank'!$A$1:$A$999,0),'Guts-2'!$D$26)="","",INDEX('Auction-Rank'!$G$1:$P$999,MATCH($A45,'Auction-Rank'!$A$1:$A$999,0),'Guts-2'!$D$26)),"")) -> 0.01218095238 | AE45: =IF(AD45="","",IF(Z45=FALSE,"",AD45*(SUMIF($AC$2:$AC$999,"<>""",$AC$2:$AC$999)/SUMIF($AD$2:$AD$999,"<>""",$AD$2:$AD$999)))) -> 0.01218095238 | AF45: =IF(VLOOKUP(A46,'Name-Sort'!$D$2:$E$999,2,FALSE)="",A46,"") -> Greg Bird | AG45: =IFERROR(INDEX($AF$1:$AF$999,SMALL(IF($AF$1:$AF$999<>"",ROW($AF$1:$AF$999)),ROW(AF45))),"") -> Greg Bird
A46: Greg Bird | B46: birdgr01 | C46: 1B | E46: NYY | F46: 24 | G46: 0.000425 | H46: 0.001111111111 | J46: 0.0006111111111 | K46: 0.0002777777778 | L46: 0.0003333333333 | M46: 0 | N46: 0.0005555555556 | O46: 0.0004734126984 | P46: =IFERROR(VLOOKUP(A46,'Import (Values)'!$B$2:$C$999,2,FALSE)/3120,"") ->  | Q46: 249 | R46: 249 | U46: 244 | X46: 222 | Y46: 257 | Z46: =IFERROR(INDEX('Guts-2'!$K$1:$K$30,MATCH(E46,'Guts-2'!$J$1:$J$30,0)),TRUE) -> TRUE | AA46: =IF(Z46=FALSE,"",IFERROR(CHOOSE('Guts-2'!$D$27,Q46,R46,S46,T46,U46,V46,W46,X46,Y46),"")) -> 222 | AB46: 222 | AC46: =IFERROR(IF(INDEX('Auction-Rank'!$G$1:$P$999,MATCH($A46,'Auction-Rank'!$A$1:$A$999,0),'Guts-2'!$D$26)="","",INDEX('Auction-Rank'!$G$1:$P$999,MATCH($A46,'Auction-Rank'!$A$1:$A$999,0),'Guts-2'!$D$26)),"") -> 0.0004734126984 | AD46: =IF(Z46=FALSE,"",IFERROR(IF(INDEX('Auction-Rank'!$G$1:$P$999,MATCH($A46,'Auction-Rank'!$A$1:$A$999,0),'Guts-2'!$D$26)="","",INDEX('Auction-Rank'!$G$1:$P$999,MATCH($A46,'Auction-Rank'!$A$1:$A$999,0),'Guts-2'!$D$26)),"")) -> 0.0004734126984 | AE46: =IF(AD46="","",IF(Z46=FALSE,"",AD46*(SUMIF($AC$2:$AC$999,"<>""",$AC$2:$AC$999)/SUMIF($AD$2:$AD$999,"<>""",$AD$2:$AD$999)))) -> 0.0004734126984 | AF46: =IF(VLOOKUP(A47,'Name-Sort'!$D$2:$E$999,2,FALSE)="",A47,"") -> Charlie Blackmon | AG46: =IFERROR(INDEX($AF$1:$AF$999,SMALL(IF($AF$1:$AF$999<>"",ROW($AF$1:$AF$999)),ROW(AF46))),"") -> Charlie Blackmon
A47: Charlie Blackmon | B47: blackch02 | C47: OF | D47: CF | E47: COL | F47: 30 | G47: 0.009775 | H47: 0.008611111111 | J47: 0.007944444444 | K47: 0.009444444444 | L47: 0.01069444444 | M47: 0.01 | N47: 0.009166666667 | O47: 0.009376587302 | P47: =IFERROR(VLOOKUP(A47,'Import (Values)'!$B$2:$C$999,2,FALSE)/3120,"") -> 0.008012820513 | Q47: 10 | R47: 12 | T47: 12 | U47: 13 | V47: 13 | X47: 13 | Y47: 34 | Z47: =IFERROR(INDEX('Guts-2'!$K$1:$K$30,MATCH(E47,'Guts-2'!$J$1:$J$30,0)),TRUE) -> TRUE | AA47: =IF(Z47=FALSE,"",IFERROR(CHOOSE('Guts-2'!$D$27,Q47,R47,S47,T47,U47,V47,W47,X47,Y47),"")) -> 13 | AB47: 13 | AC47: =IFERROR(IF(INDEX('Auction-Rank'!$G$1:$P$999,MATCH($A47,'Auction-Rank'!$A$1:$A$999,0),'Guts-2'!$D$26)="","",INDEX('Auction-Rank'!$G$1:$P$999,MATCH($A47,'Auction-Rank'!$A$1:$A$999,0),'Guts-2'!$D$26)),"") -> 0.009376587302 | AD47: =IF(Z47=FALSE,"",IFERROR(IF(INDEX('Auction-Rank'!$G$1:$P$999,MATCH($A47,'Auction-Rank'!$A$1:$A$999,0),'Guts-2'!$D$26)="","",INDEX('Auction-Rank'!$G$1:$P$999,MATCH($A47,'Auction-Rank'!$A$1:$A$999,0),'Guts-2'!$D$26)),"")) -> 0.009376587302 | AE47: =IF(AD47="","",IF(Z47=FALSE,"",AD47*(SUMIF($AC$2:$AC$999,"<>""",$AC$2:$AC$999)/SUMIF($AD$2:$AD$999,"<>""",$AD$2:$AD$999)))) -> 0.009376587302 | AF47: =IF(VLOOKUP(A48,'Name-Sort'!$D$2:$E$999,2,FALSE)="",A48,"") -> Xander Bogaerts | AG47: =IFERROR(INDEX($AF$1:$AF$999,SMALL(IF($AF$1:$AF$999<>"",ROW($AF$1:$AF$999)),ROW(AF47))),"") -> Xander Bogaerts
A48: Xander Bogaerts | B48: bogaexa01 | C48: SS | E48: BOS | F48: 24 | G48: 0.004572222222 | H48: 0.006944444444 | J48: 0.005694444444 | K48: 0.006944444444 | L48: 0.008055555556 | M48: 0.006111111111 | N48: 0.005833333333 | O48: 0.006307936508 | P48: =IFERROR(VLOOKUP(A48,'Import (Values)'!$B$2:$C$999,2,FALSE)/3120,"") ->  | Q48: 61 | R48: 28 | T48: 25 | U48: 22 | V48: 30 | X48: 31 | Y48: 48 | Z48: =IFERROR(INDEX('Guts-2'!$K$1:$K$30,MATCH(E48,'Guts-2'!$J$1:$J$30,0)),TRUE) -> TRUE | AA48: =IF(Z48=FALSE,"",IFERROR(CHOOSE('Guts-2'!$D$27,Q48,R48,S48,T48,U48,V48,W48,X48,Y48),"")) -> 31 | AB48: 31 | AC48: =IFERROR(IF(INDEX('Auction-Rank'!$G$1:$P$999,MATCH($A48,'Auction-Rank'!$A$1:$A$999,0),'Guts-2'!$D$26)="","",INDEX('Auction-Rank'!$G$1:$P$999,MATCH($A48,'Auction-Rank'!$A$1:$A$999,0),'Guts-2'!$D$26)),"") -> 0.006307936508 | AD48: =IF(Z48=FALSE,"",IFERROR(IF(INDEX('Auction-Rank'!$G$1:$P$999,MATCH($A48,'Auction-Rank'!$A$1:$A$999,0),'Guts-2'!$D$26)="","",INDEX('Auction-Rank'!$G$1:$P$999,MATCH($A48,'Auction-Rank'!$A$1:$A$999,0),'Guts-2'!$D$26)),"")) -> 0.006307936508 | AE48: =IF(AD48="","",IF(Z48=FALSE,"",AD48*(SUMIF($AC$2:$AC$999,"<>""",$AC$2:$AC$999)/SUMIF($AD$2:$AD$999,"<>""",$AD$2:$AD$999)))) -> 0.006307936508 | AF48: =IF(VLOOKUP(A49,'Name-Sort'!$D$2:$E$999,2,FALSE)="",A49,"") -> Justin Bour | AG48: =IFERROR(INDEX($AF$1:$AF$999,SMALL(IF($AF$1:$AF$999<>"",ROW($AF$1:$AF$999)),ROW(AF48))),"") -> Justin Bour
A49: Justin Bour | B49: bourju01 | C49: 1B | E49: MIA | F49: 28 | K49: 0 | L49: 0.0002777777778 | M49: -0.001111111111 | N49: 0.0002777777778 | O49: -0.0001388888889 | P49: =IFERROR(VLOOKUP(A49,'Import (Values)'!$B$2:$C$999,2,FALSE)/3120,"") ->  | R49: 266 | X49: 253 | Y49: 287 | Z49: =IFERROR(INDEX('Guts-2'!$K$1:$K$30,MATCH(E49,'Guts-2'!$J$1:$J$30,0)),TRUE) -> TRUE | AA49: =IF(Z49=FALSE,"",IFERROR(CHOOSE('Guts-2'!$D$27,Q49,R49,S49,T49,U49,V49,W49,X49,Y49),"")) -> 253 | AB49: 253 | AC49: =IFERROR(IF(INDEX('Auction-Rank'!$G$1:$P$999,MATCH($A49,'Auction-Rank'!$A$1:$A$999,0),'Guts-2'!$D$26)="","",INDEX('Auction-Rank'!$G$1:$P$999,MATCH($A49,'Auction-Rank'!$A$1:$A$999,0),'Guts-2'!$D$26)),"") -> -0.0001388888889 | AD49: =IF(Z49=FALSE,"",IFERROR(IF(INDEX('Auction-Rank'!$G$1:$P$999,MATCH($A49,'Auction-Rank'!$A$1:$A$999,0),'Guts-2'!$D$26)="","",INDEX('Auction-Rank'!$G$1:$P$999,MATCH($A49,'Auction-Rank'!$A$1:$A$999,0),'Guts-2'!$D$26)),"")) -> -0.0001388888889 | AE49: =IF(AD49="","",IF(Z49=FALSE,"",AD49*(SUMIF($AC$2:$AC$999,"<>""",$AC$2:$AC$999)/SUMIF($AD$2:$AD$999,"<>""",$AD$2:$AD$999)))) -> -0.0001388888889 | AF49: =IF(VLOOKUP(A50,'Name-Sort'!$D$2:$E$999,2,FALSE)="",A50,"") -> Brad Boxberger | AG49: =IFERROR(INDEX($AF$1:$AF$999,SMALL(IF($AF$1:$AF$999<>"",ROW($AF$1:$AF$999)),ROW(AF49))),"") -> Brad Boxberger
A50: Brad Boxberger | B50: boxbebr01 | C50: RP | E50: TB | F50: 28 | P50: =IFERROR(VLOOKUP(A50,'Import (Values)'!$B$2:$C$999,2,FALSE)/3120,"") ->  | Z50: =IFERROR(INDEX('Guts-2'!$K$1:$K$30,MATCH(E50,'Guts-2'!$J$1:$J$30,0)),TRUE) -> TRUE | AA50: =IF(Z50=FALSE,"",IFERROR(CHOOSE('Guts-2'!$D$27,Q50,R50,S50,T50,U50,V50,W50,X50,Y50),"")) ->  | AC50: =IFERROR(IF(INDEX('Auction-Rank'!$G$1:$P$999,MATCH($A50,'Auction-Rank'!$A$1:$A$999,0),'Guts-2'!$D$26)="","",INDEX('Auction-Rank'!$G$1:$P$999,MATCH($A50,'Auction-Rank'!$A$1:$A$999,0),'Guts-2'!$D$26)),"") ->  | AD50: =IF(Z50=FALSE,"",IFERROR(IF(INDEX('Auction-Rank'!$G$1:$P$999,MATCH($A50,'Auction-Rank'!$A$1:$A$999,0),'Guts-2'!$D$26)="","",INDEX('Auction-Rank'!$G$1:$P$999,MATCH($A50,'Auction-Rank'!$A$1:$A$999,0),'Guts-2'!$D$26)),"")) ->  | AE50: =IF(AD50="","",IF(Z50=FALSE,"",AD50*(SUMIF($AC$2:$AC$999,"<>""",$AC$2:$AC$999)/SUMIF($AD$2:$AD$999,"<>""",$AD$2:$AD$999)))) ->  | AF50: =IF(VLOOKUP(A51,'Name-Sort'!$D$2:$E$999,2,FALSE)="",A51,"") -> Matt Boyd | AG50: =IFERROR(INDEX($AF$1:$AF$999,SMALL(IF($AF$1:$AF$999<>"",ROW($AF$1:$AF$999)),ROW(AF50))),"") -> Matt Boyd
A51: Matt Boyd | B51: boydma01 | C51: SP | E51: DET | F51: 26 | P51: =IFERROR(VLOOKUP(A51,'Import (Values)'!$B$2:$C$999,2,FALSE)/3120,"") ->  | Z51: =IFERROR(INDEX('Guts-2'!$K$1:$K$30,MATCH(E51,'Guts-2'!$J$1:$J$30,0)),TRUE) -> TRUE | AA51: =IF(Z51=FALSE,"",IFERROR(CHOOSE('Guts-2'!$D$27,Q51,R51,S51,T51,U51,V51,W51,X51,Y51),"")) ->  | AC51: =IFERROR(IF(INDEX('Auction-Rank'!$G$1:$P$999,MATCH($A51,'Auction-Rank'!$A$1:$A$999,0),'Guts-2'!$D$26)="","",INDEX('Auction-Rank'!$G$1:$P$999,MATCH($A51,'Auction-Rank'!$A$1:$A$999,0),'Guts-2'!$D$26)),"") ->  | AD51: =IF(Z51=FALSE,"",IFERROR(IF(INDEX('Auction-Rank'!$G$1:$P$999,MATCH($A51,'Auction-Rank'!$A$1:$A$999,0),'Guts-2'!$D$26)="","",INDEX('Auction-Rank'!$G$1:$P$999,MATCH($A51,'Auction-Rank'!$A$1:$A$999,0),'Guts-2'!$D$26)),"")) ->  | AE51: =IF(AD51="","",IF(Z51=FALSE,"",AD51*(SUMIF($AC$2:$AC$999,"<>""",$AC$2:$AC$999)/SUMIF($AD$2:$AD$999,"<>""",$AD$2:$AD$999)))) ->  | AF51: =IF(VLOOKUP(A52,'Name-Sort'!$D$2:$E$999,2,FALSE)="",A52,"") -> Brad Brach | AG51: =IFERROR(INDEX($AF$1:$AF$999,SMALL(IF($AF$1:$AF$999<>"",ROW($AF$1:$AF$999)),ROW(AF51))),"") -> Brad Brach
A52: Brad Brach | B52: brachbr01 | C52: RP | E52: BAL | F52: 30 | K52: 0 | L52: 0.0003611111111 | M52: -0.001388888889 | N52: 0.0008333333333 | O52: -4.861111111e-05 | P52: =IFERROR(VLOOKUP(A52,'Import (Values)'!$B$2:$C$999,2,FALSE)/3120,"") ->  | X52: 427 | Z52: =IFERROR(INDEX('Guts-2'!$K$1:$K$30,MATCH(E52,'Guts-2'!$J$1:$J$30,0)),TRUE) -> TRUE | AA52: =IF(Z52=FALSE,"",IFERROR(CHOOSE('Guts-2'!$D$27,Q52,R52,S52,T52,U52,V52,W52,X52,Y52),"")) -> 427 | AB52: 423 | AC52: =IFERROR(IF(INDEX('Auction-Rank'!$G$1:$P$999,MATCH($A52,'Auction-Rank'!$A$1:$A$999,0),'Guts-2'!$D$26)="","",INDEX('Auction-Rank'!$G$1:$P$999,MATCH($A52,'Auction-Rank'!$A$1:$A$999,0),'Guts-2'!$D$26)),"") -> -4.861111111e-05 | AD52: =IF(Z52=FALSE,"",IFERROR(IF(INDEX('Auction-Rank'!$G$1:$P$999,MATCH($A52,'Auction-Rank'!$A$1:$A$999,0),'Guts-2'!$D$26)="","",INDEX('Auction-Rank'!$G$1:$P$999,MATCH($A52,'Auction-Rank'!$A$1:$A$999,0),'Guts-2'!$D$26)),"")) -> -4.861111111e-05 | AE52: =IF(AD52="","",IF(Z52=FALSE,"",AD52*(SUMIF($AC$2:$AC$999,"<>""",$AC$2:$AC$999)/SUMIF($AD$2:$AD$999,"<>""",$AD$2:$AD$999)))) -> -4.861111111e-05 | AF52: =IF(VLOOKUP(A53,'Name-Sort'!$D$2:$E$999,2,FALSE)="",A53,"") -> Archie Bradley | AG52: =IFERROR(INDEX($AF$1:$AF$999,SMALL(IF($AF$1:$AF$999<>"",ROW($AF$1:$AF$999)),ROW(AF52))),"") -> Archie Bradley
A53: Archie Bradley | B53: bradlar01 | C53: SP | E53: ARI | F53: 24 | M53: -0.001666666667 | O53: -0.001666666667 | P53: =IFERROR(VLOOKUP(A53,'Import (Values)'!$B$2:$C$999,2,FALSE)/3120,"") ->  | X53: 475 | Z53: =IFERROR(INDEX('Guts-2'!$K$1:$K$30,MATCH(E53,'Guts-2'!$J$1:$J$30,0)),TRUE) -> TRUE | AA53: =IF(Z53=FALSE,"",IFERROR(CHOOSE('Guts-2'!$D$27,Q53,R53,S53,T53,U53,V53,W53,X53,Y53),"")) -> 475 | AB53: 464 | AC53: =IFERROR(IF(INDEX('Auction-Rank'!$G$1:$P$999,MATCH($A53,'Auction-Rank'!$A$1:$A$999,0),'Guts-2'!$D$26)="","",INDEX('Auction-Rank'!$G$1:$P$999,MATCH($A53,'Auction-Rank'!$A$1:$A$999,0),'Guts-2'!$D$26)),"") -> -0.001666666667 | AD53: =IF(Z53=FALSE,"",IFERROR(IF(INDEX('Auction-Rank'!$G$1:$P$999,MATCH($A53,'Auction-Rank'!$A$1:$A$999,0),'Guts-2'!$D$26)="","",INDEX('Auction-Rank'!$G$1:$P$999,MATCH($A53,'Auction-Rank'!$A$1:$A$999,0),'Guts-2'!$D$26)),"")) -> -0.001666666667 | AE53: =IF(AD53="","",IF(Z53=FALSE,"",AD53*(SUMIF($AC$2:$AC$999,"<>""",$AC$2:$AC$999)/SUMIF($AD$2:$AD$999,"<>""",$AD$2:$AD$999)))) -> -0.001666666667 | AF53: =IF(VLOOKUP(A54,'Name-Sort'!$D$2:$E$999,2,FALSE)="",A54,"") -> Jackie Bradley Jr. | AG53: =IFERROR(INDEX($AF$1:$AF$999,SMALL(IF($AF$1:$AF$999<>"",ROW($AF$1:$AF$999)),ROW(AF53))),"") -> Jackie Bradley Jr.
A54: Jackie Bradley Jr. | B54: bradlja02 | C54: OF | D54: CF | E54: BOS | F54: 26 | G54: 0.002877777778 | H54: 0.004166666667 | J54: 0.002888888889 | K54: 0.003333333333 | L54: 0.003472222222 | M54: 0.003611111111 | N54: 0.002777777778 | O54: 0.003303968254 | P54: =IFERROR(VLOOKUP(A54,'Import (Values)'!$B$2:$C$999,2,FALSE)/3120,"") ->  | Q54: 116 | R54: 93 | T54: 85 | U54: 78 | V54: 94 | X54: 101 | Y54: 197 | Z54: =IFERROR(INDEX('Guts-2'!$K$1:$K$30,MATCH(E54,'Guts-2'!$J$1:$J$30,0)),TRUE) -> TRUE | AA54: =IF(Z54=FALSE,"",IFERROR(CHOOSE('Guts-2'!$D$27,Q54,R54,S54,T54,U54,V54,W54,X54,Y54),"")) -> 101 | AB54: 101 | AC54: =IFERROR(IF(INDEX('Auction-Rank'!$G$1:$P$999,MATCH($A54,'Auction-Rank'!$A$1:$A$999,0),'Guts-2'!$D$26)="","",INDEX('Auction-Rank'!$G$1:$P$999,MATCH($A54,'Auction-Rank'!$A$1:$A$999,0),'Guts-2'!$D$26)),"") -> 0.003303968254 | AD54: =IF(Z54=FALSE,"",IFERROR(IF(INDEX('Auction-Rank'!$G$1:$P$999,MATCH($A54,'Auction-Rank'!$A$1:$A$999,0),'Guts-2'!$D$26)="","",INDEX('Auction-Rank'!$G$1:$P$999,MATCH($A54,'Auction-Rank'!$A$1:$A$999,0),'Guts-2'!$D$26)),"")) -> 0.003303968254 | AE54: =IF(AD54="","",IF(Z54=FALSE,"",AD54*(SUMIF($AC$2:$AC$999,"<>""",$AC$2:$AC$999)/SUMIF($AD$2:$AD$999,"<>""",$AD$2:$AD$999)))) -> 0.003303968254 | AF54: =IF(VLOOKUP(A55,'Name-Sort'!$D$2:$E$999,2,FALSE)="",A55,"") -> Michael Brantley | AG54: =IFERROR(INDEX($AF$1:$AF$999,SMALL(IF($AF$1:$AF$999<>"",ROW($AF$1:$AF$999)),ROW(AF54))),"") -> Michael Brantley
A55: Michael Brantley | B55: brantmi02 | C55: OF | D55: LF | E55: CLE | F55: 29 | G55: 0.001119444444 | H55: 0.003055555556 | J55: 0.001722222222 | K55: 0.001111111111 | L55: 0.0008611111111 | M55: 0.0008333333333 | N55: 0.001388888889 | O55: 0.001441666667 | P55: =IFERROR(VLOOKUP(A55,'Import (Values)'!$B$2:$C$999,2,FALSE)/3120,"") ->  | Q55: 198 | R55: 144 | T55: 94 | U55: 108 | V55: 118 | X55: 178 | Y55: 241 | Z55: =IFERROR(INDEX('Guts-2'!$K$1:$K$30,MATCH(E55,'Guts-2'!$J$1:$J$30,0)),TRUE) -> TRUE | AA55: =IF(Z55=FALSE,"",IFERROR(CHOOSE('Guts-2'!$D$27,Q55,R55,S55,T55,U55,V55,W55,X55,Y55),"")) -> 178 | AB55: 178 | AC55: =IFERROR(IF(INDEX('Auction-Rank'!$G$1:$P$999,MATCH($A55,'Auction-Rank'!$A$1:$A$999,0),'Guts-2'!$D$26)="","",INDEX('Auction-Rank'!$G$1:$P$999,MATCH($A55,'Auction-Rank'!$A$1:$A$999,0),'Guts-2'!$D$26)),"") -> 0.001441666667 | AD55: =IF(Z55=FALSE,"",IFERROR(IF(INDEX('Auction-Rank'!$G$1:$P$999,MATCH($A55,'Auction-Rank'!$A$1:$A$999,0),'Guts-2'!$D$26)="","",INDEX('Auction-Rank'!$G$1:$P$999,MATCH($A55,'Auction-Rank'!$A$1:$A$999,0),'Guts-2'!$D$26)),"")) -> 0.001441666667 | AE55: =IF(AD55="","",IF(Z55=FALSE,"",AD55*(SUMIF($AC$2:$AC$999,"<>""",$AC$2:$AC$999)/SUMIF($AD$2:$AD$999,"<>""",$AD$2:$AD$999)))) -> 0.001441666667 | AF55: =IF(VLOOKUP(A56,'Name-Sort'!$D$2:$E$999,2,FALSE)="",A56,"") -> Ryan Braun | AG55: =IFERROR(INDEX($AF$1:$AF$999,SMALL(IF($AF$1:$AF$999<>"",ROW($AF$1:$AF$999)),ROW(AF55))),"") -> Ryan Braun
A56: Ryan Braun | B56: braunry02 | C56: OF | D56: LF | E56: MIL | F56: 33 | G56: 0.00755 | H56: 0.006944444444 | J56: 0.004861111111 | K56: 0.0075 | L56: 0.008361111111 | M56: 0.007777777778 | N56: 0.006666666667 | O56: 0.007094444444 | P56: =IFERROR(VLOOKUP(A56,'Import (Values)'!$B$2:$C$999,2,FALSE)/3120,"") ->  | Q56: 19 | R56: 23 | T56: 35 | U56: 30 | V56: 29 | X56: 29 | Y56: 66 | Z56: =IFERROR(INDEX('Guts-2'!$K$1:$K$30,MATCH(E56,'Guts-2'!$J$1:$J$30,0)),TRUE) -> TRUE | AA56: =IF(Z56=FALSE,"",IFERROR(CHOOSE('Guts-2'!$D$27,Q56,R56,S56,T56,U56,V56,W56,X56,Y56),"")) -> 29 | AB56: 29 | AC56: =IFERROR(IF(INDEX('Auction-Rank'!$G$1:$P$999,MATCH($A56,'Auction-Rank'!$A$1:$A$999,0),'Guts-2'!$D$26)="","",INDEX('Auction-Rank'!$G$1:$P$999,MATCH($A56,'Auction-Rank'!$A$1:$A$999,0),'Guts-2'!$D$26)),"") -> 0.007094444444 | AD56: =IF(Z56=FALSE,"",IFERROR(IF(INDEX('Auction-Rank'!$G$1:$P$999,MATCH($A56,'Auction-Rank'!$A$1:$A$999,0),'Guts-2'!$D$26)="","",INDEX('Auction-Rank'!$G$1:$P$999,MATCH($A56,'Auction-Rank'!$A$1:$A$999,0),'Guts-2'!$D$26)),"")) -> 0.007094444444 | AE56: =IF(AD56="","",IF(Z56=FALSE,"",AD56*(SUMIF($AC$2:$AC$999,"<>""",$AC$2:$AC$999)/SUMIF($AD$2:$AD$999,"<>""",$AD$2:$AD$999)))) -> 0.007094444444 | AF56: =IF(VLOOKUP(A57,'Name-Sort'!$D$2:$E$999,2,FALSE)="",A57,"") -> Alex Bregman | AG56: =IFERROR(INDEX($AF$1:$AF$999,SMALL(IF($AF$1:$AF$999<>"",ROW($AF$1:$AF$999)),ROW(AF56))),"") -> Alex Bregman
A57: Alex Bregman | B57: bregmal01 | C57: 3B | E57: HOU | F57: 23 | G57: 0.005141666667 | H57: 0.005555555556 | J57: 0.003166666667 | K57: 0.003888888889 | L57: 0.004194444444 | M57: 0.003888888889 | N57: 0.004166666667 | O57: 0.004286111111 | P57: =IFERROR(VLOOKUP(A57,'Import (Values)'!$B$2:$C$999,2,FALSE)/3120,"") ->  | Q57: 51 | R57: 91 | T57: 84 | U57: 91 | V57: 57 | X57: 87 | Y57: 81 | Z57: =IFERROR(INDEX('Guts-2'!$K$1:$K$30,MATCH(E57,'Guts-2'!$J$1:$J$30,0)),TRUE) -> TRUE | AA57: =IF(Z57=FALSE,"",IFERROR(CHOOSE('Guts-2'!$D$27,Q57,R57,S57,T57,U57,V57,W57,X57,Y57),"")) -> 87 | AB57: 87 | AC57: =IFERROR(IF(INDEX('Auction-Rank'!$G$1:$P$999,MATCH($A57,'Auction-Rank'!$A$1:$A$999,0),'Guts-2'!$D$26)="","",INDEX('Auction-Rank'!$G$1:$P$999,MATCH($A57,'Auction-Rank'!$A$1:$A$999,0),'Guts-2'!$D$26)),"") -> 0.004286111111 | AD57: =IF(Z57=FALSE,"",IFERROR(IF(INDEX('Auction-Rank'!$G$1:$P$999,MATCH($A57,'Auction-Rank'!$A$1:$A$999,0),'Guts-2'!$D$26)="","",INDEX('Auction-Rank'!$G$1:$P$999,MATCH($A57,'Auction-Rank'!$A$1:$A$999,0),'Guts-2'!$D$26)),"")) -> 0.004286111111 | AE57: =IF(AD57="","",IF(Z57=FALSE,"",AD57*(SUMIF($AC$2:$AC$999,"<>""",$AC$2:$AC$999)/SUMIF($AD$2:$AD$999,"<>""",$AD$2:$AD$999)))) -> 0.004286111111 | AF57: =IF(VLOOKUP(A58,'Name-Sort'!$D$2:$E$999,2,FALSE)="",A58,"") -> Lewis Brinson | AG57: =IFERROR(INDEX($AF$1:$AF$999,SMALL(IF($AF$1:$AF$999<>"",ROW($AF$1:$AF$999)),ROW(AF57))),"") -> Lewis Brinson
A58: Lewis Brinson | B58: brinsle01 | C58: OF | D58: CF | E58: MIL | F58: 22 | M58: -0.002222222222 | O58: -0.002222222222 | P58: =IFERROR(VLOOKUP(A58,'Import (Values)'!$B$2:$C$999,2,FALSE)/3120,"") ->  | X58: 431 | Z58: =IFERROR(INDEX('Guts-2'!$K$1:$K$30,MATCH(E58,'Guts-2'!$J$1:$J$30,0)),TRUE) -> TRUE | AA58: =IF(Z58=FALSE,"",IFERROR(CHOOSE('Guts-2'!$D$27,Q58,R58,S58,T58,U58,V58,W58,X58,Y58),"")) -> 431 | AB58: 426 | AC58: =IFERROR(IF(INDEX('Auction-Rank'!$G$1:$P$999,MATCH($A58,'Auction-Rank'!$A$1:$A$999,0),'Guts-2'!$D$26)="","",INDEX('Auction-Rank'!$G$1:$P$999,MATCH($A58,'Auction-Rank'!$A$1:$A$999,0),'Guts-2'!$D$26)),"") -> -0.002222222222 | AD58: =IF(Z58=FALSE,"",IFERROR(IF(INDEX('Auction-Rank'!$G$1:$P$999,MATCH($A58,'Auction-Rank'!$A$1:$A$999,0),'Guts-2'!$D$26)="","",INDEX('Auction-Rank'!$G$1:$P$999,MATCH($A58,'Auction-Rank'!$A$1:$A$999,0),'Guts-2'!$D$26)),"")) -> -0.002222222222 | AE58: =IF(AD58="","",IF(Z58=FALSE,"",AD58*(SUMIF($AC$2:$AC$999,"<>""",$AC$2:$AC$999)/SUMIF($AD$2:$AD$999,"<>""",$AD$2:$AD$999)))) -> -0.002222222222 | AF58: =IF(VLOOKUP(A59,'Name-Sort'!$D$2:$E$999,2,FALSE)="",A59,"") -> Zach Britton | AG58: =IFERROR(INDEX($AF$1:$AF$999,SMALL(IF($AF$1:$AF$999<>"",ROW($AF$1:$AF$999)),ROW(AF58))),"") -> Zach Britton
A59: Zach Britton | B59: brittza01 | C59: RP | E59: BAL | F59: 29 | G59: 0.004386111111 | H59: 0.004166666667 | J59: 0.004083333333 | K59: 0.003611111111 | L59: 0.004611111111 | M59: 0.005 | N59: 0.004444444444 | O59: 0.004328968254 | P59: =IFERROR(VLOOKUP(A59,'Import (Values)'!$B$2:$C$999,2,FALSE)/3120,"") ->  | Q59: 70 | R59: 84 | T59: 71 | U59: 81 | V59: 95 | X59: 80 | Y59: 87 | Z59: =IFERROR(INDEX('Guts-2'!$K$1:$K$30,MATCH(E59,'Guts-2'!$J$1:$J$30,0)),TRUE) -> TRUE | AA59: =IF(Z59=FALSE,"",IFERROR(CHOOSE('Guts-2'!$D$27,Q59,R59,S59,T59,U59,V59,W59,X59,Y59),"")) -> 80 | AB59: 80 | AC59: =IFERROR(IF(INDEX('Auction-Rank'!$G$1:$P$999,MATCH($A59,'Auction-Rank'!$A$1:$A$999,0),'Guts-2'!$D$26)="","",INDEX('Auction-Rank'!$G$1:$P$999,MATCH($A59,'Auction-Rank'!$A$1:$A$999,0),'Guts-2'!$D$26)),"") -> 0.004328968254 | AD59: =IF(Z59=FALSE,"",IFERROR(IF(INDEX('Auction-Rank'!$G$1:$P$999,MATCH($A59,'Auction-Rank'!$A$1:$A$999,0),'Guts-2'!$D$26)="","",INDEX('Auction-Rank'!$G$1:$P$999,MATCH($A59,'Auction-Rank'!$A$1:$A$999,0),'Guts-2'!$D$26)),"")) -> 0.004328968254 | AE59: =IF(AD59="","",IF(Z59=FALSE,"",AD59*(SUMIF($AC$2:$AC$999,"<>""",$AC$2:$AC$999)/SUMIF($AD$2:$AD$999,"<>""",$AD$2:$AD$999)))) -> 0.004328968254 | AF59: =IF(VLOOKUP(A60,'Name-Sort'!$D$2:$E$999,2,FALSE)="",A60,"") -> Keon Broxton | AG59: =IFERROR(INDEX($AF$1:$AF$999,SMALL(IF($AF$1:$AF$999<>"",ROW($AF$1:$AF$999)),ROW(AF59))),"") -> Keon Broxton
A60: Keon Broxton | B60: broxtke01 | C60: OF | D60: CF | E60: MIL | F60: 26 | G60: 0.006683333333 | H60: 0.001666666667 | K60: 0.0002777777778 | L60: 0.0003055555556 | M60: 0.004722222222 | N60: 0.001111111111 | O60: 0.002461111111 | P60: =IFERROR(VLOOKUP(A60,'Import (Values)'!$B$2:$C$999,2,FALSE)/3120,"") ->  | Q60: 30 | R60: 177 | T60: 223 | U60: 210 | V60: 199 | X60: 176 | Y60: 252 | Z60: =IFERROR(INDEX('Guts-2'!$K$1:$K$30,MATCH(E60,'Guts-2'!$J$1:$J$30,0)),TRUE) -> TRUE | AA60: =IF(Z60=FALSE,"",IFERROR(CHOOSE('Guts-2'!$D$27,Q60,R60,S60,T60,U60,V60,W60,X60,Y60),"")) -> 176 | AB60: 176 | AC60: =IFERROR(IF(INDEX('Auction-Rank'!$G$1:$P$999,MATCH($A60,'Auction-Rank'!$A$1:$A$999,0),'Guts-2'!$D$26)="","",INDEX('Auction-Rank'!$G$1:$P$999,MATCH($A60,'Auction-Rank'!$A$1:$A$999,0),'Guts-2'!$D$26)),"") -> 0.002461111111 | AD60: =IF(Z60=FALSE,"",IFERROR(IF(INDEX('Auction-Rank'!$G$1:$P$999,MATCH($A60,'Auction-Rank'!$A$1:$A$999,0),'Guts-2'!$D$26)="","",INDEX('Auction-Rank'!$G$1:$P$999,MATCH($A60,'Auction-Rank'!$A$1:$A$999,0),'Guts-2'!$D$26)),"")) -> 0.002461111111 | AE60: =IF(AD60="","",IF(Z60=FALSE,"",AD60*(SUMIF($AC$2:$AC$999,"<>""",$AC$2:$AC$999)/SUMIF($AD$2:$AD$999,"<>""",$AD$2:$AD$999)))) -> 0.002461111111 | AF60: =IF(VLOOKUP(A61,'Name-Sort'!$D$2:$E$999,2,FALSE)="",A61,"") -> Jay Bruce | AG60: =IFERROR(INDEX($AF$1:$AF$999,SMALL(IF($AF$1:$AF$999<>"",ROW($AF$1:$AF$999)),ROW(AF60))),"") -> Jay Bruce
A61: Jay Bruce | B61: bruceja01 | C61: OF | D61: RF | E61: NYM | F61: 29 | G61: 0.002222222222 | H61: 0.002222222222 | J61: 0.001222222222 | K61: 0.0005555555556 | L61: 0.0006666666667 | M61: 0.001666666667 | N61: 0.001666666667 | O61: 0.00146031746 | P61: =IFERROR(VLOOKUP(A61,'Import (Values)'!$B$2:$C$999,2,FALSE)/3120,"") ->  | Q61: 142 | R61: 184 | T61: 152 | U61: 146 | V61: 126 | X61: 177 | Y61: 248 | Z61: =IFERROR(INDEX('Guts-2'!$K$1:$K$30,MATCH(E61,'Guts-2'!$J$1:$J$30,0)),TRUE) -> TRUE | AA61: =IF(Z61=FALSE,"",IFERROR(CHOOSE('Guts-2'!$D$27,Q61,R61,S61,T61,U61,V61,W61,X61,Y61),"")) -> 177 | AB61: 177 | AC61: =IFERROR(IF(INDEX('Auction-Rank'!$G$1:$P$999,MATCH($A61,'Auction-Rank'!$A$1:$A$999,0),'Guts-2'!$D$26)="","",INDEX('Auction-Rank'!$G$1:$P$999,MATCH($A61,'Auction-Rank'!$A$1:$A$999,0),'Guts-2'!$D$26)),"") -> 0.00146031746 | AD61: =IF(Z61=FALSE,"",IFERROR(IF(INDEX('Auction-Rank'!$G$1:$P$999,MATCH($A61,'Auction-Rank'!$A$1:$A$999,0),'Guts-2'!$D$26)="","",INDEX('Auction-Rank'!$G$1:$P$999,MATCH($A61,'Auction-Rank'!$A$1:$A$999,0),'Guts-2'!$D$26)),"")) -> 0.00146031746 | AE61: =IF(AD61="","",IF(Z61=FALSE,"",AD61*(SUMIF($AC$2:$AC$999,"<>""",$AC$2:$AC$999)/SUMIF($AD$2:$AD$999,"<>""",$AD$2:$AD$999)))) -> 0.00146031746 | AF61: =IF(VLOOKUP(A62,'Name-Sort'!$D$2:$E$999,2,FALSE)="",A62,"") -> Kris Bryant | AG61: =IFERROR(INDEX($AF$1:$AF$999,SMALL(IF($AF$1:$AF$999<>"",ROW($AF$1:$AF$999)),ROW(AF61))),"") -> Kris Bryant
A62: Kris Bryant | B62: bryankr01 | C62: 3B | D62: LF,RF | E62: CHC | F62: 25 | G62: 0.009277777778 | H62: 0.01 | J62: 0.01163888889 | K62: 0.0125 | L62: 0.01505555556 | M62: 0.01055555556 | N62: 0.01138888889 | O62: 0.01148809524 | P62: =IFERROR(VLOOKUP(A62,'Import (Values)'!$B$2:$C$999,2,FALSE)/3120,"") -> 0.01217948718 | Q62: 11 | R62: 3 | T62: 4 | U62: 2 | V62: 7 | X62: 6 | Y62: 8 | Z62: =IFERROR(INDEX('Guts-2'!$K$1:$K$30,MATCH(E62,'Guts-2'!$J$1:$J$30,0)),TRUE) -> TRUE | AA62: =IF(Z62=FALSE,"",IFERROR(CHOOSE('Guts-2'!$D$27,Q62,R62,S62,T62,U62,V62,W62,X62,Y62),"")) -> 6 | AB62: 6 | AC62: =IFERROR(IF(INDEX('Auction-Rank'!$G$1:$P$999,MATCH($A62,'Auction-Rank'!$A$1:$A$999,0),'Guts-2'!$D$26)="","",INDEX('Auction-Rank'!$G$1:$P$999,MATCH($A62,'Auction-Rank'!$A$1:$A$999,0),'Guts-2'!$D$26)),"") -> 0.01148809524 | AD62: =IF(Z62=FALSE,"",IFERROR(IF(INDEX('Auction-Rank'!$G$1:$P$999,MATCH($A62,'Auction-Rank'!$A$1:$A$999,0),'Guts-2'!$D$26)="","",INDEX('Auction-Rank'!$G$1:$P$999,MATCH($A62,'Auction-Rank'!$A$1:$A$999,0),'Guts-2'!$D$26)),"")) -> 0.01148809524 | AE62: =IF(AD62="","",IF(Z62=FALSE,"",AD62*(SUMIF($AC$2:$AC$999,"<>""",$AC$2:$AC$999)/SUMIF($AD$2:$AD$999,"<>""",$AD$2:$AD$999)))) -> 0.01148809524 | AF62: =IF(VLOOKUP(A63,'Name-Sort'!$D$2:$E$999,2,FALSE)="",A63,"") -> Clay Buchholz | AG62: =IFERROR(INDEX($AF$1:$AF$999,SMALL(IF($AF$1:$AF$999<>"",ROW($AF$1:$AF$999)),ROW(AF62))),"") -> Clay Buchholz
... 77 more rows

Sheet Guts-1 (hidden)
A1: AVG | B1: =IFERROR(IF(VLOOKUP(A1,Settings!$C$5:$D$16,2,FALSE)="Full",1,IF(VLOOKUP(A1,Settings!$C$5:$D$16,2,FALSE)="Half",0.5,0)),0) -> 1 | C1: 16 | D1: 22 | E1: 37 | F1: W | G1: =IFERROR(IF(VLOOKUP(F1,Settings!$C$19:$D$30,2,FALSE)="Full",1,IF(VLOOKUP(F1,Settings!$C$19:$D$30,2,FALSE)="Half",0.5,0)),0) -> 1 | H1: 2 | I1: 2 | J1: 10 | M1: Stats or WERTH or Hide? | N1: =IF('Your Roto Auction'!Q7=R5,1,IF('Your Roto Auction'!Q7=R6,2,IF('Your Roto Auction'!Q7=R7,3,""))) -> 2 | O1: =MAX(COUNTIF(N2:N13,">"""),COUNTIF(N14:N25,">""")) -> 5 | Q1: List | R1: List | S1: Pos | T1: Sort by Original Projected Auction Value | U1: Show All Positions | V1: =IFERROR(INDEX($U$1:$U$24,SMALL(IF($U$1:$U$24<>"",ROW($U$1:$U$24)),ROW(B1))),"") -> Show All Positions
A2: HR | B2: =IFERROR(IF(VLOOKUP(A2,Settings!$C$5:$D$16,2,FALSE)="Full",1,IF(VLOOKUP(A2,Settings!$C$5:$D$16,2,FALSE)="Half",0.5,0)),0) -> 1 | C2: 10 | D2: 10 | E2: 27 | F2: S | G2: =IFERROR(IF(VLOOKUP(F2,Settings!$C$19:$D$30,2,FALSE)="Full",1,IF(VLOOKUP(F2,Settings!$C$19:$D$30,2,FALSE)="Half",0.5,0)),0) -> 1 | H2: 9 | I2: 9 | J2: 17 | M2: H1 | N2: =IF(ISBLANK(Settings!C5),"",Settings!C5) -> AVG | O2: =IF(N$1=2,1,IF(OR(N2="AVG",N2="OBP",N2="SLG",N2="OPS"),2,IF(N2="","",1))) -> 1 | P2: =IF(OR(N2="AVG",N2="OBP",N2="SLG",N2="OPS"),2,IF(N2="","",1)) -> 2 | Q2: =IFERROR(INDEX($N$1:$N$25,SMALL(IF($N$1:$N$25<>"",ROW($N$1:$N$25)),ROW(B2))),"") -> AVG | R2: Stats | S2: =IF('Guts-2'!$N$2>=ROW(S1),"C","") -> C | T2: Sort by WERTH | U2: =IF('Guts-2'!$N2>0,"Only Show: "&'Guts-2'!M2,"") -> Only Show: C | V2: =IFERROR(INDEX($U$1:$U$24,SMALL(IF($U$1:$U$24<>"",ROW($U$1:$U$24)),ROW(B2))),"") -> Only Show: C | W2: =IF(ISERROR(VLOOKUP(A1,$N$2:$O$25,2,FALSE)),A1,"") ->  | X2: =IF(ISERROR(VLOOKUP(F1,$N$2:$O$25,2,FALSE)),F1,"") ->  | Y2: =IFERROR(INDEX($W$1:$W$26,SMALL(IF($W$1:$W$26<>"",ROW($W$1:$W$26)),ROW(B1))),"") -> SLG | Z2: =IFERROR(INDEX($X$1:$X$27,SMALL(IF($X$1:$X$27<>"",ROW($X$1:$X$27)),ROW(B1))),"") -> QS
A3: R | B3: =IFERROR(IF(VLOOKUP(A3,Settings!$C$5:$D$16,2,FALSE)="Full",1,IF(VLOOKUP(A3,Settings!$C$5:$D$16,2,FALSE)="Half",0.5,0)),0) -> 1 | C3: 5 | D3: 5 | E3: 22 | F3: K | G3: =IFERROR(IF(VLOOKUP(F3,Settings!$C$19:$D$30,2,FALSE)="Full",1,IF(VLOOKUP(F3,Settings!$C$19:$D$30,2,FALSE)="Half",0.5,0)),0) -> 1 | H3: 7 | I3: 7 | J3: 15 | M3: H2 | N3: =IF(ISBLANK(Settings!C6),"",Settings!C6) -> HR | O3: =IF(N$1=2,1,IF(OR(N3="AVG",N3="OBP",N3="SLG",N3="OPS"),2,IF(N3="","",1))) -> 1 | P3: =IF(OR(N3="AVG",N3="OBP",N3="SLG",N3="OPS"),2,IF(N3="","",1)) -> 1 | Q3: =IFERROR(INDEX($N$1:$N$25,SMALL(IF($N$1:$N$25<>"",ROW($N$1:$N$25)),ROW(B3))),"") -> HR | R3: Ranks | S3: =IF('Guts-2'!$N$2>=ROW(S2),"C","") ->  | T3: Sort by Expert Ranking | U3: =IF('Guts-2'!$N3>0,"Only Show: "&'Guts-2'!M3,"") -> Only Show: 1B | V3: =IFERROR(INDEX($U$1:$U$24,SMALL(IF($U$1:$U$24<>"",ROW($U$1:$U$24)),ROW(B3))),"") -> Only Show: 1B | W3: =IF(ISERROR(VLOOKUP(A2,$N$2:$O$25,2,FALSE)),A2,"") ->  | X3: =IF(ISERROR(VLOOKUP(F2,$N$2:$O$25,2,FALSE)),F2,"") ->  | Y3: =IFERROR(INDEX($W$1:$W$26,SMALL(IF($W$1:$W$26<>"",ROW($W$1:$W$26)),ROW(B2))),"") -> OBP | Z3: =IFERROR(INDEX($X$1:$X$27,SMALL(IF($X$1:$X$27<>"",ROW($X$1:$X$27)),ROW(B2))),"") -> Holds
A4: RBI | B4: =IFERROR(IF(VLOOKUP(A4,Settings!$C$5:$D$16,2,FALSE)="Full",1,IF(VLOOKUP(A4,Settings!$C$5:$D$16,2,FALSE)="Half",0.5,0)),0) -> 1 | C4: 11 | D4: 11 | E4: 28 | F4: ERA | G4: =IFERROR(IF(VLOOKUP(F4,Settings!$C$19:$D$30,2,FALSE)="Full",1,IF(VLOOKUP(F4,Settings!$C$19:$D$30,2,FALSE)="Half",0.5,0)),0) -> 1 | H4: 10 | I4: 29 | J4: 21 | M4: H3 | N4: =IF(ISBLANK(Settings!C7),"",Settings!C7) -> R | O4: 1 | P4: 1 | Q4: =IFERROR(INDEX($N$1:$N$25,SMALL(IF($N$1:$N$25<>"",ROW($N$1:$N$25)),ROW(B4))),"") -> R | R4: List | S4: =IF('Guts-2'!$N$2>=ROW(S3),"C","") ->  | T4: =IF(Q2="","","Sort by "&Q2) -> Sort by AVG | U4: =IF('Guts-2'!$N4>0,"Only Show: "&'Guts-2'!M4,"") -> Only Show: 2B | V4: =IFERROR(INDEX($U$1:$U$24,SMALL(IF($U$1:$U$24<>"",ROW($U$1:$U$24)),ROW(B4))),"") -> Only Show: 2B | Y4: =IFERROR(INDEX($W$1:$W$26,SMALL(IF($W$1:$W$26<>"",ROW($W$1:$W$26)),ROW(B3))),"") -> OPS | Z4: =IFERROR(INDEX($X$1:$X$27,SMALL(IF($X$1:$X$27<>"",ROW($X$1:$X$27)),ROW(B3))),"") -> Sv + Hld
A5: SB | B5: =IFERROR(IF(VLOOKUP(A5,Settings!$C$5:$D$16,2,FALSE)="Full",1,IF(VLOOKUP(A5,Settings!$C$5:$D$16,2,FALSE)="Half",0.5,0)),0) -> 1 | C5: 12 | D5: 12 | E5: 29 | F5: WHIP | G5: =IFERROR(IF(VLOOKUP(F5,Settings!$C$19:$D$30,2,FALSE)="Full",1,IF(VLOOKUP(F5,Settings!$C$19:$D$30,2,FALSE)="Half",0.5,0)),0) -> 1 | H5: 11 | I5: 30 | J5: 22 | M5: H4 | N5: =IF(ISBLANK(Settings!C8),"",Settings!C8) -> RBI | O5: 1 | P5: 1 | Q5: =IFERROR(INDEX($N$1:$N$25,SMALL(IF($N$1:$N$25<>"",ROW($N$1:$N$25)),ROW(B5))),"") -> RBI | R5: Show Stats | S5: =IF('Guts-2'!$N$2>=ROW(S4),"C","") ->  | T5: =IF(Q3="","","Sort by "&Q3) -> Sort by HR | U5: =IF('Guts-2'!$N5>0,"Only Show: "&'Guts-2'!M5,"") -> Only Show: 3B | V5: =IFERROR(INDEX($U$1:$U$24,SMALL(IF($U$1:$U$24<>"",ROW($U$1:$U$24)),ROW(B5))),"") -> Only Show: 3B | Y5: =IFERROR(INDEX($W$1:$W$26,SMALL(IF($W$1:$W$26<>"",ROW($W$1:$W$26)),ROW(B4))),"") -> Net SB | Z5: =IFERROR(INDEX($X$1:$X$27,SMALL(IF($X$1:$X$27<>"",ROW($X$1:$X$27)),ROW(B4))),"") -> K-BB
A6: SLG | B6: =IFERROR(IF(VLOOKUP(A6,Settings!$C$5:$D$16,2,FALSE)="Full",1,IF(VLOOKUP(A6,Settings!$C$5:$D$16,2,FALSE)="Half",0.5,0)),0) -> 0 | C6: 18 | D6: 24 | E6: 39 | F6: QS | G6: =IFERROR(IF(VLOOKUP(F6,Settings!$C$19:$D$30,2,FALSE)="Full",1,IF(VLOOKUP(F6,Settings!$C$19:$D$30,2,FALSE)="Half",0.5,0)),0) -> 0 | H6: 13 | I6: 13 | J6: 24 | M6: H5 | N6: =IF(ISBLANK(Settings!C9),"",Settings!C9) -> SB | O6: 1 | P6: 1 | Q6: =IFERROR(INDEX($N$1:$N$25,SMALL(IF($N$1:$N$25<>"",ROW($N$1:$N$25)),ROW(B6))),"") -> SB | R6: Show WERTH Values | S6: =IF('Guts-2'!$N$3>=ROW(S1),"1B","") -> 1B | T6: Sort by R | U6: =IF('Guts-2'!$N6>0,"Only Show: "&'Guts-2'!M6,"") -> Only Show: SS | V6: =IFERROR(INDEX($U$1:$U$24,SMALL(IF($U$1:$U$24<>"",ROW($U$1:$U$24)),ROW(B6))),"") -> Only Show: SS | Y6: =IFERROR(INDEX($W$1:$W$26,SMALL(IF($W$1:$W$26<>"",ROW($W$1:$W$26)),ROW(B5))),"") -> Total Bases | Z6: =IFERROR(INDEX($X$1:$X$27,SMALL(IF($X$1:$X$27<>"",ROW($X$1:$X$27)),ROW(B5))),"") -> K/BB
A7: OBP | B7: =IFERROR(IF(VLOOKUP(A7,Settings!$C$5:$D$16,2,FALSE)="Full",1,IF(VLOOKUP(A7,Settings!$C$5:$D$16,2,FALSE)="Half",0.5,0)),0) -> 0 | C7: 17 | D7: 23 | E7: 38 | F7: Holds | G7: =IFERROR(IF(VLOOKUP(F7,Settings!$C$19:$D$30,2,FALSE)="Full",1,IF(VLOOKUP(F7,Settings!$C$19:$D$30,2,FALSE)="Half",0.5,0)),0) -> 0 | H7: 17 | I7: 17 | J7: 27 | M7: H6 | N7: =IF(ISBLANK(Settings!C10),"",Settings!C10) ->  | O7: 1 | Q7: =IFERROR(INDEX($N$1:$N$25,SMALL(IF($N$1:$N$25<>"",ROW($N$1:$N$25)),ROW(B7))),"") -> W | R7: Show Neither | S7: =IF('Guts-2'!$N$3>=ROW(S2),"1B","") ->  | T7: Sort by RBI | U7: =IF('Guts-2'!$N7>0,"Only Show: "&'Guts-2'!M7,"") -> Only Show: CI | V7: =IFERROR(INDEX($U$1:$U$24,SMALL(IF($U$1:$U$24<>"",ROW($U$1:$U$24)),ROW(B7))),"") -> Only Show: CI | W7: SLG | X7: QS | Y7: =IFERROR(INDEX($W$1:$W$26,SMALL(IF($W$1:$W$26<>"",ROW($W$1:$W$26)),ROW(B6))),"") -> K's | Z7: =IFERROR(INDEX($X$1:$X$27,SMALL(IF($X$1:$X$27<>"",ROW($X$1:$X$27)),ROW(B6))),"") -> K/9
A8: OPS | B8: =IFERROR(IF(VLOOKUP(A8,Settings!$C$5:$D$16,2,FALSE)="Full",1,IF(VLOOKUP(A8,Settings!$C$5:$D$16,2,FALSE)="Half",0.5,0)),0) -> 0 | C8: 19 | D8: 25 | E8: 40 | F8: Sv + Hld | G8: =IFERROR(IF(VLOOKUP(F8,Settings!$C$19:$D$30,2,FALSE)="Full",1,IF(VLOOKUP(F8,Settings!$C$19:$D$30,2,FALSE)="Half",0.5,0)),0) -> 0 | H8: 24 | I8: 24 | J8: 28 | M8: H7 | N8: =IF(ISBLANK(Settings!C11),"",Settings!C11) ->  | O8: 1 | Q8: =IFERROR(INDEX($N$1:$N$25,SMALL(IF($N$1:$N$25<>"",ROW($N$1:$N$25)),ROW(B8))),"") -> S | R8: List | S8: =IF('Guts-2'!$N$3>=ROW(S3),"1B","") ->  | T8: Sort by SB | U8: =IF('Guts-2'!$N8>0,"Only Show: "&'Guts-2'!M8,"") -> Only Show: MI | V8: =IFERROR(INDEX($U$1:$U$24,SMALL(IF($U$1:$U$24<>"",ROW($U$1:$U$24)),ROW(B8))),"") -> Only Show: MI | W8: OBP | X8: Holds | Y8: =IFERROR(INDEX($W$1:$W$26,SMALL(IF($W$1:$W$26<>"",ROW($W$1:$W$26)),ROW(B7))),"") -> Hits | Z8: =IFERROR(INDEX($X$1:$X$27,SMALL(IF($X$1:$X$27<>"",ROW($X$1:$X$27)),ROW(B7))),"") -> CG
A9: Net SB | B9: =IFERROR(IF(VLOOKUP(A9,Settings!$C$5:$D$16,2,FALSE)="Full",1,IF(VLOOKUP(A9,Settings!$C$5:$D$16,2,FALSE)="Half",0.5,0)),0) -> 0 | C9: 31 | D9: 31 | E9: 48 | F9: K-BB | G9: =IFERROR(IF(VLOOKUP(F9,Settings!$C$19:$D$30,2,FALSE)="Full",1,IF(VLOOKUP(F9,Settings!$C$19:$D$30,2,FALSE)="Half",0.5,0)),0) -> 0 | H9: 25 | I9: 25 | J9: 29 | M9: H8 | N9: =IF(ISBLANK(Settings!C12),"",Settings!C12) ->  | O9: 1 | Q9: =IFERROR(INDEX($N$1:$N$25,SMALL(IF($N$1:$N$25<>"",ROW($N$1:$N$25)),ROW(B9))),"") -> K | R9: Mixed (Standard) | S9: =IF('Guts-2'!$N$4>=ROW(S1),"2B","") -> 2B | T9: Sort by W | U9: =IF('Guts-2'!$N9>0,"Only Show: "&'Guts-2'!M9,"") -> Only Show: OF | V9: =IFERROR(INDEX($U$1:$U$24,SMALL(IF($U$1:$U$24<>"",ROW($U$1:$U$24)),ROW(B9))),"") -> Only Show: OF | W9: OPS | X9: Sv + Hld | Y9: =IFERROR(INDEX($W$1:$W$26,SMALL(IF($W$1:$W$26<>"",ROW($W$1:$W$26)),ROW(B8))),"") -> BB | Z9: =IFERROR(INDEX($X$1:$X$27,SMALL(IF($X$1:$X$27<>"",ROW($X$1:$X$27)),ROW(B8))),"") -> Shutouts
A10: Total Bases | B10: =IFERROR(IF(VLOOKUP(A10,Settings!$C$5:$D$16,2,FALSE)="Full",1,IF(VLOOKUP(A10,Settings!$C$5:$D$16,2,FALSE)="Half",0.5,0)),0) -> 0 | C10: 20 | D10: 20 | E10: 45 | F10: K/BB | G10: =IFERROR(IF(VLOOKUP(F10,Settings!$C$19:$D$30,2,FALSE)="Full",1,IF(VLOOKUP(F10,Settings!$C$19:$D$30,2,FALSE)="Half",0.5,0)),0) -> 0 | H10: 26 | I10: 33 | J10: 34 | M10: H9 | N10: =IF(ISBLANK(Settings!C13),"",Settings!C13) ->  | O10: 1 | Q10: =IFERROR(INDEX($N$1:$N$25,SMALL(IF($N$1:$N$25<>"",ROW($N$1:$N$25)),ROW(B10))),"") -> ERA | R10: AL-Only | S10: =IF('Guts-2'!$N$4>=ROW(S2),"2B","") ->  | T10: Sort by S | U10: =IF('Guts-2'!$N10>0,"Only Show: "&'Guts-2'!M10,"") -> Only Show: DH | V10: =IFERROR(INDEX($U$1:$U$24,SMALL(IF($U$1:$U$24<>"",ROW($U$1:$U$24)),ROW(B10))),"") -> Only Show: DH | W10: Net SB | X10: K-BB | Y10: =IFERROR(INDEX($W$1:$W$26,SMALL(IF($W$1:$W$26<>"",ROW($W$1:$W$26)),ROW(B9))),"") -> 1B | Z10: =IFERROR(INDEX($X$1:$X$27,SMALL(IF($X$1:$X$27<>"",ROW($X$1:$X$27)),ROW(B9))),"") -> ER
A11: K's | B11: =IFERROR(IF(VLOOKUP(A11,Settings!$C$5:$D$16,2,FALSE)="Full",1,IF(VLOOKUP(A11,Settings!$C$5:$D$16,2,FALSE)="Half",0.5,0)),0) -> 0 | C11: 15 | D11: 15 | E11: 32 | F11: K/9 | G11: =IFERROR(IF(VLOOKUP(F11,Settings!$C$19:$D$30,2,FALSE)="Full",1,IF(VLOOKUP(F11,Settings!$C$19:$D$30,2,FALSE)="Half",0.5,0)),0) -> 0 | H11: 12 | I11: 31 | J11: 23 | M11: H10 | N11: =IF(ISBLANK(Settings!C14),"",Settings!C14) ->  | O11: 1 | Q11: =IFERROR(INDEX($N$1:$N$25,SMALL(IF($N$1:$N$25<>"",ROW($N$1:$N$25)),ROW(B11))),"") -> WHIP | R11: NL-Only | S11: =IF('Guts-2'!$N$4>=ROW(S3),"2B","") ->  | T11: Sort by K | U11: =IF('Guts-2'!$N11>0,"Only Show: "&'Guts-2'!M11,"") -> Only Show: SP | V11: =IFERROR(INDEX($U$1:$U$24,SMALL(IF($U$1:$U$24<>"",ROW($U$1:$U$24)),ROW(B11))),"") -> Only Show: SP | W11: Total Bases | X11: K/BB | Y11: =IFERROR(INDEX($W$1:$W$26,SMALL(IF($W$1:$W$26<>"",ROW($W$1:$W$26)),ROW(B10))),"") -> 2B | Z11: =IFERROR(INDEX($X$1:$X$27,SMALL(IF($X$1:$X$27<>"",ROW($X$1:$X$27)),ROW(B10))),"") -> BAA
A12: Hits | B12: =IFERROR(IF(VLOOKUP(A12,Settings!$C$5:$D$16,2,FALSE)="Full",1,IF(VLOOKUP(A12,Settings!$C$5:$D$16,2,FALSE)="Half",0.5,0)),0) -> 0 | C12: 6 | D12: 6 | E12: 23 | F12: CG | G12: =IFERROR(IF(VLOOKUP(F12,Settings!$C$19:$D$30,2,FALSE)="Full",1,IF(VLOOKUP(F12,Settings!$C$19:$D$30,2,FALSE)="Half",0.5,0)),0) -> 0 | H12: 19 | I12: 19 | J12: 37 | M12: H11 | N12: =IF(ISBLANK(Settings!C15),"",Settings!C15) ->  | O12: 1 | Q12: =IFERROR(INDEX($N$1:$N$25,SMALL(IF($N$1:$N$25<>"",ROW($N$1:$N$25)),ROW(B12))),"") ->  | R12: Specific Teams Only | S12: =IF('Guts-2'!$N$5>=ROW(S1),"3B","") -> 3B | T12: Sort by ERA | U12: =IF('Guts-2'!$N12>0,"Only Show: "&'Guts-2'!M12,"") -> Only Show: RP | V12: =IFERROR(INDEX($U$1:$U$24,SMALL(IF($U$1:$U$24<>"",ROW($U$1:$U$24)),ROW(B12))),"") -> Only Show: RP | W12: K's | X12: K/9 | Y12: =IFERROR(INDEX($W$1:$W$26,SMALL(IF($W$1:$W$26<>"",ROW($W$1:$W$26)),ROW(B11))),"") -> 3B | Z12: =IFERROR(INDEX($X$1:$X$27,SMALL(IF($X$1:$X$27<>"",ROW($X$1:$X$27)),ROW(B11))),"") -> Hits Allw
A13: BB | B13: =IFERROR(IF(VLOOKUP(A13,Settings!$C$5:$D$16,2,FALSE)="Full",1,IF(VLOOKUP(A13,Settings!$C$5:$D$16,2,FALSE)="Half",0.5,0)),0) -> 0 | C13: 14 | D13: 14 | E13: 31 | F13: Shutouts | G13: =IFERROR(IF(VLOOKUP(F13,Settings!$C$19:$D$30,2,FALSE)="Full",1,IF(VLOOKUP(F13,Settings!$C$19:$D$30,2,FALSE)="Half",0.5,0)),0) -> 0 | H13: 20 | I13: 20 | J13: 36 | M13: H12 | N13: =IF(ISBLANK(Settings!C16),"",Settings!C16) ->  | O13: 1 | Q13: =IFERROR(INDEX($N$1:$N$25,SMALL(IF($N$1:$N$25<>"",ROW($N$1:$N$25)),ROW(B13))),"") ->  | R13: Y | S13: =IF('Guts-2'!$N$5>=ROW(S2),"3B","") ->  | T13: Sort by WHIP | U13: =IF('Guts-2'!$N13>0,"Only Show: "&'Guts-2'!M13,"") -> Only Show: P | V13: =IFERROR(INDEX($U$1:$U$24,SMALL(IF($U$1:$U$24<>"",ROW($U$1:$U$24)),ROW(B13))),"") -> Only Show: P | W13: Hits | X13: CG | Y13: =IFERROR(INDEX($W$1:$W$26,SMALL(IF($W$1:$W$26<>"",ROW($W$1:$W$26)),ROW(B12))),"") -> 2B + 3B | Z13: =IFERROR(INDEX($X$1:$X$27,SMALL(IF($X$1:$X$27<>"",ROW($X$1:$X$27)),ROW(B12))),"") -> HR's
A14: 1B | B14: =IFERROR(IF(VLOOKUP(A14,Settings!$C$5:$D$16,2,FALSE)="Full",1,IF(VLOOKUP(A14,Settings!$C$5:$D$16,2,FALSE)="Half",0.5,0)),0) -> 0 | C14: 7 | D14: 7 | E14: 24 | F14: ER | G14: =IFERROR(IF(VLOOKUP(F14,Settings!$C$19:$D$30,2,FALSE)="Full",1,IF(VLOOKUP(F14,Settings!$C$19:$D$30,2,FALSE)="Half",0.5,0)),0) -> 0 | H14: 8 | I14: 8 | J14: 16 | M14: P1 | N14: =IF(ISBLANK(Settings!C19),"",Settings!C19) -> W | O14: =IF(N$1=2,1,IF(OR(N14="ERA",N14="WHIP"),4,IF(OR(N14="K/9",N14="K/BB"),3,IF(N14="BAA",2,IF(N14="","",1))))) -> 1 | P14: =IF(OR(N14="ERA",N14="WHIP"),4,IF(OR(N14="K/9",N14="K/BB"),3,IF(N14="BAA",2,IF(N14="","",1)))) -> 1 | Q14: =IFERROR(INDEX($N$1:$N$25,SMALL(IF($N$1:$N$25<>"",ROW($N$1:$N$25)),ROW(B14))),"") ->  | R14: N | S14: =IF('Guts-2'!$N$5>=ROW(S3),"3B","") ->  | U14: =IF('Guts-2'!$N14>0,"Only Show: "&'Guts-2'!M14,"") ->  | V14: =IFERROR(INDEX($U$1:$U$24,SMALL(IF($U$1:$U$24<>"",ROW($U$1:$U$24)),ROW(B14))),"") ->  | W14: BB | X14: Shutouts | Y14: =IFERROR(INDEX($W$1:$W$26,SMALL(IF($W$1:$W$26<>"",ROW($W$1:$W$26)),ROW(B13))),"") -> R + RBI - HR | Z14: =IFERROR(INDEX($X$1:$X$27,SMALL(IF($X$1:$X$27<>"",ROW($X$1:$X$27)),ROW(B13))),"") -> Walks
A15: 2B | B15: =IFERROR(IF(VLOOKUP(A15,Settings!$C$5:$D$16,2,FALSE)="Full",1,IF(VLOOKUP(A15,Settings!$C$5:$D$16,2,FALSE)="Half",0.5,0)),0) -> 0 | C15: 8 | D15: 8 | E15: 25 | F15: BAA | G15: =IFERROR(IF(VLOOKUP(F15,Settings!$C$19:$D$30,2,FALSE)="Full",1,IF(VLOOKUP(F15,Settings!$C$19:$D$30,2,FALSE)="Half",0.5,0)),0) -> 0 | H15: 18 | I15: 32 | J15: 33 | M15: P2 | N15: =IF(ISBLANK(Settings!C20),"",Settings!C20) -> S | O15: =IF(N$1=2,1,IF(OR(N15="ERA",N15="WHIP"),4,IF(OR(N15="K/9",N15="K/BB"),3,IF(N15="BAA",2,IF(N15="","",1))))) -> 1 | P15: =IF(OR(N15="ERA",N15="WHIP"),4,IF(OR(N15="K/9",N15="K/BB"),3,IF(N15="BAA",2,IF(N15="","",1)))) -> 1 | Q15: =IFERROR(INDEX($N$1:$N$25,SMALL(IF($N$1:$N$25<>"",ROW($N$1:$N$25)),ROW(B15))),"") ->  | R15: Full | S15: =IF('Guts-2'!$N$6>=ROW(S1),"SS","") -> SS | U15: =IF('Guts-2'!$N15>0,"Only Show: "&'Guts-2'!M15,"") ->  | V15: =IFERROR(INDEX($U$1:$U$24,SMALL(IF($U$1:$U$24<>"",ROW($U$1:$U$24)),ROW(B15))),"") ->  | W15: 1B | X15: ER | Y15: =IFERROR(INDEX($W$1:$W$26,SMALL(IF($W$1:$W$26<>"",ROW($W$1:$W$26)),ROW(B14))),"") -> SB + BB - K | Z15: =IFERROR(INDEX($X$1:$X$27,SMALL(IF($X$1:$X$27<>"",ROW($X$1:$X$27)),ROW(B14))),"") -> L
A16: 3B | B16: =IFERROR(IF(VLOOKUP(A16,Settings!$C$5:$D$16,2,FALSE)="Full",1,IF(VLOOKUP(A16,Settings!$C$5:$D$16,2,FALSE)="Half",0.5,0)),0) -> 0 | C16: 9 | D16: 9 | E16: 26 | F16: Hits Allw | G16: =IFERROR(IF(VLOOKUP(F16,Settings!$C$19:$D$30,2,FALSE)="Full",1,IF(VLOOKUP(F16,Settings!$C$19:$D$30,2,FALSE)="Half",0.5,0)),0) -> 0 | H16: 5 | I16: 5 | J16: 13 | M16: P3 | N16: =IF(ISBLANK(Settings!C21),"",Settings!C21) -> K | O16: 1 | P16: 1 | Q16: =IFERROR(INDEX($N$1:$N$25,SMALL(IF($N$1:$N$25<>"",ROW($N$1:$N$25)),ROW(B16))),"") ->  | R16: Half | S16: =IF('Guts-2'!$N$6>=ROW(S2),"SS","") ->  | U16: =IF('Guts-2'!$N16>0,"Only Show: "&'Guts-2'!M16,"") ->  | V16: =IFERROR(INDEX($U$1:$U$24,SMALL(IF($U$1:$U$24<>"",ROW($U$1:$U$24)),ROW(B16))),"") ->  | W16: 2B | X16: BAA | Y16: =IFERROR(INDEX($W$1:$W$26,SMALL(IF($W$1:$W$26<>"",ROW($W$1:$W$26)),ROW(B15))),"") -> CS | Z16: =IFERROR(INDEX($X$1:$X$27,SMALL(IF($X$1:$X$27<>"",ROW($X$1:$X$27)),ROW(B15))),"") -> IP
A17: 2B + 3B | B17: =IFERROR(IF(VLOOKUP(A17,Settings!$C$5:$D$16,2,FALSE)="Full",1,IF(VLOOKUP(A17,Settings!$C$5:$D$16,2,FALSE)="Half",0.5,0)),0) -> 0 | C17: 30 | D17: 30 | E17: 47 | F17: HR's | G17: =IFERROR(IF(VLOOKUP(F17,Settings!$C$19:$D$30,2,FALSE)="Full",1,IF(VLOOKUP(F17,Settings!$C$19:$D$30,2,FALSE)="Half",0.5,0)),0) -> 0 | H17: 16 | I17: 16 | J17: 31 | M17: P4 | N17: =IF(ISBLANK(Settings!C22),"",Settings!C22) -> ERA | O17: 1 | P17: 4 | Q17: =IFERROR(INDEX($N$1:$N$25,SMALL(IF($N$1:$N$25<>"",ROW($N$1:$N$25)),ROW(B17))),"") ->  | R17: Snake Draft | S17: =IF('Guts-2'!$N$6>=ROW(S3),"SS","") ->  | U17: =IF('Guts-2'!$N17>0,"Only Show: "&'Guts-2'!M17,"") ->  | V17: =IFERROR(INDEX($U$1:$U$24,SMALL(IF($U$1:$U$24<>"",ROW($U$1:$U$24)),ROW(B17))),"") ->  | W17: 3B | X17: Hits Allw | Y17: =IFERROR(INDEX($W$1:$W$26,SMALL(IF($W$1:$W$26<>"",ROW($W$1:$W$26)),ROW(B16))),"") -> Errors | Z17: =IFERROR(INDEX($X$1:$X$27,SMALL(IF($X$1:$X$27<>"",ROW($X$1:$X$27)),ROW(B16))),"") -> GS
A18: R + RBI - HR | B18: =IFERROR(IF(VLOOKUP(A18,Settings!$C$5:$D$16,2,FALSE)="Full",1,IF(VLOOKUP(A18,Settings!$C$5:$D$16,2,FALSE)="Half",0.5,0)),0) -> 0 | C18: 21 | D18: 21 | E18: 46 | F18: Walks | G18: =IFERROR(IF(VLOOKUP(F18,Settings!$C$19:$D$30,2,FALSE)="Full",1,IF(VLOOKUP(F18,Settings!$C$19:$D$30,2,FALSE)="Half",0.5,0)),0) -> 0 | H18: 6 | I18: 6 | J18: 14 | M18: P5 | N18: =IF(ISBLANK(Settings!C23),"",Settings!C23) -> WHIP | O18: 1 | P18: 4 | Q18: =IFERROR(INDEX($N$1:$N$25,SMALL(IF($N$1:$N$25<>"",ROW($N$1:$N$25)),ROW(B18))),"") ->  | R18: Same Order Every Round | S18: =IF('Guts-2'!$N$7>=ROW(S1),"CI","") -> CI | W18: 2B + 3B | X18: HR's | Y18: =IFERROR(INDEX($W$1:$W$26,SMALL(IF($W$1:$W$26<>"",ROW($W$1:$W$26)),ROW(B17))),"") -> XBH | Z18: =IFERROR(INDEX($X$1:$X$27,SMALL(IF($X$1:$X$27<>"",ROW($X$1:$X$27)),ROW(B17))),"") -> Games
A19: SB + BB - K | B19: =IFERROR(IF(VLOOKUP(A19,Settings!$C$5:$D$16,2,FALSE)="Full",1,IF(VLOOKUP(A19,Settings!$C$5:$D$16,2,FALSE)="Half",0.5,0)),0) -> 0 | C19: 32 | D19: 32 | E19: 49 | F19: L | G19: =IFERROR(IF(VLOOKUP(F19,Settings!$C$19:$D$30,2,FALSE)="Full",1,IF(VLOOKUP(F19,Settings!$C$19:$D$30,2,FALSE)="Half",0.5,0)),0) -> 0 | H19: 3 | I19: 3 | J19: 11 | M19: P6 | N19: =IF(ISBLANK(Settings!C24),"",Settings!C24) ->  | O19: 1 | Q19: =IFERROR(INDEX($N$1:$N$25,SMALL(IF($N$1:$N$25<>"",ROW($N$1:$N$25)),ROW(B19))),"") ->  | R19: Show Drafted Players | S19: =IF('Guts-2'!$N$7>=ROW(S2),"CI","") ->  | W19: R + RBI - HR | X19: Walks | Y19: =IFERROR(INDEX($W$1:$W$26,SMALL(IF($W$1:$W$26<>"",ROW($W$1:$W$26)),ROW(B18))),"") -> HBP | Z19: =IFERROR(INDEX($X$1:$X$27,SMALL(IF($X$1:$X$27<>"",ROW($X$1:$X$27)),ROW(B18))),"") -> GF
A20: CS | B20: =IFERROR(IF(VLOOKUP(A20,Settings!$C$5:$D$16,2,FALSE)="Full",1,IF(VLOOKUP(A20,Settings!$C$5:$D$16,2,FALSE)="Half",0.5,0)),0) -> 0 | C20: 13 | D20: 13 | E20: 30 | F20: IP | G20: =IFERROR(IF(VLOOKUP(F20,Settings!$C$19:$D$30,2,FALSE)="Full",1,IF(VLOOKUP(F20,Settings!$C$19:$D$30,2,FALSE)="Half",0.5,0)),0) -> 0 | H20: 4 | I20: 4 | J20: 12 | M20: P7 | N20: =IF(ISBLANK(Settings!C25),"",Settings!C25) ->  | O20: 1 | Q20: =IFERROR(INDEX($N$1:$N$25,SMALL(IF($N$1:$N$25<>"",ROW($N$1:$N$25)),ROW(B20))),"") ->  | R20: Hide Drafted Players | S20: =IF('Guts-2'!$N$7>=ROW(S3),"CI","") ->  | W20: SB + BB - K | X20: L | Y20: =IFERROR(INDEX($W$1:$W$26,SMALL(IF($W$1:$W$26<>"",ROW($W$1:$W$26)),ROW(B19))),"") ->  | Z20: =IFERROR(INDEX($X$1:$X$27,SMALL(IF($X$1:$X$27<>"",ROW($X$1:$X$27)),ROW(B19))),"") -> Blown Sv
A21: Errors | B21: =IFERROR(IF(VLOOKUP(A21,Settings!$C$5:$D$16,2,FALSE)="Full",1,IF(VLOOKUP(A21,Settings!$C$5:$D$16,2,FALSE)="Half",0.5,0)),0) -> 0 | C21: 33 | D21: 33 | E21: 50 | F21: GS | G21: =IFERROR(IF(VLOOKUP(F21,Settings!$C$19:$D$30,2,FALSE)="Full",1,IF(VLOOKUP(F21,Settings!$C$19:$D$30,2,FALSE)="Half",0.5,0)),0) -> 0 | H21: 14 | I21: 14 | J21: 35 | M21: P8 | N21: =IF(ISBLANK(Settings!C26),"",Settings!C26) ->  | O21: 1 | Q21: =IFERROR(INDEX($N$1:$N$25,SMALL(IF($N$1:$N$25<>"",ROW($N$1:$N$25)),ROW(B21))),"") ->  | R21: All Teams Have Same Budget | S21: =IF('Guts-2'!$N$8>=ROW(S1),"MI","") -> MI | W21: CS | X21: IP | Y21: =IFERROR(INDEX($W$1:$W$26,SMALL(IF($W$1:$W$26<>"",ROW($W$1:$W$26)),ROW(B20))),"") ->  | Z21: =IFERROR(INDEX($X$1:$X$27,SMALL(IF($X$1:$X$27<>"",ROW($X$1:$X$27)),ROW(B20))),"") -> Net Sv
A22: XBH | B22: =IFERROR(IF(VLOOKUP(A22,Settings!$C$5:$D$16,2,FALSE)="Full",1,IF(VLOOKUP(A22,Settings!$C$5:$D$16,2,FALSE)="Half",0.5,0)),0) -> 0 | C22: 34 | D22: 34 | E22: 51 | F22: Games | G22: =IFERROR(IF(VLOOKUP(F22,Settings!$C$19:$D$30,2,FALSE)="Full",1,IF(VLOOKUP(F22,Settings!$C$19:$D$30,2,FALSE)="Half",0.5,0)),0) -> 0 | H22: 15 | I22: 15 | J22: 38 | M22: P9 | N22: =IF(ISBLANK(Settings!C27),"",Settings!C27) ->  | O22: 1 | Q22: =IFERROR(INDEX($N$1:$N$25,SMALL(IF($N$1:$N$25<>"",ROW($N$1:$N$25)),ROW(B26))),"") ->  | R22: Budgets Vary By Team | S22: =IF('Guts-2'!$N$8>=ROW(S2),"MI","") ->  | W22: Errors | X22: GS | Y22: =IFERROR(INDEX($W$1:$W$26,SMALL(IF($W$1:$W$26<>"",ROW($W$1:$W$26)),ROW(B21))),"") ->  | Z22: =IFERROR(INDEX($X$1:$X$27,SMALL(IF($X$1:$X$27<>"",ROW($X$1:$X$27)),ROW(B21))),"") -> H/9
A23: HBP | B23: =IFERROR(IF(VLOOKUP(A23,Settings!$C$5:$D$16,2,FALSE)="Full",1,IF(VLOOKUP(A23,Settings!$C$5:$D$16,2,FALSE)="Half",0.5,0)),0) -> 0 | C23: 35 | D23: 35 | E23: 52 | F23: GF | G23: =IFERROR(IF(VLOOKUP(F23,Settings!$C$19:$D$30,2,FALSE)="Full",1,IF(VLOOKUP(F23,Settings!$C$19:$D$30,2,FALSE)="Half",0.5,0)),0) -> 0 | H23: 21 | I23: 21 | J23: 39 | M23: P10 | N23: =IF(ISBLANK(Settings!C28),"",Settings!C28) ->  | O23: 1 | Q23: =IFERROR(INDEX($N$1:$N$25,SMALL(IF($N$1:$N$25<>"",ROW($N$1:$N$25)),ROW(B27))),"") ->  | R23: Values Adjusted By Position | S23: =IF('Guts-2'!$N$8>=ROW(S3),"MI","") ->  | W23: XBH | X23: Games | Z23: =IFERROR(INDEX($X$1:$X$27,SMALL(IF($X$1:$X$27<>"",ROW($X$1:$X$27)),ROW(B22))),"") -> 
F24: Blown Sv | G24: =IFERROR(IF(VLOOKUP(F24,Settings!$C$19:$D$30,2,FALSE)="Full",1,IF(VLOOKUP(F24,Settings!$C$19:$D$30,2,FALSE)="Half",0.5,0)),0) -> 0 | H24: 22 | I24: 22 | J24: 40 | M24: P11 | N24: =IF(ISBLANK(Settings!C29),"",Settings!C29) ->  | O24: 1 | Q24: =IFERROR(INDEX($N$1:$N$25,SMALL(IF($N$1:$N$25<>"",ROW($N$1:$N$25)),ROW(B28))),"") ->  | R24: Turn Off Position Adjustments | S24: =IF('Guts-2'!$N$17>=ROW(S1),"IF","") ->  | W24: HBP | X24: GF | Z24: =IFERROR(INDEX($X$1:$X$27,SMALL(IF($X$1:$X$27<>"",ROW($X$1:$X$27)),ROW(B23))),"") -> 
F25: Net Sv | G25: =IFERROR(IF(VLOOKUP(F25,Settings!$C$19:$D$30,2,FALSE)="Full",1,IF(VLOOKUP(F25,Settings!$C$19:$D$30,2,FALSE)="Half",0.5,0)),0) -> 0 | H25: 23 | I25: 23 | J25: 41 | M25: P12 | N25: =IF(ISBLANK(Settings!C30),"",Settings!C30) ->  | O25: 1 | Q25: =IFERROR(INDEX($N$1:$N$25,SMALL(IF($N$1:$N$25<>"",ROW($N$1:$N$25)),ROW(B29))),"") ->  | S25: =IF('Guts-2'!$N$17>=ROW(S2),"IF","") ->  | X25: Blown Sv | Z25: =IFERROR(INDEX($X$1:$X$27,SMALL(IF($X$1:$X$27<>"",ROW($X$1:$X$27)),ROW(B24))),"") -> 
A26: Budget Per Team | B26: =Settings!K6 -> 260 | F26: H/9 | G26: =IFERROR(IF(VLOOKUP(F26,Settings!$C$19:$D$30,2,FALSE)="Full",1,IF(VLOOKUP(F26,Settings!$C$19:$D$30,2,FALSE)="Half",0.5,0)),0) -> 0 | H26: 27 | I26: 28 | J26: 43 | R26: Hot | S26: =IF('Guts-2'!$N$17>=ROW(S3),"IF","") ->  | X26: Net Sv | Z26: =IFERROR(INDEX($X$1:$X$27,SMALL(IF($X$1:$X$27<>"",ROW($X$1:$X$27)),ROW(B25))),"") -> 
A27: Players Per Team | B27: =Settings!G26 -> 26 | C27: =SUM('Guts-2'!N2:N17) -> 21 | R27: Cold | S27: =IF('Guts-2'!$N$17>=ROW(S4),"IF","") ->  | X27: H/9 | Z27: =IFERROR(INDEX($X$1:$X$27,SMALL(IF($X$1:$X$27<>"",ROW($X$1:$X$27)),ROW(B26))),"") -> 
A28: Total League Money | B28: =IF(Settings!K8="All Teams Have Same Budget",Settings!K5*Settings!K6,SUM(Settings!L12:L35)) -> 3120 | R28: Target | S28: =IF('Guts-2'!$N$17>=ROW(S5),"IF","") -> 
A29: Minimum Bid | B29: =Settings!K7 -> 1 | F29: Budget Per Team | R29: Avoid | S29: =IF('Guts-2'!$N$17>=ROW(S6),"IF","") -> 
A30: Minimum Amount To Spend | B30: =B27*'Guts-2'!N1*B29 -> 312 | F30: Players Per Team | R30: Injury | S30: =IF('Guts-2'!$N$9>=ROW(S1),"OF","") -> OF
A31: Hitter Min | B31: ='Filtered-H'!AP17 -> 156 | R31: Note | S31: =IF('Guts-2'!$N$9>=ROW(S2),"OF","") -> OF
A32: Pitcher Min | B32: ='Filtered-P'!AO8 -> 96 | F32: Minimum Bid | R32: Sleeper | S32: =IF('Guts-2'!$N$9>=ROW(S3),"OF","") -> OF
A33: Bench Min | B33: =(B27*'Guts-2'!N1)-B31-B32 -> 60 | F33: Hitter Split | R33: Bust | S33: =IF('Guts-2'!$N$9>=ROW(S4),"OF","") -> OF
A34: Money Above Min | B34: =B28-B30 -> 2808 | F34: Pitcher Split | R34: Sort drop-down by: Player Value | S34: =IF('Guts-2'!$N$9>=ROW(S5),"OF","") -> OF
A35: Hitter Split | B35: =Settings!O6*100 -> 70 | R35: Sort drop-down by: Last Name | S35: =IF('Guts-2'!$N$9>=ROW(S6),"OF","") -> 
A36: Pitcher Split | B36: =Settings!O7*100 -> 30 | S36: =IF('Guts-2'!$N$9>=ROW(S7),"OF","") -> 
A37: Inflation Options | B37: =IF(Settings!O5="Turn Off Position Adjustments",1,0) -> 0 | S37: =IF('Guts-2'!$N$9>=ROW(S8),"OF","") -> 
S38: =IF('Guts-2'!$N$9>=ROW(S9),"OF","") -> 
S39: =IF('Guts-2'!$N$14>=ROW(S1),"LF","") -> 
S40: =IF('Guts-2'!$N$14>=ROW(S2),"LF","") -> 
S41: =IF('Guts-2'!$N$14>=ROW(S3),"LF","") -> 
S42: =IF('Guts-2'!$N$15>=ROW(S1),"CF","") -> 
S43: =IF('Guts-2'!$N$15>=ROW(S2),"CF","") -> 
S44: =IF('Guts-2'!$N$15>=ROW(S3),"CF","") -> 
S45: =IF('Guts-2'!$N$16>=ROW(S1),"RF","") -> 
S46: =IF('Guts-2'!$N$16>=ROW(S2),"RF","") -> 
S47: =IF('Guts-2'!$N$16>=ROW(S3),"RF","") -> 
S48: =IF('Guts-2'!$N$10>=ROW(S1),"DH","") -> DH
S49: =IF('Guts-2'!$N$10>=ROW(S2),"DH","") -> 
S50: =IF('Guts-2'!$N$10>=ROW(S3),"DH","") -> 
S51: =IF('Guts-2'!$N$10>=ROW(S4),"DH","") -> 
S52: =IF('Guts-2'!$N$10>=ROW(S5),"DH","") -> 
S53: =IF('Guts-2'!$N$10>=ROW(S6),"DH","") -> 
S54: =IF('Guts-2'!$N$11>=ROW(S1),"SP","") -> SP
S55: =IF('Guts-2'!$N$11>=ROW(S2),"SP","") -> SP
S56: =IF('Guts-2'!$N$11>=ROW(S3),"SP","") -> SP
S57: =IF('Guts-2'!$N$11>=ROW(S4),"SP","") -> SP
S58: =IF('Guts-2'!$N$11>=ROW(S5),"SP","") -> 
S59: =IF('Guts-2'!$N$11>=ROW(S6),"SP","") -> 
S60: =IF('Guts-2'!$N$11>=ROW(S7),"SP","") -> 
S61: =IF('Guts-2'!$N$11>=ROW(S8),"SP","") -> 
S62: =IF('Guts-2'!$N$11>=ROW(S9),"SP","") -> 
S63: =IF('Guts-2'!$N$11>=ROW(S10),"SP","") -> 
S64: =IF('Guts-2'!$N$12>=ROW(S1),"RP","") -> RP
S65: =IF('Guts-2'!$N$12>=ROW(S2),"RP","") -> RP
S66: =IF('Guts-2'!$N$12>=ROW(S3),"RP","") -> 
S67: =IF('Guts-2'!$N$12>=ROW(S4),"RP","") -> 
S68: =IF('Guts-2'!$N$12>=ROW(S5),"RP","") -> 
S69: =IF('Guts-2'!$N$12>=ROW(S6),"RP","") -> 
S70: =IF('Guts-2'!$N$12>=ROW(S7),"RP","") -> 
S71: =IF('Guts-2'!$N$12>=ROW(S8),"RP","") -> 
S72: =IF('Guts-2'!$N$12>=ROW(S9),"RP","") -> 
S73: =IF('Guts-2'!$N$12>=ROW(S10),"RP","") -> 
S74: =IF('Guts-2'!$N$13>=ROW(S1),"P","") -> P
S75: =IF('Guts-2'!$N$13>=ROW(S2),"P","") -> P
S76: =IF('Guts-2'!$N$13>=ROW(S3),"P","") -> 
S77: =IF('Guts-2'!$N$13>=ROW(S4),"P","") -> 
S78: =IF('Guts-2'!$N$13>=ROW(S5),"P","") -> 
S79: =IF('Guts-2'!$N$13>=ROW(S6),"P","") -> 
S80: =IF('Guts-2'!$N$13>=ROW(S7),"P","") -> 
S81: =IF('Guts-2'!$N$13>=ROW(S8),"P","") -> 
S82: =IF('Guts-2'!$N$13>=ROW(S9),"P","") -> 
S83: =IF('Guts-2'!$N$13>=ROW(S10),"P","") -> 
S84: =IF('Guts-2'!$N$13>=ROW(S11),"P","") -> 
S85: =IF('Guts-2'!$N$13>=ROW(S12),"P","") -> 
S86: =IF('Guts-2'!$N$13>=ROW(S13),"P","") -> 
S87: =IF('Guts-2'!$N$13>=ROW(S14),"P","") -> 
S88: =IF('Guts-2'!$N$13>=ROW(S15),"P","") -> 

Sheet Guts-2 (hidden)
B1: RotoChamp (Projected Value) | C1: CBS - S. White | D1: CAIRO | E1: Teams | F1: Starters | G1: CAIRO | H1: =IF(OR(Settings!$P$34<>100,Settings!$O$34<>100),0,Settings!O25) -> 20 | I1: =IF(OR(Settings!$P$34<>100,Settings!$O$34<>100),0,Settings!P25) -> 0 | J1: LAA | K1: =IF(OR(Settings!$R$5="AL-Only",Settings!$R$5="Mixed (Standard)"),TRUE,IF(Settings!$R$5="Specific Teams Only",IF(Settings!T6="Y",TRUE,FALSE),FALSE)) -> TRUE | L1: C | M1: # of Teams | N1: =Settings!K5 -> 12 | P1: =IFERROR(INDEX($O$1:$O$19,SMALL(IF($O$1:$O$19<>"",ROW($O$1:$O$19)),ROW(O1))),"") -> C
A2: =IF($N$1>=ROW(A1),Settings!K12,#N/A) -> Team 1 | B2: CBS (Projected Value) | C2: ESPN - T. Cockcroft | D2: Clay Davenport | E2: 6 | F2: 0 | G2: Clay Davenport | H2: =IF(OR(Settings!$P$34<>100,Settings!$O$34<>100),0,Settings!O26) -> 10 | I2: =IF(OR(Settings!$P$34<>100,Settings!$O$34<>100),0,Settings!P26) -> 20 | J2: ARI | K2: =IF(OR(Settings!$R$5="NL-Only",Settings!$R$5="Mixed (Standard)"),TRUE,IF(Settings!$R$5="Specific Teams Only",IF(Settings!T7="Y",TRUE,FALSE),FALSE)) -> TRUE | L2: 1B | M2: C | N2: =Settings!G5 -> 1 | O2: =IF(N2>0,M2,"") -> C | P2: =IFERROR(INDEX($O$1:$O$19,SMALL(IF($O$1:$O$19<>"",ROW($O$1:$O$19)),ROW(O2))),"") -> 1B
A3: =IF($N$1>=ROW(A2),Settings!K13,#N/A) -> Team 2 | C3: Fake Teams | D3: Fangraphs - Depth Chart | E3: 7 | F3: 1 | G3: Fangraphs - Depth Chart | H3: =IF(OR(Settings!$P$34<>100,Settings!$O$34<>100),0,Settings!O27) -> 0 | I3: =IF(OR(Settings!$P$34<>100,Settings!$O$34<>100),0,Settings!P27) -> 0 | J3: ATL | K3: =IF(OR(Settings!$R$5="NL-Only",Settings!$R$5="Mixed (Standard)"),TRUE,IF(Settings!$R$5="Specific Teams Only",IF(Settings!T8="Y",TRUE,FALSE),FALSE)) -> TRUE | L3: 2B | M3: 1B | N3: =Settings!G6 -> 1 | O3: =IF(N3>0,M3,"") -> 1B | P3: =IFERROR(INDEX($O$1:$O$19,SMALL(IF($O$1:$O$19<>"",ROW($O$1:$O$19)),ROW(O3))),"") -> 2B
A4: =IF($N$1>=ROW(A3),Settings!K14,#N/A) -> Team 3 | B4: ESPN (Avg Mock Draft Value) | D4: Fangraphs - Fan Projections | E4: 8 | F4: 2 | G4: Fangraphs - Fan Projections | H4: =IF(OR(Settings!$P$34<>100,Settings!$O$34<>100),0,Settings!O28) -> 20 | I4: =IF(OR(Settings!$P$34<>100,Settings!$O$34<>100),0,Settings!P28) -> 20 | J4: BAL | K4: =IF(OR(Settings!$R$5="AL-Only",Settings!$R$5="Mixed (Standard)"),TRUE,IF(Settings!$R$5="Specific Teams Only",IF(Settings!T9="Y",TRUE,FALSE),FALSE)) -> TRUE | L4: 3B | M4: 2B | N4: =Settings!G7 -> 1 | O4: 2B | P4: =IFERROR(INDEX($O$1:$O$19,SMALL(IF($O$1:$O$19<>"",ROW($O$1:$O$19)),ROW(O4))),"") -> 3B
A5: =IF($N$1>=ROW(A4),Settings!K15,#N/A) -> Team 4 | B5: Yahoo (Projected Value) | C5: Mr. Cheatsheet | D5: Mr. Cheatsheet's Special Blend | E5: 9 | F5: 3 | G5: MORPS | J5: BOS | K5: =IF(OR(Settings!$R$5="AL-Only",Settings!$R$5="Mixed (Standard)"),TRUE,IF(Settings!$R$5="Specific Teams Only",IF(Settings!T10="Y",TRUE,FALSE),FALSE)) -> TRUE | L5: SS | M5: 3B | N5: =Settings!G8 -> 1 | O5: 3B | P5: =IFERROR(INDEX($O$1:$O$19,SMALL(IF($O$1:$O$19<>"",ROW($O$1:$O$19)),ROW(O5))),"") -> SS
A6: =IF($N$1>=ROW(A5),Settings!K16,#N/A) -> Team 5 | B6: Yahoo (Avg Mock Draft Value) | C6: RotoChamp | D6: Special Blend w/ Steamer Replacements | E6: 10 | F6: 4 | G6: MCSB | J6: CHC | K6: =IF(OR(Settings!$R$5="NL-Only",Settings!$R$5="Mixed (Standard)"),TRUE,IF(Settings!$R$5="Specific Teams Only",IF(Settings!T11="Y",TRUE,FALSE),FALSE)) -> TRUE | L6: OF | M6: SS | N6: =Settings!G9 -> 1 | O6: SS | P6: =IFERROR(INDEX($O$1:$O$19,SMALL(IF($O$1:$O$19<>"",ROW($O$1:$O$19)),ROW(O6))),"") -> CI
A7: =IF($N$1>=ROW(A6),Settings!K17,#N/A) -> Team 6 | B7: FantasyPros (Avg Expert Value) | C7: Yahoo Staff | D7: Steamer | E7: 11 | F7: 5 | G7: Steamer | H7: =IF(OR(Settings!$P$34<>100,Settings!$O$34<>100),0,Settings!O29) -> 30 | I7: =IF(OR(Settings!$P$34<>100,Settings!$O$34<>100),0,Settings!P29) -> 40 | J7: CHW | K7: =IF(OR(Settings!$R$5="AL-Only",Settings!$R$5="Mixed (Standard)"),TRUE,IF(Settings!$R$5="Specific Teams Only",IF(Settings!T12="Y",TRUE,FALSE),FALSE)) -> TRUE | L7: SP | M7: CI | N7: =Settings!G12 -> 1 | O7: CI | P7: =IFERROR(INDEX($O$1:$O$19,SMALL(IF($O$1:$O$19<>"",ROW($O$1:$O$19)),ROW(O7))),"") -> MI
A8: =IF($N$1>=ROW(A7),Settings!K18,#N/A) -> Team 7 | B8: FantasyPros (Projected Value) | C8: FantasyPros Avg | D8: Steamer - 600 PA | E8: 12 | F8: 6 | G8: Steamer - 600 | H8: =IF(OR(Settings!$P$34<>100,Settings!$O$34<>100),0,Settings!O30) -> 0 | I8: =IF(OR(Settings!$P$34<>100,Settings!$O$34<>100),0,Settings!P30) -> 0 | J8: CIN | K8: =IF(OR(Settings!$R$5="NL-Only",Settings!$R$5="Mixed (Standard)"),TRUE,IF(Settings!$R$5="Specific Teams Only",IF(Settings!T13="Y",TRUE,FALSE),FALSE)) -> TRUE | L8: RP | M8: MI | N8: =Settings!G13 -> 1 | O8: MI | P8: =IFERROR(INDEX($O$1:$O$19,SMALL(IF($O$1:$O$19<>"",ROW($O$1:$O$19)),ROW(O8))),"") -> OF
A9: =IF($N$1>=ROW(A8),Settings!K19,#N/A) -> Team 8 | B9: Average of All Options | C9: =IFERROR(INDEX($C$1:$C$8,SMALL(IF($C$1:$C$8<>"",ROW($C$1:$C$8)),ROW(C1))),"") -> CBS - S. White | D9: ZiPS | E9: 13 | F9: 7 | G9: ZiPS | H9: =IF(OR(Settings!$P$34<>100,Settings!$O$34<>100),0,Settings!O31) -> 20 | I9: =IF(OR(Settings!$P$34<>100,Settings!$O$34<>100),0,Settings!P31) -> 20 | J9: CLE | K9: =IF(OR(Settings!$R$5="AL-Only",Settings!$R$5="Mixed (Standard)"),TRUE,IF(Settings!$R$5="Specific Teams Only",IF(Settings!T14="Y",TRUE,FALSE),FALSE)) -> TRUE | L9: DH | M9: OF | N9: =Settings!G10 -> 5 | O9: OF | P9: =IFERROR(INDEX($O$1:$O$19,SMALL(IF($O$1:$O$19<>"",ROW($O$1:$O$19)),ROW(O9))),"") -> DH
A10: =IF($N$1>=ROW(A9),Settings!K20,#N/A) -> Team 9 | B10: Imported Values | C10: =IFERROR(INDEX($C$1:$C$8,SMALL(IF($C$1:$C$8<>"",ROW($C$1:$C$8)),ROW(C2))),"") -> ESPN - T. Cockcroft | D10: Import Your Own Projections | E10: 14 | F10: 8 | J10: COL | K10: =IF(OR(Settings!$R$5="NL-Only",Settings!$R$5="Mixed (Standard)"),TRUE,IF(Settings!$R$5="Specific Teams Only",IF(Settings!T15="Y",TRUE,FALSE),FALSE)) -> TRUE | M10: DH | N10: =Settings!G11 -> 1 | O10: DH | P10: =IFERROR(INDEX($O$1:$O$19,SMALL(IF($O$1:$O$19<>"",ROW($O$1:$O$19)),ROW(O10))),"") -> SP
A11: =IF($N$1>=ROW(A10),Settings!K21,#N/A) -> Team 10 | B11: =IFERROR(INDEX($B$1:$B$10,SMALL(IF($B$1:$B$10<>"",ROW($B$1:$B$10)),ROW(B1))),"") -> RotoChamp (Projected Value) | C11: =IFERROR(INDEX($C$1:$C$8,SMALL(IF($C$1:$C$8<>"",ROW($C$1:$C$8)),ROW(C3))),"") -> Fake Teams | D11: Your Own Custom Combination | E11: 15 | F11: 9 | J11: DET | K11: =IF(OR(Settings!$R$5="AL-Only",Settings!$R$5="Mixed (Standard)"),TRUE,IF(Settings!$R$5="Specific Teams Only",IF(Settings!T16="Y",TRUE,FALSE),FALSE)) -> TRUE | M11: SP | N11: =Settings!G19 -> 4 | O11: SP | P11: =IFERROR(INDEX($O$1:$O$19,SMALL(IF($O$1:$O$19<>"",ROW($O$1:$O$19)),ROW(O11))),"") -> RP
A12: =IF($N$1>=ROW(A11),Settings!K22,#N/A) -> Team 11 | B12: =IFERROR(INDEX($B$1:$B$10,SMALL(IF($B$1:$B$10<>"",ROW($B$1:$B$10)),ROW(B2))),"") -> CBS (Projected Value) | C12: =IFERROR(INDEX($C$1:$C$8,SMALL(IF($C$1:$C$8<>"",ROW($C$1:$C$8)),ROW(C4))),"") -> Mr. Cheatsheet | E12: 16 | F12: 10 | J12: HOU | K12: =IF(OR(Settings!$R$5="AL-Only",Settings!$R$5="Mixed (Standard)"),TRUE,IF(Settings!$R$5="Specific Teams Only",IF(Settings!T17="Y",TRUE,FALSE),FALSE)) -> TRUE | M12: RP | N12: =Settings!G20 -> 2 | O12: RP | P12: =IFERROR(INDEX($O$1:$O$19,SMALL(IF($O$1:$O$19<>"",ROW($O$1:$O$19)),ROW(O12))),"") -> P
A13: =IF($N$1>=ROW(A12),Settings!K23,#N/A) -> Team 12 | B13: =IFERROR(INDEX($B$1:$B$10,SMALL(IF($B$1:$B$10<>"",ROW($B$1:$B$10)),ROW(B3))),"") -> ESPN (Avg Mock Draft Value) | C13: =IFERROR(INDEX($C$1:$C$8,SMALL(IF($C$1:$C$8<>"",ROW($C$1:$C$8)),ROW(C5))),"") -> RotoChamp | E13: 17 | F13: 11 | J13: KC | K13: =IF(OR(Settings!$R$5="AL-Only",Settings!$R$5="Mixed (Standard)"),TRUE,IF(Settings!$R$5="Specific Teams Only",IF(Settings!T18="Y",TRUE,FALSE),FALSE)) -> TRUE | M13: P | N13: =Settings!G21 -> 2 | O13: P | P13: =IFERROR(INDEX($O$1:$O$19,SMALL(IF($O$1:$O$19<>"",ROW($O$1:$O$19)),ROW(O13))),"") -> Bench
A14: =IF($N$1>=ROW(A13),Settings!K24,#N/A) ->  | B14: =IFERROR(INDEX($B$1:$B$10,SMALL(IF($B$1:$B$10<>"",ROW($B$1:$B$10)),ROW(B4))),"") -> Yahoo (Projected Value) | C14: =IFERROR(INDEX($C$1:$C$8,SMALL(IF($C$1:$C$8<>"",ROW($C$1:$C$8)),ROW(C6))),"") -> Yahoo Staff | D14: =IFERROR(INDEX($D$1:$D$12,SMALL(IF($D$1:$D$12<>"",ROW($D$1:$D$12)),ROW(D1))),"") -> CAIRO | E14: 18 | F14: 12 | J14: LAD | K14: =IF(OR(Settings!$R$5="NL-Only",Settings!$R$5="Mixed (Standard)"),TRUE,IF(Settings!$R$5="Specific Teams Only",IF(Settings!T19="Y",TRUE,FALSE),FALSE)) -> TRUE | M14: LF | N14: =Settings!G15 -> 0 | P14: =IFERROR(INDEX($O$1:$O$19,SMALL(IF($O$1:$O$19<>"",ROW($O$1:$O$19)),ROW(O14))),"") -> 
A15: =IF($N$1>=ROW(A14),Settings!K25,#N/A) ->  | B15: =IFERROR(INDEX($B$1:$B$10,SMALL(IF($B$1:$B$10<>"",ROW($B$1:$B$10)),ROW(B5))),"") -> Yahoo (Avg Mock Draft Value) | C15: =IFERROR(INDEX($C$1:$C$8,SMALL(IF($C$1:$C$8<>"",ROW($C$1:$C$8)),ROW(C7))),"") -> FantasyPros Avg | D15: =IFERROR(INDEX($D$1:$D$12,SMALL(IF($D$1:$D$12<>"",ROW($D$1:$D$12)),ROW(D2))),"") -> Clay Davenport | E15: 19 | F15: 13 | J15: MIA | K15: =IF(OR(Settings!$R$5="NL-Only",Settings!$R$5="Mixed (Standard)"),TRUE,IF(Settings!$R$5="Specific Teams Only",IF(Settings!T20="Y",TRUE,FALSE),FALSE)) -> TRUE | M15: CF | N15: =Settings!G16 -> 0 | P15: =IFERROR(INDEX($O$1:$O$19,SMALL(IF($O$1:$O$19<>"",ROW($O$1:$O$19)),ROW(O15))),"") -> 
A16: =IF($N$1>=ROW(A15),Settings!K26,#N/A) ->  | B16: =IFERROR(INDEX($B$1:$B$10,SMALL(IF($B$1:$B$10<>"",ROW($B$1:$B$10)),ROW(B6))),"") -> FantasyPros (Avg Expert Value) | C16: =IFERROR(INDEX($C$1:$C$8,SMALL(IF($C$1:$C$8<>"",ROW($C$1:$C$8)),ROW(C8))),"") ->  | D16: =IFERROR(INDEX($D$1:$D$12,SMALL(IF($D$1:$D$12<>"",ROW($D$1:$D$12)),ROW(D3))),"") -> Fangraphs - Depth Chart | E16: 20 | F16: 14 | J16: MIL | K16: =IF(OR(Settings!$R$5="NL-Only",Settings!$R$5="Mixed (Standard)"),TRUE,IF(Settings!$R$5="Specific Teams Only",IF(Settings!T21="Y",TRUE,FALSE),FALSE)) -> TRUE | M16: RF | N16: =Settings!G17 -> 0 | P16: =IFERROR(INDEX($O$1:$O$19,SMALL(IF($O$1:$O$19<>"",ROW($O$1:$O$19)),ROW(O16))),"") -> 
A17: =IF($N$1>=ROW(A16),Settings!K27,#N/A) ->  | B17: =IFERROR(INDEX($B$1:$B$10,SMALL(IF($B$1:$B$10<>"",ROW($B$1:$B$10)),ROW(B7))),"") -> FantasyPros (Projected Value) | D17: =IFERROR(INDEX($D$1:$D$12,SMALL(IF($D$1:$D$12<>"",ROW($D$1:$D$12)),ROW(D4))),"") -> Fangraphs - Fan Projections | E17: 21 | F17: 15 | J17: MIN | K17: =IF(OR(Settings!$R$5="AL-Only",Settings!$R$5="Mixed (Standard)"),TRUE,IF(Settings!$R$5="Specific Teams Only",IF(Settings!T22="Y",TRUE,FALSE),FALSE)) -> TRUE | M17: IF | N17: =Settings!G14 -> 0 | P17: =IFERROR(INDEX($O$1:$O$19,SMALL(IF($O$1:$O$19<>"",ROW($O$1:$O$19)),ROW(O17))),"") -> 
A18: =IF($N$1>=ROW(A17),Settings!K28,#N/A) ->  | B18: =IFERROR(INDEX($B$1:$B$10,SMALL(IF($B$1:$B$10<>"",ROW($B$1:$B$10)),ROW(B8))),"") -> Average of All Options | D18: =IFERROR(INDEX($D$1:$D$12,SMALL(IF($D$1:$D$12<>"",ROW($D$1:$D$12)),ROW(D5))),"") -> Mr. Cheatsheet's Special Blend | E18: 22 | F18: 16 | J18: NYM | K18: =IF(OR(Settings!$R$5="NL-Only",Settings!$R$5="Mixed (Standard)"),TRUE,IF(Settings!$R$5="Specific Teams Only",IF(Settings!T23="Y",TRUE,FALSE),FALSE)) -> TRUE | O18: Bench | P18: =IFERROR(INDEX($O$1:$O$19,SMALL(IF($O$1:$O$19<>"",ROW($O$1:$O$19)),ROW(O18))),"") -> 
A19: =IF($N$1>=ROW(A18),Settings!K29,#N/A) ->  | B19: =IFERROR(INDEX($B$1:$B$10,SMALL(IF($B$1:$B$10<>"",ROW($B$1:$B$10)),ROW(B9))),"") -> Imported Values | D19: =IFERROR(INDEX($D$1:$D$12,SMALL(IF($D$1:$D$12<>"",ROW($D$1:$D$12)),ROW(D6))),"") -> Special Blend w/ Steamer Replacements | E19: 23 | F19: 17 | J19: NYY | K19: =IF(OR(Settings!$R$5="AL-Only",Settings!$R$5="Mixed (Standard)"),TRUE,IF(Settings!$R$5="Specific Teams Only",IF(Settings!T24="Y",TRUE,FALSE),FALSE)) -> TRUE
A20: =IF($N$1>=ROW(A19),Settings!K30,#N/A) ->  | B20: =IFERROR(INDEX($B$1:$B$10,SMALL(IF($B$1:$B$10<>"",ROW($B$1:$B$10)),ROW(B10))),"") ->  | D20: =IFERROR(INDEX($D$1:$D$12,SMALL(IF($D$1:$D$12<>"",ROW($D$1:$D$12)),ROW(D7))),"") -> Steamer | E20: 24 | F20: 18 | J20: OAK | K20: =IF(OR(Settings!$R$5="AL-Only",Settings!$R$5="Mixed (Standard)"),TRUE,IF(Settings!$R$5="Specific Teams Only",IF(Settings!T25="Y",TRUE,FALSE),FALSE)) -> TRUE
A21: =IF($N$1>=ROW(A20),Settings!K31,#N/A) ->  | B21: =IFERROR(INDEX($B$1:$B$10,SMALL(IF($B$1:$B$10<>"",ROW($B$1:$B$10)),ROW(B11))),"") ->  | D21: =IFERROR(INDEX($D$1:$D$12,SMALL(IF($D$1:$D$12<>"",ROW($D$1:$D$12)),ROW(D8))),"") -> Steamer - 600 PA | F21: 19 | J21: PHI | K21: =IF(OR(Settings!$R$5="NL-Only",Settings!$R$5="Mixed (Standard)"),TRUE,IF(Settings!$R$5="Specific Teams Only",IF(Settings!T26="Y",TRUE,FALSE),FALSE)) -> TRUE
A22: =IF($N$1>=ROW(A21),Settings!K32,#N/A) ->  | D22: =IFERROR(INDEX($D$1:$D$12,SMALL(IF($D$1:$D$12<>"",ROW($D$1:$D$12)),ROW(D9))),"") -> ZiPS | F22: 20 | J22: PIT | K22: =IF(OR(Settings!$R$5="NL-Only",Settings!$R$5="Mixed (Standard)"),TRUE,IF(Settings!$R$5="Specific Teams Only",IF(Settings!T27="Y",TRUE,FALSE),FALSE)) -> TRUE
A23: =IF($N$1>=ROW(A22),Settings!K33,#N/A) ->  | D23: =IFERROR(INDEX($D$1:$D$12,SMALL(IF($D$1:$D$12<>"",ROW($D$1:$D$12)),ROW(D10))),"") -> Import Your Own Projections | F23: 21 | J23: SD | K23: =IF(OR(Settings!$R$5="NL-Only",Settings!$R$5="Mixed (Standard)"),TRUE,IF(Settings!$R$5="Specific Teams Only",IF(Settings!T28="Y",TRUE,FALSE),FALSE)) -> TRUE
A24: =IF($N$1>=ROW(A23),Settings!K34,#N/A) ->  | D24: =IFERROR(INDEX($D$1:$D$12,SMALL(IF($D$1:$D$12<>"",ROW($D$1:$D$12)),ROW(D11))),"") -> Your Own Custom Combination | F24: 22 | J24: SEA | K24: =IF(OR(Settings!$R$5="AL-Only",Settings!$R$5="Mixed (Standard)"),TRUE,IF(Settings!$R$5="Specific Teams Only",IF(Settings!T29="Y",TRUE,FALSE),FALSE)) -> TRUE
A25: =IF($N$1>=ROW(A24),Settings!K35,#N/A) ->  | D25: =IFERROR(INDEX($D$1:$D$12,SMALL(IF($D$1:$D$12<>"",ROW($D$1:$D$12)),ROW(D12))),"") ->  | F25: 23 | J25: SF | K25: =IF(OR(Settings!$R$5="NL-Only",Settings!$R$5="Mixed (Standard)"),TRUE,IF(Settings!$R$5="Specific Teams Only",IF(Settings!T30="Y",TRUE,FALSE),FALSE)) -> TRUE
A26: From Settings | B26: =Settings!O15 -> Average of All Options | C26: Auction Vl: | D26: =MATCH(B26,B1:B10,0) -> 9 | F26: 24 | J26: STL | K26: =IF(OR(Settings!$R$5="NL-Only",Settings!$R$5="Mixed (Standard)"),TRUE,IF(Settings!$R$5="Specific Teams Only",IF(Settings!T31="Y",TRUE,FALSE),FALSE)) -> TRUE
A27: For a List | B27: =Settings!O19 -> FantasyPros Avg | C27: Rankings: | D27: =IF(B27="RotoChamp",1,IF(B27="Yahoo Staff",2,IF(B27="Fox Sports Staff",3,IF(B27="ESPN - T. Cockcroft",4,IF(B27="Fake Teams",5,IF(B27="CBS - S. White",6,IF(B27="FantasyPros Avg",8,IF(B27="Mr. Cheatsheet",9)))))))) -> 8 | J27: TB | K27: =IF(OR(Settings!$R$5="AL-Only",Settings!$R$5="Mixed (Standard)"),TRUE,IF(Settings!$R$5="Specific Teams Only",IF(Settings!T32="Y",TRUE,FALSE),FALSE)) -> TRUE
A28: Controlled by Formulas | B28: =Settings!O17 -> Special Blend w/ Steamer Replacements | C28: Projections: | D28: =IF(B28="CAIRO",1,IF(B28="Steamer",2,IF(B28="Steamer - 600 PA",7,IF(B28="ZiPS",4,IF(B28="Fangraphs - Depth Chart",5,IF(B28="Your Own Custom Combination",8,IF(B28="Mr. Cheatsheet's Special Blend",9,IF(B28="Special Blend w/ Steamer Replacements",10,IF(B28="Fangraphs - Fan Projections",3,IF(B28="Clay Davenport",6,IF(B28="Import Your Own Projections",11,0))))))))))) -> 10 | J28: TEX | K28: =IF(OR(Settings!$R$5="AL-Only",Settings!$R$5="Mixed (Standard)"),TRUE,IF(Settings!$R$5="Specific Teams Only",IF(Settings!T33="Y",TRUE,FALSE),FALSE)) -> TRUE
J29: TOR | K29: =IF(OR(Settings!$R$5="AL-Only",Settings!$R$5="Mixed (Standard)"),TRUE,IF(Settings!$R$5="Specific Teams Only",IF(Settings!T34="Y",TRUE,FALSE),FALSE)) -> TRUE
J30: WAS | K30: =IF(OR(Settings!$R$5="NL-Only",Settings!$R$5="Mixed (Standard)"),TRUE,IF(Settings!$R$5="Specific Teams Only",IF(Settings!T35="Y",TRUE,FALSE),FALSE)) -> TRUE

Sheet Projection-P (hidden)
C1: 10 | D1: 11 | E1: 18 | F1: 19 | G1: 23 | H1: 25 | I1: 21 | J1: 17 | K1: 31 | O1: 13 | P1: 12 | Q1: 22 | R1: 3 | S1: 4 | T1: 9 | U1: 10 | V1: 14 | W1: 13 | X1: 11 | Y1: 8 | Z1: 5 | AA1: 15 | AB1: 16 | AD1: 6 | AE1: 7 | AF1: 12 | AG1: 3 | AH1: 4 | AI1: 9 | AJ1: 10 | AK1: 14 | AL1: 13 | AM1: 11 | AN1: 8 | AO1: 5 | AP1: 15 | AQ1: 16 | AS1: 6 | AT1: 7 | AU1: 12 | AV1: 3 | AW1: 4 | AX1: 8 | AY1: 9 | AZ1: 13 | BA1: 12 | BB1: 10 | BD1: 5 | BE1: 14 | BF1: 15 | BH1: 6 | BK1: 3 | BL1: 4 | BM1: 10 | BN1: 11 | BO1: 15 | BP1: 14 | BQ1: 12 | BR1: 5 | BS1: 7 | BT1: 16 | BU1: 17 | BW1: 8 | BX1: 9 | BY1: 13 | BZ1: 8 | CA1: 9 | CB1: 13 | CC1: 14 | CD1: 18 | CE1: 19 | CF1: 16 | CG1: 10 | CH1: 25 | CI1: 23 | CK1: 42 | CL1: 12 | CM1: 11 | CN1: 17 | CO1: 3 | CP1: 4 | CQ1: 9 | CR1: 10 | CS1: 14 | CT1: 13 | CU1: 11 | CV1: 8 | CW1: 5 | CX1: 15 | CY1: 16 | DA1: 6 | DD1: Combined | EH1: SpecialBlend.With.Replacement | EW1: *IMPORT* | FO1: CAIRO | FP1: CAIRO | FQ1: CAIRO | FR1: CAIRO | FS1: CBS | FT1: CBS | FU1: CBS | FV1: CBS | FW1: FGDC
A2: PLAYERNAME | B2: PlayerID | C2: CAIRO.W | D2: CAIRO.L | E2: CAIRO.IP | F2: CAIRO.H | G2: CAIRO.BB | H2: CAIRO.K | I2: CAIRO.ER | J2: CAIRO.S | K2: CAIRO.ERA | L2: CAIRO.WHIP | M2: CAIRO.K/9 | N2: CAIRO.xQS | O2: CAIRO.GS | P2: CAIRO.G | Q2: CAIRO.HRA | R2: Steamer.W | S2: Steamer.L | T2: Steamer.IP | U2: Steamer.H | V2: Steamer.BB | W2: Steamer.K | X2: Steamer.ER | Y2: Steamer.S | Z2: Steamer.ERA | AA2: Steamer.WHIP | AB2: Steamer.K/9 | AC2: Steamer.xQS | AD2: Steamer.GS | AE2: Steamer.G | AF2: Steamer.HRA | AG2: Fans.W | AH2: Fans.L | AI2: Fans.IP | AJ2: Fans.H | AK2: Fans.BB | AL2: Fans.K | AM2: Fans.ER | AN2: Fans.S | AO2: Fans.ERA | AP2: Fans.WHIP | AQ2: Fans.K/9 | AR2: Fans.xQS | AS2: Fans.GS | AT2: Fans.G | AU2: Fans.HRA | AV2: ZiPS.W | AW2: ZiPS.L | AX2: ZiPS.IP | AY2: ZiPS.H | AZ2: ZiPS.BB | BA2: ZiPS.K | BB2: ZiPS.ER | BC2: ZiPS.S | BD2: ZiPS.ERA | BE2: ZiPS.WHIP | BF2: ZiPS.K/9 | BG2: ZiPS.xQS | BH2: ZiPS.GS | BI2: ZiPS.G | BJ2: ZiPS.HRA | BK2: DepthCharts.W | BL2: DepthCharts.L | BM2: DepthCharts.IP | BN2: DepthCharts.H | BO2: DepthCharts.BB | BP2: DepthCharts.K | BQ2: DepthCharts.ER | BR2: DepthCharts.S | BS2: DepthCharts.ERA | BT2: DepthCharts.WHIP | BU2: DepthCharts.K/9 | BV2: DepthCharts.xQS | BW2: DepthCharts.GS | BX2: DepthCharts.G | BY2: DepthCharts.HRA | BZ2: Clay.W | CA2: Clay.L | CB2: Clay.IP | CC2: Clay.H | CD2: Clay.BB | CE2: Clay.K | CF2: Clay.ER | CG2: Clay.S | CH2: Clay.ERA | CI2: Clay.WHIP | CJ2: Clay.K/9 | CK2: Clay.QS | CL2: Clay.GS | CM2: Clay.G | CN2: Clay.HRA | CO2: Steamer600.W | CP2: Steamer600.L | CQ2: Steamer600.IP | CR2: Steamer600.H | CS2: Steamer600.BB | CT2: Steamer600.K | CU2: Steamer600.ER | CV2: Steamer600.S | CW2: Steamer600.ERA | CX2: Steamer600.WHIP | CY2: Steamer600.K/9 | CZ2: Steamer600.xQS | DA2: Steamer600.GS | DB2: Steamer600.G | DC2: Steamer600.HRA | DD2: W | DE2: L | DF2: IP | DG2: H | DH2: BB | DI2: K | DJ2: ER | DK2: S | DL2: ERA | DM2: WHIP | DN2: K/9 | DO2: xQS | DP2: GS | DQ2: G | DR2: HRA | DS2: SpecialBlend.W | DT2: SpecialBlend.L | DU2: SpecialBlend.IP | DV2: SpecialBlend.H | DW2: SpecialBlend.BB | DX2: SpecialBlend.K | DY2: SpecialBlend.ER | DZ2: SpecialBlend.S | EA2: SpecialBlend.ERA | EB2: SpecialBlend.WHIP | EC2: SpecialBlend.K/9 | ED2: SpecialBlend.xQS | EE2: SpecialBlend.GS | EF2: SpecialBlend.G | EG2: SpecialBlend.HRA | EH2: W | EI2: L | EJ2: IP | EK2: H | EL2: BB | EM2: K | EN2: ER | EO2: S | EP2: ERA | EQ2: WHIP | ER2: K/9 | ES2: xQS | ET2: GS | EU2: G | EV2: HRA | EW2: W | EX2: L | EY2: IP | EZ2: H | FA2: BB | FB2: K | FC2: ER | FD2: S | FE2: ERA | FF2: WHIP | FG2: K/9 | FH2: xQS | FI2: GS | FJ2: G | FK2: HRA | FL2: CG | FM2: SO | FN2: HLD | FO2: BAA | FP2: CG/GS | FQ2: Shutout/GS | FR2: Game Finished per G | FS2: Shutout/GS | FT2: CG/GS | FU2: Blown Sv | FV2: Hold | FW2: Hold
A3: Cody Allen | B3: allenco01 | C3: 3.206372989 | D3: 4.564646236 | E3: 68.19047619 | F3: 49.12171612 | G3: 25.77190531 | H3: 87.54338301 | I3: 21.74919751 | J3: 27.62446539 | K3: 2.87052956 | L3: 1.098300314 | M3: 11.55425935 | N3: 0 | O3: 0 | P3: 68.27767971 | Q3: 6.090217571 | R3: 4 | S3: 3 | T3: 65 | U3: 52 | V3: 25 | W3: 80 | X3: 24 | Y3: 18 | Z3: 3.26 | AA3: 1.19 | AB3: 11.01 | AC3: 0 | AD3: 0 | AE3: 65 | AF3: 7 | AG3: 3 | AH3: 4 | AI3: 66 | AJ3: 48 | AK3: 24 | AL3: 87 | AM3: 19 | AN3: 29 | AO3: 2.65 | AP3: 1.09 | AQ3: 11.86 | AR3: 0 | AS3: 0 | AT3: 69 | AU3: 6 | AV3: 5 | AW3: 3 | AX3: 67 | AY3: 52 | AZ3: 25 | BA3: 93 | BB3: 22 | BC3: 18.55384615 | BD3: 2.96 | BE3: 1.15 | BF3: 12.49 | BG3: 0 | BH3: 0 | BI3: 70 | BJ3: 8 | BK3: 4 | BL3: 3 | BM3: 65 | BN3: 51 | BO3: 25 | BP3: 85 | BQ3: 22 | BR3: 19 | BS3: 3.11 | BT3: 1.17 | BU3: 11.75 | BV3: 0 | BW3: 0 | BX3: 65 | BY3: 7 | BZ3: 3 | CA3: 2 | CB3: 70 | CC3: 59 | CD3: 29 | CE3: 85 | CF3: 28 | CG3: 30 | CH3: 3.6 | CI3: 1.25 | CJ3: 10.92857143 | CK3: 0 | CL3: 0 | CM3: 72 | CN3: 9 | CO3: 4 | CP3: 3 | CQ3: 65 | CR3: 50 | CS3: 25 | CT3: 79 | CU3: 23 | CV3: 18 | CW3: 3.2 | CX3: 1.15 | CY3: 10.99 | CZ3: 0 | DA3: 0 | DB3: 65 | DC3: 7 | DD3: =(('Guts-2'!$I$1*0.01)*C3)+(('Guts-2'!$I$7*0.01)*R3)+(('Guts-2'!$I$3*0.01)*AG3)+(('Guts-2'!$I$9*0.01)*AV3)+(('Guts-2'!$I$4*0.01)*BK3)+(('Guts-2'!$I$2*0.01)*BZ3)+(('Guts-2'!$I$8*0.01)*CO3) -> 4 | DE3: =(('Guts-2'!$I$1*0.01)*D3)+(('Guts-2'!$I$7*0.01)*S3)+(('Guts-2'!$I$3*0.01)*AH3)+(('Guts-2'!$I$9*0.01)*AW3)+(('Guts-2'!$I$4*0.01)*BL3)+(('Guts-2'!$I$2*0.01)*CA3)+(('Guts-2'!$I$8*0.01)*CP3) -> 2.8 | DF3: =(('Guts-2'!$I$1*0.01)*E3)+(('Guts-2'!$I$7*0.01)*T3)+(('Guts-2'!$I$3*0.01)*AI3)+(('Guts-2'!$I$9*0.01)*AX3)+(('Guts-2'!$I$4*0.01)*BM3)+(('Guts-2'!$I$2*0.01)*CB3)+(('Guts-2'!$I$8*0.01)*CQ3) -> 66.4 | DG3: =(('Guts-2'!$I$1*0.01)*F3)+(('Guts-2'!$I$7*0.01)*U3)+(('Guts-2'!$I$3*0.01)*AJ3)+(('Guts-2'!$I$9*0.01)*AY3)+(('Guts-2'!$I$4*0.01)*BN3)+(('Guts-2'!$I$2*0.01)*CC3)+(('Guts-2'!$I$8*0.01)*CR3) -> 53.2 | DH3: =(('Guts-2'!$I$1*0.01)*G3)+(('Guts-2'!$I$7*0.01)*V3)+(('Guts-2'!$I$3*0.01)*AK3)+(('Guts-2'!$I$9*0.01)*AZ3)+(('Guts-2'!$I$4*0.01)*BO3)+(('Guts-2'!$I$2*0.01)*CD3)+(('Guts-2'!$I$8*0.01)*CS3) -> 25.8 | DI3: =(('Guts-2'!$I$1*0.01)*H3)+(('Guts-2'!$I$7*0.01)*W3)+(('Guts-2'!$I$3*0.01)*AL3)+(('Guts-2'!$I$9*0.01)*BA3)+(('Guts-2'!$I$4*0.01)*BP3)+(('Guts-2'!$I$2*0.01)*CE3)+(('Guts-2'!$I$8*0.01)*CT3) -> 84.6 | DJ3: =(('Guts-2'!$I$1*0.01)*I3)+(('Guts-2'!$I$7*0.01)*X3)+(('Guts-2'!$I$3*0.01)*AM3)+(('Guts-2'!$I$9*0.01)*BB3)+(('Guts-2'!$I$4*0.01)*BQ3)+(('Guts-2'!$I$2*0.01)*CF3)+(('Guts-2'!$I$8*0.01)*CU3) -> 24 | DK3: =(('Guts-2'!$I$1*0.01)*J3)+(('Guts-2'!$I$7*0.01)*Y3)+(('Guts-2'!$I$3*0.01)*AN3)+(('Guts-2'!$I$9*0.01)*BC3)+(('Guts-2'!$I$4*0.01)*BR3)+(('Guts-2'!$I$2*0.01)*CG3)+(('Guts-2'!$I$8*0.01)*CV3) -> 20.71076923 | DL3: =(DJ3/DF3)*9 -> 3.253012048 | DM3: =(DG3+DH3)/DF3 -> 1.189759036 | DN3: =(DI3/DF3)*9 -> 11.46686747 | DO3: =(('Guts-2'!$I$1*0.01)*N3)+(('Guts-2'!$I$7*0.01)*AC3)+(('Guts-2'!$I$3*0.01)*AR3)+(('Guts-2'!$I$9*0.01)*BG3)+(('Guts-2'!$I$4*0.01)*BV3)+(('Guts-2'!$I$2*0.01)*CK3)+(('Guts-2'!$I$8*0.01)*CZ3) -> 0 | DP3: =(('Guts-2'!$I$1*0.01)*O3)+(('Guts-2'!$I$7*0.01)*AD3)+(('Guts-2'!$I$3*0.01)*AS3)+(('Guts-2'!$I$9*0.01)*BH3)+(('Guts-2'!$I$4*0.01)*BW3)+(('Guts-2'!$I$2*0.01)*CL3)+(('Guts-2'!$I$8*0.01)*DA3) -> 0 | DQ3: =(('Guts-2'!$I$1*0.01)*P3)+(('Guts-2'!$I$7*0.01)*AE3)+(('Guts-2'!$I$3*0.01)*AT3)+(('Guts-2'!$I$9*0.01)*BI3)+(('Guts-2'!$I$4*0.01)*BX3)+(('Guts-2'!$I$2*0.01)*CM3)+(('Guts-2'!$I$8*0.01)*DB3) -> 67.4 | DR3: =(('Guts-2'!$I$1*0.01)*Q3)+(('Guts-2'!$I$7*0.01)*AF3)+(('Guts-2'!$I$3*0.01)*AU3)+(('Guts-2'!$I$9*0.01)*BJ3)+(('Guts-2'!$I$4*0.01)*BY3)+(('Guts-2'!$I$2*0.01)*CN3)+(('Guts-2'!$I$8*0.01)*DC3) -> 7.6 | DS3: 3.70989011 | DT3: 3.606991963 | DU3: 66 | DV3: 51.27233887 | DW3: 25.06425339 | DX3: 84.86733099 | DY3: 22.22153846 | DZ3: 25 | EA3: 3.03020979 | EB3: 1.156615034 | EC3: 11.57281786 | ED3: 0 | EE3: 0 | EF3: 69 | EG3: 6.925621355 | EH3: =IFERROR(DS3,R3) -> 3.70989011 | EI3: =IFERROR(DT3,S3) -> 3.606991963 | EJ3: 66 | EK3: 51.27233887 | EL3: 25.06425339 | EM3: 84.86733099 | EN3: 22.22153846 | EO3: 25 | EP3: 3.03020979 | EQ3: 1.156615034 | ER3: 11.57281786 | ES3: 0 | ET3: 0 | EU3: 69 | EV3: 6.925621355 | EW3: =VLOOKUP($A3,'Import (Projections)'!$O$2:$X$8997,COLUMN(B1),FALSE) ->  | EX3: =VLOOKUP($A3,'Import (Projections)'!$O$2:$X$8997,COLUMN(C1),FALSE) ->  | EY3: =VLOOKUP($A3,'Import (Projections)'!$O$2:$X$8997,COLUMN(D1),FALSE) ->  | EZ3: =VLOOKUP($A3,'Import (Projections)'!$O$2:$X$8997,COLUMN(E1),FALSE) ->  | FA3: =VLOOKUP($A3,'Import (Projections)'!$O$2:$X$8997,COLUMN(F1),FALSE) ->  | FB3: =VLOOKUP($A3,'Import (Projections)'!$O$2:$X$8997,COLUMN(G1),FALSE) ->  | FC3: =VLOOKUP($A3,'Import (Projections)'!$O$2:$X$8997,COLUMN(H1),FALSE) ->  | FD3: =VLOOKUP($A3,'Import (Projections)'!$O$2:$X$8997,COLUMN(I1),FALSE) ->  | FE3: =(FC3/EY3)*9 ->  | FF3: =(EZ3+FA3)/EY3 ->  | FG3: =(FB3/EY3)*9 ->  | FH3: =IF(FE3="#N/A","#N/A",IFERROR(IF((EY3/FI3)<8,(ROUNDUP((((EY3/FI3)/6.15)-(0.11*FE3))*FI3,0)),0),0)) ->  | FI3: =VLOOKUP($A3,'Import (Projections)'!$O$2:$X$8997,COLUMN(J1),FALSE) ->  | FL3: =IFERROR(IFERROR(AVERAGE(FP3,FT3),IFERROR(FT3,IFERROR(FP3,0)))*CHOOSE('Guts-2'!$D$28,O3,AD3,AS3,BH3,BW3,CL3,DA3,DP3,EE3,ET3,FI3,),0) -> 0 | FM3: =IFERROR(IFERROR(AVERAGE(FQ3,FS3),IFERROR(FS3,IFERROR(FQ3,0)))*CHOOSE('Guts-2'!$D$28,O3,AD3,AS3,BH3,BW3,CL3,DA3,DP3,EE3,ET3,FI3,),0) -> 0 | FN3: =IFERROR(AVERAGE(FV3:FW3),IFERROR(FV3,IFERROR(FW3,0))) -> 6 | FO3: 0.2006582649 | FP3: 0 | FQ3: 0 | FR3: 0.7215988416 | FS3: 0 | FT3: 0 | FU3: 2 | FV3: 1 | FW3: 11
A4: Pedro Baez | B4: baezpe01 | C4: 3.156826548 | D4: 2.13504345 | E4: 65.75714286 | F4: 53.28560217 | G4: 19.02672908 | H4: 68.0149366 | I4: 25.73824141 | J4: 2.296003201 | K4: 3.522722591 | L4: 1.099687853 | M4: 9.309018044 | N4: 0 | O4: 0.2857142857 | P4: 64.74784525 | Q4: 8.185113696 | R4: 3 | S4: 2 | T4: 55 | U4: 47 | V4: 17 | W4: 60 | X4: 21 | Y4: 1 | Z4: 3.37 | AA4: 1.16 | AB4: 9.87 | AC4: 0 | AD4: 0 | AE4: 55 | AF4: 6 | AV4: 3 | AW4: 2 | AX4: 64 | AY4: 55 | AZ4: 18 | BA4: 69 | BB4: 25 | BC4: 1.163636364 | BD4: 3.52 | BE4: 1.14 | BF4: 9.7 | BG4: 0 | BH4: 0 | BI4: 64 | BJ4: 8 | BK4: 3 | BL4: 2 | BM4: 55 | BN4: 47 | BO4: 16 | BP4: 60 | BQ4: 21 | BR4: 1 | BS4: 3.44 | BT4: 1.15 | BU4: 9.79 | BV4: 0 | BW4: 0 | BX4: 55 | BY4: 7 | BZ4: 4 | CA4: 2 | CB4: 71 | CC4: 61 | CD4: 25 | CE4: 74 | CF4: 27 | CG4: 2 | CH4: 3.45 | CI4: 1.2 | CJ4: 9.38028169 | CK4: 0 | CL4: 0 | CM4: 78 | CN4: 9 | CO4: 3 | CP4: 3 | CQ4: 65 | CR4: 53 | CS4: 20 | CT4: 71 | CU4: 24 | CV4: 1 | CW4: 3.26 | CX4: 1.12 | CY4: 9.89 | CZ4: 0 | DA4: 0 | DB4: 65 | DC4: 7 | DD4: =(('Guts-2'!$I$1*0.01)*C4)+(('Guts-2'!$I$7*0.01)*R4)+(('Guts-2'!$I$3*0.01)*AG4)+(('Guts-2'!$I$9*0.01)*AV4)+(('Guts-2'!$I$4*0.01)*BK4)+(('Guts-2'!$I$2*0.01)*BZ4)+(('Guts-2'!$I$8*0.01)*CO4) ->  | DE4: =(('Guts-2'!$I$1*0.01)*D4)+(('Guts-2'!$I$7*0.01)*S4)+(('Guts-2'!$I$3*0.01)*AH4)+(('Guts-2'!$I$9*0.01)*AW4)+(('Guts-2'!$I$4*0.01)*BL4)+(('Guts-2'!$I$2*0.01)*CA4)+(('Guts-2'!$I$8*0.01)*CP4) ->  | DF4: =(('Guts-2'!$I$1*0.01)*E4)+(('Guts-2'!$I$7*0.01)*T4)+(('Guts-2'!$I$3*0.01)*AI4)+(('Guts-2'!$I$9*0.01)*AX4)+(('Guts-2'!$I$4*0.01)*BM4)+(('Guts-2'!$I$2*0.01)*CB4)+(('Guts-2'!$I$8*0.01)*CQ4) ->  | DG4: =(('Guts-2'!$I$1*0.01)*F4)+(('Guts-2'!$I$7*0.01)*U4)+(('Guts-2'!$I$3*0.01)*AJ4)+(('Guts-2'!$I$9*0.01)*AY4)+(('Guts-2'!$I$4*0.01)*BN4)+(('Guts-2'!$I$2*0.01)*CC4)+(('Guts-2'!$I$8*0.01)*CR4) ->  | DH4: =(('Guts-2'!$I$1*0.01)*G4)+(('Guts-2'!$I$7*0.01)*V4)+(('Guts-2'!$I$3*0.01)*AK4)+(('Guts-2'!$I$9*0.01)*AZ4)+(('Guts-2'!$I$4*0.01)*BO4)+(('Guts-2'!$I$2*0.01)*CD4)+(('Guts-2'!$I$8*0.01)*CS4) ->  | DI4: =(('Guts-2'!$I$1*0.01)*H4)+(('Guts-2'!$I$7*0.01)*W4)+(('Guts-2'!$I$3*0.01)*AL4)+(('Guts-2'!$I$9*0.01)*BA4)+(('Guts-2'!$I$4*0.01)*BP4)+(('Guts-2'!$I$2*0.01)*CE4)+(('Guts-2'!$I$8*0.01)*CT4) ->  | DJ4: =(('Guts-2'!$I$1*0.01)*I4)+(('Guts-2'!$I$7*0.01)*X4)+(('Guts-2'!$I$3*0.01)*AM4)+(('Guts-2'!$I$9*0.01)*BB4)+(('Guts-2'!$I$4*0.01)*BQ4)+(('Guts-2'!$I$2*0.01)*CF4)+(('Guts-2'!$I$8*0.01)*CU4) ->  | DK4: =(('Guts-2'!$I$1*0.01)*J4)+(('Guts-2'!$I$7*0.01)*Y4)+(('Guts-2'!$I$3*0.01)*AN4)+(('Guts-2'!$I$9*0.01)*BC4)+(('Guts-2'!$I$4*0.01)*BR4)+(('Guts-2'!$I$2*0.01)*CG4)+(('Guts-2'!$I$8*0.01)*CV4) ->  | DL4: =(DJ4/DF4)*9 ->  | DM4: =(DG4+DH4)/DF4 ->  | DN4: =(DI4/DF4)*9 ->  | DO4: =(('Guts-2'!$I$1*0.01)*N4)+(('Guts-2'!$I$7*0.01)*AC4)+(('Guts-2'!$I$3*0.01)*AR4)+(('Guts-2'!$I$9*0.01)*BG4)+(('Guts-2'!$I$4*0.01)*BV4)+(('Guts-2'!$I$2*0.01)*CK4)+(('Guts-2'!$I$8*0.01)*CZ4) ->  | DP4: =(('Guts-2'!$I$1*0.01)*O4)+(('Guts-2'!$I$7*0.01)*AD4)+(('Guts-2'!$I$3*0.01)*AS4)+(('Guts-2'!$I$9*0.01)*BH4)+(('Guts-2'!$I$4*0.01)*BW4)+(('Guts-2'!$I$2*0.01)*CL4)+(('Guts-2'!$I$8*0.01)*DA4) ->  | DQ4: =(('Guts-2'!$I$1*0.01)*P4)+(('Guts-2'!$I$7*0.01)*AE4)+(('Guts-2'!$I$3*0.01)*AT4)+(('Guts-2'!$I$9*0.01)*BI4)+(('Guts-2'!$I$4*0.01)*BX4)+(('Guts-2'!$I$2*0.01)*CM4)+(('Guts-2'!$I$8*0.01)*DB4) ->  | DR4: =(('Guts-2'!$I$1*0.01)*Q4)+(('Guts-2'!$I$7*0.01)*AF4)+(('Guts-2'!$I$3*0.01)*AU4)+(('Guts-2'!$I$9*0.01)*BJ4)+(('Guts-2'!$I$4*0.01)*BY4)+(('Guts-2'!$I$2*0.01)*CN4)+(('Guts-2'!$I$8*0.01)*DC4) ->  | EH4: =IFERROR(DS4,R4) -> 3 | EI4: =IFERROR(DT4,S4) -> 2 | EJ4: =IFERROR(DU4,T4) -> 55 | EK4: =IFERROR(DV4,U4) -> 47 | EL4: =IFERROR(DW4,V4) -> 17 | EM4: =IFERROR(DX4,W4) -> 60 | EN4: =IFERROR(DY4,X4) -> 21 | EO4: =IFERROR(DZ4,Y4) -> 1 | EP4: =IFERROR(EA4,Z4) -> 3.37 | EQ4: =IFERROR(EB4,AA4) -> 1.16 | ER4: =IFERROR(EC4,AB4) -> 9.87 | ES4: =IFERROR(ED4,AC4) -> 0 | ET4: =IFERROR(EE4,AD4) -> 0 | EU4: =IFERROR(EF4,AE4) -> 55 | EV4: =IFERROR(EG4,AF4) -> 6 | EW4: =VLOOKUP($A4,'Import (Projections)'!$O$2:$X$8997,COLUMN(B2),FALSE) ->  | EX4: =VLOOKUP($A4,'Import (Projections)'!$O$2:$X$8997,COLUMN(C2),FALSE) ->  | EY4: =VLOOKUP($A4,'Import (Projections)'!$O$2:$X$8997,COLUMN(D2),FALSE) ->  | EZ4: =VLOOKUP($A4,'Import (Projections)'!$O$2:$X$8997,COLUMN(E2),FALSE) ->  | FA4: =VLOOKUP($A4,'Import (Projections)'!$O$2:$X$8997,COLUMN(F2),FALSE) ->  | FB4: =VLOOKUP($A4,'Import (Projections)'!$O$2:$X$8997,COLUMN(G2),FALSE) ->  | FC4: =VLOOKUP($A4,'Import (Projections)'!$O$2:$X$8997,COLUMN(H2),FALSE) ->  | FD4: =VLOOKUP($A4,'Import (Projections)'!$O$2:$X$8997,COLUMN(I2),FALSE) ->  | FI4: =VLOOKUP($A4,'Import (Projections)'!$O$2:$X$8997,COLUMN(J2),FALSE) ->  | FL4: =IFERROR(IFERROR(AVERAGE(FP4,FT4),IFERROR(FT4,IFERROR(FP4,0)))*CHOOSE('Guts-2'!$D$28,O4,AD4,AS4,BH4,BW4,CL4,DA4,DP4,EE4,ET4,FI4,),0) -> 0 | FM4: =IFERROR(IFERROR(AVERAGE(FQ4,FS4),IFERROR(FS4,IFERROR(FQ4,0)))*CHOOSE('Guts-2'!$D$28,O4,AD4,AS4,BH4,BW4,CL4,DA4,DP4,EE4,ET4,FI4,),0) -> 0 | FN4: =IFERROR(AVERAGE(FV4:FW4),IFERROR(FV4,IFERROR(FW4,0))) -> 15.5 | FO4: 0.2158032779 | FP4: 0 | FQ4: 0 | FR4: 0.1857328021 | FS4: 0 | FT4: 0 | FU4: 0 | FV4: 13 | FW4: 18
A5: Andrew Bailey | B5: bailean01 | C5: 4.074101821 | D5: 1.658753942 | E5: 53.95555556 | F5: 50.44190703 | G5: 20.1203404 | H5: 49.59228017 | I5: 26.48209436 | J5: 6.061876286 | K5: 4.417318046 | L5: 1.307784652 | M5: 8.272188415 | N5: 0 | O5: 0 | P5: 51.49062633 | Q5: 7.68167762 | R5: 3 | S5: 3 | T5: 65 | U5: 60 | V5: 25 | W5: 60 | X5: 29 | Y5: 2 | Z5: 4 | AA5: 1.3 | AB5: 8.3 | AC5: 0 | AD5: 0 | AE5: 65 | AF5: 8 | AV5: 3 | AW5: 3 | AX5: 42.3 | AY5: 38 | AZ5: 14 | BA5: 44 | BB5: 18 | BC5: 0 | BD5: 3.83 | BE5: 1.23 | BF5: 9.35 | BG5: 0 | BH5: 0 | BI5: 41 | BJ5: 5 | BK5: 4 | BL5: 4 | BM5: 65 | BN5: 59 | BO5: 23 | BP5: 64 | BQ5: 28 | BR5: 4 | BS5: 3.91 | BT5: 1.27 | BU5: 8.83 | BV5: 0 | BW5: 0 | BX5: 65 | BY5: 8 | BZ5: 3 | CA5: 3 | CB5: 61.7 | CC5: 57 | CD5: 25 | CE5: 55 | CF5: 29 | CG5: 6 | CH5: 4.23 | CI5: 1.34 | CJ5: 8.022690438 | CK5: 0 | CL5: 0 | CM5: 72 | CN5: 9 | CO5: 3 | CP5: 3 | CQ5: 65 | CR5: 58 | CS5: 25 | CT5: 60 | CU5: 28 | CV5: 0 | CW5: 3.92 | CX5: 1.27 | CY5: 8.29 | CZ5: 0 | DA5: 0 | DB5: 65 | DC5: 8 | DD5: =(('Guts-2'!$I$1*0.01)*C5)+(('Guts-2'!$I$7*0.01)*R5)+(('Guts-2'!$I$3*0.01)*AG5)+(('Guts-2'!$I$9*0.01)*AV5)+(('Guts-2'!$I$4*0.01)*BK5)+(('Guts-2'!$I$2*0.01)*BZ5)+(('Guts-2'!$I$8*0.01)*CO5) ->  | DE5: =(('Guts-2'!$I$1*0.01)*D5)+(('Guts-2'!$I$7*0.01)*S5)+(('Guts-2'!$I$3*0.01)*AH5)+(('Guts-2'!$I$9*0.01)*AW5)+(('Guts-2'!$I$4*0.01)*BL5)+(('Guts-2'!$I$2*0.01)*CA5)+(('Guts-2'!$I$8*0.01)*CP5) ->  | DF5: =(('Guts-2'!$I$1*0.01)*E5)+(('Guts-2'!$I$7*0.01)*T5)+(('Guts-2'!$I$3*0.01)*AI5)+(('Guts-2'!$I$9*0.01)*AX5)+(('Guts-2'!$I$4*0.01)*BM5)+(('Guts-2'!$I$2*0.01)*CB5)+(('Guts-2'!$I$8*0.01)*CQ5) ->  | DG5: =(('Guts-2'!$I$1*0.01)*F5)+(('Guts-2'!$I$7*0.01)*U5)+(('Guts-2'!$I$3*0.01)*AJ5)+(('Guts-2'!$I$9*0.01)*AY5)+(('Guts-2'!$I$4*0.01)*BN5)+(('Guts-2'!$I$2*0.01)*CC5)+(('Guts-2'!$I$8*0.01)*CR5) ->  | DH5: =(('Guts-2'!$I$1*0.01)*G5)+(('Guts-2'!$I$7*0.01)*V5)+(('Guts-2'!$I$3*0.01)*AK5)+(('Guts-2'!$I$9*0.01)*AZ5)+(('Guts-2'!$I$4*0.01)*BO5)+(('Guts-2'!$I$2*0.01)*CD5)+(('Guts-2'!$I$8*0.01)*CS5) ->  | DI5: =(('Guts-2'!$I$1*0.01)*H5)+(('Guts-2'!$I$7*0.01)*W5)+(('Guts-2'!$I$3*0.01)*AL5)+(('Guts-2'!$I$9*0.01)*BA5)+(('Guts-2'!$I$4*0.01)*BP5)+(('Guts-2'!$I$2*0.01)*CE5)+(('Guts-2'!$I$8*0.01)*CT5) ->  | DJ5: =(('Guts-2'!$I$1*0.01)*I5)+(('Guts-2'!$I$7*0.01)*X5)+(('Guts-2'!$I$3*0.01)*AM5)+(('Guts-2'!$I$9*0.01)*BB5)+(('Guts-2'!$I$4*0.01)*BQ5)+(('Guts-2'!$I$2*0.01)*CF5)+(('Guts-2'!$I$8*0.01)*CU5) ->  | DK5: =(('Guts-2'!$I$1*0.01)*J5)+(('Guts-2'!$I$7*0.01)*Y5)+(('Guts-2'!$I$3*0.01)*AN5)+(('Guts-2'!$I$9*0.01)*BC5)+(('Guts-2'!$I$4*0.01)*BR5)+(('Guts-2'!$I$2*0.01)*CG5)+(('Guts-2'!$I$8*0.01)*CV5) ->  | DO5: =(('Guts-2'!$I$1*0.01)*N5)+(('Guts-2'!$I$7*0.01)*AC5)+(('Guts-2'!$I$3*0.01)*AR5)+(('Guts-2'!$I$9*0.01)*BG5)+(('Guts-2'!$I$4*0.01)*BV5)+(('Guts-2'!$I$2*0.01)*CK5)+(('Guts-2'!$I$8*0.01)*CZ5) ->  | DP5: =(('Guts-2'!$I$1*0.01)*O5)+(('Guts-2'!$I$7*0.01)*AD5)+(('Guts-2'!$I$3*0.01)*AS5)+(('Guts-2'!$I$9*0.01)*BH5)+(('Guts-2'!$I$4*0.01)*BW5)+(('Guts-2'!$I$2*0.01)*CL5)+(('Guts-2'!$I$8*0.01)*DA5) ->  | DQ5: =(('Guts-2'!$I$1*0.01)*P5)+(('Guts-2'!$I$7*0.01)*AE5)+(('Guts-2'!$I$3*0.01)*AT5)+(('Guts-2'!$I$9*0.01)*BI5)+(('Guts-2'!$I$4*0.01)*BX5)+(('Guts-2'!$I$2*0.01)*CM5)+(('Guts-2'!$I$8*0.01)*DB5) ->  | DR5: =(('Guts-2'!$I$1*0.01)*Q5)+(('Guts-2'!$I$7*0.01)*AF5)+(('Guts-2'!$I$3*0.01)*AU5)+(('Guts-2'!$I$9*0.01)*BJ5)+(('Guts-2'!$I$4*0.01)*BY5)+(('Guts-2'!$I$2*0.01)*CN5)+(('Guts-2'!$I$8*0.01)*DC5) ->  | EH5: 3 | EI5: 3 | EJ5: 65 | EK5: 60 | EL5: 25 | EM5: 60 | EN5: 29 | EO5: 2 | EP5: 4 | EQ5: 1.3 | ER5: 8.3 | ES5: 0 | ET5: 0 | EU5: 65 | EV5: 8 | EW5: =VLOOKUP($A5,'Import (Projections)'!$O$2:$X$8997,COLUMN(B3),FALSE) ->  | EX5: =VLOOKUP($A5,'Import (Projections)'!$O$2:$X$8997,COLUMN(C3),FALSE) ->  | EY5: =VLOOKUP($A5,'Import (Projections)'!$O$2:$X$8997,COLUMN(D3),FALSE) ->  | EZ5: =VLOOKUP($A5,'Import (Projections)'!$O$2:$X$8997,COLUMN(E3),FALSE) ->  | FA5: =VLOOKUP($A5,'Import (Projections)'!$O$2:$X$8997,COLUMN(F3),FALSE) ->  | FB5: =VLOOKUP($A5,'Import (Projections)'!$O$2:$X$8997,COLUMN(G3),FALSE) ->  | FC5: =VLOOKUP($A5,'Import (Projections)'!$O$2:$X$8997,COLUMN(H3),FALSE) ->  | FD5: =VLOOKUP($A5,'Import (Projections)'!$O$2:$X$8997,COLUMN(I3),FALSE) ->  | FI5: =VLOOKUP($A5,'Import (Projections)'!$O$2:$X$8997,COLUMN(J3),FALSE) ->  | FL5: =IFERROR(IFERROR(AVERAGE(FP5,FT5),IFERROR(FT5,IFERROR(FP5,0)))*CHOOSE('Guts-2'!$D$28,O5,AD5,AS5,BH5,BW5,CL5,DA5,DP5,EE5,ET5,FI5,),0) -> 0 | FM5: =IFERROR(IFERROR(AVERAGE(FQ5,FS5),IFERROR(FS5,IFERROR(FQ5,0)))*CHOOSE('Guts-2'!$D$28,O5,AD5,AS5,BH5,BW5,CL5,DA5,DP5,EE5,ET5,FI5,),0) -> 0 | FN5: 12 | FO5: 0.2395339419 | FP5: 0 | FQ5: 0 | FR5: 0.2618070766 | FS5: 0 | FT5: 0 | FU5: 0 | FV5: 11 | FW5: 13
A6: Kyle Barraclough | B6: barraky01 | C6: 5.156826548 | D6: 3.13504345 | E6: 70.10952381 | F6: 50.05075217 | G6: 43.18930051 | H6: 86.22922231 | I6: 25.44952413 | J6: 5.72457463 | K6: 3.266970088 | L6: 1.329919925 | M6: 11.06929499 | N6: 0 | O6: 0 | P6: 67.46213096 | Q6: 2.397000125 | R6: 3 | S6: 3 | T6: 65 | U6: 49 | V6: 36 | W6: 85 | X6: 22 | Y6: 12 | Z6: 3.06 | AA6: 1.31 | AB6: 11.72 | AC6: 0 | AD6: 0 | AE6: 65 | AF6: 4 | AV6: 5 | AW6: 3 | AX6: 73.3 | AY6: 49 | AZ6: 46 | BA6: 105 | BB6: 25 | BC6: 13.53230769 | BD6: 3.07 | BE6: 1.3 | BF6: 12.89 | BG6: 0 | BH6: 0 | BI6: 73 | BJ6: 4 | BK6: 4 | BL6: 3 | BM6: 65 | BN6: 46 | BO6: 39 | BP6: 89 | BQ6: 22 | BR6: 4 | BS6: 3.07 | BT6: 1.3 | BU6: 12.3 | BV6: 0 | BW6: 0 | BX6: 65 | BY6: 4 | BZ6: 4 | CA6: 3 | CB6: 75.3 | CC6: 58 | CD6: 41 | CE6: 90 | CF6: 29 | CG6: 4 | CH6: 3.43 | CI6: 1.31 | CJ6: 10.75697211 | CK6: 0 | CL6: 0 | CM6: 84 | CN6: 6 | CO6: 3 | CP6: 3 | CQ6: 65 | CR6: 46 | CS6: 36 | CT6: 84 | CU6: 22 | CV6: 12 | CW6: 3.01 | CX6: 1.27 | CY6: 11.69 | CZ6: 0 | DA6: 0 | DB6: 65 | DC6: 4 | DD6: =(('Guts-2'!$I$1*0.01)*C6)+(('Guts-2'!$I$7*0.01)*R6)+(('Guts-2'!$I$3*0.01)*AG6)+(('Guts-2'!$I$9*0.01)*AV6)+(('Guts-2'!$I$4*0.01)*BK6)+(('Guts-2'!$I$2*0.01)*BZ6)+(('Guts-2'!$I$8*0.01)*CO6) ->  | DE6: =(('Guts-2'!$I$1*0.01)*D6)+(('Guts-2'!$I$7*0.01)*S6)+(('Guts-2'!$I$3*0.01)*AH6)+(('Guts-2'!$I$9*0.01)*AW6)+(('Guts-2'!$I$4*0.01)*BL6)+(('Guts-2'!$I$2*0.01)*CA6)+(('Guts-2'!$I$8*0.01)*CP6) ->  | DF6: =(('Guts-2'!$I$1*0.01)*E6)+(('Guts-2'!$I$7*0.01)*T6)+(('Guts-2'!$I$3*0.01)*AI6)+(('Guts-2'!$I$9*0.01)*AX6)+(('Guts-2'!$I$4*0.01)*BM6)+(('Guts-2'!$I$2*0.01)*CB6)+(('Guts-2'!$I$8*0.01)*CQ6) ->  | DG6: =(('Guts-2'!$I$1*0.01)*F6)+(('Guts-2'!$I$7*0.01)*U6)+(('Guts-2'!$I$3*0.01)*AJ6)+(('Guts-2'!$I$9*0.01)*AY6)+(('Guts-2'!$I$4*0.01)*BN6)+(('Guts-2'!$I$2*0.01)*CC6)+(('Guts-2'!$I$8*0.01)*CR6) ->  | DH6: =(('Guts-2'!$I$1*0.01)*G6)+(('Guts-2'!$I$7*0.01)*V6)+(('Guts-2'!$I$3*0.01)*AK6)+(('Guts-2'!$I$9*0.01)*AZ6)+(('Guts-2'!$I$4*0.01)*BO6)+(('Guts-2'!$I$2*0.01)*CD6)+(('Guts-2'!$I$8*0.01)*CS6) ->  | DI6: =(('Guts-2'!$I$1*0.01)*H6)+(('Guts-2'!$I$7*0.01)*W6)+(('Guts-2'!$I$3*0.01)*AL6)+(('Guts-2'!$I$9*0.01)*BA6)+(('Guts-2'!$I$4*0.01)*BP6)+(('Guts-2'!$I$2*0.01)*CE6)+(('Guts-2'!$I$8*0.01)*CT6) ->  | DJ6: =(('Guts-2'!$I$1*0.01)*I6)+(('Guts-2'!$I$7*0.01)*X6)+(('Guts-2'!$I$3*0.01)*AM6)+(('Guts-2'!$I$9*0.01)*BB6)+(('Guts-2'!$I$4*0.01)*BQ6)+(('Guts-2'!$I$2*0.01)*CF6)+(('Guts-2'!$I$8*0.01)*CU6) ->  | DK6: =(('Guts-2'!$I$1*0.01)*J6)+(('Guts-2'!$I$7*0.01)*Y6)+(('Guts-2'!$I$3*0.01)*AN6)+(('Guts-2'!$I$9*0.01)*BC6)+(('Guts-2'!$I$4*0.01)*BR6)+(('Guts-2'!$I$2*0.01)*CG6)+(('Guts-2'!$I$8*0.01)*CV6) ->  | DO6: =(('Guts-2'!$I$1*0.01)*N6)+(('Guts-2'!$I$7*0.01)*AC6)+(('Guts-2'!$I$3*0.01)*AR6)+(('Guts-2'!$I$9*0.01)*BG6)+(('Guts-2'!$I$4*0.01)*BV6)+(('Guts-2'!$I$2*0.01)*CK6)+(('Guts-2'!$I$8*0.01)*CZ6) ->  | DP6: =(('Guts-2'!$I$1*0.01)*O6)+(('Guts-2'!$I$7*0.01)*AD6)+(('Guts-2'!$I$3*0.01)*AS6)+(('Guts-2'!$I$9*0.01)*BH6)+(('Guts-2'!$I$4*0.01)*BW6)+(('Guts-2'!$I$2*0.01)*CL6)+(('Guts-2'!$I$8*0.01)*DA6) ->  | DQ6: =(('Guts-2'!$I$1*0.01)*P6)+(('Guts-2'!$I$7*0.01)*AE6)+(('Guts-2'!$I$3*0.01)*AT6)+(('Guts-2'!$I$9*0.01)*BI6)+(('Guts-2'!$I$4*0.01)*BX6)+(('Guts-2'!$I$2*0.01)*CM6)+(('Guts-2'!$I$8*0.01)*DB6) ->  | DR6: =(('Guts-2'!$I$1*0.01)*Q6)+(('Guts-2'!$I$7*0.01)*AF6)+(('Guts-2'!$I$3*0.01)*AU6)+(('Guts-2'!$I$9*0.01)*BJ6)+(('Guts-2'!$I$4*0.01)*BY6)+(('Guts-2'!$I$2*0.01)*CN6)+(('Guts-2'!$I$8*0.01)*DC6) ->  | EH6: 3 | EI6: 3 | EJ6: 65 | EK6: 49 | EL6: 36 | EM6: 85 | EN6: 22 | EO6: 12 | EP6: 3.06 | EQ6: 1.31 | ER6: 11.72 | ES6: 0 | ET6: 0 | EU6: 65 | EV6: 4 | EW6: =VLOOKUP($A6,'Import (Projections)'!$O$2:$X$8997,COLUMN(B4),FALSE) ->  | EX6: =VLOOKUP($A6,'Import (Projections)'!$O$2:$X$8997,COLUMN(C4),FALSE) ->  | EY6: =VLOOKUP($A6,'Import (Projections)'!$O$2:$X$8997,COLUMN(D4),FALSE) ->  | EZ6: =VLOOKUP($A6,'Import (Projections)'!$O$2:$X$8997,COLUMN(E4),FALSE) ->  | FA6: =VLOOKUP($A6,'Import (Projections)'!$O$2:$X$8997,COLUMN(F4),FALSE) ->  | FB6: =VLOOKUP($A6,'Import (Projections)'!$O$2:$X$8997,COLUMN(G4),FALSE) ->  | FC6: =VLOOKUP($A6,'Import (Projections)'!$O$2:$X$8997,COLUMN(H4),FALSE) ->  | FD6: =VLOOKUP($A6,'Import (Projections)'!$O$2:$X$8997,COLUMN(I4),FALSE) ->  | FI6: =VLOOKUP($A6,'Import (Projections)'!$O$2:$X$8997,COLUMN(J4),FALSE) ->  | FL6: =IFERROR(IFERROR(AVERAGE(FP6,FT6),IFERROR(FT6,IFERROR(FP6,0)))*CHOOSE('Guts-2'!$D$28,O6,AD6,AS6,BH6,BW6,CL6,DA6,DP6,EE6,ET6,FI6,),0) -> 0 | FM6: =IFERROR(IFERROR(AVERAGE(FQ6,FS6),IFERROR(FS6,IFERROR(FQ6,0)))*CHOOSE('Guts-2'!$D$28,O6,AD6,AS6,BH6,BW6,CL6,DA6,DP6,EE6,ET6,FI6,),0) -> 0 | FN6: 21 | FO6: 0.195001008 | FP6: 0 | FQ6: 0 | FR6: 0.1740248088 | FS6: 0 | FT6: 0 | FU6: 0 | FV6: 26 | FW6: 16
A7: Jake Barrett | B7: barreja01 | C7: 1.72825512 | D7: 2.992186307 | E7: 58.28571429 | F7: 56.31971883 | G7: 27.00872908 | H7: 48.87922231 | I7: 28.61135648 | J7: 9.010288916 | K7: 4.417930045 | L7: 1.429654744 | M7: 7.547526975 | N7: 0 | O7: 0 | P7: 60.89070239 | Q7: 6.168164648 | R7: 3 | S7: 3 | T7: 65 | U7: 61 | V7: 29 | W7: 64 | X7: 30 | Y7: 10 | Z7: 4.1 | AA7: 1.39 | AB7: 8.8 | AC7: 0 | AD7: 0 | AE7: 65 | AF7: 7 | AV7: 3 | AW7: 2 | AX7: 60 | AY7: 58 | AZ7: 26 | BA7: 56 | BB7: 27 | BC7: 9.230769231 | BD7: 4.05 | BE7: 1.4 | BF7: 8.4 | BG7: 0 | BH7: 0 | BI7: 64 | BJ7: 7 | BK7: 3 | BL7: 3 | BM7: 65 | BN7: 62 | BO7: 29 | BP7: 62 | BQ7: 29 | BR7: 6 | BS7: 4.07 | BT7: 1.39 | BU7: 8.6 | BV7: 0 | BW7: 0 | BX7: 65 | BY7: 7 | BZ7: 2 | CA7: 3 | CB7: 59.3 | CC7: 59 | CD7: 28 | CE7: 56 | CF7: 30 | CG7: 2 | CH7: 4.63 | CI7: 1.47 | CJ7: 8.49915683 | CK7: 0 | CL7: 0 | CM7: 65 | CN7: 7 | CO7: 3 | CP7: 3 | CQ7: 65 | CR7: 58 | CS7: 29 | CT7: 63 | CU7: 29 | CV7: 10 | CW7: 4 | CX7: 1.35 | CY7: 8.77 | CZ7: 0 | DA7: 0 | DB7: 65 | DC7: 7 | DD7: =(('Guts-2'!$I$1*0.01)*C7)+(('Guts-2'!$I$7*0.01)*R7)+(('Guts-2'!$I$3*0.01)*AG7)+(('Guts-2'!$I$9*0.01)*AV7)+(('Guts-2'!$I$4*0.01)*BK7)+(('Guts-2'!$I$2*0.01)*BZ7)+(('Guts-2'!$I$8*0.01)*CO7) ->  | DE7: =(('Guts-2'!$I$1*0.01)*D7)+(('Guts-2'!$I$7*0.01)*S7)+(('Guts-2'!$I$3*0.01)*AH7)+(('Guts-2'!$I$9*0.01)*AW7)+(('Guts-2'!$I$4*0.01)*BL7)+(('Guts-2'!$I$2*0.01)*CA7)+(('Guts-2'!$I$8*0.01)*CP7) ->  | DF7: =(('Guts-2'!$I$1*0.01)*E7)+(('Guts-2'!$I$7*0.01)*T7)+(('Guts-2'!$I$3*0.01)*AI7)+(('Guts-2'!$I$9*0.01)*AX7)+(('Guts-2'!$I$4*0.01)*BM7)+(('Guts-2'!$I$2*0.01)*CB7)+(('Guts-2'!$I$8*0.01)*CQ7) ->  | DG7: =(('Guts-2'!$I$1*0.01)*F7)+(('Guts-2'!$I$7*0.01)*U7)+(('Guts-2'!$I$3*0.01)*AJ7)+(('Guts-2'!$I$9*0.01)*AY7)+(('Guts-2'!$I$4*0.01)*BN7)+(('Guts-2'!$I$2*0.01)*CC7)+(('Guts-2'!$I$8*0.01)*CR7) ->  | DH7: =(('Guts-2'!$I$1*0.01)*G7)+(('Guts-2'!$I$7*0.01)*V7)+(('Guts-2'!$I$3*0.01)*AK7)+(('Guts-2'!$I$9*0.01)*AZ7)+(('Guts-2'!$I$4*0.01)*BO7)+(('Guts-2'!$I$2*0.01)*CD7)+(('Guts-2'!$I$8*0.01)*CS7) ->  | DI7: =(('Guts-2'!$I$1*0.01)*H7)+(('Guts-2'!$I$7*0.01)*W7)+(('Guts-2'!$I$3*0.01)*AL7)+(('Guts-2'!$I$9*0.01)*BA7)+(('Guts-2'!$I$4*0.01)*BP7)+(('Guts-2'!$I$2*0.01)*CE7)+(('Guts-2'!$I$8*0.01)*CT7) ->  | DJ7: =(('Guts-2'!$I$1*0.01)*I7)+(('Guts-2'!$I$7*0.01)*X7)+(('Guts-2'!$I$3*0.01)*AM7)+(('Guts-2'!$I$9*0.01)*BB7)+(('Guts-2'!$I$4*0.01)*BQ7)+(('Guts-2'!$I$2*0.01)*CF7)+(('Guts-2'!$I$8*0.01)*CU7) ->  | DK7: =(('Guts-2'!$I$1*0.01)*J7)+(('Guts-2'!$I$7*0.01)*Y7)+(('Guts-2'!$I$3*0.01)*AN7)+(('Guts-2'!$I$9*0.01)*BC7)+(('Guts-2'!$I$4*0.01)*BR7)+(('Guts-2'!$I$2*0.01)*CG7)+(('Guts-2'!$I$8*0.01)*CV7) ->  | DO7: =(('Guts-2'!$I$1*0.01)*N7)+(('Guts-2'!$I$7*0.01)*AC7)+(('Guts-2'!$I$3*0.01)*AR7)+(('Guts-2'!$I$9*0.01)*BG7)+(('Guts-2'!$I$4*0.01)*BV7)+(('Guts-2'!$I$2*0.01)*CK7)+(('Guts-2'!$I$8*0.01)*CZ7) ->  | DP7: =(('Guts-2'!$I$1*0.01)*O7)+(('Guts-2'!$I$7*0.01)*AD7)+(('Guts-2'!$I$3*0.01)*AS7)+(('Guts-2'!$I$9*0.01)*BH7)+(('Guts-2'!$I$4*0.01)*BW7)+(('Guts-2'!$I$2*0.01)*CL7)+(('Guts-2'!$I$8*0.01)*DA7) ->  | DQ7: =(('Guts-2'!$I$1*0.01)*P7)+(('Guts-2'!$I$7*0.01)*AE7)+(('Guts-2'!$I$3*0.01)*AT7)+(('Guts-2'!$I$9*0.01)*BI7)+(('Guts-2'!$I$4*0.01)*BX7)+(('Guts-2'!$I$2*0.01)*CM7)+(('Guts-2'!$I$8*0.01)*DB7) ->  | DR7: =(('Guts-2'!$I$1*0.01)*Q7)+(('Guts-2'!$I$7*0.01)*AF7)+(('Guts-2'!$I$3*0.01)*AU7)+(('Guts-2'!$I$9*0.01)*BJ7)+(('Guts-2'!$I$4*0.01)*BY7)+(('Guts-2'!$I$2*0.01)*CN7)+(('Guts-2'!$I$8*0.01)*DC7) ->  | EH7: 3 | EI7: 3 | EJ7: 65 | EK7: 61 | EL7: 29 | EM7: 64 | EN7: 30 | EO7: 10 | EP7: 4.1 | EQ7: 1.39 | ER7: 8.8 | ES7: 0 | ET7: 0 | EU7: 65 | EV7: 7 | EW7: =VLOOKUP($A7,'Import (Projections)'!$O$2:$X$8997,COLUMN(B5),FALSE) ->  | EX7: =VLOOKUP($A7,'Import (Projections)'!$O$2:$X$8997,COLUMN(C5),FALSE) ->  | EY7: =VLOOKUP($A7,'Import (Projections)'!$O$2:$X$8997,COLUMN(D5),FALSE) ->  | EZ7: =VLOOKUP($A7,'Import (Projections)'!$O$2:$X$8997,COLUMN(E5),FALSE) ->  | FA7: =VLOOKUP($A7,'Import (Projections)'!$O$2:$X$8997,COLUMN(F5),FALSE) ->  | FB7: =VLOOKUP($A7,'Import (Projections)'!$O$2:$X$8997,COLUMN(G5),FALSE) ->  | FC7: =VLOOKUP($A7,'Import (Projections)'!$O$2:$X$8997,COLUMN(H5),FALSE) ->  | FD7: =VLOOKUP($A7,'Import (Projections)'!$O$2:$X$8997,COLUMN(I5),FALSE) ->  | FI7: =VLOOKUP($A7,'Import (Projections)'!$O$2:$X$8997,COLUMN(J5),FALSE) ->  | FL7: =IFERROR(IFERROR(AVERAGE(FP7,FT7),IFERROR(FT7,IFERROR(FP7,0)))*CHOOSE('Guts-2'!$D$28,O7,AD7,AS7,BH7,BW7,CL7,DA7,DP7,EE7,ET7,FI7,),0) -> 0 | FM7: =IFERROR(IFERROR(AVERAGE(FQ7,FS7),IFERROR(FS7,IFERROR(FQ7,0)))*CHOOSE('Guts-2'!$D$28,O7,AD7,AS7,BH7,BW7,CL7,DA7,DP7,EE7,ET7,FI7,),0) -> 0 | FN7: 16.5 | FO7: 0.2502068589 | FP7: 0 | FQ7: 0 | FR7: 0.2373822207 | FS7: 0 | FT7: 0 | FU7: 0 | FV7: 18 | FW7: 15
A8: Cam Bedrosian | B8: bedroca01 | C8: 3.349230132 | D8: 1.136074807 | E8: 58.85714286 | F8: 52.86091422 | G8: 25.36544103 | H8: 61.85766872 | I8: 21.69540526 | J8: 4.338751102 | K8: 3.317501289 | L8: 1.32908856 | M8: 9.458818275 | N8: 0 | O8: 0 | P8: 55.27767971 | Q8: 3.812497571 | R8: 4 | S8: 3 | T8: 65 | U8: 53 | V8: 28 | W8: 75 | X8: 23 | Y8: 33 | Z8: 3.18 | AA8: 1.23 | AB8: 10.4 | AC8: 0 | AD8: 0 | AE8: 65 | AF8: 6 | AG8: 3 | AH8: 2 | AI8: 53 | AJ8: 40 | AK8: 18 | AL8: 62 | AM8: 15 | AN8: 27 | AO8: 2.61 | AP8: 1.09 | AQ8: 10.53 | AR8: 0 | AS8: 0 | AT8: 53 | AU8: 3 | AV8: 2 | AW8: 1 | AX8: 61 | AY8: 50 | AZ8: 26 | BA8: 76 | BB8: 22 | BC8: 30.96923077 | BD8: 3.25 | BE8: 1.25 | BF8: 11.21 | BG8: 0 | BH8: 0 | BI8: 57 | BJ8: 6 | BK8: 3 | BL8: 2 | BM8: 65 | BN8: 53 | BO8: 28 | BP8: 78 | BQ8: 23 | BR8: 26 | BS8: 3.21 | BT8: 1.24 | BU8: 10.81 | BV8: 0 | BW8: 0 | BX8: 65 | BY8: 6 | BZ8: 2 | CA8: 2 | CB8: 57.7 | CC8: 49 | CD8: 24 | CE8: 61 | CF8: 22 | CG8: 20 | CH8: 3.37 | CI8: 1.27 | CJ8: 9.514731369 | CK8: 0 | CL8: 0 | CM8: 51 | CN8: 6 | CO8: 4 | CP8: 3 | CQ8: 65 | CR8: 51 | CS8: 27 | CT8: 75 | CU8: 23 | CV8: 33 | CW8: 3.14 | CX8: 1.2 | CY8: 10.37 | CZ8: 0 | DA8: 0 | DB8: 65 | DC8: 6 | DD8: =(('Guts-2'!$I$1*0.01)*C8)+(('Guts-2'!$I$7*0.01)*R8)+(('Guts-2'!$I$3*0.01)*AG8)+(('Guts-2'!$I$9*0.01)*AV8)+(('Guts-2'!$I$4*0.01)*BK8)+(('Guts-2'!$I$2*0.01)*BZ8)+(('Guts-2'!$I$8*0.01)*CO8) -> 3 | DE8: =(('Guts-2'!$I$1*0.01)*D8)+(('Guts-2'!$I$7*0.01)*S8)+(('Guts-2'!$I$3*0.01)*AH8)+(('Guts-2'!$I$9*0.01)*AW8)+(('Guts-2'!$I$4*0.01)*BL8)+(('Guts-2'!$I$2*0.01)*CA8)+(('Guts-2'!$I$8*0.01)*CP8) -> 2.2 | DF8: =(('Guts-2'!$I$1*0.01)*E8)+(('Guts-2'!$I$7*0.01)*T8)+(('Guts-2'!$I$3*0.01)*AI8)+(('Guts-2'!$I$9*0.01)*AX8)+(('Guts-2'!$I$4*0.01)*BM8)+(('Guts-2'!$I$2*0.01)*CB8)+(('Guts-2'!$I$8*0.01)*CQ8) -> 62.74 | DG8: =(('Guts-2'!$I$1*0.01)*F8)+(('Guts-2'!$I$7*0.01)*U8)+(('Guts-2'!$I$3*0.01)*AJ8)+(('Guts-2'!$I$9*0.01)*AY8)+(('Guts-2'!$I$4*0.01)*BN8)+(('Guts-2'!$I$2*0.01)*CC8)+(('Guts-2'!$I$8*0.01)*CR8) -> 51.6 | DH8: =(('Guts-2'!$I$1*0.01)*G8)+(('Guts-2'!$I$7*0.01)*V8)+(('Guts-2'!$I$3*0.01)*AK8)+(('Guts-2'!$I$9*0.01)*AZ8)+(('Guts-2'!$I$4*0.01)*BO8)+(('Guts-2'!$I$2*0.01)*CD8)+(('Guts-2'!$I$8*0.01)*CS8) -> 26.8 | DI8: =(('Guts-2'!$I$1*0.01)*H8)+(('Guts-2'!$I$7*0.01)*W8)+(('Guts-2'!$I$3*0.01)*AL8)+(('Guts-2'!$I$9*0.01)*BA8)+(('Guts-2'!$I$4*0.01)*BP8)+(('Guts-2'!$I$2*0.01)*CE8)+(('Guts-2'!$I$8*0.01)*CT8) -> 73 | DJ8: =(('Guts-2'!$I$1*0.01)*I8)+(('Guts-2'!$I$7*0.01)*X8)+(('Guts-2'!$I$3*0.01)*AM8)+(('Guts-2'!$I$9*0.01)*BB8)+(('Guts-2'!$I$4*0.01)*BQ8)+(('Guts-2'!$I$2*0.01)*CF8)+(('Guts-2'!$I$8*0.01)*CU8) -> 22.6 | DK8: =(('Guts-2'!$I$1*0.01)*J8)+(('Guts-2'!$I$7*0.01)*Y8)+(('Guts-2'!$I$3*0.01)*AN8)+(('Guts-2'!$I$9*0.01)*BC8)+(('Guts-2'!$I$4*0.01)*BR8)+(('Guts-2'!$I$2*0.01)*CG8)+(('Guts-2'!$I$8*0.01)*CV8) -> 28.59384615 | DL8: 3.241950909 | DM8: 1.24960153 | DN8: 10.47178833 | DO8: =(('Guts-2'!$I$1*0.01)*N8)+(('Guts-2'!$I$7*0.01)*AC8)+(('Guts-2'!$I$3*0.01)*AR8)+(('Guts-2'!$I$9*0.01)*BG8)+(('Guts-2'!$I$4*0.01)*BV8)+(('Guts-2'!$I$2*0.01)*CK8)+(('Guts-2'!$I$8*0.01)*CZ8) -> 0 | DP8: =(('Guts-2'!$I$1*0.01)*O8)+(('Guts-2'!$I$7*0.01)*AD8)+(('Guts-2'!$I$3*0.01)*AS8)+(('Guts-2'!$I$9*0.01)*BH8)+(('Guts-2'!$I$4*0.01)*BW8)+(('Guts-2'!$I$2*0.01)*CL8)+(('Guts-2'!$I$8*0.01)*DA8) -> 0 | DQ8: =(('Guts-2'!$I$1*0.01)*P8)+(('Guts-2'!$I$7*0.01)*AE8)+(('Guts-2'!$I$3*0.01)*AT8)+(('Guts-2'!$I$9*0.01)*BI8)+(('Guts-2'!$I$4*0.01)*BX8)+(('Guts-2'!$I$2*0.01)*CM8)+(('Guts-2'!$I$8*0.01)*DB8) -> 60.6 | DR8: =(('Guts-2'!$I$1*0.01)*Q8)+(('Guts-2'!$I$7*0.01)*AF8)+(('Guts-2'!$I$3*0.01)*AU8)+(('Guts-2'!$I$9*0.01)*BJ8)+(('Guts-2'!$I$4*0.01)*BY8)+(('Guts-2'!$I$2*0.01)*CN8)+(('Guts-2'!$I$8*0.01)*DC8) -> 6 | DS8: 3.449001165 | DT8: 2.202157796 | DU8: 54 | DV8: 44.7952628 | DW8: 20.6571338 | DX8: 62.54722458 | DY8: 17.57782293 | DZ8: 18 | EA8: 2.929637155 | EB8: 1.212081419 | EC8: 10.42453743 | ED8: 0 | EE8: 0 | EF8: 54 | EG8: 4.639895528 | EH8: 3.449001165 | EI8: 2.202157796 | EJ8: 54 | EK8: 44.7952628 | EL8: 20.6571338 | EM8: 62.54722458 | EN8: 17.57782293 | EO8: 18 | EP8: 2.929637155 | EQ8: 1.212081419 | ER8: 10.42453743 | ES8: 0 | ET8: 0 | EU8: 54 | EV8: 4.639895528 | EW8: =VLOOKUP($A8,'Import (Projections)'!$O$2:$X$8997,COLUMN(B6),FALSE) ->  | EX8: =VLOOKUP($A8,'Import (Projections)'!$O$2:$X$8997,COLUMN(C6),FALSE) ->  | EY8: =VLOOKUP($A8,'Import (Projections)'!$O$2:$X$8997,COLUMN(D6),FALSE) ->  | EZ8: =VLOOKUP($A8,'Import (Projections)'!$O$2:$X$8997,COLUMN(E6),FALSE) ->  | FA8: =VLOOKUP($A8,'Import (Projections)'!$O$2:$X$8997,COLUMN(F6),FALSE) ->  | FB8: =VLOOKUP($A8,'Import (Projections)'!$O$2:$X$8997,COLUMN(G6),FALSE) ->  | FC8: =VLOOKUP($A8,'Import (Projections)'!$O$2:$X$8997,COLUMN(H6),FALSE) ->  | FD8: =VLOOKUP($A8,'Import (Projections)'!$O$2:$X$8997,COLUMN(I6),FALSE) ->  | FI8: =VLOOKUP($A8,'Import (Projections)'!$O$2:$X$8997,COLUMN(J6),FALSE) ->  | FL8: =IFERROR(IFERROR(AVERAGE(FP8,FT8),IFERROR(FT8,IFERROR(FP8,0)))*CHOOSE('Guts-2'!$D$28,O8,AD8,AS8,BH8,BW8,CL8,DA8,DP8,EE8,ET8,FI8,),0) -> 0 | FM8: =IFERROR(IFERROR(AVERAGE(FQ8,FS8),IFERROR(FS8,IFERROR(FQ8,0)))*CHOOSE('Guts-2'!$D$28,O8,AD8,AS8,BH8,BW8,CL8,DA8,DP8,EE8,ET8,FI8,),0) -> 0 | FN8: 12.5 | FO8: 0.2363683276 | FP8: 0 | FQ8: 0 | FR8: 0.240044348 | FS8: 0 | FT8: 0 | FU8: 0 | FV8: 19 | FW8: 6
A9: Joaquin Benoit | B9: benoijo01 | C9: 4.013969406 | D9: 2.563614879 | E9: 56.28571429 | F9: 36.98888708 | G9: 22.61885188 | H9: 60.7536584 | I9: 19.33877283 | J9: 3.296003201 | K9: 3.092240325 | L9: 1.059020743 | M9: 9.71441746 | N9: 0 | O9: 0 | P9: 57.74784525 | Q9: 5.871374182 | R9: 3 | S9: 3 | T9: 55 | U9: 48 | V9: 22 | W9: 60 | X9: 23 | Y9: 4 | Z9: 3.69 | AA9: 1.27 | AB9: 9.87 | AC9: 0 | AD9: 0 | AE9: 55 | AF9: 7 | AV9: 3 | AW9: 2 | AX9: 44 | AY9: 37 | AZ9: 20 | BA9: 46 | BB9: 15 | BC9: 3.2 | BD9: 3.07 | BE9: 1.3 | BF9: 9.41 | BG9: 0 | BH9: 0 | BI9: 48 | BJ9: 5 | BK9: 3 | BL9: 3 | BM9: 55 | BN9: 47 | BO9: 23 | BP9: 59 | BQ9: 21 | BR9: 10 | BS9: 3.38 | BT9: 1.28 | BU9: 9.64 | BV9: 0 | BW9: 0 | BX9: 55 | BY9: 6 | BZ9: 2 | CA9: 2 | CB9: 57.3 | CC9: 47 | CD9: 25 | CE9: 63 | CF9: 22 | CG9: 12 | CH9: 3.53 | CI9: 1.26 | CJ9: 9.895287958 | CK9: 0 | CL9: 0 | CM9: 57 | CN9: 8 | CO9: 3 | CP9: 3 | CQ9: 65 | CR9: 54 | CS9: 26 | CT9: 71 | CU9: 26 | CV9: 4 | CW9: 3.6 | CX9: 1.22 | CY9: 9.87 | CZ9: 0 | DA9: 0 | DB9: 65 | DC9: 8 | DD9: =(('Guts-2'!$I$1*0.01)*C9)+(('Guts-2'!$I$7*0.01)*R9)+(('Guts-2'!$I$3*0.01)*AG9)+(('Guts-2'!$I$9*0.01)*AV9)+(('Guts-2'!$I$4*0.01)*BK9)+(('Guts-2'!$I$2*0.01)*BZ9)+(('Guts-2'!$I$8*0.01)*CO9) ->  | DE9: =(('Guts-2'!$I$1*0.01)*D9)+(('Guts-2'!$I$7*0.01)*S9)+(('Guts-2'!$I$3*0.01)*AH9)+(('Guts-2'!$I$9*0.01)*AW9)+(('Guts-2'!$I$4*0.01)*BL9)+(('Guts-2'!$I$2*0.01)*CA9)+(('Guts-2'!$I$8*0.01)*CP9) ->  | DF9: =(('Guts-2'!$I$1*0.01)*E9)+(('Guts-2'!$I$7*0.01)*T9)+(('Guts-2'!$I$3*0.01)*AI9)+(('Guts-2'!$I$9*0.01)*AX9)+(('Guts-2'!$I$4*0.01)*BM9)+(('Guts-2'!$I$2*0.01)*CB9)+(('Guts-2'!$I$8*0.01)*CQ9) ->  | DG9: =(('Guts-2'!$I$1*0.01)*F9)+(('Guts-2'!$I$7*0.01)*U9)+(('Guts-2'!$I$3*0.01)*AJ9)+(('Guts-2'!$I$9*0.01)*AY9)+(('Guts-2'!$I$4*0.01)*BN9)+(('Guts-2'!$I$2*0.01)*CC9)+(('Guts-2'!$I$8*0.01)*CR9) ->  | DH9: =(('Guts-2'!$I$1*0.01)*G9)+(('Guts-2'!$I$7*0.01)*V9)+(('Guts-2'!$I$3*0.01)*AK9)+(('Guts-2'!$I$9*0.01)*AZ9)+(('Guts-2'!$I$4*0.01)*BO9)+(('Guts-2'!$I$2*0.01)*CD9)+(('Guts-2'!$I$8*0.01)*CS9) ->  | DI9: =(('Guts-2'!$I$1*0.01)*H9)+(('Guts-2'!$I$7*0.01)*W9)+(('Guts-2'!$I$3*0.01)*AL9)+(('Guts-2'!$I$9*0.01)*BA9)+(('Guts-2'!$I$4*0.01)*BP9)+(('Guts-2'!$I$2*0.01)*CE9)+(('Guts-2'!$I$8*0.01)*CT9) ->  | DJ9: =(('Guts-2'!$I$1*0.01)*I9)+(('Guts-2'!$I$7*0.01)*X9)+(('Guts-2'!$I$3*0.01)*AM9)+(('Guts-2'!$I$9*0.01)*BB9)+(('Guts-2'!$I$4*0.01)*BQ9)+(('Guts-2'!$I$2*0.01)*CF9)+(('Guts-2'!$I$8*0.01)*CU9) ->  | DK9: =(('Guts-2'!$I$1*0.01)*J9)+(('Guts-2'!$I$7*0.01)*Y9)+(('Guts-2'!$I$3*0.01)*AN9)+(('Guts-2'!$I$9*0.01)*BC9)+(('Guts-2'!$I$4*0.01)*BR9)+(('Guts-2'!$I$2*0.01)*CG9)+(('Guts-2'!$I$8*0.01)*CV9) ->  | DO9: =(('Guts-2'!$I$1*0.01)*N9)+(('Guts-2'!$I$7*0.01)*AC9)+(('Guts-2'!$I$3*0.01)*AR9)+(('Guts-2'!$I$9*0.01)*BG9)+(('Guts-2'!$I$4*0.01)*BV9)+(('Guts-2'!$I$2*0.01)*CK9)+(('Guts-2'!$I$8*0.01)*CZ9) ->  | DP9: =(('Guts-2'!$I$1*0.01)*O9)+(('Guts-2'!$I$7*0.01)*AD9)+(('Guts-2'!$I$3*0.01)*AS9)+(('Guts-2'!$I$9*0.01)*BH9)+(('Guts-2'!$I$4*0.01)*BW9)+(('Guts-2'!$I$2*0.01)*CL9)+(('Guts-2'!$I$8*0.01)*DA9) ->  | DQ9: =(('Guts-2'!$I$1*0.01)*P9)+(('Guts-2'!$I$7*0.01)*AE9)+(('Guts-2'!$I$3*0.01)*AT9)+(('Guts-2'!$I$9*0.01)*BI9)+(('Guts-2'!$I$4*0.01)*BX9)+(('Guts-2'!$I$2*0.01)*CM9)+(('Guts-2'!$I$8*0.01)*DB9) ->  | DR9: =(('Guts-2'!$I$1*0.01)*Q9)+(('Guts-2'!$I$7*0.01)*AF9)+(('Guts-2'!$I$3*0.01)*AU9)+(('Guts-2'!$I$9*0.01)*BJ9)+(('Guts-2'!$I$4*0.01)*BY9)+(('Guts-2'!$I$2*0.01)*CN9)+(('Guts-2'!$I$8*0.01)*DC9) ->  | EH9: 3 | EI9: 3 | EJ9: 55 | EK9: 48 | EL9: 22 | EM9: 60 | EN9: 23 | EO9: 4 | EP9: 3.69 | EQ9: 1.27 | ER9: 9.87 | ES9: 0 | ET9: 0 | EU9: 55 | EV9: 7 | EW9: =VLOOKUP($A9,'Import (Projections)'!$O$2:$X$8997,COLUMN(B7),FALSE) ->  | EX9: =VLOOKUP($A9,'Import (Projections)'!$O$2:$X$8997,COLUMN(C7),FALSE) ->  | EY9: =VLOOKUP($A9,'Import (Projections)'!$O$2:$X$8997,COLUMN(D7),FALSE) ->  | EZ9: =VLOOKUP($A9,'Import (Projections)'!$O$2:$X$8997,COLUMN(E7),FALSE) ->  | FA9: =VLOOKUP($A9,'Import (Projections)'!$O$2:$X$8997,COLUMN(F7),FALSE) ->  | FB9: =VLOOKUP($A9,'Import (Projections)'!$O$2:$X$8997,COLUMN(G7),FALSE) ->  | FC9: =VLOOKUP($A9,'Import (Projections)'!$O$2:$X$8997,COLUMN(H7),FALSE) ->  | FD9: =VLOOKUP($A9,'Import (Projections)'!$O$2:$X$8997,COLUMN(I7),FALSE) ->  | FI9: =VLOOKUP($A9,'Import (Projections)'!$O$2:$X$8997,COLUMN(J7),FALSE) ->  | FL9: =IFERROR(IFERROR(AVERAGE(FP9,FT9),IFERROR(FT9,IFERROR(FP9,0)))*CHOOSE('Guts-2'!$D$28,O9,AD9,AS9,BH9,BW9,CL9,DA9,DP9,EE9,ET9,FI9,),0) -> 0 | FM9: =IFERROR(IFERROR(AVERAGE(FQ9,FS9),IFERROR(FS9,IFERROR(FQ9,0)))*CHOOSE('Guts-2'!$D$28,O9,AD9,AS9,BH9,BW9,CL9,DA9,DP9,EE9,ET9,FI9,),0) -> 0 | FN9: 19.5 | FO9: 0.1817792024 | FP9: 0 | FQ9: 0 | FR9: 0.1884562365 | FS9: 0 | FT9: 0 | FU9: 0 | FV9: 28 | FW9: 11
A10: Dellin Betances | B10: betande01 | C10: 4.206372989 | D10: 4.136074807 | E10: 77.42857143 | F10: 51.26457327 | G10: 30.20047674 | H10: 119.6862401 | I10: 20.19311286 | J10: 8.624465388 | K10: 2.347169945 | L10: 1.052131642 | M10: 13.91186924 | N10: 0 | O10: 0 | P10: 71.13482256 | Q10: 5.518788999 | R10: 4 | S10: 2 | T10: 65 | U10: 43 | V10: 25 | W10: 98 | X10: 18 | Y10: 2 | Z10: 2.46 | AA10: 1.04 | AB10: 13.57 | AC10: 0 | AD10: 0 | AE10: 65 | AF10: 5 | AG10: 4 | AH10: 3 | AI10: 75 | AJ10: 48 | AK10: 28 | AL10: 112 | AM10: 20 | AN10: 0 | AO10: 2.38 | AP10: 1.01 | AQ10: 13.44 | AR10: 0 | AS10: 0 | AT10: 71 | AU10: 5 | AV10: 6 | AW10: 2 | AX10: 76.7 | AY10: 49 | AZ10: 30 | BA10: 127 | BB10: 20 | BC10: 0 | BD10: 2.35 | BE10: 1.03 | BF10: 14.91 | BG10: 0 | BH10: 0 | BI10: 70 | BJ10: 7 | BK10: 5 | BL10: 2 | BM10: 65 | BN10: 42 | BO10: 25 | BP10: 103 | BQ10: 17 | BR10: 1 | BS10: 2.4 | BT10: 1.04 | BU10: 14.24 | BV10: 0 | BW10: 0 | BX10: 65 | BY10: 5 | BZ10: 4 | CA10: 2 | CB10: 81 | CC10: 64 | CD10: 32 | CE10: 107 | CF10: 27 | CG10: 2 | CH10: 2.99 | CI10: 1.18 | CJ10: 11.88888889 | CK10: 0 | CL10: 0 | CM10: 84 | CN10: 9 | CO10: 4 | CP10: 2 | CQ10: 65 | CR10: 41 | CS10: 25 | CT10: 98 | CU10: 17 | CV10: 2 | CW10: 2.42 | CX10: 1.01 | CY10: 13.59 | CZ10: 0 | DA10: 0 | DB10: 65 | DC10: 5 | DD10: =(('Guts-2'!$I$1*0.01)*C10)+(('Guts-2'!$I$7*0.01)*R10)+(('Guts-2'!$I$3*0.01)*AG10)+(('Guts-2'!$I$9*0.01)*AV10)+(('Guts-2'!$I$4*0.01)*BK10)+(('Guts-2'!$I$2*0.01)*BZ10)+(('Guts-2'!$I$8*0.01)*CO10) -> 4.6 | DE10: =(('Guts-2'!$I$1*0.01)*D10)+(('Guts-2'!$I$7*0.01)*S10)+(('Guts-2'!$I$3*0.01)*AH10)+(('Guts-2'!$I$9*0.01)*AW10)+(('Guts-2'!$I$4*0.01)*BL10)+(('Guts-2'!$I$2*0.01)*CA10)+(('Guts-2'!$I$8*0.01)*CP10) -> 2 | DF10: =(('Guts-2'!$I$1*0.01)*E10)+(('Guts-2'!$I$7*0.01)*T10)+(('Guts-2'!$I$3*0.01)*AI10)+(('Guts-2'!$I$9*0.01)*AX10)+(('Guts-2'!$I$4*0.01)*BM10)+(('Guts-2'!$I$2*0.01)*CB10)+(('Guts-2'!$I$8*0.01)*CQ10) -> 70.54 | DG10: =(('Guts-2'!$I$1*0.01)*F10)+(('Guts-2'!$I$7*0.01)*U10)+(('Guts-2'!$I$3*0.01)*AJ10)+(('Guts-2'!$I$9*0.01)*AY10)+(('Guts-2'!$I$4*0.01)*BN10)+(('Guts-2'!$I$2*0.01)*CC10)+(('Guts-2'!$I$8*0.01)*CR10) -> 48.2 | DH10: =(('Guts-2'!$I$1*0.01)*G10)+(('Guts-2'!$I$7*0.01)*V10)+(('Guts-2'!$I$3*0.01)*AK10)+(('Guts-2'!$I$9*0.01)*AZ10)+(('Guts-2'!$I$4*0.01)*BO10)+(('Guts-2'!$I$2*0.01)*CD10)+(('Guts-2'!$I$8*0.01)*CS10) -> 27.4 | DI10: =(('Guts-2'!$I$1*0.01)*H10)+(('Guts-2'!$I$7*0.01)*W10)+(('Guts-2'!$I$3*0.01)*AL10)+(('Guts-2'!$I$9*0.01)*BA10)+(('Guts-2'!$I$4*0.01)*BP10)+(('Guts-2'!$I$2*0.01)*CE10)+(('Guts-2'!$I$8*0.01)*CT10) -> 106.6 | DJ10: =(('Guts-2'!$I$1*0.01)*I10)+(('Guts-2'!$I$7*0.01)*X10)+(('Guts-2'!$I$3*0.01)*AM10)+(('Guts-2'!$I$9*0.01)*BB10)+(('Guts-2'!$I$4*0.01)*BQ10)+(('Guts-2'!$I$2*0.01)*CF10)+(('Guts-2'!$I$8*0.01)*CU10) -> 20 | DK10: =(('Guts-2'!$I$1*0.01)*J10)+(('Guts-2'!$I$7*0.01)*Y10)+(('Guts-2'!$I$3*0.01)*AN10)+(('Guts-2'!$I$9*0.01)*BC10)+(('Guts-2'!$I$4*0.01)*BR10)+(('Guts-2'!$I$2*0.01)*CG10)+(('Guts-2'!$I$8*0.01)*CV10) -> 1.4 | DL10: 2.551743692 | DM10: 1.07173235 | DN10: 13.60079388 | DO10: =(('Guts-2'!$I$1*0.01)*N10)+(('Guts-2'!$I$7*0.01)*AC10)+(('Guts-2'!$I$3*0.01)*AR10)+(('Guts-2'!$I$9*0.01)*BG10)+(('Guts-2'!$I$4*0.01)*BV10)+(('Guts-2'!$I$2*0.01)*CK10)+(('Guts-2'!$I$8*0.01)*CZ10) -> 0 | DP10: =(('Guts-2'!$I$1*0.01)*O10)+(('Guts-2'!$I$7*0.01)*AD10)+(('Guts-2'!$I$3*0.01)*AS10)+(('Guts-2'!$I$9*0.01)*BH10)+(('Guts-2'!$I$4*0.01)*BW10)+(('Guts-2'!$I$2*0.01)*CL10)+(('Guts-2'!$I$8*0.01)*DA10) -> 0 | DQ10: =(('Guts-2'!$I$1*0.01)*P10)+(('Guts-2'!$I$7*0.01)*AE10)+(('Guts-2'!$I$3*0.01)*AT10)+(('Guts-2'!$I$9*0.01)*BI10)+(('Guts-2'!$I$4*0.01)*BX10)+(('Guts-2'!$I$2*0.01)*CM10)+(('Guts-2'!$I$8*0.01)*DB10) -> 69.8 | DR10: =(('Guts-2'!$I$1*0.01)*Q10)+(('Guts-2'!$I$7*0.01)*AF10)+(('Guts-2'!$I$3*0.01)*AU10)+(('Guts-2'!$I$9*0.01)*BJ10)+(('Guts-2'!$I$4*0.01)*BY10)+(('Guts-2'!$I$2*0.01)*CN10)+(('Guts-2'!$I$8*0.01)*DC10) -> 6.2 | DS10: 4.16980057 | DT10: 2.659322034 | DU10: 75 | DV10: 49.28765211 | DW10: 28.53419389 | DX10: 112.5735353 | DY10: 20.46153846 | DZ10: 4 | EA10: 2.455384615 | EB10: 1.037624613 | EC10: 13.50882423 | ED10: 0 | EE10: 0 | EF10: 72 | EG10: 5.807404062 | EH10: 4.16980057 | EI10: 2.659322034 | EJ10: 75 | EK10: 49.28765211 | EL10: 28.53419389 | EM10: 112.5735353 | EN10: 20.46153846 | EO10: 4 | EP10: 2.455384615 | EQ10: 1.037624613 | ER10: 13.50882423 | ES10: 0 | ET10: 0 | EU10: 72 | EV10: 5.807404062 | EW10: =VLOOKUP($A10,'Import (Projections)'!$O$2:$X$8997,COLUMN(B8),FALSE) ->  | EX10: =VLOOKUP($A10,'Import (Projections)'!$O$2:$X$8997,COLUMN(C8),FALSE) ->  | EY10: =VLOOKUP($A10,'Import (Projections)'!$O$2:$X$8997,COLUMN(D8),FALSE) ->  | EZ10: =VLOOKUP($A10,'Import (Projections)'!$O$2:$X$8997,COLUMN(E8),FALSE) ->  | FA10: =VLOOKUP($A10,'Import (Projections)'!$O$2:$X$8997,COLUMN(F8),FALSE) ->  | FB10: =VLOOKUP($A10,'Import (Projections)'!$O$2:$X$8997,COLUMN(G8),FALSE) ->  | FC10: =VLOOKUP($A10,'Import (Projections)'!$O$2:$X$8997,COLUMN(H8),FALSE) ->  | FD10: =VLOOKUP($A10,'Import (Projections)'!$O$2:$X$8997,COLUMN(I8),FALSE) ->  | FI10: =VLOOKUP($A10,'Import (Projections)'!$O$2:$X$8997,COLUMN(J8),FALSE) ->  | FL10: =IFERROR(IFERROR(AVERAGE(FP10,FT10),IFERROR(FT10,IFERROR(FP10,0)))*CHOOSE('Guts-2'!$D$28,O10,AD10,AS10,BH10,BW10,CL10,DA10,DP10,EE10,ET10,FI10,),0) -> 0 | FM10: =IFERROR(IFERROR(AVERAGE(FQ10,FS10),IFERROR(FS10,IFERROR(FQ10,0)))*CHOOSE('Guts-2'!$D$28,O10,AD10,AS10,BH10,BW10,CL10,DA10,DP10,EE10,ET10,FI10,),0) -> 0 | FN10: 23.5 | FO10: 0.1846307486 | FP10: 0 | FQ10: 0 | FR10: 0.2447739532 | FS10: 0 | FT10: 0 | FU10: 0 | FV10: 31 | FW10: 16
A11: Brad Boxberger | B11: boxbebr01 | C11: 4.492087275 | D11: 4.993217664 | E11: 52.05238095 | F11: 45.35357208 | G11: 25.77952436 | H11: 59.15052586 | I11: 24.66124568 | J11: 13.05303682 | K11: 4.263997286 | L11: 1.366567583 | M11: 10.2272888 | N11: 0 | O11: 2.142857143 | P11: 54.56339399 | Q11: 8.164614714 | R11: 3 | S11: 3 | T11: 65 | U11: 57 | V11: 30 | W11: 67 | X11: 28 | Y11: 12 | Z11: 3.91 | AA11: 1.34 | AB11: 9.3 | AC11: 0 | AD11: 0 | AE11: 65 | AF11: 8 | AV11: 5 | AW11: 4 | AX11: 51.3 | AY11: 42 | AZ11: 25 | BA11: 66 | BB11: 21 | BC11: 9.470769231 | BD11: 3.68 | BE11: 1.31 | BF11: 11.57 | BG11: 0 | BH11: 0 | BI11: 54 | BJ11: 7 | BK11: 5 | BL11: 4 | BM11: 65 | BN11: 55 | BO11: 31 | BP11: 75 | BQ11: 27 | BR11: 3 | BS11: 3.79 | BT11: 1.32 | BU11: 10.44 | BV11: 0 | BW11: 0 | BX11: 65 | BY11: 8 | BZ11: 2 | CA11: 2 | CB11: 58 | CC11: 52 | CD11: 28 | CE11: 60 | CF11: 27 | CG11: 6 | CH11: 4.21 | CI11: 1.38 | CJ11: 9.310344828 | CK11: 0 | CL11: 0 | CM11: 60 | CN11: 8 | CO11: 3 | CP11: 3 | CQ11: 65 | CR11: 54 | CS11: 30 | CT11: 67 | CU11: 28 | CV11: 12 | CW11: 3.85 | CX11: 1.3 | CY11: 9.28 | CZ11: 0 | DA11: 0 | DB11: 65 | DC11: 8 | DD11: =(('Guts-2'!$I$1*0.01)*C11)+(('Guts-2'!$I$7*0.01)*R11)+(('Guts-2'!$I$3*0.01)*AG11)+(('Guts-2'!$I$9*0.01)*AV11)+(('Guts-2'!$I$4*0.01)*BK11)+(('Guts-2'!$I$2*0.01)*BZ11)+(('Guts-2'!$I$8*0.01)*CO11) ->  | DE11: =(('Guts-2'!$I$1*0.01)*D11)+(('Guts-2'!$I$7*0.01)*S11)+(('Guts-2'!$I$3*0.01)*AH11)+(('Guts-2'!$I$9*0.01)*AW11)+(('Guts-2'!$I$4*0.01)*BL11)+(('Guts-2'!$I$2*0.01)*CA11)+(('Guts-2'!$I$8*0.01)*CP11) ->  | DF11: =(('Guts-2'!$I$1*0.01)*E11)+(('Guts-2'!$I$7*0.01)*T11)+(('Guts-2'!$I$3*0.01)*AI11)+(('Guts-2'!$I$9*0.01)*AX11)+(('Guts-2'!$I$4*0.01)*BM11)+(('Guts-2'!$I$2*0.01)*CB11)+(('Guts-2'!$I$8*0.01)*CQ11) ->  | DG11: =(('Guts-2'!$I$1*0.01)*F11)+(('Guts-2'!$I$7*0.01)*U11)+(('Guts-2'!$I$3*0.01)*AJ11)+(('Guts-2'!$I$9*0.01)*AY11)+(('Guts-2'!$I$4*0.01)*BN11)+(('Guts-2'!$I$2*0.01)*CC11)+(('Guts-2'!$I$8*0.01)*CR11) ->  | DH11: =(('Guts-2'!$I$1*0.01)*G11)+(('Guts-2'!$I$7*0.01)*V11)+(('Guts-2'!$I$3*0.01)*AK11)+(('Guts-2'!$I$9*0.01)*AZ11)+(('Guts-2'!$I$4*0.01)*BO11)+(('Guts-2'!$I$2*0.01)*CD11)+(('Guts-2'!$I$8*0.01)*CS11) ->  | DI11: =(('Guts-2'!$I$1*0.01)*H11)+(('Guts-2'!$I$7*0.01)*W11)+(('Guts-2'!$I$3*0.01)*AL11)+(('Guts-2'!$I$9*0.01)*BA11)+(('Guts-2'!$I$4*0.01)*BP11)+(('Guts-2'!$I$2*0.01)*CE11)+(('Guts-2'!$I$8*0.01)*CT11) ->  | DJ11: =(('Guts-2'!$I$1*0.01)*I11)+(('Guts-2'!$I$7*0.01)*X11)+(('Guts-2'!$I$3*0.01)*AM11)+(('Guts-2'!$I$9*0.01)*BB11)+(('Guts-2'!$I$4*0.01)*BQ11)+(('Guts-2'!$I$2*0.01)*CF11)+(('Guts-2'!$I$8*0.01)*CU11) ->  | DK11: =(('Guts-2'!$I$1*0.01)*J11)+(('Guts-2'!$I$7*0.01)*Y11)+(('Guts-2'!$I$3*0.01)*AN11)+(('Guts-2'!$I$9*0.01)*BC11)+(('Guts-2'!$I$4*0.01)*BR11)+(('Guts-2'!$I$2*0.01)*CG11)+(('Guts-2'!$I$8*0.01)*CV11) ->  | DO11: =(('Guts-2'!$I$1*0.01)*N11)+(('Guts-2'!$I$7*0.01)*AC11)+(('Guts-2'!$I$3*0.01)*AR11)+(('Guts-2'!$I$9*0.01)*BG11)+(('Guts-2'!$I$4*0.01)*BV11)+(('Guts-2'!$I$2*0.01)*CK11)+(('Guts-2'!$I$8*0.01)*CZ11) ->  | DP11: =(('Guts-2'!$I$1*0.01)*O11)+(('Guts-2'!$I$7*0.01)*AD11)+(('Guts-2'!$I$3*0.01)*AS11)+(('Guts-2'!$I$9*0.01)*BH11)+(('Guts-2'!$I$4*0.01)*BW11)+(('Guts-2'!$I$2*0.01)*CL11)+(('Guts-2'!$I$8*0.01)*DA11) ->  | DQ11: =(('Guts-2'!$I$1*0.01)*P11)+(('Guts-2'!$I$7*0.01)*AE11)+(('Guts-2'!$I$3*0.01)*AT11)+(('Guts-2'!$I$9*0.01)*BI11)+(('Guts-2'!$I$4*0.01)*BX11)+(('Guts-2'!$I$2*0.01)*CM11)+(('Guts-2'!$I$8*0.01)*DB11) ->  | DR11: =(('Guts-2'!$I$1*0.01)*Q11)+(('Guts-2'!$I$7*0.01)*AF11)+(('Guts-2'!$I$3*0.01)*AU11)+(('Guts-2'!$I$9*0.01)*BJ11)+(('Guts-2'!$I$4*0.01)*BY11)+(('Guts-2'!$I$2*0.01)*CN11)+(('Guts-2'!$I$8*0.01)*DC11) ->  | EH11: 3 | EI11: 3 | EJ11: 65 | EK11: 57 | EL11: 30 | EM11: 67 | EN11: 28 | EO11: 12 | EP11: 3.91 | EQ11: 1.34 | ER11: 9.3 | ES11: 0 | ET11: 0 | EU11: 65 | EV11: 8 | EW11: =VLOOKUP($A11,'Import (Projections)'!$O$2:$X$8997,COLUMN(B9),FALSE) ->  | EX11: =VLOOKUP($A11,'Import (Projections)'!$O$2:$X$8997,COLUMN(C9),FALSE) ->  | EY11: =VLOOKUP($A11,'Import (Projections)'!$O$2:$X$8997,COLUMN(D9),FALSE) ->  | EZ11: =VLOOKUP($A11,'Import (Projections)'!$O$2:$X$8997,COLUMN(E9),FALSE) ->  | FA11: =VLOOKUP($A11,'Import (Projections)'!$O$2:$X$8997,COLUMN(F9),FALSE) ->  | FB11: =VLOOKUP($A11,'Import (Projections)'!$O$2:$X$8997,COLUMN(G9),FALSE) ->  | FC11: =VLOOKUP($A11,'Import (Projections)'!$O$2:$X$8997,COLUMN(H9),FALSE) ->  | FD11: =VLOOKUP($A11,'Import (Projections)'!$O$2:$X$8997,COLUMN(I9),FALSE) ->  | FI11: =VLOOKUP($A11,'Import (Projections)'!$O$2:$X$8997,COLUMN(J9),FALSE) ->  | FL11: =IFERROR(IFERROR(AVERAGE(FP11,FT11),IFERROR(FT11,IFERROR(FP11,0)))*CHOOSE('Guts-2'!$D$28,O11,AD11,AS11,BH11,BW11,CL11,DA11,DP11,EE11,ET11,FI11,),0) -> 0 | FM11: =IFERROR(IFERROR(AVERAGE(FQ11,FS11),IFERROR(FS11,IFERROR(FQ11,0)))*CHOOSE('Guts-2'!$D$28,O11,AD11,AS11,BH11,BW11,CL11,DA11,DP11,EE11,ET11,FI11,),0) -> 0 | FN11: 13 | FO11: 0.2328098323 | FP11: 0 | FQ11: 0 | FR11: 0.3845688247 | FS11: 0 | FT11: 0 | FU11: 0 | FV11: 10 | FW11: 16
A12: Brad Brach | B12: brachbr01 | C12: 7.349230132 | D12: 3.27893195 | E12: 77.9 | F12: 60.8731366 | G12: 29.46944103 | H12: 85.20766872 | I12: 26.69781905 | J12: 2.053036816 | K12: 3.084472034 | L12: 1.159725002 | M12: 9.844274948 | N12: 0 | O12: 0 | P12: 65.84910828 | Q12: 7.258047571 | R12: 3 | S12: 2 | T12: 55 | U12: 48 | V12: 22 | W12: 62 | X12: 23 | Y12: 0 | Z12: 3.7 | AA12: 1.26 | AB12: 10.17 | AC12: 0 | AD12: 0 | AE12: 55 | AF12: 7 | AV12: 7 | AW12: 4 | AX12: 74 | AY12: 60 | AZ12: 29 | BA12: 87 | BB12: 25 | BC12: 0 | BD12: 3.04 | BE12: 1.2 | BF12: 10.58 | BG12: 0 | BH12: 0 | BI12: 63 | BJ12: 8 | BK12: 4 | BL12: 3 | BM12: 55 | BN12: 46 | BO12: 22 | BP12: 63 | BQ12: 21 | BR12: 1 | BS12: 3.37 | BT12: 1.23 | BU12: 10.37 | BV12: 0 | BW12: 0 | BX12: 55 | BY12: 6 | BZ12: 4 | CA12: 3 | CB12: 84 | CC12: 73 | CD12: 35 | CE12: 97 | CF12: 33 | CG12: 2 | CH12: 3.5 | CI12: 1.29 | CJ12: 10.39285714 | CK12: 0 | CL12: 0 | CM12: 78 | CN12: 10 | CO12: 3 | CP12: 3 | CQ12: 65 | CR12: 54 | CS12: 26 | CT12: 73 | CU12: 26 | CV12: 0 | CW12: 3.64 | CX12: 1.23 | CY12: 10.15 | CZ12: 0 | DA12: 0 | DB12: 65 | DC12: 8 | DD12: =(('Guts-2'!$I$1*0.01)*C12)+(('Guts-2'!$I$7*0.01)*R12)+(('Guts-2'!$I$3*0.01)*AG12)+(('Guts-2'!$I$9*0.01)*AV12)+(('Guts-2'!$I$4*0.01)*BK12)+(('Guts-2'!$I$2*0.01)*BZ12)+(('Guts-2'!$I$8*0.01)*CO12) ->  | DE12: =(('Guts-2'!$I$1*0.01)*D12)+(('Guts-2'!$I$7*0.01)*S12)+(('Guts-2'!$I$3*0.01)*AH12)+(('Guts-2'!$I$9*0.01)*AW12)+(('Guts-2'!$I$4*0.01)*BL12)+(('Guts-2'!$I$2*0.01)*CA12)+(('Guts-2'!$I$8*0.01)*CP12) ->  | DF12: =(('Guts-2'!$I$1*0.01)*E12)+(('Guts-2'!$I$7*0.01)*T12)+(('Guts-2'!$I$3*0.01)*AI12)+(('Guts-2'!$I$9*0.01)*AX12)+(('Guts-2'!$I$4*0.01)*BM12)+(('Guts-2'!$I$2*0.01)*CB12)+(('Guts-2'!$I$8*0.01)*CQ12) ->  | DG12: =(('Guts-2'!$I$1*0.01)*F12)+(('Guts-2'!$I$7*0.01)*U12)+(('Guts-2'!$I$3*0.01)*AJ12)+(('Guts-2'!$I$9*0.01)*AY12)+(('Guts-2'!$I$4*0.01)*BN12)+(('Guts-2'!$I$2*0.01)*CC12)+(('Guts-2'!$I$8*0.01)*CR12) ->  | DH12: =(('Guts-2'!$I$1*0.01)*G12)+(('Guts-2'!$I$7*0.01)*V12)+(('Guts-2'!$I$3*0.01)*AK12)+(('Guts-2'!$I$9*0.01)*AZ12)+(('Guts-2'!$I$4*0.01)*BO12)+(('Guts-2'!$I$2*0.01)*CD12)+(('Guts-2'!$I$8*0.01)*CS12) ->  | DI12: =(('Guts-2'!$I$1*0.01)*H12)+(('Guts-2'!$I$7*0.01)*W12)+(('Guts-2'!$I$3*0.01)*AL12)+(('Guts-2'!$I$9*0.01)*BA12)+(('Guts-2'!$I$4*0.01)*BP12)+(('Guts-2'!$I$2*0.01)*CE12)+(('Guts-2'!$I$8*0.01)*CT12) ->  | DJ12: =(('Guts-2'!$I$1*0.01)*I12)+(('Guts-2'!$I$7*0.01)*X12)+(('Guts-2'!$I$3*0.01)*AM12)+(('Guts-2'!$I$9*0.01)*BB12)+(('Guts-2'!$I$4*0.01)*BQ12)+(('Guts-2'!$I$2*0.01)*CF12)+(('Guts-2'!$I$8*0.01)*CU12) ->  | DK12: =(('Guts-2'!$I$1*0.01)*J12)+(('Guts-2'!$I$7*0.01)*Y12)+(('Guts-2'!$I$3*0.01)*AN12)+(('Guts-2'!$I$9*0.01)*BC12)+(('Guts-2'!$I$4*0.01)*BR12)+(('Guts-2'!$I$2*0.01)*CG12)+(('Guts-2'!$I$8*0.01)*CV12) ->  | DO12: =(('Guts-2'!$I$1*0.01)*N12)+(('Guts-2'!$I$7*0.01)*AC12)+(('Guts-2'!$I$3*0.01)*AR12)+(('Guts-2'!$I$9*0.01)*BG12)+(('Guts-2'!$I$4*0.01)*BV12)+(('Guts-2'!$I$2*0.01)*CK12)+(('Guts-2'!$I$8*0.01)*CZ12) ->  | DP12: =(('Guts-2'!$I$1*0.01)*O12)+(('Guts-2'!$I$7*0.01)*AD12)+(('Guts-2'!$I$3*0.01)*AS12)+(('Guts-2'!$I$9*0.01)*BH12)+(('Guts-2'!$I$4*0.01)*BW12)+(('Guts-2'!$I$2*0.01)*CL12)+(('Guts-2'!$I$8*0.01)*DA12) ->  | DQ12: =(('Guts-2'!$I$1*0.01)*P12)+(('Guts-2'!$I$7*0.01)*AE12)+(('Guts-2'!$I$3*0.01)*AT12)+(('Guts-2'!$I$9*0.01)*BI12)+(('Guts-2'!$I$4*0.01)*BX12)+(('Guts-2'!$I$2*0.01)*CM12)+(('Guts-2'!$I$8*0.01)*DB12) ->  | DR12: =(('Guts-2'!$I$1*0.01)*Q12)+(('Guts-2'!$I$7*0.01)*AF12)+(('Guts-2'!$I$3*0.01)*AU12)+(('Guts-2'!$I$9*0.01)*BJ12)+(('Guts-2'!$I$4*0.01)*BY12)+(('Guts-2'!$I$2*0.01)*CN12)+(('Guts-2'!$I$8*0.01)*DC12) ->  | EH12: 3 | EI12: 2 | EJ12: 55 | EK12: 48 | EL12: 22 | EM12: 62 | EN12: 23 | EO12: 0 | EP12: 3.7 | EQ12: 1.26 | ER12: 10.17 | ES12: 0 | ET12: 0 | EU12: 55 | EV12: 7 | EW12: =VLOOKUP($A12,'Import (Projections)'!$O$2:$X$8997,COLUMN(B10),FALSE) ->  | EX12: =VLOOKUP($A12,'Import (Projections)'!$O$2:$X$8997,COLUMN(C10),FALSE) ->  | EY12: =VLOOKUP($A12,'Import (Projections)'!$O$2:$X$8997,COLUMN(D10),FALSE) ->  | EZ12: =VLOOKUP($A12,'Import (Projections)'!$O$2:$X$8997,COLUMN(E10),FALSE) ->  | FA12: =VLOOKUP($A12,'Import (Projections)'!$O$2:$X$8997,COLUMN(F10),FALSE) ->  | FB12: =VLOOKUP($A12,'Import (Projections)'!$O$2:$X$8997,COLUMN(G10),FALSE) ->  | FC12: =VLOOKUP($A12,'Import (Projections)'!$O$2:$X$8997,COLUMN(H10),FALSE) ->  | FD12: =VLOOKUP($A12,'Import (Projections)'!$O$2:$X$8997,COLUMN(I10),FALSE) ->  | FI12: =VLOOKUP($A12,'Import (Projections)'!$O$2:$X$8997,COLUMN(J10),FALSE) ->  | FL12: =IFERROR(IFERROR(AVERAGE(FP12,FT12),IFERROR(FT12,IFERROR(FP12,0)))*CHOOSE('Guts-2'!$D$28,O12,AD12,AS12,BH12,BW12,CL12,DA12,DP12,EE12,ET12,FI12,),0) -> 0 | FM12: =IFERROR(IFERROR(AVERAGE(FQ12,FS12),IFERROR(FS12,IFERROR(FQ12,0)))*CHOOSE('Guts-2'!$D$28,O12,AD12,AS12,BH12,BW12,CL12,DA12,DP12,EE12,ET12,FI12,),0) -> 0 | FN12: 12 | FO12: 0.2137359539 | FP12: 0 | FQ12: 0 | FR12: 0.2188632786 | FS12: 0 | FT12: 0 | FU12: 0 | FV12: 12 | FW12: 12
A13: Zach Britton | B13: brittza01 | C13: 2.920658704 | D13: 1.421789093 | E13: 67.66666667 | F13: 46.12171612 | G13: 18.34333388 | H13: 72.11481158 | I13: 15.17194884 | J13: 36.48160824 | K13: 2.017943934 | L13: 0.9526854681 | M13: 9.591625185 | N13: 0 | O13: 0 | P13: 66.70625114 | Q13: 2.947360428 | R13: 4 | S13: 2 | T13: 65 | U13: 54 | V13: 21 | W13: 74 | X13: 18 | Y13: 33 | Z13: 2.51 | AA13: 1.16 | AB13: 10.27 | AC13: 0 | AD13: 0 | AE13: 65 | AF13: 4 | AG13: 4 | AH13: 2 | AI13: 74 | AJ13: 50 | AK13: 18 | AL13: 85 | AM13: 18 | AN13: 43 | AO13: 2.25 | AP13: 0.92 | AQ13: 10.34 | AR13: 0 | AS13: 0 | AT13: 72 | AU13: 3 | AV13: 3 | AW13: 1 | AX13: 64 | AY13: 50 | AZ13: 18 | BA13: 73 | BB13: 16 | BC13: 38.76056338 | BD13: 2.25 | BE13: 1.06 | BF13: 10.27 | BG13: 0 | BH13: 0 | BI13: 66 | BJ13: 5 | BK13: 3 | BL13: 2 | BM13: 65 | BN13: 53 | BO13: 20 | BP13: 74 | BQ13: 17 | BR13: 35 | BS13: 2.38 | BT13: 1.11 | BU13: 10.27 | BV13: 0 | BW13: 0 | BX13: 65 | BY13: 4 | BZ13: 5 | CA13: 1 | CB13: 79.3 | CC13: 62 | CD13: 23 | CE13: 80 | CF13: 20 | CG13: 36 | CH13: 2.27 | CI13: 1.07 | CJ13: 9.079445145 | CK13: 0 | CL13: 0 | CM13: 81 | CN13: 5 | CO13: 4 | CP13: 2 | CQ13: 65 | CR13: 53 | CS13: 21 | CT13: 74 | CU13: 18 | CV13: 32 | CW13: 2.5 | CX13: 1.13 | CY13: 10.28 | CZ13: 0 | DA13: 0 | DB13: 65 | DC13: 4 | DD13: =(('Guts-2'!$I$1*0.01)*C13)+(('Guts-2'!$I$7*0.01)*R13)+(('Guts-2'!$I$3*0.01)*AG13)+(('Guts-2'!$I$9*0.01)*AV13)+(('Guts-2'!$I$4*0.01)*BK13)+(('Guts-2'!$I$2*0.01)*BZ13)+(('Guts-2'!$I$8*0.01)*CO13) -> 3.8 | DE13: =(('Guts-2'!$I$1*0.01)*D13)+(('Guts-2'!$I$7*0.01)*S13)+(('Guts-2'!$I$3*0.01)*AH13)+(('Guts-2'!$I$9*0.01)*AW13)+(('Guts-2'!$I$4*0.01)*BL13)+(('Guts-2'!$I$2*0.01)*CA13)+(('Guts-2'!$I$8*0.01)*CP13) -> 1.6 | DF13: =(('Guts-2'!$I$1*0.01)*E13)+(('Guts-2'!$I$7*0.01)*T13)+(('Guts-2'!$I$3*0.01)*AI13)+(('Guts-2'!$I$9*0.01)*AX13)+(('Guts-2'!$I$4*0.01)*BM13)+(('Guts-2'!$I$2*0.01)*CB13)+(('Guts-2'!$I$8*0.01)*CQ13) -> 67.66 | DG13: =(('Guts-2'!$I$1*0.01)*F13)+(('Guts-2'!$I$7*0.01)*U13)+(('Guts-2'!$I$3*0.01)*AJ13)+(('Guts-2'!$I$9*0.01)*AY13)+(('Guts-2'!$I$4*0.01)*BN13)+(('Guts-2'!$I$2*0.01)*CC13)+(('Guts-2'!$I$8*0.01)*CR13) -> 54.6 | DH13: =(('Guts-2'!$I$1*0.01)*G13)+(('Guts-2'!$I$7*0.01)*V13)+(('Guts-2'!$I$3*0.01)*AK13)+(('Guts-2'!$I$9*0.01)*AZ13)+(('Guts-2'!$I$4*0.01)*BO13)+(('Guts-2'!$I$2*0.01)*CD13)+(('Guts-2'!$I$8*0.01)*CS13) -> 20.6 | DI13: =(('Guts-2'!$I$1*0.01)*H13)+(('Guts-2'!$I$7*0.01)*W13)+(('Guts-2'!$I$3*0.01)*AL13)+(('Guts-2'!$I$9*0.01)*BA13)+(('Guts-2'!$I$4*0.01)*BP13)+(('Guts-2'!$I$2*0.01)*CE13)+(('Guts-2'!$I$8*0.01)*CT13) -> 75 | DJ13: =(('Guts-2'!$I$1*0.01)*I13)+(('Guts-2'!$I$7*0.01)*X13)+(('Guts-2'!$I$3*0.01)*AM13)+(('Guts-2'!$I$9*0.01)*BB13)+(('Guts-2'!$I$4*0.01)*BQ13)+(('Guts-2'!$I$2*0.01)*CF13)+(('Guts-2'!$I$8*0.01)*CU13) -> 17.8 | DK13: =(('Guts-2'!$I$1*0.01)*J13)+(('Guts-2'!$I$7*0.01)*Y13)+(('Guts-2'!$I$3*0.01)*AN13)+(('Guts-2'!$I$9*0.01)*BC13)+(('Guts-2'!$I$4*0.01)*BR13)+(('Guts-2'!$I$2*0.01)*CG13)+(('Guts-2'!$I$8*0.01)*CV13) -> 35.15211268 | DL13: 2.367720958 | DM13: 1.111439551 | DN13: 9.97635235 | DO13: =(('Guts-2'!$I$1*0.01)*N13)+(('Guts-2'!$I$7*0.01)*AC13)+(('Guts-2'!$I$3*0.01)*AR13)+(('Guts-2'!$I$9*0.01)*BG13)+(('Guts-2'!$I$4*0.01)*BV13)+(('Guts-2'!$I$2*0.01)*CK13)+(('Guts-2'!$I$8*0.01)*CZ13) -> 0 | DP13: =(('Guts-2'!$I$1*0.01)*O13)+(('Guts-2'!$I$7*0.01)*AD13)+(('Guts-2'!$I$3*0.01)*AS13)+(('Guts-2'!$I$9*0.01)*BH13)+(('Guts-2'!$I$4*0.01)*BW13)+(('Guts-2'!$I$2*0.01)*CL13)+(('Guts-2'!$I$8*0.01)*DA13) -> 0 | DQ13: =(('Guts-2'!$I$1*0.01)*P13)+(('Guts-2'!$I$7*0.01)*AE13)+(('Guts-2'!$I$3*0.01)*AT13)+(('Guts-2'!$I$9*0.01)*BI13)+(('Guts-2'!$I$4*0.01)*BX13)+(('Guts-2'!$I$2*0.01)*CM13)+(('Guts-2'!$I$8*0.01)*DB13) -> 68.4 | DR13: =(('Guts-2'!$I$1*0.01)*Q13)+(('Guts-2'!$I$7*0.01)*AF13)+(('Guts-2'!$I$3*0.01)*AU13)+(('Guts-2'!$I$9*0.01)*BJ13)+(('Guts-2'!$I$4*0.01)*BY13)+(('Guts-2'!$I$2*0.01)*CN13)+(('Guts-2'!$I$8*0.01)*DC13) -> 4.4 | DS13: 4.169722913 | DT13: 1.999505262 | DU13: 73 | DV13: 57.35998108 | DW13: 20.75032985 | DX13: 83.28844 | DY13: 19.23193347 | DZ13: 40 | EA13: 2.371060291 | EB13: 1.070004259 | EC13: 10.26843781 | ED13: 0 | EE13: 0 | EF13: 72 | EG13: 4.334759278 | EH13: 4.169722913 | EI13: 1.999505262 | EJ13: 73 | EK13: 57.35998108 | EL13: 20.75032985 | EM13: 83.28844 | EN13: 19.23193347 | EO13: 40 | EP13: 2.371060291 | EQ13: 1.070004259 | ER13: 10.26843781 | ES13: 0 | ET13: 0 | EU13: 72 | EV13: 4.334759278 | EW13: =VLOOKUP($A13,'Import (Projections)'!$O$2:$X$8997,COLUMN(B11),FALSE) ->  | EX13: =VLOOKUP($A13,'Import (Projections)'!$O$2:$X$8997,COLUMN(C11),FALSE) ->  | EY13: =VLOOKUP($A13,'Import (Projections)'!$O$2:$X$8997,COLUMN(D11),FALSE) ->  | EZ13: =VLOOKUP($A13,'Import (Projections)'!$O$2:$X$8997,COLUMN(E11),FALSE) ->  | FA13: =VLOOKUP($A13,'Import (Projections)'!$O$2:$X$8997,COLUMN(F11),FALSE) ->  | FB13: =VLOOKUP($A13,'Import (Projections)'!$O$2:$X$8997,COLUMN(G11),FALSE) ->  | FC13: =VLOOKUP($A13,'Import (Projections)'!$O$2:$X$8997,COLUMN(H11),FALSE) ->  | FD13: =VLOOKUP($A13,'Import (Projections)'!$O$2:$X$8997,COLUMN(I11),FALSE) ->  | FI13: =VLOOKUP($A13,'Import (Projections)'!$O$2:$X$8997,COLUMN(J11),FALSE) ->  | FL13: =IFERROR(IFERROR(AVERAGE(FP13,FT13),IFERROR(FT13,IFERROR(FP13,0)))*CHOOSE('Guts-2'!$D$28,O13,AD13,AS13,BH13,BW13,CL13,DA13,DP13,EE13,ET13,FI13,),0) -> 0 | FM13: =IFERROR(IFERROR(AVERAGE(FQ13,FS13),IFERROR(FS13,IFERROR(FQ13,0)))*CHOOSE('Guts-2'!$D$28,O13,AD13,AS13,BH13,BW13,CL13,DA13,DP13,EE13,ET13,FI13,),0) -> 0 | FN13: 1.5 | FO13: 0.191988687 | FP13: 0 | FQ13: 0 | FR13: 0.8007038444 | FS13: 0 | FT13: 0 | FU13: 1 | FV13: 0 | FW13: 3
A14: Ryan Buchter | B14: buchtry01 | C14: 3.72825512 | D14: 1.277900593 | E14: 60.14285714 | F14: 43.11087979 | G14: 30.86259782 | H14: 62.80065088 | I14: 23.0404465 | J14: 1.867431773 | K14: 3.44785779 | L14: 1.229962811 | M14: 9.397722104 | N14: 0 | O14: 0 | P14: 57.74784525 | Q14: 4.158308458 | R14: 3 | S14: 3 | T14: 55 | U14: 45 | V14: 28 | W14: 64 | X14: 23 | Y14: 2 | Z14: 3.77 | AA14: 1.34 | AB14: 10.53 | AC14: 0 | AD14: 0 | AE14: 55 | AF14: 7 | AV14: 2 | AW14: 2 | AX14: 56 | AY14: 45 | AZ14: 27 | BA14: 67 | BB14: 21 | BC14: 2.036363636 | BD14: 3.38 | BE14: 1.29 | BF14: 10.77 | BG14: 0 | BH14: 0 | BI14: 55 | BJ14: 6 | BK14: 2 | BL14: 2 | BM14: 55 | BN14: 45 | BO14: 27 | BP14: 65 | BQ14: 22 | BR14: 2 | BS14: 3.57 | BT14: 1.31 | BU14: 10.65 | BV14: 0 | BW14: 0 | BX14: 55 | BY14: 6 | BZ14: 2 | CA14: 2 | CB14: 60.7 | CC14: 48 | CD14: 30 | CE14: 70 | CF14: 25 | CG14: 5 | CH14: 3.64 | CI14: 1.28 | CJ14: 10.37891269 | CK14: 0 | CL14: 0 | CM14: 62 | CN14: 7 | CO14: 3 | CP14: 3 | CQ14: 65 | CR14: 51 | CS14: 33 | CT14: 76 | CU14: 26 | CV14: 2 | CW14: 3.66 | CX14: 1.29 | CY14: 10.52 | CZ14: 0 | DA14: 0 | DB14: 65 | DC14: 8 | DD14: =(('Guts-2'!$I$1*0.01)*C14)+(('Guts-2'!$I$7*0.01)*R14)+(('Guts-2'!$I$3*0.01)*AG14)+(('Guts-2'!$I$9*0.01)*AV14)+(('Guts-2'!$I$4*0.01)*BK14)+(('Guts-2'!$I$2*0.01)*BZ14)+(('Guts-2'!$I$8*0.01)*CO14) ->  | DE14: =(('Guts-2'!$I$1*0.01)*D14)+(('Guts-2'!$I$7*0.01)*S14)+(('Guts-2'!$I$3*0.01)*AH14)+(('Guts-2'!$I$9*0.01)*AW14)+(('Guts-2'!$I$4*0.01)*BL14)+(('Guts-2'!$I$2*0.01)*CA14)+(('Guts-2'!$I$8*0.01)*CP14) ->  | DF14: =(('Guts-2'!$I$1*0.01)*E14)+(('Guts-2'!$I$7*0.01)*T14)+(('Guts-2'!$I$3*0.01)*AI14)+(('Guts-2'!$I$9*0.01)*AX14)+(('Guts-2'!$I$4*0.01)*BM14)+(('Guts-2'!$I$2*0.01)*CB14)+(('Guts-2'!$I$8*0.01)*CQ14) ->  | DG14: =(('Guts-2'!$I$1*0.01)*F14)+(('Guts-2'!$I$7*0.01)*U14)+(('Guts-2'!$I$3*0.01)*AJ14)+(('Guts-2'!$I$9*0.01)*AY14)+(('Guts-2'!$I$4*0.01)*BN14)+(('Guts-2'!$I$2*0.01)*CC14)+(('Guts-2'!$I$8*0.01)*CR14) ->  | DH14: =(('Guts-2'!$I$1*0.01)*G14)+(('Guts-2'!$I$7*0.01)*V14)+(('Guts-2'!$I$3*0.01)*AK14)+(('Guts-2'!$I$9*0.01)*AZ14)+(('Guts-2'!$I$4*0.01)*BO14)+(('Guts-2'!$I$2*0.01)*CD14)+(('Guts-2'!$I$8*0.01)*CS14) ->  | DI14: =(('Guts-2'!$I$1*0.01)*H14)+(('Guts-2'!$I$7*0.01)*W14)+(('Guts-2'!$I$3*0.01)*AL14)+(('Guts-2'!$I$9*0.01)*BA14)+(('Guts-2'!$I$4*0.01)*BP14)+(('Guts-2'!$I$2*0.01)*CE14)+(('Guts-2'!$I$8*0.01)*CT14) ->  | DJ14: =(('Guts-2'!$I$1*0.01)*I14)+(('Guts-2'!$I$7*0.01)*X14)+(('Guts-2'!$I$3*0.01)*AM14)+(('Guts-2'!$I$9*0.01)*BB14)+(('Guts-2'!$I$4*0.01)*BQ14)+(('Guts-2'!$I$2*0.01)*CF14)+(('Guts-2'!$I$8*0.01)*CU14) ->  | DK14: =(('Guts-2'!$I$1*0.01)*J14)+(('Guts-2'!$I$7*0.01)*Y14)+(('Guts-2'!$I$3*0.01)*AN14)+(('Guts-2'!$I$9*0.01)*BC14)+(('Guts-2'!$I$4*0.01)*BR14)+(('Guts-2'!$I$2*0.01)*CG14)+(('Guts-2'!$I$8*0.01)*CV14) ->  | DO14: =(('Guts-2'!$I$1*0.01)*N14)+(('Guts-2'!$I$7*0.01)*AC14)+(('Guts-2'!$I$3*0.01)*AR14)+(('Guts-2'!$I$9*0.01)*BG14)+(('Guts-2'!$I$4*0.01)*BV14)+(('Guts-2'!$I$2*0.01)*CK14)+(('Guts-2'!$I$8*0.01)*CZ14) ->  | DP14: =(('Guts-2'!$I$1*0.01)*O14)+(('Guts-2'!$I$7*0.01)*AD14)+(('Guts-2'!$I$3*0.01)*AS14)+(('Guts-2'!$I$9*0.01)*BH14)+(('Guts-2'!$I$4*0.01)*BW14)+(('Guts-2'!$I$2*0.01)*CL14)+(('Guts-2'!$I$8*0.01)*DA14) ->  | DQ14: =(('Guts-2'!$I$1*0.01)*P14)+(('Guts-2'!$I$7*0.01)*AE14)+(('Guts-2'!$I$3*0.01)*AT14)+(('Guts-2'!$I$9*0.01)*BI14)+(('Guts-2'!$I$4*0.01)*BX14)+(('Guts-2'!$I$2*0.01)*CM14)+(('Guts-2'!$I$8*0.01)*DB14) ->  | DR14: =(('Guts-2'!$I$1*0.01)*Q14)+(('Guts-2'!$I$7*0.01)*AF14)+(('Guts-2'!$I$3*0.01)*AU14)+(('Guts-2'!$I$9*0.01)*BJ14)+(('Guts-2'!$I$4*0.01)*BY14)+(('Guts-2'!$I$2*0.01)*CN14)+(('Guts-2'!$I$8*0.01)*DC14) ->  | EH14: 3 | EI14: 3 | EJ14: 55 | EK14: 45 | EL14: 28 | EM14: 64 | EN14: 23 | EO14: 2 | EP14: 3.77 | EQ14: 1.34 | ER14: 10.53 | ES14: 0 | ET14: 0 | EU14: 55 | EV14: 7 | EW14: =VLOOKUP($A14,'Import (Projections)'!$O$2:$X$8997,COLUMN(B12),FALSE) ->  | EX14: =VLOOKUP($A14,'Import (Projections)'!$O$2:$X$8997,COLUMN(C12),FALSE) ->  | EY14: =VLOOKUP($A14,'Import (Projections)'!$O$2:$X$8997,COLUMN(D12),FALSE) ->  | EZ14: =VLOOKUP($A14,'Import (Projections)'!$O$2:$X$8997,COLUMN(E12),FALSE) ->  | FA14: =VLOOKUP($A14,'Import (Projections)'!$O$2:$X$8997,COLUMN(F12),FALSE) ->  | FB14: =VLOOKUP($A14,'Import (Projections)'!$O$2:$X$8997,COLUMN(G12),FALSE) ->  | FC14: =VLOOKUP($A14,'Import (Projections)'!$O$2:$X$8997,COLUMN(H12),FALSE) ->  | FD14: =VLOOKUP($A14,'Import (Projections)'!$O$2:$X$8997,COLUMN(I12),FALSE) ->  | FI14: =VLOOKUP($A14,'Import (Projections)'!$O$2:$X$8997,COLUMN(J12),FALSE) ->  | FL14: =IFERROR(IFERROR(AVERAGE(FP14,FT14),IFERROR(FT14,IFERROR(FP14,0)))*CHOOSE('Guts-2'!$D$28,O14,AD14,AS14,BH14,BW14,CL14,DA14,DP14,EE14,ET14,FI14,),0) -> 0 | FM14: =IFERROR(IFERROR(AVERAGE(FQ14,FS14),IFERROR(FS14,IFERROR(FQ14,0)))*CHOOSE('Guts-2'!$D$28,O14,AD14,AS14,BH14,BW14,CL14,DA14,DP14,EE14,ET14,FI14,),0) -> 0 | FN14: 20.5 | FO14: 0.19805857 | FP14: 0 | FQ14: 0 | FR14: 0.1340324372 | FS14: 0 | FT14: 0 | FU14: 0 | FV14: 26 | FW14: 15
A15: Matt Bush | B15: bushma01 | C15: 6.861152731 | D15: 2.988130913 | E15: 74.725 | F15: 57.06102509 | G15: 20.2005218 | H15: 70.00092026 | I15: 27.18303028 | J15: 5.092814429 | K15: 3.273968183 | L15: 1.033945091 | M15: 8.431024187 | N15: 0 | O15: 0 | P15: 67.73593949 | Q15: 7.249354499 | R15: 3 | S15: 3 | T15: 65 | U15: 58 | V15: 21 | W15: 68 | X15: 25 | Y15: 1 | Z15: 3.52 | AA15: 1.22 | AB15: 9.42 | AC15: 0 | AD15: 0 | AE15: 65 | AF15: 7 | AG15: 6 | AH15: 3 | AI15: 69 | AJ15: 57 | AK15: 15 | AL15: 74 | AM15: 18 | AN15: 4 | AO15: 2.35 | AP15: 1.04 | AQ15: 9.65 | AR15: 0 | AS15: 0 | AT15: 63 | AU15: 5 | AV15: 6 | AW15: 4 | AX15: 65.3 | AY15: 59 | AZ15: 19 | BA15: 69 | BB15: 25 | BC15: 1.004615385 | BD15: 3.44 | BE15: 1.19 | BF15: 9.51 | BG15: 0 | BH15: 0 | BI15: 67 | BJ15: 7 | BK15: 5 | BL15: 3 | BM15: 65 | BN15: 58 | BO15: 20 | BP15: 68 | BQ15: 25 | BR15: 4 | BS15: 3.48 | BT15: 1.21 | BU15: 9.46 | BV15: 0 | BW15: 0 | BX15: 65 | BY15: 7 | BZ15: 3 | CA15: 2 | CB15: 67 | CC15: 61 | CD15: 22 | CE15: 63 | CF15: 27 | CG15: 4 | CH15: 3.68 | CI15: 1.24 | CJ15: 8.462686567 | CK15: 0 | CL15: 0 | CM15: 78 | CN15: 8 | CO15: 3 | CP15: 3 | CQ15: 65 | CR15: 56 | CS15: 21 | CT15: 68 | CU15: 25 | CV15: 1 | CW15: 3.49 | CX15: 1.19 | CY15: 9.42 | CZ15: 0 | DA15: 0 | DB15: 65 | DC15: 7 | DD15: =(('Guts-2'!$I$1*0.01)*C15)+(('Guts-2'!$I$7*0.01)*R15)+(('Guts-2'!$I$3*0.01)*AG15)+(('Guts-2'!$I$9*0.01)*AV15)+(('Guts-2'!$I$4*0.01)*BK15)+(('Guts-2'!$I$2*0.01)*BZ15)+(('Guts-2'!$I$8*0.01)*CO15) -> 4 | DE15: =(('Guts-2'!$I$1*0.01)*D15)+(('Guts-2'!$I$7*0.01)*S15)+(('Guts-2'!$I$3*0.01)*AH15)+(('Guts-2'!$I$9*0.01)*AW15)+(('Guts-2'!$I$4*0.01)*BL15)+(('Guts-2'!$I$2*0.01)*CA15)+(('Guts-2'!$I$8*0.01)*CP15) -> 3 | DF15: =(('Guts-2'!$I$1*0.01)*E15)+(('Guts-2'!$I$7*0.01)*T15)+(('Guts-2'!$I$3*0.01)*AI15)+(('Guts-2'!$I$9*0.01)*AX15)+(('Guts-2'!$I$4*0.01)*BM15)+(('Guts-2'!$I$2*0.01)*CB15)+(('Guts-2'!$I$8*0.01)*CQ15) -> 65.46 | DG15: =(('Guts-2'!$I$1*0.01)*F15)+(('Guts-2'!$I$7*0.01)*U15)+(('Guts-2'!$I$3*0.01)*AJ15)+(('Guts-2'!$I$9*0.01)*AY15)+(('Guts-2'!$I$4*0.01)*BN15)+(('Guts-2'!$I$2*0.01)*CC15)+(('Guts-2'!$I$8*0.01)*CR15) -> 58.8 | DH15: =(('Guts-2'!$I$1*0.01)*G15)+(('Guts-2'!$I$7*0.01)*V15)+(('Guts-2'!$I$3*0.01)*AK15)+(('Guts-2'!$I$9*0.01)*AZ15)+(('Guts-2'!$I$4*0.01)*BO15)+(('Guts-2'!$I$2*0.01)*CD15)+(('Guts-2'!$I$8*0.01)*CS15) -> 20.6 | DI15: =(('Guts-2'!$I$1*0.01)*H15)+(('Guts-2'!$I$7*0.01)*W15)+(('Guts-2'!$I$3*0.01)*AL15)+(('Guts-2'!$I$9*0.01)*BA15)+(('Guts-2'!$I$4*0.01)*BP15)+(('Guts-2'!$I$2*0.01)*CE15)+(('Guts-2'!$I$8*0.01)*CT15) -> 67.2 | DJ15: =(('Guts-2'!$I$1*0.01)*I15)+(('Guts-2'!$I$7*0.01)*X15)+(('Guts-2'!$I$3*0.01)*AM15)+(('Guts-2'!$I$9*0.01)*BB15)+(('Guts-2'!$I$4*0.01)*BQ15)+(('Guts-2'!$I$2*0.01)*CF15)+(('Guts-2'!$I$8*0.01)*CU15) -> 25.4 | DK15: =(('Guts-2'!$I$1*0.01)*J15)+(('Guts-2'!$I$7*0.01)*Y15)+(('Guts-2'!$I$3*0.01)*AN15)+(('Guts-2'!$I$9*0.01)*BC15)+(('Guts-2'!$I$4*0.01)*BR15)+(('Guts-2'!$I$2*0.01)*CG15)+(('Guts-2'!$I$8*0.01)*CV15) -> 2.200923077 | DL15: 3.492208983 | DM15: 1.212954476 | DN15: 9.239230064 | DO15: =(('Guts-2'!$I$1*0.01)*N15)+(('Guts-2'!$I$7*0.01)*AC15)+(('Guts-2'!$I$3*0.01)*AR15)+(('Guts-2'!$I$9*0.01)*BG15)+(('Guts-2'!$I$4*0.01)*BV15)+(('Guts-2'!$I$2*0.01)*CK15)+(('Guts-2'!$I$8*0.01)*CZ15) -> 0 | DP15: =(('Guts-2'!$I$1*0.01)*O15)+(('Guts-2'!$I$7*0.01)*AD15)+(('Guts-2'!$I$3*0.01)*AS15)+(('Guts-2'!$I$9*0.01)*BH15)+(('Guts-2'!$I$4*0.01)*BW15)+(('Guts-2'!$I$2*0.01)*CL15)+(('Guts-2'!$I$8*0.01)*DA15) -> 0 | DQ15: =(('Guts-2'!$I$1*0.01)*P15)+(('Guts-2'!$I$7*0.01)*AE15)+(('Guts-2'!$I$3*0.01)*AT15)+(('Guts-2'!$I$9*0.01)*BI15)+(('Guts-2'!$I$4*0.01)*BX15)+(('Guts-2'!$I$2*0.01)*CM15)+(('Guts-2'!$I$8*0.01)*DB15) -> 68 | DR15: =(('Guts-2'!$I$1*0.01)*Q15)+(('Guts-2'!$I$7*0.01)*AF15)+(('Guts-2'!$I$3*0.01)*AU15)+(('Guts-2'!$I$9*0.01)*BJ15)+(('Guts-2'!$I$4*0.01)*BY15)+(('Guts-2'!$I$2*0.01)*CN15)+(('Guts-2'!$I$8*0.01)*DC15) -> 7.2 | DS15: 3.780733789 | DT15: 3.075092268 | DU15: 68 | DV15: 58.81592074 | DW15: 18.171178 | DX15: 71.84003686 | DY15: 22.78795987 | DZ15: 3 | EA15: 3.016053512 | EB15: 1.132163217 | EC15: 9.508240173 | ED15: 0 | EE15: 0 | EF15: 65 | EG15: 7.053025343 | EH15: 3.780733789 | EI15: 3.075092268 | EJ15: 68 | EK15: 58.81592074 | EL15: 18.171178 | EM15: 71.84003686 | EN15: 22.78795987 | EO15: 3 | EP15: 3.016053512 | EQ15: 1.132163217 | ER15: 9.508240173 | ES15: 0 | ET15: 0 | EU15: 65 | EV15: 7.053025343 | EW15: =VLOOKUP($A15,'Import (Projections)'!$O$2:$X$8997,COLUMN(B13),FALSE) ->  | EX15: =VLOOKUP($A15,'Import (Projections)'!$O$2:$X$8997,COLUMN(C13),FALSE) ->  | EY15: =VLOOKUP($A15,'Import (Projections)'!$O$2:$X$8997,COLUMN(D13),FALSE) ->  | EZ15: =VLOOKUP($A15,'Import (Projections)'!$O$2:$X$8997,COLUMN(E13),FALSE) ->  | FA15: =VLOOKUP($A15,'Import (Projections)'!$O$2:$X$8997,COLUMN(F13),FALSE) ->  | FB15: =VLOOKUP($A15,'Import (Projections)'!$O$2:$X$8997,COLUMN(G13),FALSE) ->  | FC15: =VLOOKUP($A15,'Import (Projections)'!$O$2:$X$8997,COLUMN(H13),FALSE) ->  | FD15: =VLOOKUP($A15,'Import (Projections)'!$O$2:$X$8997,COLUMN(I13),FALSE) ->  | FI15: =VLOOKUP($A15,'Import (Projections)'!$O$2:$X$8997,COLUMN(J13),FALSE) ->  | FL15: =IFERROR(IFERROR(AVERAGE(FP15,FT15),IFERROR(FT15,IFERROR(FP15,0)))*CHOOSE('Guts-2'!$D$28,O15,AD15,AS15,BH15,BW15,CL15,DA15,DP15,EE15,ET15,FI15,),0) -> 0 | FM15: =IFERROR(IFERROR(AVERAGE(FQ15,FS15),IFERROR(FS15,IFERROR(FQ15,0)))*CHOOSE('Guts-2'!$D$28,O15,AD15,AS15,BH15,BW15,CL15,DA15,DP15,EE15,ET15,FI15,),0) -> 0 | FN15: 23.5 | FO15: 0.2054548002 | FP15: 0 | FQ15: 0 | FR15: 0.2837624409 | FS15: 0 | FT15: 0 | FU15: 0 | FV15: 34 | FW15: 13
A16: Carter Capps | B16: cappsca01 | R16: 2 | S16: 2 | T16: 45 | U16: 33 | V16: 17 | W16: 62 | X16: 14 | Y16: 0 | Z16: 2.78 | AA16: 1.1 | AB16: 12.47 | AC16: 0 | AD16: 0 | AE16: 45 | AF16: 4 | AG16: 3 | AH16: 3 | AI16: 49 | AJ16: 32 | AK16: 12 | AL16: 74 | AM16: 12 | AN16: 11 | AO16: 2.25 | AP16: 0.9 | AQ16: 13.59 | AR16: 0 | AS16: 0 | AT16: 47 | AU16: 4 | AV16: 1 | AW16: 0 | AX16: 28.3 | AY16: 22 | AZ16: 11 | BA16: 39 | BB16: 9 | BC16: 0 | BD16: 2.86 | BE16: 1.16 | BF16: 12.39 | BG16: 0 | BH16: 0 | BI16: 25 | BJ16: 3 | BK16: 2 | BL16: 1 | BM16: 45 | BN16: 34 | BO16: 17 | BP16: 62 | BQ16: 14 | BR16: 7 | BS16: 2.82 | BT16: 1.13 | BU16: 12.43 | BV16: 0 | BW16: 0 | BX16: 45 | BY16: 4 | BZ16: 1 | CA16: 2 | CB16: 37.3 | CC16: 36 | CD16: 15 | CE16: 40 | CF16: 18 | CG16: 5 | CH16: 4.38 | CI16: 1.35 | CJ16: 9.651474531 | CK16: 0 | CL16: 0 | CM16: 36 | CN16: 5 | CO16: 3 | CP16: 3 | CQ16: 65 | CR16: 45 | CS16: 24 | CT16: 90 | CU16: 20 | CV16: 0 | CW16: 2.71 | CX16: 1.07 | CY16: 12.43 | CZ16: 0 | DA16: 0 | DB16: 65 | DC16: 5 | DD16: =(('Guts-2'!$I$1*0.01)*C16)+(('Guts-2'!$I$7*0.01)*R16)+(('Guts-2'!$I$3*0.01)*AG16)+(('Guts-2'!$I$9*0.01)*AV16)+(('Guts-2'!$I$4*0.01)*BK16)+(('Guts-2'!$I$2*0.01)*BZ16)+(('Guts-2'!$I$8*0.01)*CO16) ->  | DE16: =(('Guts-2'!$I$1*0.01)*D16)+(('Guts-2'!$I$7*0.01)*S16)+(('Guts-2'!$I$3*0.01)*AH16)+(('Guts-2'!$I$9*0.01)*AW16)+(('Guts-2'!$I$4*0.01)*BL16)+(('Guts-2'!$I$2*0.01)*CA16)+(('Guts-2'!$I$8*0.01)*CP16) ->  | DF16: =(('Guts-2'!$I$1*0.01)*E16)+(('Guts-2'!$I$7*0.01)*T16)+(('Guts-2'!$I$3*0.01)*AI16)+(('Guts-2'!$I$9*0.01)*AX16)+(('Guts-2'!$I$4*0.01)*BM16)+(('Guts-2'!$I$2*0.01)*CB16)+(('Guts-2'!$I$8*0.01)*CQ16) ->  | DG16: =(('Guts-2'!$I$1*0.01)*F16)+(('Guts-2'!$I$7*0.01)*U16)+(('Guts-2'!$I$3*0.01)*AJ16)+(('Guts-2'!$I$9*0.01)*AY16)+(('Guts-2'!$I$4*0.01)*BN16)+(('Guts-2'!$I$2*0.01)*CC16)+(('Guts-2'!$I$8*0.01)*CR16) ->  | DH16: =(('Guts-2'!$I$1*0.01)*G16)+(('Guts-2'!$I$7*0.01)*V16)+(('Guts-2'!$I$3*0.01)*AK16)+(('Guts-2'!$I$9*0.01)*AZ16)+(('Guts-2'!$I$4*0.01)*BO16)+(('Guts-2'!$I$2*0.01)*CD16)+(('Guts-2'!$I$8*0.01)*CS16) ->  | DI16: =(('Guts-2'!$I$1*0.01)*H16)+(('Guts-2'!$I$7*0.01)*W16)+(('Guts-2'!$I$3*0.01)*AL16)+(('Guts-2'!$I$9*0.01)*BA16)+(('Guts-2'!$I$4*0.01)*BP16)+(('Guts-2'!$I$2*0.01)*CE16)+(('Guts-2'!$I$8*0.01)*CT16) ->  | DJ16: =(('Guts-2'!$I$1*0.01)*I16)+(('Guts-2'!$I$7*0.01)*X16)+(('Guts-2'!$I$3*0.01)*AM16)+(('Guts-2'!$I$9*0.01)*BB16)+(('Guts-2'!$I$4*0.01)*BQ16)+(('Guts-2'!$I$2*0.01)*CF16)+(('Guts-2'!$I$8*0.01)*CU16) ->  | DK16: =(('Guts-2'!$I$1*0.01)*J16)+(('Guts-2'!$I$7*0.01)*Y16)+(('Guts-2'!$I$3*0.01)*AN16)+(('Guts-2'!$I$9*0.01)*BC16)+(('Guts-2'!$I$4*0.01)*BR16)+(('Guts-2'!$I$2*0.01)*CG16)+(('Guts-2'!$I$8*0.01)*CV16) ->  | DO16: =(('Guts-2'!$I$1*0.01)*N16)+(('Guts-2'!$I$7*0.01)*AC16)+(('Guts-2'!$I$3*0.01)*AR16)+(('Guts-2'!$I$9*0.01)*BG16)+(('Guts-2'!$I$4*0.01)*BV16)+(('Guts-2'!$I$2*0.01)*CK16)+(('Guts-2'!$I$8*0.01)*CZ16) ->  | DP16: =(('Guts-2'!$I$1*0.01)*O16)+(('Guts-2'!$I$7*0.01)*AD16)+(('Guts-2'!$I$3*0.01)*AS16)+(('Guts-2'!$I$9*0.01)*BH16)+(('Guts-2'!$I$4*0.01)*BW16)+(('Guts-2'!$I$2*0.01)*CL16)+(('Guts-2'!$I$8*0.01)*DA16) ->  | DQ16: =(('Guts-2'!$I$1*0.01)*P16)+(('Guts-2'!$I$7*0.01)*AE16)+(('Guts-2'!$I$3*0.01)*AT16)+(('Guts-2'!$I$9*0.01)*BI16)+(('Guts-2'!$I$4*0.01)*BX16)+(('Guts-2'!$I$2*0.01)*CM16)+(('Guts-2'!$I$8*0.01)*DB16) ->  | DR16: =(('Guts-2'!$I$1*0.01)*Q16)+(('Guts-2'!$I$7*0.01)*AF16)+(('Guts-2'!$I$3*0.01)*AU16)+(('Guts-2'!$I$9*0.01)*BJ16)+(('Guts-2'!$I$4*0.01)*BY16)+(('Guts-2'!$I$2*0.01)*CN16)+(('Guts-2'!$I$8*0.01)*DC16) ->  | EF16: 46 | EH16: 2 | EI16: 2 | EJ16: 45 | EK16: 33 | EL16: 17 | EM16: 62 | EN16: 14 | EO16: 0 | EP16: 2.78 | EQ16: 1.1 | ER16: 12.47 | ES16: 0 | ET16: 0 | EU16: 46 | EV16: 4 | EW16: =VLOOKUP($A16,'Import (Projections)'!$O$2:$X$8997,COLUMN(B14),FALSE) ->  | EX16: =VLOOKUP($A16,'Import (Projections)'!$O$2:$X$8997,COLUMN(C14),FALSE) ->  | EY16: =VLOOKUP($A16,'Import (Projections)'!$O$2:$X$8997,COLUMN(D14),FALSE) ->  | EZ16: =VLOOKUP($A16,'Import (Projections)'!$O$2:$X$8997,COLUMN(E14),FALSE) ->  | FA16: =VLOOKUP($A16,'Import (Projections)'!$O$2:$X$8997,COLUMN(F14),FALSE) ->  | FB16: =VLOOKUP($A16,'Import (Projections)'!$O$2:$X$8997,COLUMN(G14),FALSE) ->  | FC16: =VLOOKUP($A16,'Import (Projections)'!$O$2:$X$8997,COLUMN(H14),FALSE) ->  | FD16: =VLOOKUP($A16,'Import (Projections)'!$O$2:$X$8997,COLUMN(I14),FALSE) ->  | FI16: =VLOOKUP($A16,'Import (Projections)'!$O$2:$X$8997,COLUMN(J14),FALSE) ->  | FL16: =IFERROR(IFERROR(AVERAGE(FP16,FT16),IFERROR(FT16,IFERROR(FP16,0)))*CHOOSE('Guts-2'!$D$28,O16,AD16,AS16,BH16,BW16,CL16,DA16,DP16,EE16,ET16,FI16,),0) -> 0 | FM16: =IFERROR(IFERROR(AVERAGE(FQ16,FS16),IFERROR(FS16,IFERROR(FQ16,0)))*CHOOSE('Guts-2'!$D$28,O16,AD16,AS16,BH16,BW16,CL16,DA16,DP16,EE16,ET16,FI16,),0) -> 0 | FN16: 11 | FP16: 0 | FQ16: 0 | FS16: 0 | FT16: 0 | FU16: 0 | FV16: 17 | FW16: 5
A17: Santiago Casilla | B17: casilja01 | C17: 2.871112263 | D17: 3.563614879 | E17: 59.47619048 | F17: 49.62839979 | G17: 20.76038384 | H17: 61.27922231 | I17: 22.97155793 | J17: 27.58171749 | K17: 3.476080423 | L17: 1.183478348 | M17: 9.272836683 | N17: 0 | O17: 0.2857142857 | P17: 62.89070239 | Q17: 6.633067982 | R17: 3 | S17: 3 | T17: 55 | U17: 53 | V17: 21 | W17: 52 | X17: 24 | Y17: 2 | Z17: 3.96 | AA17: 1.35 | AB17: 8.56 | AC17: 0 | AD17: 0 | AE17: 55 | AF17: 6 | AV17: 3 | AW17: 2 | AX17: 51.3 | AY17: 47 | AZ17: 16 | BA17: 46 | BB17: 19 | BC17: 1.865454545 | BD17: 3.33 | BE17: 1.23 | BF17: 8.06 | BG17: 0 | BH17: 0 | BI17: 53 | BJ17: 6 | BK17: 3 | BL17: 2 | BM17: 55 | BN17: 52 | BO17: 19 | BP17: 51 | BQ17: 22 | BR17: 6 | BS17: 3.64 | BT17: 1.29 | BU17: 8.31 | BV17: 0 | BW17: 0 | BX17: 55 | BY17: 6 | BZ17: 3 | CA17: 2 | CB17: 67 | CC17: 61 | CD17: 24 | CE17: 63 | CF17: 27 | CG17: 2 | CH17: 3.58 | CI17: 1.26 | CJ17: 8.462686567 | CK17: 0 | CL17: 0 | CM17: 64 | CN17: 9 | CO17: 3 | CP17: 3 | CQ17: 65 | CR17: 60 | CS17: 25 | CT17: 62 | CU17: 28 | CV17: 2 | CW17: 3.88 | CX17: 1.31 | CY17: 8.54 | CZ17: 0 | DA17: 0 | DB17: 65 | DC17: 7 | DD17: =(('Guts-2'!$I$1*0.01)*C17)+(('Guts-2'!$I$7*0.01)*R17)+(('Guts-2'!$I$3*0.01)*AG17)+(('Guts-2'!$I$9*0.01)*AV17)+(('Guts-2'!$I$4*0.01)*BK17)+(('Guts-2'!$I$2*0.01)*BZ17)+(('Guts-2'!$I$8*0.01)*CO17) ->  | DE17: =(('Guts-2'!$I$1*0.01)*D17)+(('Guts-2'!$I$7*0.01)*S17)+(('Guts-2'!$I$3*0.01)*AH17)+(('Guts-2'!$I$9*0.01)*AW17)+(('Guts-2'!$I$4*0.01)*BL17)+(('Guts-2'!$I$2*0.01)*CA17)+(('Guts-2'!$I$8*0.01)*CP17) ->  | DF17: =(('Guts-2'!$I$1*0.01)*E17)+(('Guts-2'!$I$7*0.01)*T17)+(('Guts-2'!$I$3*0.01)*AI17)+(('Guts-2'!$I$9*0.01)*AX17)+(('Guts-2'!$I$4*0.01)*BM17)+(('Guts-2'!$I$2*0.01)*CB17)+(('Guts-2'!$I$8*0.01)*CQ17) ->  | DG17: =(('Guts-2'!$I$1*0.01)*F17)+(('Guts-2'!$I$7*0.01)*U17)+(('Guts-2'!$I$3*0.01)*AJ17)+(('Guts-2'!$I$9*0.01)*AY17)+(('Guts-2'!$I$4*0.01)*BN17)+(('Guts-2'!$I$2*0.01)*CC17)+(('Guts-2'!$I$8*0.01)*CR17) ->  | DH17: =(('Guts-2'!$I$1*0.01)*G17)+(('Guts-2'!$I$7*0.01)*V17)+(('Guts-2'!$I$3*0.01)*AK17)+(('Guts-2'!$I$9*0.01)*AZ17)+(('Guts-2'!$I$4*0.01)*BO17)+(('Guts-2'!$I$2*0.01)*CD17)+(('Guts-2'!$I$8*0.01)*CS17) ->  | DI17: =(('Guts-2'!$I$1*0.01)*H17)+(('Guts-2'!$I$7*0.01)*W17)+(('Guts-2'!$I$3*0.01)*AL17)+(('Guts-2'!$I$9*0.01)*BA17)+(('Guts-2'!$I$4*0.01)*BP17)+(('Guts-2'!$I$2*0.01)*CE17)+(('Guts-2'!$I$8*0.01)*CT17) ->  | DJ17: =(('Guts-2'!$I$1*0.01)*I17)+(('Guts-2'!$I$7*0.01)*X17)+(('Guts-2'!$I$3*0.01)*AM17)+(('Guts-2'!$I$9*0.01)*BB17)+(('Guts-2'!$I$4*0.01)*BQ17)+(('Guts-2'!$I$2*0.01)*CF17)+(('Guts-2'!$I$8*0.01)*CU17) ->  | DK17: =(('Guts-2'!$I$1*0.01)*J17)+(('Guts-2'!$I$7*0.01)*Y17)+(('Guts-2'!$I$3*0.01)*AN17)+(('Guts-2'!$I$9*0.01)*BC17)+(('Guts-2'!$I$4*0.01)*BR17)+(('Guts-2'!$I$2*0.01)*CG17)+(('Guts-2'!$I$8*0.01)*CV17) ->  | DO17: =(('Guts-2'!$I$1*0.01)*N17)+(('Guts-2'!$I$7*0.01)*AC17)+(('Guts-2'!$I$3*0.01)*AR17)+(('Guts-2'!$I$9*0.01)*BG17)+(('Guts-2'!$I$4*0.01)*BV17)+(('Guts-2'!$I$2*0.01)*CK17)+(('Guts-2'!$I$8*0.01)*CZ17) ->  | DP17: =(('Guts-2'!$I$1*0.01)*O17)+(('Guts-2'!$I$7*0.01)*AD17)+(('Guts-2'!$I$3*0.01)*AS17)+(('Guts-2'!$I$9*0.01)*BH17)+(('Guts-2'!$I$4*0.01)*BW17)+(('Guts-2'!$I$2*0.01)*CL17)+(('Guts-2'!$I$8*0.01)*DA17) ->  | DQ17: =(('Guts-2'!$I$1*0.01)*P17)+(('Guts-2'!$I$7*0.01)*AE17)+(('Guts-2'!$I$3*0.01)*AT17)+(('Guts-2'!$I$9*0.01)*BI17)+(('Guts-2'!$I$4*0.01)*BX17)+(('Guts-2'!$I$2*0.01)*CM17)+(('Guts-2'!$I$8*0.01)*DB17) ->  | DR17: =(('Guts-2'!$I$1*0.01)*Q17)+(('Guts-2'!$I$7*0.01)*AF17)+(('Guts-2'!$I$3*0.01)*AU17)+(('Guts-2'!$I$9*0.01)*BJ17)+(('Guts-2'!$I$4*0.01)*BY17)+(('Guts-2'!$I$2*0.01)*CN17)+(('Guts-2'!$I$8*0.01)*DC17) ->  | EH17: 3 | EI17: 3 | EJ17: 55 | EK17: 53 | EL17: 21 | EM17: 52 | EN17: 24 | EO17: 2 | EP17: 3.96 | EQ17: 1.35 | ER17: 8.56 | ES17: 0 | ET17: 0 | EU17: 55 | EV17: 6 | EW17: =VLOOKUP($A17,'Import (Projections)'!$O$2:$X$8997,COLUMN(B15),FALSE) ->  | EX17: =VLOOKUP($A17,'Import (Projections)'!$O$2:$X$8997,COLUMN(C15),FALSE) ->  | EY17: =VLOOKUP($A17,'Import (Projections)'!$O$2:$X$8997,COLUMN(D15),FALSE) ->  | EZ17: =VLOOKUP($A17,'Import (Projections)'!$O$2:$X$8997,COLUMN(E15),FALSE) ->  | FA17: =VLOOKUP($A17,'Import (Projections)'!$O$2:$X$8997,COLUMN(F15),FALSE) ->  | FB17: =VLOOKUP($A17,'Import (Projections)'!$O$2:$X$8997,COLUMN(G15),FALSE) ->  | FC17: =VLOOKUP($A17,'Import (Projections)'!$O$2:$X$8997,COLUMN(H15),FALSE) ->  | FD17: =VLOOKUP($A17,'Import (Projections)'!$O$2:$X$8997,COLUMN(I15),FALSE) ->  | FI17: =VLOOKUP($A17,'Import (Projections)'!$O$2:$X$8997,COLUMN(J15),FALSE) ->  | FL17: =IFERROR(IFERROR(AVERAGE(FP17,FT17),IFERROR(FT17,IFERROR(FP17,0)))*CHOOSE('Guts-2'!$D$28,O17,AD17,AS17,BH17,BW17,CL17,DA17,DP17,EE17,ET17,FI17,),0) -> 0 | FM17: =IFERROR(IFERROR(AVERAGE(FQ17,FS17),IFERROR(FS17,IFERROR(FQ17,0)))*CHOOSE('Guts-2'!$D$28,O17,AD17,AS17,BH17,BW17,CL17,DA17,DP17,EE17,ET17,FI17,),0) -> 0 | FN17: 12 | FO17: 0.2267043799 | FP17: 0 | FQ17: 0 | FR17: 0.6636924514 | FS17: 0 | FT17: 0 | FW17: 12
A18: Aroldis Chapman | B18: chapmar01 | C18: 3.349230132 | D18: 2.421789093 | E18: 61.18095238 | F18: 40.68827599 | G18: 23.90691644 | H18: 87.96413131 | I18: 15.55932602 | J18: 30.76732253 | K18: 2.288848551 | L18: 1.055805605 | M18: 12.93992903 | N18: 0 | O18: 0.4285714286 | P18: 60.84910828 | Q18: 3.264984855 | R18: 4 | S18: 2 | T18: 65 | U18: 40 | V18: 26 | W18: 104 | X18: 17 | Y18: 35 | Z18: 2.33 | AA18: 1.02 | AB18: 14.34 | AC18: 0 | AD18: 0 | AE18: 65 | AF18: 5 | AG18: 3 | AH18: 2 | AI18: 63 | AJ18: 39 | AK18: 23 | AL18: 94 | AM18: 16 | AN18: 37 | AO18: 2.25 | AP18: 0.98 | AQ18: 13.43 | AR18: 0 | AS18: 0 | AT18: 63 | AU18: 3 | AV18: 4 | AW18: 2 | AX18: 57.7 | AY18: 38 | AZ18: 23 | BA18: 95 | BB18: 15 | BC18: 33.50322581 | BD18: 2.34 | BE18: 1.06 | BF18: 14.83 | BG18: 0 | BH18: 0 | BI18: 59 | BJ18: 6 | BK18: 4 | BL18: 2 | BM18: 65 | BN18: 41 | BO18: 26 | BP18: 105 | BQ18: 17 | BR18: 35 | BS18: 2.34 | BT18: 1.04 | BU18: 14.58 | BV18: 0 | BW18: 0 | BX18: 65 | BY18: 6 | BZ18: 3 | CA18: 2 | CB18: 72.3 | CC18: 61 | CD18: 30 | CE18: 91 | CF18: 28 | CG18: 36 | CH18: 3.42 | CI18: 1.26 | CJ18: 11.32780083 | CK18: 0 | CL18: 0 | CM18: 70 | CN18: 8 | CO18: 4 | CP18: 2 | CQ18: 65 | CR18: 38 | CS18: 26 | CT18: 104 | CU18: 16 | CV18: 35 | CW18: 2.28 | CX18: 0.99 | CY18: 14.36 | CZ18: 0 | DA18: 0 | DB18: 65 | DC18: 5 | DD18: =(('Guts-2'!$I$1*0.01)*C18)+(('Guts-2'!$I$7*0.01)*R18)+(('Guts-2'!$I$3*0.01)*AG18)+(('Guts-2'!$I$9*0.01)*AV18)+(('Guts-2'!$I$4*0.01)*BK18)+(('Guts-2'!$I$2*0.01)*BZ18)+(('Guts-2'!$I$8*0.01)*CO18) -> 3.8 | DE18: =(('Guts-2'!$I$1*0.01)*D18)+(('Guts-2'!$I$7*0.01)*S18)+(('Guts-2'!$I$3*0.01)*AH18)+(('Guts-2'!$I$9*0.01)*AW18)+(('Guts-2'!$I$4*0.01)*BL18)+(('Guts-2'!$I$2*0.01)*CA18)+(('Guts-2'!$I$8*0.01)*CP18) -> 2 | DF18: =(('Guts-2'!$I$1*0.01)*E18)+(('Guts-2'!$I$7*0.01)*T18)+(('Guts-2'!$I$3*0.01)*AI18)+(('Guts-2'!$I$9*0.01)*AX18)+(('Guts-2'!$I$4*0.01)*BM18)+(('Guts-2'!$I$2*0.01)*CB18)+(('Guts-2'!$I$8*0.01)*CQ18) -> 65 | DG18: =(('Guts-2'!$I$1*0.01)*F18)+(('Guts-2'!$I$7*0.01)*U18)+(('Guts-2'!$I$3*0.01)*AJ18)+(('Guts-2'!$I$9*0.01)*AY18)+(('Guts-2'!$I$4*0.01)*BN18)+(('Guts-2'!$I$2*0.01)*CC18)+(('Guts-2'!$I$8*0.01)*CR18) -> 44 | DH18: =(('Guts-2'!$I$1*0.01)*G18)+(('Guts-2'!$I$7*0.01)*V18)+(('Guts-2'!$I$3*0.01)*AK18)+(('Guts-2'!$I$9*0.01)*AZ18)+(('Guts-2'!$I$4*0.01)*BO18)+(('Guts-2'!$I$2*0.01)*CD18)+(('Guts-2'!$I$8*0.01)*CS18) -> 26.2 | DI18: =(('Guts-2'!$I$1*0.01)*H18)+(('Guts-2'!$I$7*0.01)*W18)+(('Guts-2'!$I$3*0.01)*AL18)+(('Guts-2'!$I$9*0.01)*BA18)+(('Guts-2'!$I$4*0.01)*BP18)+(('Guts-2'!$I$2*0.01)*CE18)+(('Guts-2'!$I$8*0.01)*CT18) -> 99.8 | DJ18: =(('Guts-2'!$I$1*0.01)*I18)+(('Guts-2'!$I$7*0.01)*X18)+(('Guts-2'!$I$3*0.01)*AM18)+(('Guts-2'!$I$9*0.01)*BB18)+(('Guts-2'!$I$4*0.01)*BQ18)+(('Guts-2'!$I$2*0.01)*CF18)+(('Guts-2'!$I$8*0.01)*CU18) -> 18.8 | DK18: =(('Guts-2'!$I$1*0.01)*J18)+(('Guts-2'!$I$7*0.01)*Y18)+(('Guts-2'!$I$3*0.01)*AN18)+(('Guts-2'!$I$9*0.01)*BC18)+(('Guts-2'!$I$4*0.01)*BR18)+(('Guts-2'!$I$2*0.01)*CG18)+(('Guts-2'!$I$8*0.01)*CV18) -> 34.90064516 | DL18: 2.603076923 | DM18: 1.08 | DN18: 13.81846154 | DO18: =(('Guts-2'!$I$1*0.01)*N18)+(('Guts-2'!$I$7*0.01)*AC18)+(('Guts-2'!$I$3*0.01)*AR18)+(('Guts-2'!$I$9*0.01)*BG18)+(('Guts-2'!$I$4*0.01)*BV18)+(('Guts-2'!$I$2*0.01)*CK18)+(('Guts-2'!$I$8*0.01)*CZ18) -> 0 | DP18: =(('Guts-2'!$I$1*0.01)*O18)+(('Guts-2'!$I$7*0.01)*AD18)+(('Guts-2'!$I$3*0.01)*AS18)+(('Guts-2'!$I$9*0.01)*BH18)+(('Guts-2'!$I$4*0.01)*BW18)+(('Guts-2'!$I$2*0.01)*CL18)+(('Guts-2'!$I$8*0.01)*DA18) -> 0 | DQ18: =(('Guts-2'!$I$1*0.01)*P18)+(('Guts-2'!$I$7*0.01)*AE18)+(('Guts-2'!$I$3*0.01)*AT18)+(('Guts-2'!$I$9*0.01)*BI18)+(('Guts-2'!$I$4*0.01)*BX18)+(('Guts-2'!$I$2*0.01)*CM18)+(('Guts-2'!$I$8*0.01)*DB18) -> 64.8 | DR18: =(('Guts-2'!$I$1*0.01)*Q18)+(('Guts-2'!$I$7*0.01)*AF18)+(('Guts-2'!$I$3*0.01)*AU18)+(('Guts-2'!$I$9*0.01)*BJ18)+(('Guts-2'!$I$4*0.01)*BY18)+(('Guts-2'!$I$2*0.01)*CN18)+(('Guts-2'!$I$8*0.01)*DC18) -> 6 | DS18: 3.671461402 | DT18: 2.012701206 | DU18: 64 | DV18: 40.44669428 | DW18: 23.67019157 | DX18: 97.73610175 | DY18: 16.54466422 | DZ18: 36 | EA18: 2.326593407 | EB18: 1.001826341 | EC18: 13.74413931 | ED18: 0 | EE18: 0 | EF18: 64 | EG18: 4.787579254 | EH18: 3.671461402 | EI18: 2.012701206 | EJ18: 64 | EK18: 40.44669428 | EL18: 23.67019157 | EM18: 97.73610175 | EN18: 16.54466422 | EO18: 36 | EP18: 2.326593407 | EQ18: 1.001826341 | ER18: 13.74413931 | ES18: 0 | ET18: 0 | EU18: 64 | EV18: 4.787579254 | EW18: =VLOOKUP($A18,'Import (Projections)'!$O$2:$X$8997,COLUMN(B16),FALSE) ->  | EX18: =VLOOKUP($A18,'Import (Projections)'!$O$2:$X$8997,COLUMN(C16),FALSE) ->  | EY18: =VLOOKUP($A18,'Import (Projections)'!$O$2:$X$8997,COLUMN(D16),FALSE) ->  | EZ18: =VLOOKUP($A18,'Import (Projections)'!$O$2:$X$8997,COLUMN(E16),FALSE) ->  | FA18: =VLOOKUP($A18,'Import (Projections)'!$O$2:$X$8997,COLUMN(F16),FALSE) ->  | FB18: =VLOOKUP($A18,'Import (Projections)'!$O$2:$X$8997,COLUMN(G16),FALSE) ->  | FC18: =VLOOKUP($A18,'Import (Projections)'!$O$2:$X$8997,COLUMN(H16),FALSE) ->  | FD18: =VLOOKUP($A18,'Import (Projections)'!$O$2:$X$8997,COLUMN(I16),FALSE) ->  | FI18: =VLOOKUP($A18,'Import (Projections)'!$O$2:$X$8997,COLUMN(J16),FALSE) ->  | FL18: =IFERROR(IFERROR(AVERAGE(FP18,FT18),IFERROR(FT18,IFERROR(FP18,0)))*CHOOSE('Guts-2'!$D$28,O18,AD18,AS18,BH18,BW18,CL18,DA18,DP18,EE18,ET18,FI18,),0) -> 0 | FM18: =IFERROR(IFERROR(AVERAGE(FQ18,FS18),IFERROR(FS18,IFERROR(FQ18,0)))*CHOOSE('Guts-2'!$D$28,O18,AD18,AS18,BH18,BW18,CL18,DA18,DP18,EE18,ET18,FI18,),0) -> 0 | FN18: 2 | FO18: 0.1859762316 | FP18: 0 | FQ18: 0 | FR18: 0.7697815873 | FS18: 0 | FT18: 0 | FU18: 3 | FV18: 0 | FW18: 4
A19: Jesse Chavez | B19: chaveje01 | C19: 4.492087275 | D19: 6.707503379 | E19: 103.7142857 | F19: 108.275518 | G19: 32.9340269 | H19: 91.68624015 | I19: 49.18370125 | J19: 1.053036816 | K19: 4.268007133 | L19: 1.361524537 | M19: 7.95624398 | N19: 0 | O19: 10.42857143 | P19: 48.42053685 | Q19: 14.82078441 | R19: 8 | S19: 8 | T19: 130 | U19: 129 | V19: 43 | W19: 105 | X19: 61 | Y19: 0 | Z19: 4.18 | AA19: 1.32 | AB19: 7.26 | AC19: 11 | AD19: 23 | AE19: 23 | AF19: 17 | AV19: 8 | AW19: 8 | AX19: 134.3 | AY19: 135 | AZ19: 36 | BA19: 115 | BB19: 62 | BC19: 0 | BD19: 4.15 | BE19: 1.27 | BF19: 7.7 | BG19: 13 | BH19: 21 | BI19: 23 | BJ19: 18 | BK19: 8 | BL19: 8 | BM19: 131 | BN19: 131 | BO19: 39 | BP19: 109 | BQ19: 61 | BR19: 0 | BS19: 4.17 | BT19: 1.3 | BU19: 7.49 | BV19: 11 | BW19: 23 | BX19: 23 | BY19: 17 | BZ19: 6 | CA19: 7 | CB19: 100.7 | CC19: 108 | CD19: 27 | CE19: 73 | CF19: 50 | CG19: 0 | CH19: 4.5 | CI19: 1.34 | CJ19: 6.524329692 | CK19: 9 | CL19: 18 | CM19: 18 | CN19: 16 | CO19: 4 | CP19: 4 | CQ19: 65 | CR19: 62 | CS19: 21 | CT19: 53 | CU19: 29 | CV19: 0 | CW19: 4.05 | CX19: 1.27 | CY19: 7.36 | CZ19: 0 | DA19: 0 | DB19: 65 | DC19: 8 | DD19: =(('Guts-2'!$I$1*0.01)*C19)+(('Guts-2'!$I$7*0.01)*R19)+(('Guts-2'!$I$3*0.01)*AG19)+(('Guts-2'!$I$9*0.01)*AV19)+(('Guts-2'!$I$4*0.01)*BK19)+(('Guts-2'!$I$2*0.01)*BZ19)+(('Guts-2'!$I$8*0.01)*CO19) ->  | DE19: =(('Guts-2'!$I$1*0.01)*D19)+(('Guts-2'!$I$7*0.01)*S19)+(('Guts-2'!$I$3*0.01)*AH19)+(('Guts-2'!$I$9*0.01)*AW19)+(('Guts-2'!$I$4*0.01)*BL19)+(('Guts-2'!$I$2*0.01)*CA19)+(('Guts-2'!$I$8*0.01)*CP19) ->  | DF19: =(('Guts-2'!$I$1*0.01)*E19)+(('Guts-2'!$I$7*0.01)*T19)+(('Guts-2'!$I$3*0.01)*AI19)+(('Guts-2'!$I$9*0.01)*AX19)+(('Guts-2'!$I$4*0.01)*BM19)+(('Guts-2'!$I$2*0.01)*CB19)+(('Guts-2'!$I$8*0.01)*CQ19) ->  | DG19: =(('Guts-2'!$I$1*0.01)*F19)+(('Guts-2'!$I$7*0.01)*U19)+(('Guts-2'!$I$3*0.01)*AJ19)+(('Guts-2'!$I$9*0.01)*AY19)+(('Guts-2'!$I$4*0.01)*BN19)+(('Guts-2'!$I$2*0.01)*CC19)+(('Guts-2'!$I$8*0.01)*CR19) ->  | DH19: =(('Guts-2'!$I$1*0.01)*G19)+(('Guts-2'!$I$7*0.01)*V19)+(('Guts-2'!$I$3*0.01)*AK19)+(('Guts-2'!$I$9*0.01)*AZ19)+(('Guts-2'!$I$4*0.01)*BO19)+(('Guts-2'!$I$2*0.01)*CD19)+(('Guts-2'!$I$8*0.01)*CS19) ->  | DI19: =(('Guts-2'!$I$1*0.01)*H19)+(('Guts-2'!$I$7*0.01)*W19)+(('Guts-2'!$I$3*0.01)*AL19)+(('Guts-2'!$I$9*0.01)*BA19)+(('Guts-2'!$I$4*0.01)*BP19)+(('Guts-2'!$I$2*0.01)*CE19)+(('Guts-2'!$I$8*0.01)*CT19) ->  | DJ19: =(('Guts-2'!$I$1*0.01)*I19)+(('Guts-2'!$I$7*0.01)*X19)+(('Guts-2'!$I$3*0.01)*AM19)+(('Guts-2'!$I$9*0.01)*BB19)+(('Guts-2'!$I$4*0.01)*BQ19)+(('Guts-2'!$I$2*0.01)*CF19)+(('Guts-2'!$I$8*0.01)*CU19) ->  | DK19: =(('Guts-2'!$I$1*0.01)*J19)+(('Guts-2'!$I$7*0.01)*Y19)+(('Guts-2'!$I$3*0.01)*AN19)+(('Guts-2'!$I$9*0.01)*BC19)+(('Guts-2'!$I$4*0.01)*BR19)+(('Guts-2'!$I$2*0.01)*CG19)+(('Guts-2'!$I$8*0.01)*CV19) ->  | DO19: =(('Guts-2'!$I$1*0.01)*N19)+(('Guts-2'!$I$7*0.01)*AC19)+(('Guts-2'!$I$3*0.01)*AR19)+(('Guts-2'!$I$9*0.01)*BG19)+(('Guts-2'!$I$4*0.01)*BV19)+(('Guts-2'!$I$2*0.01)*CK19)+(('Guts-2'!$I$8*0.01)*CZ19) ->  | DP19: =(('Guts-2'!$I$1*0.01)*O19)+(('Guts-2'!$I$7*0.01)*AD19)+(('Guts-2'!$I$3*0.01)*AS19)+(('Guts-2'!$I$9*0.01)*BH19)+(('Guts-2'!$I$4*0.01)*BW19)+(('Guts-2'!$I$2*0.01)*CL19)+(('Guts-2'!$I$8*0.01)*DA19) ->  | DQ19: =(('Guts-2'!$I$1*0.01)*P19)+(('Guts-2'!$I$7*0.01)*AE19)+(('Guts-2'!$I$3*0.01)*AT19)+(('Guts-2'!$I$9*0.01)*BI19)+(('Guts-2'!$I$4*0.01)*BX19)+(('Guts-2'!$I$2*0.01)*CM19)+(('Guts-2'!$I$8*0.01)*DB19) ->  | DR19: =(('Guts-2'!$I$1*0.01)*Q19)+(('Guts-2'!$I$7*0.01)*AF19)+(('Guts-2'!$I$3*0.01)*AU19)+(('Guts-2'!$I$9*0.01)*BJ19)+(('Guts-2'!$I$4*0.01)*BY19)+(('Guts-2'!$I$2*0.01)*CN19)+(('Guts-2'!$I$8*0.01)*DC19) ->  | EH19: 8 | EI19: 8 | EJ19: 130 | EK19: 129 | EL19: 43 | EM19: 105 | EN19: 61 | EO19: 0 | EP19: 4.18 | EQ19: 1.32 | ER19: 7.26 | ES19: 11 | ET19: 23 | EU19: 23 | EV19: 17 | EW19: =VLOOKUP($A19,'Import (Projections)'!$O$2:$X$8997,COLUMN(B17),FALSE) ->  | EX19: =VLOOKUP($A19,'Import (Projections)'!$O$2:$X$8997,COLUMN(C17),FALSE) ->  | EY19: =VLOOKUP($A19,'Import (Projections)'!$O$2:$X$8997,COLUMN(D17),FALSE) ->  | EZ19: =VLOOKUP($A19,'Import (Projections)'!$O$2:$X$8997,COLUMN(E17),FALSE) ->  | FA19: =VLOOKUP($A19,'Import (Projections)'!$O$2:$X$8997,COLUMN(F17),FALSE) ->  | FB19: =VLOOKUP($A19,'Import (Projections)'!$O$2:$X$8997,COLUMN(G17),FALSE) ->  | FC19: =VLOOKUP($A19,'Import (Projections)'!$O$2:$X$8997,COLUMN(H17),FALSE) ->  | FD19: =VLOOKUP($A19,'Import (Projections)'!$O$2:$X$8997,COLUMN(I17),FALSE) ->  | FI19: =VLOOKUP($A19,'Import (Projections)'!$O$2:$X$8997,COLUMN(J17),FALSE) ->  | FL19: =IFERROR(IFERROR(AVERAGE(FP19,FT19),IFERROR(FT19,IFERROR(FP19,0)))*CHOOSE('Guts-2'!$D$28,O19,AD19,AS19,BH19,BW19,CL19,DA19,DP19,EE19,ET19,FI19,),0) -> 0.359375 | FM19: =IFERROR(IFERROR(AVERAGE(FQ19,FS19),IFERROR(FS19,IFERROR(FQ19,0)))*CHOOSE('Guts-2'!$D$28,O19,AD19,AS19,BH19,BW19,CL19,DA19,DP19,EE19,ET19,FI19,),0) -> 0 | FN19: 0.5 | FO19: 0.268722787 | FP19: 0 | FQ19: 0 | FR19: 0.1707765986 | FS19: 0 | FT19: 0.03125 | FU19: 0 | FV19: 0 | FW19: 1
A20: Tony Cingrani | B20: cingrto01 | C20: 2.156826548 | D20: 4.849329165 | E20: 61.8 | F20: 55.5938636 | G20: 35.29072908 | H20: 57.03636517 | I20: 30.54660272 | J20: 8.010288916 | K20: 4.448534376 | L20: 1.470624477 | M20: 8.306266772 | N20: 0 | O20: 3.571428571 | P20: 51.46213096 | Q20: 6.691385125 | R20: 3 | S20: 3 | T20: 55 | U20: 48 | V20: 27 | W20: 60 | X20: 24 | Y20: 0 | Z20: 3.85 | AA20: 1.36 | AB20: 9.84 | AC20: 0 | AD20: 0 | AE20: 55 | AF20: 7 | AV20: 3 | AW20: 3 | AX20: 51.7 | AY20: 47 | AZ20: 31 | BA20: 51 | BB20: 26 | BC20: 0 | BD20: 4.53 | BE20: 1.51 | BF20: 8.88 | BG20: 0 | BH20: 0 | BI20: 56 | BJ20: 6 | BK20: 3 | BL20: 3 | BM20: 55 | BN20: 49 | BO20: 30 | BP20: 57 | BQ20: 26 | BR20: 1 | BS20: 4.19 | BT20: 1.43 | BU20: 9.36 | BV20: 0 | BW20: 0 | BX20: 55 | BY20: 7 | BZ20: 2 | CA20: 3 | CB20: 67 | CC20: 64 | CD20: 34 | CE20: 62 | CF20: 34 | CG20: 4 | CH20: 4.6 | CI20: 1.47 | CJ20: 8.328358209 | CK20: 0 | CL20: 0 | CM20: 71 | CN20: 9 | CO20: 3 | CP20: 3 | CQ20: 65 | CR20: 54 | CS20: 32 | CT20: 71 | CU20: 27 | CV20: 0 | CW20: 3.75 | CX20: 1.32 | CY20: 9.81 | CZ20: 0 | DA20: 0 | DB20: 65 | DC20: 8 | DD20: =(('Guts-2'!$I$1*0.01)*C20)+(('Guts-2'!$I$7*0.01)*R20)+(('Guts-2'!$I$3*0.01)*AG20)+(('Guts-2'!$I$9*0.01)*AV20)+(('Guts-2'!$I$4*0.01)*BK20)+(('Guts-2'!$I$2*0.01)*BZ20)+(('Guts-2'!$I$8*0.01)*CO20) ->  | DE20: =(('Guts-2'!$I$1*0.01)*D20)+(('Guts-2'!$I$7*0.01)*S20)+(('Guts-2'!$I$3*0.01)*AH20)+(('Guts-2'!$I$9*0.01)*AW20)+(('Guts-2'!$I$4*0.01)*BL20)+(('Guts-2'!$I$2*0.01)*CA20)+(('Guts-2'!$I$8*0.01)*CP20) ->  | DF20: =(('Guts-2'!$I$1*0.01)*E20)+(('Guts-2'!$I$7*0.01)*T20)+(('Guts-2'!$I$3*0.01)*AI20)+(('Guts-2'!$I$9*0.01)*AX20)+(('Guts-2'!$I$4*0.01)*BM20)+(('Guts-2'!$I$2*0.01)*CB20)+(('Guts-2'!$I$8*0.01)*CQ20) ->  | DG20: =(('Guts-2'!$I$1*0.01)*F20)+(('Guts-2'!$I$7*0.01)*U20)+(('Guts-2'!$I$3*0.01)*AJ20)+(('Guts-2'!$I$9*0.01)*AY20)+(('Guts-2'!$I$4*0.01)*BN20)+(('Guts-2'!$I$2*0.01)*CC20)+(('Guts-2'!$I$8*0.01)*CR20) ->  | DH20: =(('Guts-2'!$I$1*0.01)*G20)+(('Guts-2'!$I$7*0.01)*V20)+(('Guts-2'!$I$3*0.01)*AK20)+(('Guts-2'!$I$9*0.01)*AZ20)+(('Guts-2'!$I$4*0.01)*BO20)+(('Guts-2'!$I$2*0.01)*CD20)+(('Guts-2'!$I$8*0.01)*CS20) ->  | DI20: =(('Guts-2'!$I$1*0.01)*H20)+(('Guts-2'!$I$7*0.01)*W20)+(('Guts-2'!$I$3*0.01)*AL20)+(('Guts-2'!$I$9*0.01)*BA20)+(('Guts-2'!$I$4*0.01)*BP20)+(('Guts-2'!$I$2*0.01)*CE20)+(('Guts-2'!$I$8*0.01)*CT20) ->  | DJ20: =(('Guts-2'!$I$1*0.01)*I20)+(('Guts-2'!$I$7*0.01)*X20)+(('Guts-2'!$I$3*0.01)*AM20)+(('Guts-2'!$I$9*0.01)*BB20)+(('Guts-2'!$I$4*0.01)*BQ20)+(('Guts-2'!$I$2*0.01)*CF20)+(('Guts-2'!$I$8*0.01)*CU20) ->  | DK20: =(('Guts-2'!$I$1*0.01)*J20)+(('Guts-2'!$I$7*0.01)*Y20)+(('Guts-2'!$I$3*0.01)*AN20)+(('Guts-2'!$I$9*0.01)*BC20)+(('Guts-2'!$I$4*0.01)*BR20)+(('Guts-2'!$I$2*0.01)*CG20)+(('Guts-2'!$I$8*0.01)*CV20) ->  | DO20: =(('Guts-2'!$I$1*0.01)*N20)+(('Guts-2'!$I$7*0.01)*AC20)+(('Guts-2'!$I$3*0.01)*AR20)+(('Guts-2'!$I$9*0.01)*BG20)+(('Guts-2'!$I$4*0.01)*BV20)+(('Guts-2'!$I$2*0.01)*CK20)+(('Guts-2'!$I$8*0.01)*CZ20) ->  | DP20: =(('Guts-2'!$I$1*0.01)*O20)+(('Guts-2'!$I$7*0.01)*AD20)+(('Guts-2'!$I$3*0.01)*AS20)+(('Guts-2'!$I$9*0.01)*BH20)+(('Guts-2'!$I$4*0.01)*BW20)+(('Guts-2'!$I$2*0.01)*CL20)+(('Guts-2'!$I$8*0.01)*DA20) ->  | DQ20: =(('Guts-2'!$I$1*0.01)*P20)+(('Guts-2'!$I$7*0.01)*AE20)+(('Guts-2'!$I$3*0.01)*AT20)+(('Guts-2'!$I$9*0.01)*BI20)+(('Guts-2'!$I$4*0.01)*BX20)+(('Guts-2'!$I$2*0.01)*CM20)+(('Guts-2'!$I$8*0.01)*DB20) ->  | DR20: =(('Guts-2'!$I$1*0.01)*Q20)+(('Guts-2'!$I$7*0.01)*AF20)+(('Guts-2'!$I$3*0.01)*AU20)+(('Guts-2'!$I$9*0.01)*BJ20)+(('Guts-2'!$I$4*0.01)*BY20)+(('Guts-2'!$I$2*0.01)*CN20)+(('Guts-2'!$I$8*0.01)*DC20) ->  | EH20: 3 | EI20: 3 | EJ20: 55 | EK20: 48 | EL20: 27 | EM20: 60 | EN20: 24 | EO20: 0 | EP20: 3.85 | EQ20: 1.36 | ER20: 9.84 | ES20: 0 | ET20: 0 | EU20: 55 | EV20: 7 | EW20: =VLOOKUP($A20,'Import (Projections)'!$O$2:$X$8997,COLUMN(B18),FALSE) ->  | EX20: =VLOOKUP($A20,'Import (Projections)'!$O$2:$X$8997,COLUMN(C18),FALSE) ->  | EY20: =VLOOKUP($A20,'Import (Projections)'!$O$2:$X$8997,COLUMN(D18),FALSE) ->  | EZ20: =VLOOKUP($A20,'Import (Projections)'!$O$2:$X$8997,COLUMN(E18),FALSE) ->  | FA20: =VLOOKUP($A20,'Import (Projections)'!$O$2:$X$8997,COLUMN(F18),FALSE) ->  | FB20: =VLOOKUP($A20,'Import (Projections)'!$O$2:$X$8997,COLUMN(G18),FALSE) ->  | FC20: =VLOOKUP($A20,'Import (Projections)'!$O$2:$X$8997,COLUMN(H18),FALSE) ->  | FD20: =VLOOKUP($A20,'Import (Projections)'!$O$2:$X$8997,COLUMN(I18),FALSE) ->  | FI20: =VLOOKUP($A20,'Import (Projections)'!$O$2:$X$8997,COLUMN(J18),FALSE) ->  | FL20: =IFERROR(IFERROR(AVERAGE(FP20,FT20),IFERROR(FT20,IFERROR(FP20,0)))*CHOOSE('Guts-2'!$D$28,O20,AD20,AS20,BH20,BW20,CL20,DA20,DP20,EE20,ET20,FI20,),0) -> 0 | FM20: =IFERROR(IFERROR(AVERAGE(FQ20,FS20),IFERROR(FS20,IFERROR(FQ20,0)))*CHOOSE('Guts-2'!$D$28,O20,AD20,AS20,BH20,BW20,CL20,DA20,DP20,EE20,ET20,FI20,),0) -> 0 | FN20: 10.5 | FO20: 0.2408933562 | FP20: 0 | FQ20: 0 | FR20: 0.3808087021 | FS20: 0 | FT20: 0 | FU20: 0 | FV20: 9 | FW20: 12
A21: Steve Cishek | B21: cishest01 | C21: 3.634944418 | D21: 5.421789093 | E21: 64.3 | F21: 56.39733162 | G21: 23.15735338 | H21: 66.84440341 | I21: 25.16271809 | J21: 18.76732253 | K21: 3.521997867 | L21: 1.237242379 | M21: 9.356137336 | N21: 0 | O21: 0.8571428571 | P21: 63.99196542 | Q21: 6.324852741 | R21: 2 | S21: 2 | T21: 40 | U21: 36 | V21: 14 | W21: 40 | X21: 16 | Y21: 0 | Z21: 3.56 | AA21: 1.25 | AB21: 9.09 | AC21: 0 | AD21: 0 | AE21: 40 | AF21: 4 | AG21: 4 | AH21: 4 | AI21: 54 | AJ21: 45 | AK21: 17 | AL21: 59 | AM21: 17 | AN21: 0 | AO21: 2.89 | AP21: 1.15 | AQ21: 9.83 | AR21: 0 | AS21: 0 | AT21: 54 | AU21: 5 | AV21: 5 | AW21: 4 | AX21: 60.7 | AY21: 54 | AZ21: 22 | BA21: 69 | BB21: 24 | BC21: 0 | BD21: 3.56 | BE21: 1.25 | BF21: 10.24 | BG21: 0 | BH21: 0 | BI21: 61 | BJ21: 7 | BK21: 3 | BL21: 2 | BM21: 40 | BN21: 36 | BO21: 14 | BP21: 43 | BQ21: 16 | BR21: 0 | BS21: 3.56 | BT21: 1.25 | BU21: 9.67 | BV21: 0 | BW21: 0 | BX21: 40 | BY21: 4 | BZ21: 2 | CA21: 2 | CB21: 53 | CC21: 47 | CD21: 21 | CE21: 56 | CF21: 21 | CG21: 4 | CH21: 3.62 | CI21: 1.28 | CJ21: 9.509433962 | CK21: 0 | CL21: 0 | CM21: 50 | CN21: 6 | CO21: 3 | CP21: 3 | CQ21: 65 | CR21: 56 | CS21: 23 | CT21: 66 | CU21: 25 | CV21: 4 | CW21: 3.51 | CX21: 1.22 | CY21: 9.08 | CZ21: 0 | DA21: 0 | DB21: 65 | DC21: 7 | DD21: =(('Guts-2'!$I$1*0.01)*C21)+(('Guts-2'!$I$7*0.01)*R21)+(('Guts-2'!$I$3*0.01)*AG21)+(('Guts-2'!$I$9*0.01)*AV21)+(('Guts-2'!$I$4*0.01)*BK21)+(('Guts-2'!$I$2*0.01)*BZ21)+(('Guts-2'!$I$8*0.01)*CO21) -> 2.8 | DE21: =(('Guts-2'!$I$1*0.01)*D21)+(('Guts-2'!$I$7*0.01)*S21)+(('Guts-2'!$I$3*0.01)*AH21)+(('Guts-2'!$I$9*0.01)*AW21)+(('Guts-2'!$I$4*0.01)*BL21)+(('Guts-2'!$I$2*0.01)*CA21)+(('Guts-2'!$I$8*0.01)*CP21) -> 2.4 | DF21: =(('Guts-2'!$I$1*0.01)*E21)+(('Guts-2'!$I$7*0.01)*T21)+(('Guts-2'!$I$3*0.01)*AI21)+(('Guts-2'!$I$9*0.01)*AX21)+(('Guts-2'!$I$4*0.01)*BM21)+(('Guts-2'!$I$2*0.01)*CB21)+(('Guts-2'!$I$8*0.01)*CQ21) -> 46.74 | DG21: =(('Guts-2'!$I$1*0.01)*F21)+(('Guts-2'!$I$7*0.01)*U21)+(('Guts-2'!$I$3*0.01)*AJ21)+(('Guts-2'!$I$9*0.01)*AY21)+(('Guts-2'!$I$4*0.01)*BN21)+(('Guts-2'!$I$2*0.01)*CC21)+(('Guts-2'!$I$8*0.01)*CR21) -> 41.8 | DH21: =(('Guts-2'!$I$1*0.01)*G21)+(('Guts-2'!$I$7*0.01)*V21)+(('Guts-2'!$I$3*0.01)*AK21)+(('Guts-2'!$I$9*0.01)*AZ21)+(('Guts-2'!$I$4*0.01)*BO21)+(('Guts-2'!$I$2*0.01)*CD21)+(('Guts-2'!$I$8*0.01)*CS21) -> 17 | DI21: =(('Guts-2'!$I$1*0.01)*H21)+(('Guts-2'!$I$7*0.01)*W21)+(('Guts-2'!$I$3*0.01)*AL21)+(('Guts-2'!$I$9*0.01)*BA21)+(('Guts-2'!$I$4*0.01)*BP21)+(('Guts-2'!$I$2*0.01)*CE21)+(('Guts-2'!$I$8*0.01)*CT21) -> 49.6 | DJ21: =(('Guts-2'!$I$1*0.01)*I21)+(('Guts-2'!$I$7*0.01)*X21)+(('Guts-2'!$I$3*0.01)*AM21)+(('Guts-2'!$I$9*0.01)*BB21)+(('Guts-2'!$I$4*0.01)*BQ21)+(('Guts-2'!$I$2*0.01)*CF21)+(('Guts-2'!$I$8*0.01)*CU21) -> 18.6 | DK21: =(('Guts-2'!$I$1*0.01)*J21)+(('Guts-2'!$I$7*0.01)*Y21)+(('Guts-2'!$I$3*0.01)*AN21)+(('Guts-2'!$I$9*0.01)*BC21)+(('Guts-2'!$I$4*0.01)*BR21)+(('Guts-2'!$I$2*0.01)*CG21)+(('Guts-2'!$I$8*0.01)*CV21) -> 0.8 | DL21: 3.581514763 | DM21: 1.258023107 | DN21: 9.550706033 | DO21: =(('Guts-2'!$I$1*0.01)*N21)+(('Guts-2'!$I$7*0.01)*AC21)+(('Guts-2'!$I$3*0.01)*AR21)+(('Guts-2'!$I$9*0.01)*BG21)+(('Guts-2'!$I$4*0.01)*BV21)+(('Guts-2'!$I$2*0.01)*CK21)+(('Guts-2'!$I$8*0.01)*CZ21) -> 0 | DP21: =(('Guts-2'!$I$1*0.01)*O21)+(('Guts-2'!$I$7*0.01)*AD21)+(('Guts-2'!$I$3*0.01)*AS21)+(('Guts-2'!$I$9*0.01)*BH21)+(('Guts-2'!$I$4*0.01)*BW21)+(('Guts-2'!$I$2*0.01)*CL21)+(('Guts-2'!$I$8*0.01)*DA21) -> 0 | DQ21: =(('Guts-2'!$I$1*0.01)*P21)+(('Guts-2'!$I$7*0.01)*AE21)+(('Guts-2'!$I$3*0.01)*AT21)+(('Guts-2'!$I$9*0.01)*BI21)+(('Guts-2'!$I$4*0.01)*BX21)+(('Guts-2'!$I$2*0.01)*CM21)+(('Guts-2'!$I$8*0.01)*DB21) -> 46.2 | DR21: =(('Guts-2'!$I$1*0.01)*Q21)+(('Guts-2'!$I$7*0.01)*AF21)+(('Guts-2'!$I$3*0.01)*AU21)+(('Guts-2'!$I$9*0.01)*BJ21)+(('Guts-2'!$I$4*0.01)*BY21)+(('Guts-2'!$I$2*0.01)*CN21)+(('Guts-2'!$I$8*0.01)*DC21) -> 5 | DS21: 2.683888889 | DT21: 3.386110806 | DU21: 53 | DV21: 47.19804827 | DW21: 17.66543981 | DX21: 56.0493071 | DY21: 19.39407407 | DZ21: 8 | EA21: 3.293333333 | EB21: 1.223839398 | EC21: 9.517806867 | ED21: 0 | EE21: 0 | EF21: 52 | EG21: 5.384840562 | EH21: 2.683888889 | EI21: 3.386110806 | EJ21: 53 | EK21: 47.19804827 | EL21: 17.66543981 | EM21: 56.0493071 | EN21: 19.39407407 | EO21: 8 | EP21: 3.293333333 | EQ21: 1.223839398 | ER21: 9.517806867 | ES21: 0 | ET21: 0 | EU21: 52 | EV21: 5.384840562 | EW21: =VLOOKUP($A21,'Import (Projections)'!$O$2:$X$8997,COLUMN(B19),FALSE) ->  | EX21: =VLOOKUP($A21,'Import (Projections)'!$O$2:$X$8997,COLUMN(C19),FALSE) ->  | EY21: =VLOOKUP($A21,'Import (Projections)'!$O$2:$X$8997,COLUMN(D19),FALSE) ->  | EZ21: =VLOOKUP($A21,'Import (Projections)'!$O$2:$X$8997,COLUMN(E19),FALSE) ->  | FA21: =VLOOKUP($A21,'Import (Projections)'!$O$2:$X$8997,COLUMN(F19),FALSE) ->  | FB21: =VLOOKUP($A21,'Import (Projections)'!$O$2:$X$8997,COLUMN(G19),FALSE) ->  | FC21: =VLOOKUP($A21,'Import (Projections)'!$O$2:$X$8997,COLUMN(H19),FALSE) ->  | FD21: =VLOOKUP($A21,'Import (Projections)'!$O$2:$X$8997,COLUMN(I19),FALSE) ->  | FI21: =VLOOKUP($A21,'Import (Projections)'!$O$2:$X$8997,COLUMN(J19),FALSE) ->  | FL21: =IFERROR(IFERROR(AVERAGE(FP21,FT21),IFERROR(FT21,IFERROR(FP21,0)))*CHOOSE('Guts-2'!$D$28,O21,AD21,AS21,BH21,BW21,CL21,DA21,DP21,EE21,ET21,FI21,),0) -> 0 | FM21: =IFERROR(IFERROR(AVERAGE(FQ21,FS21),IFERROR(FS21,IFERROR(FQ21,0)))*CHOOSE('Guts-2'!$D$28,O21,AD21,AS21,BH21,BW21,CL21,DA21,DP21,EE21,ET21,FI21,),0) -> 0 | FN21: 12.5 | FO21: 0.2330163087 | FP21: 0 | FQ21: 0 | FR21: 0.546683948 | FS21: 0 | FT21: 0 | FU21: 0 | FV21: 12 | FW21: 13
A22: Alex Colome | B22: colomal01 | C22: 4.920658704 | D22: 4.564646236 | E22: 85.85714286 | F22: 82.0971441 | G22: 26.36428626 | H22: 76.71481158 | I22: 34.55898413 | J22: 16.62446539 | K22: 3.622655574 | L22: 1.263277891 | M22: 8.041652462 | N22: 0 | O22: 7.857142857 | P22: 49.84910828 | Q22: 8.859340428 | R22: 3 | S22: 3 | T22: 65 | U22: 58 | V22: 20 | W22: 66 | X22: 24 | Y22: 27 | Z22: 3.33 | AA22: 1.19 | AB22: 9.13 | AC22: 0 | AD22: 0 | AE22: 65 | AF22: 7 | AG22: 2 | AH22: 4 | AI22: 61 | AJ22: 50 | AK22: 16 | AL22: 70 | AM22: 17 | AN22: 37 | AO22: 2.55 | AP22: 1.08 | AQ22: 10.33 | AR22: 0 | AS22: 0 | AT22: 61 | AU22: 6 | AV22: 4 | AW22: 2 | AX22: 61.3 | AY22: 51 | AZ22: 17 | BA22: 73 | BB22: 20 | BC22: 25.46307692 | BD22: 2.93 | BE22: 1.11 | BF22: 10.71 | BG22: 0 | BH22: 0 | BI22: 61 | BJ22: 7 | BK22: 4 | BL22: 3 | BM22: 65 | BN22: 56 | BO22: 19 | BP22: 72 | BQ22: 23 | BR22: 33 | BS22: 3.13 | BT22: 1.15 | BU22: 9.92 | BV22: 0 | BW22: 0 | BX22: 65 | BY22: 7 | BZ22: 3 | CA22: 2 | CB22: 79 | CC22: 72 | CD22: 27 | CE22: 78 | CF22: 32 | CG22: 28 | CH22: 3.59 | CI22: 1.25 | CJ22: 8.886075949 | CK22: 0 | CL22: 0 | CM22: 63 | CN22: 9 | CO22: 3 | CP22: 3 | CQ22: 65 | CR22: 55 | CS22: 20 | CT22: 66 | CU22: 24 | CV22: 27 | CW22: 3.27 | CX22: 1.15 | CY22: 9.12 | CZ22: 0 | DA22: 0 | DB22: 65 | DC22: 6 | DD22: =(('Guts-2'!$I$1*0.01)*C22)+(('Guts-2'!$I$7*0.01)*R22)+(('Guts-2'!$I$3*0.01)*AG22)+(('Guts-2'!$I$9*0.01)*AV22)+(('Guts-2'!$I$4*0.01)*BK22)+(('Guts-2'!$I$2*0.01)*BZ22)+(('Guts-2'!$I$8*0.01)*CO22) -> 3.4 | DE22: =(('Guts-2'!$I$1*0.01)*D22)+(('Guts-2'!$I$7*0.01)*S22)+(('Guts-2'!$I$3*0.01)*AH22)+(('Guts-2'!$I$9*0.01)*AW22)+(('Guts-2'!$I$4*0.01)*BL22)+(('Guts-2'!$I$2*0.01)*CA22)+(('Guts-2'!$I$8*0.01)*CP22) -> 2.6 | DF22: =(('Guts-2'!$I$1*0.01)*E22)+(('Guts-2'!$I$7*0.01)*T22)+(('Guts-2'!$I$3*0.01)*AI22)+(('Guts-2'!$I$9*0.01)*AX22)+(('Guts-2'!$I$4*0.01)*BM22)+(('Guts-2'!$I$2*0.01)*CB22)+(('Guts-2'!$I$8*0.01)*CQ22) -> 67.06 | DG22: =(('Guts-2'!$I$1*0.01)*F22)+(('Guts-2'!$I$7*0.01)*U22)+(('Guts-2'!$I$3*0.01)*AJ22)+(('Guts-2'!$I$9*0.01)*AY22)+(('Guts-2'!$I$4*0.01)*BN22)+(('Guts-2'!$I$2*0.01)*CC22)+(('Guts-2'!$I$8*0.01)*CR22) -> 59 | DH22: =(('Guts-2'!$I$1*0.01)*G22)+(('Guts-2'!$I$7*0.01)*V22)+(('Guts-2'!$I$3*0.01)*AK22)+(('Guts-2'!$I$9*0.01)*AZ22)+(('Guts-2'!$I$4*0.01)*BO22)+(('Guts-2'!$I$2*0.01)*CD22)+(('Guts-2'!$I$8*0.01)*CS22) -> 20.6 | DI22: =(('Guts-2'!$I$1*0.01)*H22)+(('Guts-2'!$I$7*0.01)*W22)+(('Guts-2'!$I$3*0.01)*AL22)+(('Guts-2'!$I$9*0.01)*BA22)+(('Guts-2'!$I$4*0.01)*BP22)+(('Guts-2'!$I$2*0.01)*CE22)+(('Guts-2'!$I$8*0.01)*CT22) -> 71 | DJ22: =(('Guts-2'!$I$1*0.01)*I22)+(('Guts-2'!$I$7*0.01)*X22)+(('Guts-2'!$I$3*0.01)*AM22)+(('Guts-2'!$I$9*0.01)*BB22)+(('Guts-2'!$I$4*0.01)*BQ22)+(('Guts-2'!$I$2*0.01)*CF22)+(('Guts-2'!$I$8*0.01)*CU22) -> 24.6 | DK22: =(('Guts-2'!$I$1*0.01)*J22)+(('Guts-2'!$I$7*0.01)*Y22)+(('Guts-2'!$I$3*0.01)*AN22)+(('Guts-2'!$I$9*0.01)*BC22)+(('Guts-2'!$I$4*0.01)*BR22)+(('Guts-2'!$I$2*0.01)*CG22)+(('Guts-2'!$I$8*0.01)*CV22) -> 28.09261538 | DL22: 3.301521026 | DM22: 1.186996719 | DN22: 9.528780197 | DO22: =(('Guts-2'!$I$1*0.01)*N22)+(('Guts-2'!$I$7*0.01)*AC22)+(('Guts-2'!$I$3*0.01)*AR22)+(('Guts-2'!$I$9*0.01)*BG22)+(('Guts-2'!$I$4*0.01)*BV22)+(('Guts-2'!$I$2*0.01)*CK22)+(('Guts-2'!$I$8*0.01)*CZ22) -> 0 | DP22: =(('Guts-2'!$I$1*0.01)*O22)+(('Guts-2'!$I$7*0.01)*AD22)+(('Guts-2'!$I$3*0.01)*AS22)+(('Guts-2'!$I$9*0.01)*BH22)+(('Guts-2'!$I$4*0.01)*BW22)+(('Guts-2'!$I$2*0.01)*CL22)+(('Guts-2'!$I$8*0.01)*DA22) -> 0 | DQ22: =(('Guts-2'!$I$1*0.01)*P22)+(('Guts-2'!$I$7*0.01)*AE22)+(('Guts-2'!$I$3*0.01)*AT22)+(('Guts-2'!$I$9*0.01)*BI22)+(('Guts-2'!$I$4*0.01)*BX22)+(('Guts-2'!$I$2*0.01)*CM22)+(('Guts-2'!$I$8*0.01)*DB22) -> 63.8 | DR22: =(('Guts-2'!$I$1*0.01)*Q22)+(('Guts-2'!$I$7*0.01)*AF22)+(('Guts-2'!$I$3*0.01)*AU22)+(('Guts-2'!$I$9*0.01)*BJ22)+(('Guts-2'!$I$4*0.01)*BY22)+(('Guts-2'!$I$2*0.01)*CN22)+(('Guts-2'!$I$8*0.01)*DC22) -> 7.4 | DS22: 2.701764011 | DT22: 3.567098593 | DU22: 63 | DV22: 56.22155118 | DW22: 17.8696728 | DX22: 68.58085831 | DY22: 20.9798739 | DZ22: 34 | EA22: 2.997124842 | EB22: 1.176051174 | EC22: 9.797265473 | ED22: 0 | EE22: 0 | EF22: 62 | EG22: 6.759880499 | EH22: 2.701764011 | EI22: 3.567098593 | EJ22: 63 | EK22: 56.22155118 | EL22: 17.8696728 | EM22: 68.58085831 | EN22: 20.9798739 | EO22: 34 | EP22: 2.997124842 | EQ22: 1.176051174 | ER22: 9.797265473 | ES22: 0 | ET22: 0 | EU22: 62 | EV22: 6.759880499 | EW22: =VLOOKUP($A22,'Import (Projections)'!$O$2:$X$8997,COLUMN(B20),FALSE) ->  | EX22: =VLOOKUP($A22,'Import (Projections)'!$O$2:$X$8997,COLUMN(C20),FALSE) ->  | EY22: =VLOOKUP($A22,'Import (Projections)'!$O$2:$X$8997,COLUMN(D20),FALSE) ->  | EZ22: =VLOOKUP($A22,'Import (Projections)'!$O$2:$X$8997,COLUMN(E20),FALSE) ->  | FA22: =VLOOKUP($A22,'Import (Projections)'!$O$2:$X$8997,COLUMN(F20),FALSE) ->  | FB22: =VLOOKUP($A22,'Import (Projections)'!$O$2:$X$8997,COLUMN(G20),FALSE) ->  | FC22: =VLOOKUP($A22,'Import (Projections)'!$O$2:$X$8997,COLUMN(H20),FALSE) ->  | FD22: =VLOOKUP($A22,'Import (Projections)'!$O$2:$X$8997,COLUMN(I20),FALSE) ->  | FI22: =VLOOKUP($A22,'Import (Projections)'!$O$2:$X$8997,COLUMN(J20),FALSE) ->  | FL22: =IFERROR(IFERROR(AVERAGE(FP22,FT22),IFERROR(FT22,IFERROR(FP22,0)))*CHOOSE('Guts-2'!$D$28,O22,AD22,AS22,BH22,BW22,CL22,DA22,DP22,EE22,ET22,FI22,),0) -> 0 | FM22: =IFERROR(IFERROR(AVERAGE(FQ22,FS22),IFERROR(FS22,IFERROR(FQ22,0)))*CHOOSE('Guts-2'!$D$28,O22,AD22,AS22,BH22,BW22,CL22,DA22,DP22,EE22,ET22,FI22,),0) -> 0 | FN22: 5.5 | FO22: 0.249159617 | FP22: 0 | FQ22: 0 | FR22: 0.5011800845 | FS22: 0 | FT22: 0 | FU22: 1 | FV22: 6 | FW22: 5
A23: Wade Davis | B23: daviswa01 | C23: 4.871112263 | D23: 1.420757736 | E23: 58.10952381 | F23: 35.30503512 | G23: 20.15979196 | H23: 73.98448547 | I23: 12.21277476 | J23: 17.58171749 | K23: 1.891513914 | L23: 0.9544877233 | M23: 11.45871323 | N23: 0 | O23: 0 | P23: 59.17641667 | Q23: 1.974872248 | R23: 4 | S23: 3 | T23: 65 | U23: 51 | V23: 22 | W23: 79 | X23: 20 | Y23: 37 | Z23: 2.82 | AA23: 1.12 | AB23: 10.95 | AC23: 0 | AD23: 0 | AE23: 65 | AF23: 5 | AG23: 2 | AH23: 2 | AI23: 47 | AJ23: 38 | AK23: 15 | AL23: 52 | AM23: 12 | AN23: 28 | AO23: 2.25 | AP23: 1.13 | AQ23: 9.96 | AR23: 0 | AS23: 0 | AT23: 47 | AU23: 3 | AV23: 5 | AW23: 1 | AX23: 54.7 | AY23: 37 | AZ23: 19 | BA23: 76 | BB23: 13 | BC23: 31.13692308 | BD23: 2.14 | BE23: 1.02 | BF23: 12.51 | BG23: 0 | BH23: 0 | BI23: 56 | BJ23: 5 | BK23: 5 | BL23: 2 | BM23: 65 | BN23: 47 | BO23: 22 | BP23: 85 | BQ23: 18 | BR23: 30 | BS23: 2.48 | BT23: 1.07 | BU23: 11.73 | BV23: 0 | BW23: 0 | BX23: 65 | BY23: 6 | BZ23: 3 | CA23: 1 | CB23: 57.3 | CC23: 44 | CD23: 21 | CE23: 68 | CF23: 16 | CG23: 43 | CH23: 2.56 | CI23: 1.12 | CJ23: 10.68062827 | CK23: 0 | CL23: 0 | CM23: 52 | CN23: 4 | CO23: 4 | CP23: 3 | CQ23: 65 | CR23: 48 | CS23: 22 | CT23: 79 | CU23: 20 | CV23: 37 | CW23: 2.75 | CX23: 1.09 | CY23: 10.95 | CZ23: 0 | DA23: 0 | DB23: 65 | DC23: 5 | DD23: =(('Guts-2'!$I$1*0.01)*C23)+(('Guts-2'!$I$7*0.01)*R23)+(('Guts-2'!$I$3*0.01)*AG23)+(('Guts-2'!$I$9*0.01)*AV23)+(('Guts-2'!$I$4*0.01)*BK23)+(('Guts-2'!$I$2*0.01)*BZ23)+(('Guts-2'!$I$8*0.01)*CO23) -> 4.2 | DE23: =(('Guts-2'!$I$1*0.01)*D23)+(('Guts-2'!$I$7*0.01)*S23)+(('Guts-2'!$I$3*0.01)*AH23)+(('Guts-2'!$I$9*0.01)*AW23)+(('Guts-2'!$I$4*0.01)*BL23)+(('Guts-2'!$I$2*0.01)*CA23)+(('Guts-2'!$I$8*0.01)*CP23) -> 2 | DF23: =(('Guts-2'!$I$1*0.01)*E23)+(('Guts-2'!$I$7*0.01)*T23)+(('Guts-2'!$I$3*0.01)*AI23)+(('Guts-2'!$I$9*0.01)*AX23)+(('Guts-2'!$I$4*0.01)*BM23)+(('Guts-2'!$I$2*0.01)*CB23)+(('Guts-2'!$I$8*0.01)*CQ23) -> 61.4 | DG23: =(('Guts-2'!$I$1*0.01)*F23)+(('Guts-2'!$I$7*0.01)*U23)+(('Guts-2'!$I$3*0.01)*AJ23)+(('Guts-2'!$I$9*0.01)*AY23)+(('Guts-2'!$I$4*0.01)*BN23)+(('Guts-2'!$I$2*0.01)*CC23)+(('Guts-2'!$I$8*0.01)*CR23) -> 46 | DH23: =(('Guts-2'!$I$1*0.01)*G23)+(('Guts-2'!$I$7*0.01)*V23)+(('Guts-2'!$I$3*0.01)*AK23)+(('Guts-2'!$I$9*0.01)*AZ23)+(('Guts-2'!$I$4*0.01)*BO23)+(('Guts-2'!$I$2*0.01)*CD23)+(('Guts-2'!$I$8*0.01)*CS23) -> 21.2 | DI23: =(('Guts-2'!$I$1*0.01)*H23)+(('Guts-2'!$I$7*0.01)*W23)+(('Guts-2'!$I$3*0.01)*AL23)+(('Guts-2'!$I$9*0.01)*BA23)+(('Guts-2'!$I$4*0.01)*BP23)+(('Guts-2'!$I$2*0.01)*CE23)+(('Guts-2'!$I$8*0.01)*CT23) -> 77.4 | DJ23: =(('Guts-2'!$I$1*0.01)*I23)+(('Guts-2'!$I$7*0.01)*X23)+(('Guts-2'!$I$3*0.01)*AM23)+(('Guts-2'!$I$9*0.01)*BB23)+(('Guts-2'!$I$4*0.01)*BQ23)+(('Guts-2'!$I$2*0.01)*CF23)+(('Guts-2'!$I$8*0.01)*CU23) -> 17.4 | DK23: =(('Guts-2'!$I$1*0.01)*J23)+(('Guts-2'!$I$7*0.01)*Y23)+(('Guts-2'!$I$3*0.01)*AN23)+(('Guts-2'!$I$9*0.01)*BC23)+(('Guts-2'!$I$4*0.01)*BR23)+(('Guts-2'!$I$2*0.01)*CG23)+(('Guts-2'!$I$8*0.01)*CV23) -> 35.62738462 | DL23: 2.550488599 | DM23: 1.094462541 | DN23: 11.34527687 | DO23: =(('Guts-2'!$I$1*0.01)*N23)+(('Guts-2'!$I$7*0.01)*AC23)+(('Guts-2'!$I$3*0.01)*AR23)+(('Guts-2'!$I$9*0.01)*BG23)+(('Guts-2'!$I$4*0.01)*BV23)+(('Guts-2'!$I$2*0.01)*CK23)+(('Guts-2'!$I$8*0.01)*CZ23) -> 0 | DP23: =(('Guts-2'!$I$1*0.01)*O23)+(('Guts-2'!$I$7*0.01)*AD23)+(('Guts-2'!$I$3*0.01)*AS23)+(('Guts-2'!$I$9*0.01)*BH23)+(('Guts-2'!$I$4*0.01)*BW23)+(('Guts-2'!$I$2*0.01)*CL23)+(('Guts-2'!$I$8*0.01)*DA23) -> 0 | DQ23: =(('Guts-2'!$I$1*0.01)*P23)+(('Guts-2'!$I$7*0.01)*AE23)+(('Guts-2'!$I$3*0.01)*AT23)+(('Guts-2'!$I$9*0.01)*BI23)+(('Guts-2'!$I$4*0.01)*BX23)+(('Guts-2'!$I$2*0.01)*CM23)+(('Guts-2'!$I$8*0.01)*DB23) -> 60.6 | DR23: =(('Guts-2'!$I$1*0.01)*Q23)+(('Guts-2'!$I$7*0.01)*AF23)+(('Guts-2'!$I$3*0.01)*AU23)+(('Guts-2'!$I$9*0.01)*BJ23)+(('Guts-2'!$I$4*0.01)*BY23)+(('Guts-2'!$I$2*0.01)*CN23)+(('Guts-2'!$I$8*0.01)*DC23) -> 5 | DS23: 3.173115912 | DT23: 2.189157194 | DU23: 50 | DV23: 36.70846649 | DW23: 16.91278798 | DX23: 57.64369603 | DY23: 14.33715221 | DZ23: 30 | EA23: 2.580687398 | EB23: 1.072425089 | EC23: 10.37586529 | ED23: 0 | EE23: 0 | EF23: 49 | EG23: 3.492677818 | EH23: 3.173115912 | EI23: 2.189157194 | EJ23: 50 | EK23: 36.70846649 | EL23: 16.91278798 | EM23: 57.64369603 | EN23: 14.33715221 | EO23: 30 | EP23: 2.580687398 | EQ23: 1.072425089 | ER23: 10.37586529 | ES23: 0 | ET23: 0 | EU23: 49 | EV23: 3.492677818 | EW23: =VLOOKUP($A23,'Import (Projections)'!$O$2:$X$8997,COLUMN(B21),FALSE) ->  | EX23: =VLOOKUP($A23,'Import (Projections)'!$O$2:$X$8997,COLUMN(C21),FALSE) ->  | EY23: =VLOOKUP($A23,'Import (Projections)'!$O$2:$X$8997,COLUMN(D21),FALSE) ->  | EZ23: =VLOOKUP($A23,'Import (Projections)'!$O$2:$X$8997,COLUMN(E21),FALSE) ->  | FA23: =VLOOKUP($A23,'Import (Projections)'!$O$2:$X$8997,COLUMN(F21),FALSE) ->  | FB23: =VLOOKUP($A23,'Import (Projections)'!$O$2:$X$8997,COLUMN(G21),FALSE) ->  | FC23: =VLOOKUP($A23,'Import (Projections)'!$O$2:$X$8997,COLUMN(H21),FALSE) ->  | FD23: =VLOOKUP($A23,'Import (Projections)'!$O$2:$X$8997,COLUMN(I21),FALSE) ->  | FI23: =VLOOKUP($A23,'Import (Projections)'!$O$2:$X$8997,COLUMN(J21),FALSE) ->  | FL23: =IFERROR(IFERROR(AVERAGE(FP23,FT23),IFERROR(FT23,IFERROR(FP23,0)))*CHOOSE('Guts-2'!$D$28,O23,AD23,AS23,BH23,BW23,CL23,DA23,DP23,EE23,ET23,FI23,),0) -> 0 | FM23: =IFERROR(IFERROR(AVERAGE(FQ23,FS23),IFERROR(FS23,IFERROR(FQ23,0)))*CHOOSE('Guts-2'!$D$28,O23,AD23,AS23,BH23,BW23,CL23,DA23,DP23,EE23,ET23,FI23,),0) -> 0 | FN23: 11.5 | FO23: 0.1706863681 | FP23: 0 | FQ23: 0 | FR23: 0.478425606 | FS23: 0 | FT23: 0 | FU23: 2 | FV23: 14 | FW23: 9
A24: Grant Dayton | B24: daytogr01 | C24: 3.013969406 | D24: 3.706472022 | E24: 67.84285714 | F24: 56.70191883 | G24: 19.15206242 | H24: 72.49350803 | I24: 29.11276256 | J24: 3.153146059 | K24: 3.862084736 | L24: 1.118083531 | M24: 9.616953055 | N24: 0 | O24: 0 | P24: 55.31927382 | Q24: 6.964725125 | R24: 4 | S24: 3 | T24: 65 | U24: 50 | V24: 21 | W24: 82 | X24: 21 | Y24: 1 | Z24: 2.92 | AA24: 1.1 | AB24: 11.41 | AC24: 0 | AD24: 0 | AE24: 65 | AF24: 7 | AV24: 4 | AW24: 2 | AX24: 68 | AY24: 53 | AZ24: 19 | BA24: 90 | BB24: 22 | BC24: 1.046153846 | BD24: 2.91 | BE24: 1.06 | BF24: 11.91 | BG24: 0 | BH24: 0 | BI24: 53 | BJ24: 8 | BK24: 4 | BL24: 2 | BM24: 65 | BN24: 51 | BO24: 19 | BP24: 84 | BQ24: 21 | BR24: 2 | BS24: 2.92 | BT24: 1.08 | BU24: 11.66 | BV24: 0 | BW24: 0 | BX24: 65 | BY24: 7 | BZ24: 3 | CA24: 2 | CB24: 71 | CC24: 59 | CD24: 24 | CE24: 82 | CF24: 28 | CG24: 2 | CH24: 3.5 | CI24: 1.17 | CJ24: 10.3943662 | CK24: 0 | CL24: 0 | CM24: 63 | CN24: 9 | CO24: 4 | CP24: 3 | CQ24: 65 | CR24: 48 | CS24: 21 | CT24: 82 | CU24: 21 | CV24: 1 | CW24: 2.85 | CX24: 1.06 | CY24: 11.38 | CZ24: 0 | DA24: 0 | DB24: 65 | DC24: 7 | DD24: =(('Guts-2'!$I$1*0.01)*C24)+(('Guts-2'!$I$7*0.01)*R24)+(('Guts-2'!$I$3*0.01)*AG24)+(('Guts-2'!$I$9*0.01)*AV24)+(('Guts-2'!$I$4*0.01)*BK24)+(('Guts-2'!$I$2*0.01)*BZ24)+(('Guts-2'!$I$8*0.01)*CO24) ->  | DE24: =(('Guts-2'!$I$1*0.01)*D24)+(('Guts-2'!$I$7*0.01)*S24)+(('Guts-2'!$I$3*0.01)*AH24)+(('Guts-2'!$I$9*0.01)*AW24)+(('Guts-2'!$I$4*0.01)*BL24)+(('Guts-2'!$I$2*0.01)*CA24)+(('Guts-2'!$I$8*0.01)*CP24) ->  | DF24: =(('Guts-2'!$I$1*0.01)*E24)+(('Guts-2'!$I$7*0.01)*T24)+(('Guts-2'!$I$3*0.01)*AI24)+(('Guts-2'!$I$9*0.01)*AX24)+(('Guts-2'!$I$4*0.01)*BM24)+(('Guts-2'!$I$2*0.01)*CB24)+(('Guts-2'!$I$8*0.01)*CQ24) ->  | DG24: =(('Guts-2'!$I$1*0.01)*F24)+(('Guts-2'!$I$7*0.01)*U24)+(('Guts-2'!$I$3*0.01)*AJ24)+(('Guts-2'!$I$9*0.01)*AY24)+(('Guts-2'!$I$4*0.01)*BN24)+(('Guts-2'!$I$2*0.01)*CC24)+(('Guts-2'!$I$8*0.01)*CR24) ->  | DH24: =(('Guts-2'!$I$1*0.01)*G24)+(('Guts-2'!$I$7*0.01)*V24)+(('Guts-2'!$I$3*0.01)*AK24)+(('Guts-2'!$I$9*0.01)*AZ24)+(('Guts-2'!$I$4*0.01)*BO24)+(('Guts-2'!$I$2*0.01)*CD24)+(('Guts-2'!$I$8*0.01)*CS24) ->  | DI24: =(('Guts-2'!$I$1*0.01)*H24)+(('Guts-2'!$I$7*0.01)*W24)+(('Guts-2'!$I$3*0.01)*AL24)+(('Guts-2'!$I$9*0.01)*BA24)+(('Guts-2'!$I$4*0.01)*BP24)+(('Guts-2'!$I$2*0.01)*CE24)+(('Guts-2'!$I$8*0.01)*CT24) ->  | DJ24: =(('Guts-2'!$I$1*0.01)*I24)+(('Guts-2'!$I$7*0.01)*X24)+(('Guts-2'!$I$3*0.01)*AM24)+(('Guts-2'!$I$9*0.01)*BB24)+(('Guts-2'!$I$4*0.01)*BQ24)+(('Guts-2'!$I$2*0.01)*CF24)+(('Guts-2'!$I$8*0.01)*CU24) ->  | DK24: =(('Guts-2'!$I$1*0.01)*J24)+(('Guts-2'!$I$7*0.01)*Y24)+(('Guts-2'!$I$3*0.01)*AN24)+(('Guts-2'!$I$9*0.01)*BC24)+(('Guts-2'!$I$4*0.01)*BR24)+(('Guts-2'!$I$2*0.01)*CG24)+(('Guts-2'!$I$8*0.01)*CV24) ->  | DO24: =(('Guts-2'!$I$1*0.01)*N24)+(('Guts-2'!$I$7*0.01)*AC24)+(('Guts-2'!$I$3*0.01)*AR24)+(('Guts-2'!$I$9*0.01)*BG24)+(('Guts-2'!$I$4*0.01)*BV24)+(('Guts-2'!$I$2*0.01)*CK24)+(('Guts-2'!$I$8*0.01)*CZ24) ->  | DP24: =(('Guts-2'!$I$1*0.01)*O24)+(('Guts-2'!$I$7*0.01)*AD24)+(('Guts-2'!$I$3*0.01)*AS24)+(('Guts-2'!$I$9*0.01)*BH24)+(('Guts-2'!$I$4*0.01)*BW24)+(('Guts-2'!$I$2*0.01)*CL24)+(('Guts-2'!$I$8*0.01)*DA24) ->  | DQ24: =(('Guts-2'!$I$1*0.01)*P24)+(('Guts-2'!$I$7*0.01)*AE24)+(('Guts-2'!$I$3*0.01)*AT24)+(('Guts-2'!$I$9*0.01)*BI24)+(('Guts-2'!$I$4*0.01)*BX24)+(('Guts-2'!$I$2*0.01)*CM24)+(('Guts-2'!$I$8*0.01)*DB24) ->  | DR24: =(('Guts-2'!$I$1*0.01)*Q24)+(('Guts-2'!$I$7*0.01)*AF24)+(('Guts-2'!$I$3*0.01)*AU24)+(('Guts-2'!$I$9*0.01)*BJ24)+(('Guts-2'!$I$4*0.01)*BY24)+(('Guts-2'!$I$2*0.01)*CN24)+(('Guts-2'!$I$8*0.01)*DC24) ->  | EH24: 4 | EI24: 3 | EJ24: 65 | EK24: 50 | EL24: 21 | EM24: 82 | EN24: 21 | EO24: 1 | EP24: 2.92 | EQ24: 1.1 | ER24: 11.41 | ES24: 0 | ET24: 0 | EU24: 65 | EV24: 7 | EW24: =VLOOKUP($A24,'Import (Projections)'!$O$2:$X$8997,COLUMN(B22),FALSE) ->  | EX24: =VLOOKUP($A24,'Import (Projections)'!$O$2:$X$8997,COLUMN(C22),FALSE) ->  | EY24: =VLOOKUP($A24,'Import (Projections)'!$O$2:$X$8997,COLUMN(D22),FALSE) ->  | EZ24: =VLOOKUP($A24,'Import (Projections)'!$O$2:$X$8997,COLUMN(E22),FALSE) ->  | FA24: =VLOOKUP($A24,'Import (Projections)'!$O$2:$X$8997,COLUMN(F22),FALSE) ->  | FB24: =VLOOKUP($A24,'Import (Projections)'!$O$2:$X$8997,COLUMN(G22),FALSE) ->  | FC24: =VLOOKUP($A24,'Import (Projections)'!$O$2:$X$8997,COLUMN(H22),FALSE) ->  | FD24: =VLOOKUP($A24,'Import (Projections)'!$O$2:$X$8997,COLUMN(I22),FALSE) ->  | FI24: =VLOOKUP($A24,'Import (Projections)'!$O$2:$X$8997,COLUMN(J22),FALSE) ->  | FL24: =IFERROR(IFERROR(AVERAGE(FP24,FT24),IFERROR(FT24,IFERROR(FP24,0)))*CHOOSE('Guts-2'!$D$28,O24,AD24,AS24,BH24,BW24,CL24,DA24,DP24,EE24,ET24,FI24,),0) -> 0 | FM24: =IFERROR(IFERROR(AVERAGE(FQ24,FS24),IFERROR(FS24,IFERROR(FQ24,0)))*CHOOSE('Guts-2'!$D$28,O24,AD24,AS24,BH24,BW24,CL24,DA24,DP24,EE24,ET24,FI24,),0) -> 0 | FN24: 18.5 | FO24: 0.2152056268 | FP24: 0 | FQ24: 0 | FR24: 0.09343318361 | FS24: 0 | FT24: 0 | FU24: 0 | FV24: 19 | FW24: 18
A25: Jose De Leon | B25: deleojo01 | C25: 6.65082167 | D25: 5.018913126 | E25: 101.8714286 | F25: 90.94910852 | G25: 29.78330433 | H25: 97.54454251 | I25: 47.88956615 | J25: 0 | K25: 4.230883 | L25: 1.185144987 | M25: 8.617734088 | N25: 8 | O25: 19.79615853 | P25: 19.79615853 | Q25: 15.97577892 | R25: 8 | S25: 7 | T25: 117 | U25: 101 | V25: 40 | W25: 126 | X25: 47 | Y25: 0 | Z25: 3.58 | AA25: 1.2 | AB25: 9.69 | AC25: 11 | AD25: 21 | AE25: 21 | AF25: 13 | AG25: 6 | AH25: 6 | AI25: 100 | AJ25: 90 | AK25: 32 | AL25: 106 | AM25: 43 | AN25: 0 | AO25: 3.83 | AP25: 1.22 | AQ25: 9.54 | AR25: 9 | AS25: 19 | AT25: 19 | AU25: 15 | AV25: 6 | AW25: 5 | AX25: 110.7 | AY25: 97 | AZ25: 33 | BA25: 131 | BB25: 46 | BC25: 0 | BD25: 3.74 | BE25: 1.17 | BF25: 10.65 | BG25: 9 | BH25: 22 | BI25: 22 | BJ25: 16 | BK25: 7 | BL25: 6 | BM25: 120 | BN25: 104 | BO25: 38 | BP25: 135 | BQ25: 49 | BR25: 0 | BS25: 3.66 | BT25: 1.19 | BU25: 10.18 | BV25: 12 | BW25: 21 | BX25: 21 | BY25: 16 | CO25: 13 | CP25: 12 | CQ25: 200 | CR25: 166 | CS25: 68 | CT25: 215 | CU25: 78 | CV25: 0 | CW25: 3.52 | CX25: 1.17 | CY25: 9.66 | CZ25: 21 | DA25: 32 | DB25: 32 | DC25: 23 | DD25: =(('Guts-2'!$I$1*0.01)*C25)+(('Guts-2'!$I$7*0.01)*R25)+(('Guts-2'!$I$3*0.01)*AG25)+(('Guts-2'!$I$9*0.01)*AV25)+(('Guts-2'!$I$4*0.01)*BK25)+(('Guts-2'!$I$2*0.01)*BZ25)+(('Guts-2'!$I$8*0.01)*CO25) ->  | DE25: =(('Guts-2'!$I$1*0.01)*D25)+(('Guts-2'!$I$7*0.01)*S25)+(('Guts-2'!$I$3*0.01)*AH25)+(('Guts-2'!$I$9*0.01)*AW25)+(('Guts-2'!$I$4*0.01)*BL25)+(('Guts-2'!$I$2*0.01)*CA25)+(('Guts-2'!$I$8*0.01)*CP25) ->  | DF25: =(('Guts-2'!$I$1*0.01)*E25)+(('Guts-2'!$I$7*0.01)*T25)+(('Guts-2'!$I$3*0.01)*AI25)+(('Guts-2'!$I$9*0.01)*AX25)+(('Guts-2'!$I$4*0.01)*BM25)+(('Guts-2'!$I$2*0.01)*CB25)+(('Guts-2'!$I$8*0.01)*CQ25) ->  | DG25: =(('Guts-2'!$I$1*0.01)*F25)+(('Guts-2'!$I$7*0.01)*U25)+(('Guts-2'!$I$3*0.01)*AJ25)+(('Guts-2'!$I$9*0.01)*AY25)+(('Guts-2'!$I$4*0.01)*BN25)+(('Guts-2'!$I$2*0.01)*CC25)+(('Guts-2'!$I$8*0.01)*CR25) ->  | DH25: =(('Guts-2'!$I$1*0.01)*G25)+(('Guts-2'!$I$7*0.01)*V25)+(('Guts-2'!$I$3*0.01)*AK25)+(('Guts-2'!$I$9*0.01)*AZ25)+(('Guts-2'!$I$4*0.01)*BO25)+(('Guts-2'!$I$2*0.01)*CD25)+(('Guts-2'!$I$8*0.01)*CS25) ->  | DI25: =(('Guts-2'!$I$1*0.01)*H25)+(('Guts-2'!$I$7*0.01)*W25)+(('Guts-2'!$I$3*0.01)*AL25)+(('Guts-2'!$I$9*0.01)*BA25)+(('Guts-2'!$I$4*0.01)*BP25)+(('Guts-2'!$I$2*0.01)*CE25)+(('Guts-2'!$I$8*0.01)*CT25) ->  | DJ25: =(('Guts-2'!$I$1*0.01)*I25)+(('Guts-2'!$I$7*0.01)*X25)+(('Guts-2'!$I$3*0.01)*AM25)+(('Guts-2'!$I$9*0.01)*BB25)+(('Guts-2'!$I$4*0.01)*BQ25)+(('Guts-2'!$I$2*0.01)*CF25)+(('Guts-2'!$I$8*0.01)*CU25) ->  | DK25: =(('Guts-2'!$I$1*0.01)*J25)+(('Guts-2'!$I$7*0.01)*Y25)+(('Guts-2'!$I$3*0.01)*AN25)+(('Guts-2'!$I$9*0.01)*BC25)+(('Guts-2'!$I$4*0.01)*BR25)+(('Guts-2'!$I$2*0.01)*CG25)+(('Guts-2'!$I$8*0.01)*CV25) ->  | DO25: =(('Guts-2'!$I$1*0.01)*N25)+(('Guts-2'!$I$7*0.01)*AC25)+(('Guts-2'!$I$3*0.01)*AR25)+(('Guts-2'!$I$9*0.01)*BG25)+(('Guts-2'!$I$4*0.01)*BV25)+(('Guts-2'!$I$2*0.01)*CK25)+(('Guts-2'!$I$8*0.01)*CZ25) ->  | DP25: =(('Guts-2'!$I$1*0.01)*O25)+(('Guts-2'!$I$7*0.01)*AD25)+(('Guts-2'!$I$3*0.01)*AS25)+(('Guts-2'!$I$9*0.01)*BH25)+(('Guts-2'!$I$4*0.01)*BW25)+(('Guts-2'!$I$2*0.01)*CL25)+(('Guts-2'!$I$8*0.01)*DA25) ->  | DQ25: =(('Guts-2'!$I$1*0.01)*P25)+(('Guts-2'!$I$7*0.01)*AE25)+(('Guts-2'!$I$3*0.01)*AT25)+(('Guts-2'!$I$9*0.01)*BI25)+(('Guts-2'!$I$4*0.01)*BX25)+(('Guts-2'!$I$2*0.01)*CM25)+(('Guts-2'!$I$8*0.01)*DB25) ->  | DR25: =(('Guts-2'!$I$1*0.01)*Q25)+(('Guts-2'!$I$7*0.01)*AF25)+(('Guts-2'!$I$3*0.01)*AU25)+(('Guts-2'!$I$9*0.01)*BJ25)+(('Guts-2'!$I$4*0.01)*BY25)+(('Guts-2'!$I$2*0.01)*CN25)+(('Guts-2'!$I$8*0.01)*DC25) ->  | EH25: 8 | EI25: 7 | EJ25: 117 | EK25: 101 | EL25: 40 | EM25: 126 | EN25: 47 | EO25: 0 | EP25: 3.58 | EQ25: 1.2 | ER25: 9.69 | ES25: 11 | ET25: 21 | EU25: 21 | EV25: 13 | EW25: =VLOOKUP($A25,'Import (Projections)'!$O$2:$X$8997,COLUMN(B23),FALSE) ->  | EX25: =VLOOKUP($A25,'Import (Projections)'!$O$2:$X$8997,COLUMN(C23),FALSE) ->  | EY25: =VLOOKUP($A25,'Import (Projections)'!$O$2:$X$8997,COLUMN(D23),FALSE) ->  | EZ25: =VLOOKUP($A25,'Import (Projections)'!$O$2:$X$8997,COLUMN(E23),FALSE) ->  | FA25: =VLOOKUP($A25,'Import (Projections)'!$O$2:$X$8997,COLUMN(F23),FALSE) ->  | FB25: =VLOOKUP($A25,'Import (Projections)'!$O$2:$X$8997,COLUMN(G23),FALSE) ->  | FC25: =VLOOKUP($A25,'Import (Projections)'!$O$2:$X$8997,COLUMN(H23),FALSE) ->  | FD25: =VLOOKUP($A25,'Import (Projections)'!$O$2:$X$8997,COLUMN(I23),FALSE) ->  | FI25: =VLOOKUP($A25,'Import (Projections)'!$O$2:$X$8997,COLUMN(J23),FALSE) ->  | FL25: =IFERROR(IFERROR(AVERAGE(FP25,FT25),IFERROR(FT25,IFERROR(FP25,0)))*CHOOSE('Guts-2'!$D$28,O25,AD25,AS25,BH25,BW25,CL25,DA25,DP25,EE25,ET25,FI25,),0) -> 0.03477633171 | FM25: =IFERROR(IFERROR(AVERAGE(FQ25,FS25),IFERROR(FS25,IFERROR(FQ25,0)))*CHOOSE('Guts-2'!$D$28,O25,AD25,AS25,BH25,BW25,CL25,DA25,DP25,EE25,ET25,FI25,),0) -> 0.01872571708 | FN25: 1.5 | FO25: 0.2277380601 | FP25: 0.003312031592 | FQ25: 0.001783401626 | FR25: 0 | FS25: 0 | FT25: 0 | FU25: 1 | FV25: 3 | FW25: 0
A26: Edwin Diaz | B26: diazed04 | C26: 4.206372989 | D26: 6.850360522 | E26: 103.8714286 | F26: 99.2777397 | G26: 34.65285769 | H26: 94.45766872 | I26: 50.38500234 | J26: 8.910179674 | K26: 4.365637667 | L26: 1.28938823 | M26: 8.184339334 | N26: 11 | O26: 13.71428571 | P26: 47.70625114 | Q26: 12.97049257 | R26: 4 | S26: 3 | T26: 65 | U26: 50 | V26: 20 | W26: 81 | X26: 20 | Y26: 35 | Z26: 2.79 | AA26: 1.08 | AB26: 11.17 | AC26: 0 | AD26: 0 | AE26: 65 | AF26: 6 | AG26: 2 | AH26: 3 | AI26: 64 | AJ26: 43 | AK26: 19 | AL26: 93 | AM26: 18 | AN26: 34 | AO26: 2.54 | AP26: 0.97 | AQ26: 13.08 | AR26: 0 | AS26: 0 | AT26: 62 | AU26: 6 | AV26: 5 | AW26: 3 | AX26: 79.3 | AY26: 61 | AZ26: 20 | BA26: 120 | BB26: 24 | BC26: 39.65 | BD26: 2.72 | BE26: 1.02 | BF26: 13.61 | BG26: 0 | BH26: 0 | BI26: 76 | BJ26: 9 | BK26: 4 | BL26: 3 | BM26: 65 | BN26: 50 | BO26: 18 | BP26: 89 | BQ26: 20 | BR26: 34 | BS26: 2.76 | BT26: 1.05 | BU26: 12.39 | BV26: 0 | BW26: 0 | BX26: 65 | BY26: 6 | BZ26: 3 | CA26: 2 | CB26: 73.7 | CC26: 64 | CD26: 25 | CE26: 74 | CF26: 30 | CG26: 38 | CH26: 3.61 | CI26: 1.21 | CJ26: 9.036635007 | CK26: 0 | CL26: 0 | CM26: 43 | CN26: 10 | CO26: 4 | CP26: 3 | CQ26: 65 | CR26: 49 | CS26: 20 | CT26: 80 | CU26: 20 | CV26: 35 | CW26: 2.76 | CX26: 1.05 | CY26: 11.14 | CZ26: 0 | DA26: 0 | DB26: 65 | DC26: 5 | DD26: =(('Guts-2'!$I$1*0.01)*C26)+(('Guts-2'!$I$7*0.01)*R26)+(('Guts-2'!$I$3*0.01)*AG26)+(('Guts-2'!$I$9*0.01)*AV26)+(('Guts-2'!$I$4*0.01)*BK26)+(('Guts-2'!$I$2*0.01)*BZ26)+(('Guts-2'!$I$8*0.01)*CO26) -> 4 | DE26: =(('Guts-2'!$I$1*0.01)*D26)+(('Guts-2'!$I$7*0.01)*S26)+(('Guts-2'!$I$3*0.01)*AH26)+(('Guts-2'!$I$9*0.01)*AW26)+(('Guts-2'!$I$4*0.01)*BL26)+(('Guts-2'!$I$2*0.01)*CA26)+(('Guts-2'!$I$8*0.01)*CP26) -> 2.8 | DF26: =(('Guts-2'!$I$1*0.01)*E26)+(('Guts-2'!$I$7*0.01)*T26)+(('Guts-2'!$I$3*0.01)*AI26)+(('Guts-2'!$I$9*0.01)*AX26)+(('Guts-2'!$I$4*0.01)*BM26)+(('Guts-2'!$I$2*0.01)*CB26)+(('Guts-2'!$I$8*0.01)*CQ26) -> 69.6 | DG26: =(('Guts-2'!$I$1*0.01)*F26)+(('Guts-2'!$I$7*0.01)*U26)+(('Guts-2'!$I$3*0.01)*AJ26)+(('Guts-2'!$I$9*0.01)*AY26)+(('Guts-2'!$I$4*0.01)*BN26)+(('Guts-2'!$I$2*0.01)*CC26)+(('Guts-2'!$I$8*0.01)*CR26) -> 55 | DH26: =(('Guts-2'!$I$1*0.01)*G26)+(('Guts-2'!$I$7*0.01)*V26)+(('Guts-2'!$I$3*0.01)*AK26)+(('Guts-2'!$I$9*0.01)*AZ26)+(('Guts-2'!$I$4*0.01)*BO26)+(('Guts-2'!$I$2*0.01)*CD26)+(('Guts-2'!$I$8*0.01)*CS26) -> 20.6 | DI26: =(('Guts-2'!$I$1*0.01)*H26)+(('Guts-2'!$I$7*0.01)*W26)+(('Guts-2'!$I$3*0.01)*AL26)+(('Guts-2'!$I$9*0.01)*BA26)+(('Guts-2'!$I$4*0.01)*BP26)+(('Guts-2'!$I$2*0.01)*CE26)+(('Guts-2'!$I$8*0.01)*CT26) -> 89 | DJ26: =(('Guts-2'!$I$1*0.01)*I26)+(('Guts-2'!$I$7*0.01)*X26)+(('Guts-2'!$I$3*0.01)*AM26)+(('Guts-2'!$I$9*0.01)*BB26)+(('Guts-2'!$I$4*0.01)*BQ26)+(('Guts-2'!$I$2*0.01)*CF26)+(('Guts-2'!$I$8*0.01)*CU26) -> 22.8 | DK26: =(('Guts-2'!$I$1*0.01)*J26)+(('Guts-2'!$I$7*0.01)*Y26)+(('Guts-2'!$I$3*0.01)*AN26)+(('Guts-2'!$I$9*0.01)*BC26)+(('Guts-2'!$I$4*0.01)*BR26)+(('Guts-2'!$I$2*0.01)*CG26)+(('Guts-2'!$I$8*0.01)*CV26) -> 36.33 | DL26: 2.948275862 | DM26: 1.086206897 | DN26: 11.50862069 | DO26: =(('Guts-2'!$I$1*0.01)*N26)+(('Guts-2'!$I$7*0.01)*AC26)+(('Guts-2'!$I$3*0.01)*AR26)+(('Guts-2'!$I$9*0.01)*BG26)+(('Guts-2'!$I$4*0.01)*BV26)+(('Guts-2'!$I$2*0.01)*CK26)+(('Guts-2'!$I$8*0.01)*CZ26) -> 0 | DP26: =(('Guts-2'!$I$1*0.01)*O26)+(('Guts-2'!$I$7*0.01)*AD26)+(('Guts-2'!$I$3*0.01)*AS26)+(('Guts-2'!$I$9*0.01)*BH26)+(('Guts-2'!$I$4*0.01)*BW26)+(('Guts-2'!$I$2*0.01)*CL26)+(('Guts-2'!$I$8*0.01)*DA26) -> 0 | DQ26: =(('Guts-2'!$I$1*0.01)*P26)+(('Guts-2'!$I$7*0.01)*AE26)+(('Guts-2'!$I$3*0.01)*AT26)+(('Guts-2'!$I$9*0.01)*BI26)+(('Guts-2'!$I$4*0.01)*BX26)+(('Guts-2'!$I$2*0.01)*CM26)+(('Guts-2'!$I$8*0.01)*DB26) -> 62.8 | DR26: =(('Guts-2'!$I$1*0.01)*Q26)+(('Guts-2'!$I$7*0.01)*AF26)+(('Guts-2'!$I$3*0.01)*AU26)+(('Guts-2'!$I$9*0.01)*BJ26)+(('Guts-2'!$I$4*0.01)*BY26)+(('Guts-2'!$I$2*0.01)*CN26)+(('Guts-2'!$I$8*0.01)*DC26) -> 7.4 | DS26: 3.411796263 | DT26: 2.961828499 | DU26: 64 | DV26: 51.30700001 | DW26: 19.26153846 | DX26: 86.62383347 | DY26: 19.01538462 | DZ26: 30 | EA26: 2.674038462 | EB26: 1.102633414 | EC26: 12.18147658 | ED26: 0 | EE26: 0 | EF26: 60 | EG26: 6.532493094 | EH26: 3.411796263 | EI26: 2.961828499 | EJ26: 64 | EK26: 51.30700001 | EL26: 19.26153846 | EM26: 86.62383347 | EN26: 19.01538462 | EO26: 30 | EP26: 2.674038462 | EQ26: 1.102633414 | ER26: 12.18147658 | ES26: 0 | ET26: 0 | EU26: 60 | EV26: 6.532493094 | EW26: =VLOOKUP($A26,'Import (Projections)'!$O$2:$X$8997,COLUMN(B24),FALSE) ->  | EX26: =VLOOKUP($A26,'Import (Projections)'!$O$2:$X$8997,COLUMN(C24),FALSE) ->  | EY26: =VLOOKUP($A26,'Import (Projections)'!$O$2:$X$8997,COLUMN(D24),FALSE) ->  | EZ26: =VLOOKUP($A26,'Import (Projections)'!$O$2:$X$8997,COLUMN(E24),FALSE) ->  | FA26: =VLOOKUP($A26,'Import (Projections)'!$O$2:$X$8997,COLUMN(F24),FALSE) ->  | FB26: =VLOOKUP($A26,'Import (Projections)'!$O$2:$X$8997,COLUMN(G24),FALSE) ->  | FC26: =VLOOKUP($A26,'Import (Projections)'!$O$2:$X$8997,COLUMN(H24),FALSE) ->  | FD26: =VLOOKUP($A26,'Import (Projections)'!$O$2:$X$8997,COLUMN(I24),FALSE) ->  | FI26: =VLOOKUP($A26,'Import (Projections)'!$O$2:$X$8997,COLUMN(J24),FALSE) ->  | FL26: =IFERROR(IFERROR(AVERAGE(FP26,FT26),IFERROR(FT26,IFERROR(FP26,0)))*CHOOSE('Guts-2'!$D$28,O26,AD26,AS26,BH26,BW26,CL26,DA26,DP26,EE26,ET26,FI26,),0) -> 0 | FM26: =IFERROR(IFERROR(AVERAGE(FQ26,FS26),IFERROR(FS26,IFERROR(FQ26,0)))*CHOOSE('Guts-2'!$D$28,O26,AD26,AS26,BH26,BW26,CL26,DA26,DP26,EE26,ET26,FI26,),0) -> 0 | FN26: 8 | FO26: 0.2426690083 | FP26: 0 | FQ26: 0 | FR26: 0.2751471166 | FS26: 0 | FT26: 0 | FU26: 1 | FV26: 11 | FW26: 5
A27: Sean Doolittle | B27: doolise01 | C27: 2.349230132 | D27: 2.564646236 | E27: 43.78571429 | F27: 37.581716 | G27: 9.753262455 | H27: 49.87195443 | I27: 17.46377714 | J27: 6.767322531 | K27: 3.58961814 | L27: 1.081059867 | M27: 10.25100532 | N27: 0 | O27: 0 | P27: 45.13482256 | Q27: 6.599281856 | R27: 3 | S27: 3 | T27: 65 | U27: 54 | V27: 18 | W27: 76 | X27: 24 | Y27: 11 | Z27: 3.25 | AA27: 1.11 | AB27: 10.55 | AC27: 0 | AD27: 0 | AE27: 65 | AF27: 7 | AV27: 3 | AW27: 2 | AX27: 41 | AY27: 33 | AZ27: 8 | BA27: 54 | BB27: 15 | BC27: 6.938461538 | BD27: 3.29 | BE27: 1 | BF27: 11.85 | BG27: 0 | BH27: 0 | BI27: 44 | BJ27: 6 | BK27: 4 | BL27: 3 | BM27: 65 | BN27: 53 | BO27: 15 | BP27: 81 | BQ27: 24 | BR27: 12 | BS27: 3.27 | BT27: 1.06 | BU27: 11.2 | BV27: 0 | BW27: 0 | BX27: 65 | BY27: 8 | BZ27: 2 | CA27: 2 | CB27: 50.3 | CC27: 42 | CD27: 15 | CE27: 52 | CF27: 18 | CG27: 4 | CH27: 3.29 | CI27: 1.12 | CJ27: 9.30417495 | CK27: 0 | CL27: 0 | CM27: 46 | CN27: 7 | CO27: 3 | CP27: 3 | CQ27: 65 | CR27: 52 | CS27: 18 | CT27: 76 | CU27: 23 | CV27: 11 | CW27: 3.16 | CX27: 1.07 | CY27: 10.53 | CZ27: 0 | DA27: 0 | DB27: 65 | DC27: 7 | DD27: =(('Guts-2'!$I$1*0.01)*C27)+(('Guts-2'!$I$7*0.01)*R27)+(('Guts-2'!$I$3*0.01)*AG27)+(('Guts-2'!$I$9*0.01)*AV27)+(('Guts-2'!$I$4*0.01)*BK27)+(('Guts-2'!$I$2*0.01)*BZ27)+(('Guts-2'!$I$8*0.01)*CO27) ->  | DE27: =(('Guts-2'!$I$1*0.01)*D27)+(('Guts-2'!$I$7*0.01)*S27)+(('Guts-2'!$I$3*0.01)*AH27)+(('Guts-2'!$I$9*0.01)*AW27)+(('Guts-2'!$I$4*0.01)*BL27)+(('Guts-2'!$I$2*0.01)*CA27)+(('Guts-2'!$I$8*0.01)*CP27) ->  | DF27: =(('Guts-2'!$I$1*0.01)*E27)+(('Guts-2'!$I$7*0.01)*T27)+(('Guts-2'!$I$3*0.01)*AI27)+(('Guts-2'!$I$9*0.01)*AX27)+(('Guts-2'!$I$4*0.01)*BM27)+(('Guts-2'!$I$2*0.01)*CB27)+(('Guts-2'!$I$8*0.01)*CQ27) ->  | DG27: =(('Guts-2'!$I$1*0.01)*F27)+(('Guts-2'!$I$7*0.01)*U27)+(('Guts-2'!$I$3*0.01)*AJ27)+(('Guts-2'!$I$9*0.01)*AY27)+(('Guts-2'!$I$4*0.01)*BN27)+(('Guts-2'!$I$2*0.01)*CC27)+(('Guts-2'!$I$8*0.01)*CR27) ->  | DH27: =(('Guts-2'!$I$1*0.01)*G27)+(('Guts-2'!$I$7*0.01)*V27)+(('Guts-2'!$I$3*0.01)*AK27)+(('Guts-2'!$I$9*0.01)*AZ27)+(('Guts-2'!$I$4*0.01)*BO27)+(('Guts-2'!$I$2*0.01)*CD27)+(('Guts-2'!$I$8*0.01)*CS27) ->  | DI27: =(('Guts-2'!$I$1*0.01)*H27)+(('Guts-2'!$I$7*0.01)*W27)+(('Guts-2'!$I$3*0.01)*AL27)+(('Guts-2'!$I$9*0.01)*BA27)+(('Guts-2'!$I$4*0.01)*BP27)+(('Guts-2'!$I$2*0.01)*CE27)+(('Guts-2'!$I$8*0.01)*CT27) ->  | DJ27: =(('Guts-2'!$I$1*0.01)*I27)+(('Guts-2'!$I$7*0.01)*X27)+(('Guts-2'!$I$3*0.01)*AM27)+(('Guts-2'!$I$9*0.01)*BB27)+(('Guts-2'!$I$4*0.01)*BQ27)+(('Guts-2'!$I$2*0.01)*CF27)+(('Guts-2'!$I$8*0.01)*CU27) ->  | DK27: =(('Guts-2'!$I$1*0.01)*J27)+(('Guts-2'!$I$7*0.01)*Y27)+(('Guts-2'!$I$3*0.01)*AN27)+(('Guts-2'!$I$9*0.01)*BC27)+(('Guts-2'!$I$4*0.01)*BR27)+(('Guts-2'!$I$2*0.01)*CG27)+(('Guts-2'!$I$8*0.01)*CV27) ->  | DO27: =(('Guts-2'!$I$1*0.01)*N27)+(('Guts-2'!$I$7*0.01)*AC27)+(('Guts-2'!$I$3*0.01)*AR27)+(('Guts-2'!$I$9*0.01)*BG27)+(('Guts-2'!$I$4*0.01)*BV27)+(('Guts-2'!$I$2*0.01)*CK27)+(('Guts-2'!$I$8*0.01)*CZ27) ->  | DP27: =(('Guts-2'!$I$1*0.01)*O27)+(('Guts-2'!$I$7*0.01)*AD27)+(('Guts-2'!$I$3*0.01)*AS27)+(('Guts-2'!$I$9*0.01)*BH27)+(('Guts-2'!$I$4*0.01)*BW27)+(('Guts-2'!$I$2*0.01)*CL27)+(('Guts-2'!$I$8*0.01)*DA27) ->  | DQ27: =(('Guts-2'!$I$1*0.01)*P27)+(('Guts-2'!$I$7*0.01)*AE27)+(('Guts-2'!$I$3*0.01)*AT27)+(('Guts-2'!$I$9*0.01)*BI27)+(('Guts-2'!$I$4*0.01)*BX27)+(('Guts-2'!$I$2*0.01)*CM27)+(('Guts-2'!$I$8*0.01)*DB27) ->  | DR27: =(('Guts-2'!$I$1*0.01)*Q27)+(('Guts-2'!$I$7*0.01)*AF27)+(('Guts-2'!$I$3*0.01)*AU27)+(('Guts-2'!$I$9*0.01)*BJ27)+(('Guts-2'!$I$4*0.01)*BY27)+(('Guts-2'!$I$2*0.01)*CN27)+(('Guts-2'!$I$8*0.01)*DC27) ->  | EH27: 3 | EI27: 3 | EJ27: 65 | EK27: 54 | EL27: 18 | EM27: 76 | EN27: 24 | EO27: 11 | EP27: 3.25 | EQ27: 1.11 | ER27: 10.55 | ES27: 0 | ET27: 0 | EU27: 65 | EV27: 7 | EW27: =VLOOKUP($A27,'Import (Projections)'!$O$2:$X$8997,COLUMN(B25),FALSE) ->  | EX27: =VLOOKUP($A27,'Import (Projections)'!$O$2:$X$8997,COLUMN(C25),FALSE) ->  | EY27: =VLOOKUP($A27,'Import (Projections)'!$O$2:$X$8997,COLUMN(D25),FALSE) ->  | EZ27: =VLOOKUP($A27,'Import (Projections)'!$O$2:$X$8997,COLUMN(E25),FALSE) ->  | FA27: =VLOOKUP($A27,'Import (Projections)'!$O$2:$X$8997,COLUMN(F25),FALSE) ->  | FB27: =VLOOKUP($A27,'Import (Projections)'!$O$2:$X$8997,COLUMN(G25),FALSE) ->  | FC27: =VLOOKUP($A27,'Import (Projections)'!$O$2:$X$8997,COLUMN(H25),FALSE) ->  | FD27: =VLOOKUP($A27,'Import (Projections)'!$O$2:$X$8997,COLUMN(I25),FALSE) ->  | FI27: =VLOOKUP($A27,'Import (Projections)'!$O$2:$X$8997,COLUMN(J25),FALSE) ->  | FL27: =IFERROR(IFERROR(AVERAGE(FP27,FT27),IFERROR(FT27,IFERROR(FP27,0)))*CHOOSE('Guts-2'!$D$28,O27,AD27,AS27,BH27,BW27,CL27,DA27,DP27,EE27,ET27,FI27,),0) -> 0 | FM27: =IFERROR(IFERROR(AVERAGE(FQ27,FS27),IFERROR(FS27,IFERROR(FQ27,0)))*CHOOSE('Guts-2'!$D$28,O27,AD27,AS27,BH27,BW27,CL27,DA27,DP27,EE27,ET27,FI27,),0) -> 0 | FN27: 11 | FO27: 0.2271287735 | FP27: 0 | FQ27: 0 | FR27: 0.3572903698 | FS27: 0 | FT27: 0 | FU27: 0 | FV27: 10 | FW27: 12
A28: Ryan Dull | B28: dullry01 | C28: 5.206372989 | D28: 3.707503379 | E28: 70.98571429 | F28: 56.09920696 | G28: 18.45497674 | H28: 62.87909729 | I28: 26.55594944 | J28: 5.195893959 | K28: 3.366924562 | L28: 1.050270247 | M28: 7.972193861 | N28: 0 | O28: 0 | P28: 61.56339399 | Q28: 8.973127571 | R28: 3 | S28: 3 | T28: 55 | U28: 52 | V28: 18 | W28: 53 | X28: 25 | Y28: 0 | Z28: 4.03 | AA28: 1.27 | AB28: 8.68 | AC28: 0 | AD28: 0 | AE28: 55 | AF28: 7 | AV28: 6 | AW28: 4 | AX28: 68.7 | AY28: 61 | AZ28: 18 | BA28: 70 | BB28: 26 | BC28: 0 | BD28: 3.41 | BE28: 1.15 | BF28: 9.17 | BG28: 0 | BH28: 0 | BI28: 61 | BJ28: 9 | BK28: 4 | BL28: 3 | BM28: 55 | BN28: 51 | BO28: 16 | BP28: 55 | BQ28: 23 | BR28: 1 | BS28: 3.72 | BT28: 1.21 | BU28: 8.93 | BV28: 0 | BW28: 0 | BX28: 55 | BY28: 7 | BZ28: 2 | CA28: 2 | CB28: 50.3 | CC28: 43 | CD28: 16 | CE28: 48 | CF28: 19 | CG28: 2 | CH28: 3.43 | CI28: 1.16 | CJ28: 8.588469185 | CK28: 0 | CL28: 0 | CM28: 50 | CN28: 7 | CO28: 3 | CP28: 3 | CQ28: 65 | CR28: 59 | CS28: 21 | CT28: 62 | CU28: 28 | CV28: 0 | CW28: 3.93 | CX28: 1.23 | CY28: 8.65 | CZ28: 0 | DA28: 0 | DB28: 65 | DC28: 8 | DD28: =(('Guts-2'!$I$1*0.01)*C28)+(('Guts-2'!$I$7*0.01)*R28)+(('Guts-2'!$I$3*0.01)*AG28)+(('Guts-2'!$I$9*0.01)*AV28)+(('Guts-2'!$I$4*0.01)*BK28)+(('Guts-2'!$I$2*0.01)*BZ28)+(('Guts-2'!$I$8*0.01)*CO28) ->  | DE28: =(('Guts-2'!$I$1*0.01)*D28)+(('Guts-2'!$I$7*0.01)*S28)+(('Guts-2'!$I$3*0.01)*AH28)+(('Guts-2'!$I$9*0.01)*AW28)+(('Guts-2'!$I$4*0.01)*BL28)+(('Guts-2'!$I$2*0.01)*CA28)+(('Guts-2'!$I$8*0.01)*CP28) ->  | DF28: =(('Guts-2'!$I$1*0.01)*E28)+(('Guts-2'!$I$7*0.01)*T28)+(('Guts-2'!$I$3*0.01)*AI28)+(('Guts-2'!$I$9*0.01)*AX28)+(('Guts-2'!$I$4*0.01)*BM28)+(('Guts-2'!$I$2*0.01)*CB28)+(('Guts-2'!$I$8*0.01)*CQ28) ->  | DG28: =(('Guts-2'!$I$1*0.01)*F28)+(('Guts-2'!$I$7*0.01)*U28)+(('Guts-2'!$I$3*0.01)*AJ28)+(('Guts-2'!$I$9*0.01)*AY28)+(('Guts-2'!$I$4*0.01)*BN28)+(('Guts-2'!$I$2*0.01)*CC28)+(('Guts-2'!$I$8*0.01)*CR28) ->  | DH28: =(('Guts-2'!$I$1*0.01)*G28)+(('Guts-2'!$I$7*0.01)*V28)+(('Guts-2'!$I$3*0.01)*AK28)+(('Guts-2'!$I$9*0.01)*AZ28)+(('Guts-2'!$I$4*0.01)*BO28)+(('Guts-2'!$I$2*0.01)*CD28)+(('Guts-2'!$I$8*0.01)*CS28) ->  | DI28: =(('Guts-2'!$I$1*0.01)*H28)+(('Guts-2'!$I$7*0.01)*W28)+(('Guts-2'!$I$3*0.01)*AL28)+(('Guts-2'!$I$9*0.01)*BA28)+(('Guts-2'!$I$4*0.01)*BP28)+(('Guts-2'!$I$2*0.01)*CE28)+(('Guts-2'!$I$8*0.01)*CT28) ->  | DJ28: =(('Guts-2'!$I$1*0.01)*I28)+(('Guts-2'!$I$7*0.01)*X28)+(('Guts-2'!$I$3*0.01)*AM28)+(('Guts-2'!$I$9*0.01)*BB28)+(('Guts-2'!$I$4*0.01)*BQ28)+(('Guts-2'!$I$2*0.01)*CF28)+(('Guts-2'!$I$8*0.01)*CU28) ->  | DK28: =(('Guts-2'!$I$1*0.01)*J28)+(('Guts-2'!$I$7*0.01)*Y28)+(('Guts-2'!$I$3*0.01)*AN28)+(('Guts-2'!$I$9*0.01)*BC28)+(('Guts-2'!$I$4*0.01)*BR28)+(('Guts-2'!$I$2*0.01)*CG28)+(('Guts-2'!$I$8*0.01)*CV28) ->  | DO28: =(('Guts-2'!$I$1*0.01)*N28)+(('Guts-2'!$I$7*0.01)*AC28)+(('Guts-2'!$I$3*0.01)*AR28)+(('Guts-2'!$I$9*0.01)*BG28)+(('Guts-2'!$I$4*0.01)*BV28)+(('Guts-2'!$I$2*0.01)*CK28)+(('Guts-2'!$I$8*0.01)*CZ28) ->  | DP28: =(('Guts-2'!$I$1*0.01)*O28)+(('Guts-2'!$I$7*0.01)*AD28)+(('Guts-2'!$I$3*0.01)*AS28)+(('Guts-2'!$I$9*0.01)*BH28)+(('Guts-2'!$I$4*0.01)*BW28)+(('Guts-2'!$I$2*0.01)*CL28)+(('Guts-2'!$I$8*0.01)*DA28) ->  | DQ28: =(('Guts-2'!$I$1*0.01)*P28)+(('Guts-2'!$I$7*0.01)*AE28)+(('Guts-2'!$I$3*0.01)*AT28)+(('Guts-2'!$I$9*0.01)*BI28)+(('Guts-2'!$I$4*0.01)*BX28)+(('Guts-2'!$I$2*0.01)*CM28)+(('Guts-2'!$I$8*0.01)*DB28) ->  | DR28: =(('Guts-2'!$I$1*0.01)*Q28)+(('Guts-2'!$I$7*0.01)*AF28)+(('Guts-2'!$I$3*0.01)*AU28)+(('Guts-2'!$I$9*0.01)*BJ28)+(('Guts-2'!$I$4*0.01)*BY28)+(('Guts-2'!$I$2*0.01)*CN28)+(('Guts-2'!$I$8*0.01)*DC28) ->  | EH28: 3 | EI28: 3 | EJ28: 55 | EK28: 52 | EL28: 18 | EM28: 53 | EN28: 25 | EO28: 0 | EP28: 4.03 | EQ28: 1.27 | ER28: 8.68 | ES28: 0 | ET28: 0 | EU28: 55 | EV28: 7 | EW28: =VLOOKUP($A28,'Import (Projections)'!$O$2:$X$8997,COLUMN(B26),FALSE) ->  | EX28: =VLOOKUP($A28,'Import (Projections)'!$O$2:$X$8997,COLUMN(C26),FALSE) ->  | EY28: =VLOOKUP($A28,'Import (Projections)'!$O$2:$X$8997,COLUMN(D26),FALSE) ->  | EZ28: =VLOOKUP($A28,'Import (Projections)'!$O$2:$X$8997,COLUMN(E26),FALSE) ->  | FA28: =VLOOKUP($A28,'Import (Projections)'!$O$2:$X$8997,COLUMN(F26),FALSE) ->  | FB28: =VLOOKUP($A28,'Import (Projections)'!$O$2:$X$8997,COLUMN(G26),FALSE) ->  | FC28: =VLOOKUP($A28,'Import (Projections)'!$O$2:$X$8997,COLUMN(H26),FALSE) ->  | FD28: =VLOOKUP($A28,'Import (Projections)'!$O$2:$X$8997,COLUMN(I26),FALSE) ->  | FI28: =VLOOKUP($A28,'Import (Projections)'!$O$2:$X$8997,COLUMN(J26),FALSE) ->  | FL28: =IFERROR(IFERROR(AVERAGE(FP28,FT28),IFERROR(FT28,IFERROR(FP28,0)))*CHOOSE('Guts-2'!$D$28,O28,AD28,AS28,BH28,BW28,CL28,DA28,DP28,EE28,ET28,FI28,),0) -> 0 | FM28: =IFERROR(IFERROR(AVERAGE(FQ28,FS28),IFERROR(FS28,IFERROR(FQ28,0)))*CHOOSE('Guts-2'!$D$28,O28,AD28,AS28,BH28,BW28,CL28,DA28,DP28,EE28,ET28,FI28,),0) -> 0 | FN28: 19 | FO28: 0.2111784466 | FP28: 0 | FQ28: 0 | FR28: 0.1691256939 | FS28: 0 | FT28: 0 | FU28: 0 | FV28: 30 | FW28: 8
A29: Sam Dyson | B29: dysonsa01 | C29: 3.920658704 | D29: 2.707503379 | E29: 70.42380952 | F29: 64.50397297 | G29: 23.01313397 | H29: 58.72297484 | I29: 24.74454301 | J29: 17.76732253 | K29: 3.162295374 | L29: 1.242720431 | M29: 7.504660386 | N29: 0 | O29: 0 | P29: 67.70625114 | Q29: 4.695573447 | R29: 3 | S29: 3 | T29: 65 | U29: 64 | V29: 23 | W29: 56 | X29: 26 | Y29: 34 | Z29: 3.64 | AA29: 1.35 | AB29: 7.79 | AC29: 0 | AD29: 0 | AE29: 65 | AF29: 5 | AG29: 4 | AH29: 4 | AI29: 69 | AJ29: 62 | AK29: 19 | AL29: 61 | AM29: 19 | AN29: 41 | AO29: 2.5 | AP29: 1.17 | AQ29: 7.96 | AR29: 0 | AS29: 0 | AT29: 69 | AU29: 5 | AV29: 4 | AW29: 3 | AX29: 70.3 | AY29: 69 | AZ29: 20 | BA29: 61 | BB29: 27 | BC29: 36.77230769 | BD29: 3.45 | BE29: 1.27 | BF29: 7.81 | BG29: 0 | BH29: 0 | BI29: 73 | BJ29: 7 | BK29: 4 | BL29: 3 | BM29: 65 | BN29: 64 | BO29: 21 | BP29: 56 | BQ29: 26 | BR29: 32 | BS29: 3.55 | BT29: 1.31 | BU29: 7.8 | BV29: 0 | BW29: 0 | BX29: 65 | BY29: 6 | BZ29: 4 | CA29: 3 | CB29: 80.3 | CC29: 80 | CD29: 28 | CE29: 65 | CF29: 33 | CG29: 32 | CH29: 3.73 | CI29: 1.34 | CJ29: 7.285180573 | CK29: 0 | CL29: 0 | CM29: 80 | CN29: 8 | CO29: 3 | CP29: 3 | CQ29: 65 | CR29: 62 | CS29: 23 | CT29: 56 | CU29: 26 | CV29: 34 | CW29: 3.64 | CX29: 1.32 | CY29: 7.78 | CZ29: 0 | DA29: 0 | DB29: 65 | DC29: 5 | DD29: =(('Guts-2'!$I$1*0.01)*C29)+(('Guts-2'!$I$7*0.01)*R29)+(('Guts-2'!$I$3*0.01)*AG29)+(('Guts-2'!$I$9*0.01)*AV29)+(('Guts-2'!$I$4*0.01)*BK29)+(('Guts-2'!$I$2*0.01)*BZ29)+(('Guts-2'!$I$8*0.01)*CO29) -> 3.6 | DE29: =(('Guts-2'!$I$1*0.01)*D29)+(('Guts-2'!$I$7*0.01)*S29)+(('Guts-2'!$I$3*0.01)*AH29)+(('Guts-2'!$I$9*0.01)*AW29)+(('Guts-2'!$I$4*0.01)*BL29)+(('Guts-2'!$I$2*0.01)*CA29)+(('Guts-2'!$I$8*0.01)*CP29) -> 3 | DF29: =(('Guts-2'!$I$1*0.01)*E29)+(('Guts-2'!$I$7*0.01)*T29)+(('Guts-2'!$I$3*0.01)*AI29)+(('Guts-2'!$I$9*0.01)*AX29)+(('Guts-2'!$I$4*0.01)*BM29)+(('Guts-2'!$I$2*0.01)*CB29)+(('Guts-2'!$I$8*0.01)*CQ29) -> 69.12 | DG29: =(('Guts-2'!$I$1*0.01)*F29)+(('Guts-2'!$I$7*0.01)*U29)+(('Guts-2'!$I$3*0.01)*AJ29)+(('Guts-2'!$I$9*0.01)*AY29)+(('Guts-2'!$I$4*0.01)*BN29)+(('Guts-2'!$I$2*0.01)*CC29)+(('Guts-2'!$I$8*0.01)*CR29) -> 68.2 | DH29: =(('Guts-2'!$I$1*0.01)*G29)+(('Guts-2'!$I$7*0.01)*V29)+(('Guts-2'!$I$3*0.01)*AK29)+(('Guts-2'!$I$9*0.01)*AZ29)+(('Guts-2'!$I$4*0.01)*BO29)+(('Guts-2'!$I$2*0.01)*CD29)+(('Guts-2'!$I$8*0.01)*CS29) -> 23 | DI29: =(('Guts-2'!$I$1*0.01)*H29)+(('Guts-2'!$I$7*0.01)*W29)+(('Guts-2'!$I$3*0.01)*AL29)+(('Guts-2'!$I$9*0.01)*BA29)+(('Guts-2'!$I$4*0.01)*BP29)+(('Guts-2'!$I$2*0.01)*CE29)+(('Guts-2'!$I$8*0.01)*CT29) -> 58.8 | DJ29: =(('Guts-2'!$I$1*0.01)*I29)+(('Guts-2'!$I$7*0.01)*X29)+(('Guts-2'!$I$3*0.01)*AM29)+(('Guts-2'!$I$9*0.01)*BB29)+(('Guts-2'!$I$4*0.01)*BQ29)+(('Guts-2'!$I$2*0.01)*CF29)+(('Guts-2'!$I$8*0.01)*CU29) -> 27.6 | DK29: =(('Guts-2'!$I$1*0.01)*J29)+(('Guts-2'!$I$7*0.01)*Y29)+(('Guts-2'!$I$3*0.01)*AN29)+(('Guts-2'!$I$9*0.01)*BC29)+(('Guts-2'!$I$4*0.01)*BR29)+(('Guts-2'!$I$2*0.01)*CG29)+(('Guts-2'!$I$8*0.01)*CV29) -> 33.75446154 | DL29: 3.59375 | DM29: 1.319444444 | DN29: 7.65625 | DO29: =(('Guts-2'!$I$1*0.01)*N29)+(('Guts-2'!$I$7*0.01)*AC29)+(('Guts-2'!$I$3*0.01)*AR29)+(('Guts-2'!$I$9*0.01)*BG29)+(('Guts-2'!$I$4*0.01)*BV29)+(('Guts-2'!$I$2*0.01)*CK29)+(('Guts-2'!$I$8*0.01)*CZ29) -> 0 | DP29: =(('Guts-2'!$I$1*0.01)*O29)+(('Guts-2'!$I$7*0.01)*AD29)+(('Guts-2'!$I$3*0.01)*AS29)+(('Guts-2'!$I$9*0.01)*BH29)+(('Guts-2'!$I$4*0.01)*BW29)+(('Guts-2'!$I$2*0.01)*CL29)+(('Guts-2'!$I$8*0.01)*DA29) -> 0 | DQ29: =(('Guts-2'!$I$1*0.01)*P29)+(('Guts-2'!$I$7*0.01)*AE29)+(('Guts-2'!$I$3*0.01)*AT29)+(('Guts-2'!$I$9*0.01)*BI29)+(('Guts-2'!$I$4*0.01)*BX29)+(('Guts-2'!$I$2*0.01)*CM29)+(('Guts-2'!$I$8*0.01)*DB29) -> 69.6 | DR29: =(('Guts-2'!$I$1*0.01)*Q29)+(('Guts-2'!$I$7*0.01)*AF29)+(('Guts-2'!$I$3*0.01)*AU29)+(('Guts-2'!$I$9*0.01)*BJ29)+(('Guts-2'!$I$4*0.01)*BY29)+(('Guts-2'!$I$2*0.01)*CN29)+(('Guts-2'!$I$8*0.01)*DC29) -> 6.2 | DS29: 3.352272623 | DT29: 3.660006486 | DU29: 70 | DV29: 67.62776363 | DW29: 22.4859686 | DX29: 61.15660613 | DY29: 24.51014493 | DZ29: 35 | EA29: 3.151304348 | EB29: 1.287339032 | EC29: 7.862992217 | ED29: 0 | EE29: 0 | EF29: 70 | EG29: 5.463374733 | EH29: 3.352272623 | EI29: 3.660006486 | EJ29: 70 | EK29: 67.62776363 | EL29: 22.4859686 | EM29: 61.15660613 | EN29: 24.51014493 | EO29: 35 | EP29: 3.151304348 | EQ29: 1.287339032 | ER29: 7.862992217 | ES29: 0 | ET29: 0 | EU29: 70 | EV29: 5.463374733 | EW29: =VLOOKUP($A29,'Import (Projections)'!$O$2:$X$8997,COLUMN(B27),FALSE) ->  | EX29: =VLOOKUP($A29,'Import (Projections)'!$O$2:$X$8997,COLUMN(C27),FALSE) ->  | EY29: =VLOOKUP($A29,'Import (Projections)'!$O$2:$X$8997,COLUMN(D27),FALSE) ->  | EZ29: =VLOOKUP($A29,'Import (Projections)'!$O$2:$X$8997,COLUMN(E27),FALSE) ->  | FA29: =VLOOKUP($A29,'Import (Projections)'!$O$2:$X$8997,COLUMN(F27),FALSE) ->  | FB29: =VLOOKUP($A29,'Import (Projections)'!$O$2:$X$8997,COLUMN(G27),FALSE) ->  | FC29: =VLOOKUP($A29,'Import (Projections)'!$O$2:$X$8997,COLUMN(H27),FALSE) ->  | FD29: =VLOOKUP($A29,'Import (Projections)'!$O$2:$X$8997,COLUMN(I27),FALSE) ->  | FI29: =VLOOKUP($A29,'Import (Projections)'!$O$2:$X$8997,COLUMN(J27),FALSE) ->  | FL29: =IFERROR(IFERROR(AVERAGE(FP29,FT29),IFERROR(FT29,IFERROR(FP29,0)))*CHOOSE('Guts-2'!$D$28,O29,AD29,AS29,BH29,BW29,CL29,DA29,DP29,EE29,ET29,FI29,),0) -> 0 | FM29: =IFERROR(IFERROR(AVERAGE(FQ29,FS29),IFERROR(FS29,IFERROR(FQ29,0)))*CHOOSE('Guts-2'!$D$28,O29,AD29,AS29,BH29,BW29,CL29,DA29,DP29,EE29,ET29,FI29,),0) -> 0 | FN29: 8 | FO29: 0.2447528889 | FP29: 0 | FQ29: 0 | FR29: 0.4723844514 | FS29: 0 | FT29: 0 | FU29: 2 | FV29: 12 | FW29: 4
A30: Carl Edwards | B30: edwarca01 | C30: 2.156826548 | D30: 2.849329165 | E30: 59.39047619 | F30: 38.47049407 | G30: 33.52982432 | H30: 63.75779374 | I30: 26.43239612 | J30: 3.438860344 | K30: 4.005550727 | L30: 1.212320948 | M30: 9.661820892 | N30: 0 | O30: 1.428571429 | P30: 48.03355953 | Q30: 4.867525125 | R30: 3 | S30: 2 | T30: 55 | U30: 42 | V30: 30 | W30: 69 | X30: 20 | Y30: 0 | Z30: 3.2 | AA30: 1.31 | AB30: 11.26 | AC30: 0 | AD30: 0 | AE30: 55 | AF30: 5 | AG30: 3 | AH30: 3 | AI30: 56 | AJ30: 44 | AK30: 22 | AL30: 70 | AM30: 20 | AN30: 0 | AO30: 3.25 | AP30: 1.18 | AQ30: 11.25 | AR30: 0 | AS30: 2 | AT30: 50 | AU30: 6 | AV30: 3 | AW30: 2 | AX30: 52.7 | AY30: 38 | AZ30: 30 | BA30: 71 | BB30: 21 | BC30: 0 | BD30: 3.59 | BE30: 1.29 | BF30: 12.13 | BG30: 0 | BH30: 0 | BI30: 50 | BJ30: 6 | BK30: 3 | BL30: 2 | BM30: 55 | BN30: 41 | BO30: 31 | BP30: 71 | BQ30: 21 | BR30: 0 | BS30: 3.4 | BT30: 1.3 | BU30: 11.69 | BV30: 0 | BW30: 0 | BX30: 55 | BY30: 5 | BZ30: 3 | CA30: 2 | CB30: 65.7 | CC30: 53 | CD30: 36 | CE30: 72 | CF30: 29 | CG30: 0 | CH30: 4.03 | CI30: 1.35 | CJ30: 9.863013699 | CK30: 0 | CL30: 0 | CM30: 66 | CN30: 8 | CO30: 4 | CP30: 3 | CQ30: 65 | CR30: 48 | CS30: 35 | CT30: 81 | CU30: 23 | CV30: 0 | CW30: 3.15 | CX30: 1.27 | CY30: 11.23 | CZ30: 0 | DA30: 0 | DB30: 65 | DC30: 5 | DD30: =(('Guts-2'!$I$1*0.01)*C30)+(('Guts-2'!$I$7*0.01)*R30)+(('Guts-2'!$I$3*0.01)*AG30)+(('Guts-2'!$I$9*0.01)*AV30)+(('Guts-2'!$I$4*0.01)*BK30)+(('Guts-2'!$I$2*0.01)*BZ30)+(('Guts-2'!$I$8*0.01)*CO30) -> 3 | DE30: =(('Guts-2'!$I$1*0.01)*D30)+(('Guts-2'!$I$7*0.01)*S30)+(('Guts-2'!$I$3*0.01)*AH30)+(('Guts-2'!$I$9*0.01)*AW30)+(('Guts-2'!$I$4*0.01)*BL30)+(('Guts-2'!$I$2*0.01)*CA30)+(('Guts-2'!$I$8*0.01)*CP30) -> 2 | DF30: =(('Guts-2'!$I$1*0.01)*E30)+(('Guts-2'!$I$7*0.01)*T30)+(('Guts-2'!$I$3*0.01)*AI30)+(('Guts-2'!$I$9*0.01)*AX30)+(('Guts-2'!$I$4*0.01)*BM30)+(('Guts-2'!$I$2*0.01)*CB30)+(('Guts-2'!$I$8*0.01)*CQ30) -> 56.68 | DG30: =(('Guts-2'!$I$1*0.01)*F30)+(('Guts-2'!$I$7*0.01)*U30)+(('Guts-2'!$I$3*0.01)*AJ30)+(('Guts-2'!$I$9*0.01)*AY30)+(('Guts-2'!$I$4*0.01)*BN30)+(('Guts-2'!$I$2*0.01)*CC30)+(('Guts-2'!$I$8*0.01)*CR30) -> 43.2 | DH30: =(('Guts-2'!$I$1*0.01)*G30)+(('Guts-2'!$I$7*0.01)*V30)+(('Guts-2'!$I$3*0.01)*AK30)+(('Guts-2'!$I$9*0.01)*AZ30)+(('Guts-2'!$I$4*0.01)*BO30)+(('Guts-2'!$I$2*0.01)*CD30)+(('Guts-2'!$I$8*0.01)*CS30) -> 31.4 | DI30: =(('Guts-2'!$I$1*0.01)*H30)+(('Guts-2'!$I$7*0.01)*W30)+(('Guts-2'!$I$3*0.01)*AL30)+(('Guts-2'!$I$9*0.01)*BA30)+(('Guts-2'!$I$4*0.01)*BP30)+(('Guts-2'!$I$2*0.01)*CE30)+(('Guts-2'!$I$8*0.01)*CT30) -> 70.4 | DJ30: =(('Guts-2'!$I$1*0.01)*I30)+(('Guts-2'!$I$7*0.01)*X30)+(('Guts-2'!$I$3*0.01)*AM30)+(('Guts-2'!$I$9*0.01)*BB30)+(('Guts-2'!$I$4*0.01)*BQ30)+(('Guts-2'!$I$2*0.01)*CF30)+(('Guts-2'!$I$8*0.01)*CU30) -> 22.2 | DK30: =(('Guts-2'!$I$1*0.01)*J30)+(('Guts-2'!$I$7*0.01)*Y30)+(('Guts-2'!$I$3*0.01)*AN30)+(('Guts-2'!$I$9*0.01)*BC30)+(('Guts-2'!$I$4*0.01)*BR30)+(('Guts-2'!$I$2*0.01)*CG30)+(('Guts-2'!$I$8*0.01)*CV30) -> 0 | DL30: 3.525052929 | DM30: 1.316160903 | DN30: 11.17854622 | DO30: =(('Guts-2'!$I$1*0.01)*N30)+(('Guts-2'!$I$7*0.01)*AC30)+(('Guts-2'!$I$3*0.01)*AR30)+(('Guts-2'!$I$9*0.01)*BG30)+(('Guts-2'!$I$4*0.01)*BV30)+(('Guts-2'!$I$2*0.01)*CK30)+(('Guts-2'!$I$8*0.01)*CZ30) -> 0 | DP30: =(('Guts-2'!$I$1*0.01)*O30)+(('Guts-2'!$I$7*0.01)*AD30)+(('Guts-2'!$I$3*0.01)*AS30)+(('Guts-2'!$I$9*0.01)*BH30)+(('Guts-2'!$I$4*0.01)*BW30)+(('Guts-2'!$I$2*0.01)*CL30)+(('Guts-2'!$I$8*0.01)*DA30) -> 0 | DQ30: =(('Guts-2'!$I$1*0.01)*P30)+(('Guts-2'!$I$7*0.01)*AE30)+(('Guts-2'!$I$3*0.01)*AT30)+(('Guts-2'!$I$9*0.01)*BI30)+(('Guts-2'!$I$4*0.01)*BX30)+(('Guts-2'!$I$2*0.01)*CM30)+(('Guts-2'!$I$8*0.01)*DB30) -> 56.2 | DR30: =(('Guts-2'!$I$1*0.01)*Q30)+(('Guts-2'!$I$7*0.01)*AF30)+(('Guts-2'!$I$3*0.01)*AU30)+(('Guts-2'!$I$9*0.01)*BJ30)+(('Guts-2'!$I$4*0.01)*BY30)+(('Guts-2'!$I$2*0.01)*CN30)+(('Guts-2'!$I$8*0.01)*DC30) -> 5.8 | DS30: 3.020899973 | DT30: 2.636097704 | DU30: 57 | DV30: 41.90514484 | DW30: 28.04659091 | DX30: 70.83775843 | DY30: 20.57922078 | DZ30: 0 | EA30: 3.249350649 | EB30: 1.227223434 | EC30: 11.18490923 | ED30: 0 | EE30: 2 | EF30: 52 | EG30: 5.322203879 | EH30: 3.020899973 | EI30: 2.636097704 | EJ30: 57 | EK30: 41.90514484 | EL30: 28.04659091 | EM30: 70.83775843 | EN30: 20.57922078 | EO30: 0 | EP30: 3.249350649 | EQ30: 1.227223434 | ER30: 11.18490923 | ES30: 0 | ET30: 2 | EU30: 52 | EV30: 5.322203879 | EW30: =VLOOKUP($A30,'Import (Projections)'!$O$2:$X$8997,COLUMN(B28),FALSE) ->  | EX30: =VLOOKUP($A30,'Import (Projections)'!$O$2:$X$8997,COLUMN(C28),FALSE) ->  | EY30: =VLOOKUP($A30,'Import (Projections)'!$O$2:$X$8997,COLUMN(D28),FALSE) ->  | EZ30: =VLOOKUP($A30,'Import (Projections)'!$O$2:$X$8997,COLUMN(E28),FALSE) ->  | FA30: =VLOOKUP($A30,'Import (Projections)'!$O$2:$X$8997,COLUMN(F28),FALSE) ->  | FB30: =VLOOKUP($A30,'Import (Projections)'!$O$2:$X$8997,COLUMN(G28),FALSE) ->  | FC30: =VLOOKUP($A30,'Import (Projections)'!$O$2:$X$8997,COLUMN(H28),FALSE) ->  | FD30: =VLOOKUP($A30,'Import (Projections)'!$O$2:$X$8997,COLUMN(I28),FALSE) ->  | FI30: =VLOOKUP($A30,'Import (Projections)'!$O$2:$X$8997,COLUMN(J28),FALSE) ->  | FL30: =IFERROR(IFERROR(AVERAGE(FP30,FT30),IFERROR(FT30,IFERROR(FP30,0)))*CHOOSE('Guts-2'!$D$28,O30,AD30,AS30,BH30,BW30,CL30,DA30,DP30,EE30,ET30,FI30,),0) -> 0 | FM30: =IFERROR(IFERROR(AVERAGE(FQ30,FS30),IFERROR(FS30,IFERROR(FQ30,0)))*CHOOSE('Guts-2'!$D$28,O30,AD30,AS30,BH30,BW30,CL30,DA30,DP30,EE30,ET30,FI30,),0) -> 0 | FN30: 27 | FO30: 0.1780804996 | FP30: 0 | FQ30: 0 | FR30: 0.2027766531 | FS30: 0 | FT30: 0 | FU30: 0 | FV30: 40 | FW30: 14
A31: Jeurys Familia | B31: familje01 | C31: 2.585397977 | D31: 3.420757736 | E31: 75.9047619 | F31: 60.91411407 | G31: 27.04387194 | H31: 79.97922231 | I31: 22.45452023 | J31: 35.58171749 | K31: 2.662424293 | L31: 1.158794044 | M31: 9.483107288 | N31: 0 | O31: 0 | P31: 75.17641667 | Q31: 3.633067982 | R31: 3 | S31: 3 | T31: 65 | U31: 57 | V31: 24 | W31: 70 | X31: 23 | Y31: 38 | Z31: 3.17 | AA31: 1.26 | AB31: 9.67 | AC31: 0 | AD31: 0 | AE31: 65 | AF31: 5 | AG31: 3 | AH31: 4 | AI31: 59 | AJ31: 47 | AK31: 20 | AL31: 62 | AM31: 18 | AN31: 29 | AO31: 2.7 | AP31: 1.14 | AQ31: 9.46 | AR31: 0 | AS31: 0 | AT31: 59 | AU31: 3 | AV31: 4 | AW31: 2 | AX31: 76 | AY31: 63 | AZ31: 28 | BA31: 80 | BB31: 25 | BC31: 35.92727273 | BD31: 2.96 | BE31: 1.2 | BF31: 9.47 | BG31: 0 | BH31: 0 | BI31: 76 | BJ31: 6 | BK31: 3 | BL31: 2 | BM31: 65 | BN31: 56 | BO31: 24 | BP31: 69 | BQ31: 22 | BR31: 26 | BS31: 3.07 | BT31: 1.23 | BU31: 9.57 | BV31: 0 | BW31: 0 | BX31: 65 | BY31: 5 | BZ31: 4 | CA31: 2 | CB31: 66.7 | CC31: 55 | CD31: 24 | CE31: 67 | CF31: 21 | CG31: 32 | CH31: 2.87 | CI31: 1.19 | CJ31: 9.04047976 | CK31: 0 | CL31: 0 | CM31: 72 | CN31: 5 | CO31: 3 | CP31: 3 | CQ31: 65 | CR31: 55 | CS31: 24 | CT31: 70 | CU31: 23 | CV31: 38 | CW31: 3.12 | CX31: 1.22 | CY31: 9.65 | CZ31: 0 | DA31: 0 | DB31: 65 | DC31: 5 | DD31: =(('Guts-2'!$I$1*0.01)*C31)+(('Guts-2'!$I$7*0.01)*R31)+(('Guts-2'!$I$3*0.01)*AG31)+(('Guts-2'!$I$9*0.01)*AV31)+(('Guts-2'!$I$4*0.01)*BK31)+(('Guts-2'!$I$2*0.01)*BZ31)+(('Guts-2'!$I$8*0.01)*CO31) -> 3.4 | DE31: =(('Guts-2'!$I$1*0.01)*D31)+(('Guts-2'!$I$7*0.01)*S31)+(('Guts-2'!$I$3*0.01)*AH31)+(('Guts-2'!$I$9*0.01)*AW31)+(('Guts-2'!$I$4*0.01)*BL31)+(('Guts-2'!$I$2*0.01)*CA31)+(('Guts-2'!$I$8*0.01)*CP31) -> 2.4 | DF31: =(('Guts-2'!$I$1*0.01)*E31)+(('Guts-2'!$I$7*0.01)*T31)+(('Guts-2'!$I$3*0.01)*AI31)+(('Guts-2'!$I$9*0.01)*AX31)+(('Guts-2'!$I$4*0.01)*BM31)+(('Guts-2'!$I$2*0.01)*CB31)+(('Guts-2'!$I$8*0.01)*CQ31) -> 67.54 | DG31: =(('Guts-2'!$I$1*0.01)*F31)+(('Guts-2'!$I$7*0.01)*U31)+(('Guts-2'!$I$3*0.01)*AJ31)+(('Guts-2'!$I$9*0.01)*AY31)+(('Guts-2'!$I$4*0.01)*BN31)+(('Guts-2'!$I$2*0.01)*CC31)+(('Guts-2'!$I$8*0.01)*CR31) -> 57.6 | DH31: =(('Guts-2'!$I$1*0.01)*G31)+(('Guts-2'!$I$7*0.01)*V31)+(('Guts-2'!$I$3*0.01)*AK31)+(('Guts-2'!$I$9*0.01)*AZ31)+(('Guts-2'!$I$4*0.01)*BO31)+(('Guts-2'!$I$2*0.01)*CD31)+(('Guts-2'!$I$8*0.01)*CS31) -> 24.8 | DI31: =(('Guts-2'!$I$1*0.01)*H31)+(('Guts-2'!$I$7*0.01)*W31)+(('Guts-2'!$I$3*0.01)*AL31)+(('Guts-2'!$I$9*0.01)*BA31)+(('Guts-2'!$I$4*0.01)*BP31)+(('Guts-2'!$I$2*0.01)*CE31)+(('Guts-2'!$I$8*0.01)*CT31) -> 71.2 | DJ31: =(('Guts-2'!$I$1*0.01)*I31)+(('Guts-2'!$I$7*0.01)*X31)+(('Guts-2'!$I$3*0.01)*AM31)+(('Guts-2'!$I$9*0.01)*BB31)+(('Guts-2'!$I$4*0.01)*BQ31)+(('Guts-2'!$I$2*0.01)*CF31)+(('Guts-2'!$I$8*0.01)*CU31) -> 22.8 | DK31: =(('Guts-2'!$I$1*0.01)*J31)+(('Guts-2'!$I$7*0.01)*Y31)+(('Guts-2'!$I$3*0.01)*AN31)+(('Guts-2'!$I$9*0.01)*BC31)+(('Guts-2'!$I$4*0.01)*BR31)+(('Guts-2'!$I$2*0.01)*CG31)+(('Guts-2'!$I$8*0.01)*CV31) -> 33.98545455 | DL31: 3.038199585 | DM31: 1.220017767 | DN31: 9.487710986 | DO31: =(('Guts-2'!$I$1*0.01)*N31)+(('Guts-2'!$I$7*0.01)*AC31)+(('Guts-2'!$I$3*0.01)*AR31)+(('Guts-2'!$I$9*0.01)*BG31)+(('Guts-2'!$I$4*0.01)*BV31)+(('Guts-2'!$I$2*0.01)*CK31)+(('Guts-2'!$I$8*0.01)*CZ31) -> 0 | DP31: =(('Guts-2'!$I$1*0.01)*O31)+(('Guts-2'!$I$7*0.01)*AD31)+(('Guts-2'!$I$3*0.01)*AS31)+(('Guts-2'!$I$9*0.01)*BH31)+(('Guts-2'!$I$4*0.01)*BW31)+(('Guts-2'!$I$2*0.01)*CL31)+(('Guts-2'!$I$8*0.01)*DA31) -> 0 | DQ31: =(('Guts-2'!$I$1*0.01)*P31)+(('Guts-2'!$I$7*0.01)*AE31)+(('Guts-2'!$I$3*0.01)*AT31)+(('Guts-2'!$I$9*0.01)*BI31)+(('Guts-2'!$I$4*0.01)*BX31)+(('Guts-2'!$I$2*0.01)*CM31)+(('Guts-2'!$I$8*0.01)*DB31) -> 68.6 | DR31: =(('Guts-2'!$I$1*0.01)*Q31)+(('Guts-2'!$I$7*0.01)*AF31)+(('Guts-2'!$I$3*0.01)*AU31)+(('Guts-2'!$I$9*0.01)*BJ31)+(('Guts-2'!$I$4*0.01)*BY31)+(('Guts-2'!$I$2*0.01)*CN31)+(('Guts-2'!$I$8*0.01)*DC31) -> 5.2 | DS31: 2.992778168 | DT31: 3.527238386 | DU31: 61 | DV31: 51.90050127 | DW31: 22.27163648 | DX31: 64.66704433 | DY31: 20.39483703 | DZ31: 34 | EA31: 3.009074316 | EB31: 1.215936684 | EC31: 9.541039328 | ED31: 0 | EE31: 0 | EF31: 61 | EG31: 4.276772548 | EH31: 2.992778168 | EI31: 3.527238386 | EJ31: 61 | EK31: 51.90050127 | EL31: 22.27163648 | EM31: 64.66704433 | EN31: 20.39483703 | EO31: 34 | EP31: 3.009074316 | EQ31: 1.215936684 | ER31: 9.541039328 | ES31: 0 | ET31: 0 | EU31: 61 | EV31: 4.276772548 | EW31: =VLOOKUP($A31,'Import (Projections)'!$O$2:$X$8997,COLUMN(B29),FALSE) ->  | EX31: =VLOOKUP($A31,'Import (Projections)'!$O$2:$X$8997,COLUMN(C29),FALSE) ->  | EY31: =VLOOKUP($A31,'Import (Projections)'!$O$2:$X$8997,COLUMN(D29),FALSE) ->  | EZ31: =VLOOKUP($A31,'Import (Projections)'!$O$2:$X$8997,COLUMN(E29),FALSE) ->  | FA31: =VLOOKUP($A31,'Import (Projections)'!$O$2:$X$8997,COLUMN(F29),FALSE) ->  | FB31: =VLOOKUP($A31,'Import (Projections)'!$O$2:$X$8997,COLUMN(G29),FALSE) ->  | FC31: =VLOOKUP($A31,'Import (Projections)'!$O$2:$X$8997,COLUMN(H29),FALSE) ->  | FD31: =VLOOKUP($A31,'Import (Projections)'!$O$2:$X$8997,COLUMN(I29),FALSE) ->  | FI31: =VLOOKUP($A31,'Import (Projections)'!$O$2:$X$8997,COLUMN(J29),FALSE) ->  | FL31: =IFERROR(IFERROR(AVERAGE(FP31,FT31),IFERROR(FT31,IFERROR(FP31,0)))*CHOOSE('Guts-2'!$D$28,O31,AD31,AS31,BH31,BW31,CL31,DA31,DP31,EE31,ET31,FI31,),0) -> 0 | FM31: =IFERROR(IFERROR(AVERAGE(FQ31,FS31),IFERROR(FS31,IFERROR(FQ31,0)))*CHOOSE('Guts-2'!$D$28,O31,AD31,AS31,BH31,BW31,CL31,DA31,DP31,EE31,ET31,FI31,),0) -> 0 | FN31: 6 | FO31: 0.2186209384 | FP31: 0 | FQ31: 0 | FR31: 0.6958500461 | FS31: 0 | FT31: 0 | FU31: 3 | FV31: 1 | FW31: 11
A32: Michael Feliz | B32: felizmi01 | C32: 6.492087275 | D32: 3.850360522 | E32: 88.42857143 | F32: 82.57694327 | G32: 33.83133388 | H32: 78.01481158 | I32: 46.34540817 | J32: 1.053036816 | K32: 4.716899378 | L32: 1.316410242 | M32: 7.940118141 | N32: 0 | O32: 8.428571429 | P32: 41.27767971 | Q32: 12.12900971 | R32: 2 | S32: 2 | T32: 40 | U32: 34 | V32: 15 | W32: 45 | X32: 16 | Y32: 0 | Z32: 3.55 | AA32: 1.23 | AB32: 10.18 | AC32: 0 | AD32: 0 | AE32: 40 | AF32: 4 | AV32: 5 | AW32: 5 | AX32: 88.3 | AY32: 83 | AZ32: 34 | BA32: 99 | BB32: 43 | BC32: 0 | BD32: 4.38 | BE32: 1.32 | BF32: 10.09 | BG32: 0 | BH32: 8 | BI32: 41 | BJ32: 12 | BK32: 2 | BL32: 2 | BM32: 40 | BN32: 36 | BO32: 15 | BP32: 45 | BQ32: 18 | BR32: 0 | BS32: 3.97 | BT32: 1.28 | BU32: 10.13 | BV32: 0 | BW32: 0 | BX32: 40 | BY32: 5 | BZ32: 2 | CA32: 1 | CB32: 51.3 | CC32: 45 | CD32: 22 | CE32: 51 | CF32: 22 | CG32: 0 | CH32: 3.83 | CI32: 1.31 | CJ32: 8.947368421 | CK32: 0 | CL32: 0 | CM32: 31 | CN32: 7 | CO32: 3 | CP32: 3 | CQ32: 65 | CR32: 54 | CS32: 24 | CT32: 73 | CU32: 25 | CV32: 0 | CW32: 3.5 | CX32: 1.2 | CY32: 10.14 | CZ32: 0 | DA32: 0 | DB32: 65 | DC32: 7 | DD32: =(('Guts-2'!$I$1*0.01)*C32)+(('Guts-2'!$I$7*0.01)*R32)+(('Guts-2'!$I$3*0.01)*AG32)+(('Guts-2'!$I$9*0.01)*AV32)+(('Guts-2'!$I$4*0.01)*BK32)+(('Guts-2'!$I$2*0.01)*BZ32)+(('Guts-2'!$I$8*0.01)*CO32) ->  | DE32: =(('Guts-2'!$I$1*0.01)*D32)+(('Guts-2'!$I$7*0.01)*S32)+(('Guts-2'!$I$3*0.01)*AH32)+(('Guts-2'!$I$9*0.01)*AW32)+(('Guts-2'!$I$4*0.01)*BL32)+(('Guts-2'!$I$2*0.01)*CA32)+(('Guts-2'!$I$8*0.01)*CP32) ->  | DF32: =(('Guts-2'!$I$1*0.01)*E32)+(('Guts-2'!$I$7*0.01)*T32)+(('Guts-2'!$I$3*0.01)*AI32)+(('Guts-2'!$I$9*0.01)*AX32)+(('Guts-2'!$I$4*0.01)*BM32)+(('Guts-2'!$I$2*0.01)*CB32)+(('Guts-2'!$I$8*0.01)*CQ32) ->  | DG32: =(('Guts-2'!$I$1*0.01)*F32)+(('Guts-2'!$I$7*0.01)*U32)+(('Guts-2'!$I$3*0.01)*AJ32)+(('Guts-2'!$I$9*0.01)*AY32)+(('Guts-2'!$I$4*0.01)*BN32)+(('Guts-2'!$I$2*0.01)*CC32)+(('Guts-2'!$I$8*0.01)*CR32) ->  | DH32: =(('Guts-2'!$I$1*0.01)*G32)+(('Guts-2'!$I$7*0.01)*V32)+(('Guts-2'!$I$3*0.01)*AK32)+(('Guts-2'!$I$9*0.01)*AZ32)+(('Guts-2'!$I$4*0.01)*BO32)+(('Guts-2'!$I$2*0.01)*CD32)+(('Guts-2'!$I$8*0.01)*CS32) ->  | DI32: =(('Guts-2'!$I$1*0.01)*H32)+(('Guts-2'!$I$7*0.01)*W32)+(('Guts-2'!$I$3*0.01)*AL32)+(('Guts-2'!$I$9*0.01)*BA32)+(('Guts-2'!$I$4*0.01)*BP32)+(('Guts-2'!$I$2*0.01)*CE32)+(('Guts-2'!$I$8*0.01)*CT32) ->  | DJ32: =(('Guts-2'!$I$1*0.01)*I32)+(('Guts-2'!$I$7*0.01)*X32)+(('Guts-2'!$I$3*0.01)*AM32)+(('Guts-2'!$I$9*0.01)*BB32)+(('Guts-2'!$I$4*0.01)*BQ32)+(('Guts-2'!$I$2*0.01)*CF32)+(('Guts-2'!$I$8*0.01)*CU32) ->  | DK32: =(('Guts-2'!$I$1*0.01)*J32)+(('Guts-2'!$I$7*0.01)*Y32)+(('Guts-2'!$I$3*0.01)*AN32)+(('Guts-2'!$I$9*0.01)*BC32)+(('Guts-2'!$I$4*0.01)*BR32)+(('Guts-2'!$I$2*0.01)*CG32)+(('Guts-2'!$I$8*0.01)*CV32) ->  | DO32: =(('Guts-2'!$I$1*0.01)*N32)+(('Guts-2'!$I$7*0.01)*AC32)+(('Guts-2'!$I$3*0.01)*AR32)+(('Guts-2'!$I$9*0.01)*BG32)+(('Guts-2'!$I$4*0.01)*BV32)+(('Guts-2'!$I$2*0.01)*CK32)+(('Guts-2'!$I$8*0.01)*CZ32) ->  | DP32: =(('Guts-2'!$I$1*0.01)*O32)+(('Guts-2'!$I$7*0.01)*AD32)+(('Guts-2'!$I$3*0.01)*AS32)+(('Guts-2'!$I$9*0.01)*BH32)+(('Guts-2'!$I$4*0.01)*BW32)+(('Guts-2'!$I$2*0.01)*CL32)+(('Guts-2'!$I$8*0.01)*DA32) ->  | DQ32: =(('Guts-2'!$I$1*0.01)*P32)+(('Guts-2'!$I$7*0.01)*AE32)+(('Guts-2'!$I$3*0.01)*AT32)+(('Guts-2'!$I$9*0.01)*BI32)+(('Guts-2'!$I$4*0.01)*BX32)+(('Guts-2'!$I$2*0.01)*CM32)+(('Guts-2'!$I$8*0.01)*DB32) ->  | DR32: =(('Guts-2'!$I$1*0.01)*Q32)+(('Guts-2'!$I$7*0.01)*AF32)+(('Guts-2'!$I$3*0.01)*AU32)+(('Guts-2'!$I$9*0.01)*BJ32)+(('Guts-2'!$I$4*0.01)*BY32)+(('Guts-2'!$I$2*0.01)*CN32)+(('Guts-2'!$I$8*0.01)*DC32) ->  | EH32: 2 | EI32: 2 | EJ32: 40 | EK32: 34 | EL32: 15 | EM32: 45 | EN32: 16 | EO32: 0 | EP32: 3.55 | EQ32: 1.23 | ER32: 10.18 | ES32: 0 | ET32: 0 | EU32: 40 | EV32: 4 | EW32: =VLOOKUP($A32,'Import (Projections)'!$O$2:$X$8997,COLUMN(B30),FALSE) ->  | EX32: =VLOOKUP($A32,'Import (Projections)'!$O$2:$X$8997,COLUMN(C30),FALSE) ->  | EY32: =VLOOKUP($A32,'Import (Projections)'!$O$2:$X$8997,COLUMN(D30),FALSE) ->  | EZ32: =VLOOKUP($A32,'Import (Projections)'!$O$2:$X$8997,COLUMN(E30),FALSE) ->  | FA32: =VLOOKUP($A32,'Import (Projections)'!$O$2:$X$8997,COLUMN(F30),FALSE) ->  | FB32: =VLOOKUP($A32,'Import (Projections)'!$O$2:$X$8997,COLUMN(G30),FALSE) ->  | FC32: =VLOOKUP($A32,'Import (Projections)'!$O$2:$X$8997,COLUMN(H30),FALSE) ->  | FD32: =VLOOKUP($A32,'Import (Projections)'!$O$2:$X$8997,COLUMN(I30),FALSE) ->  | FI32: =VLOOKUP($A32,'Import (Projections)'!$O$2:$X$8997,COLUMN(J30),FALSE) ->  | FL32: =IFERROR(IFERROR(AVERAGE(FP32,FT32),IFERROR(FT32,IFERROR(FP32,0)))*CHOOSE('Guts-2'!$D$28,O32,AD32,AS32,BH32,BW32,CL32,DA32,DP32,EE32,ET32,FI32,),0) -> 0 | FM32: =IFERROR(IFERROR(AVERAGE(FQ32,FS32),IFERROR(FS32,IFERROR(FQ32,0)))*CHOOSE('Guts-2'!$D$28,O32,AD32,AS32,BH32,BW32,CL32,DA32,DP32,EE32,ET32,FI32,),0) -> 0 | FN32: 8.5 | FO32: 0.2384447045 | FP32: 0 | FQ32: 0 | FR32: 0.2868505023 | FS32: 0 | FT32: 0 | FU32: 0 | FV32: 3 | FW32: 14
A33: Neftali Feliz | B33: felizne01 | C33: 3.442540834 | D33: 3.13504345 | E33: 57.85238095 | F33: 51.08577904 | G33: 21.93913835 | H33: 56.0036584 | I33: 28.28647782 | J33: 7.153146059 | K33: 4.400480952 | L33: 1.262262956 | M33: 8.712397266 | N33: 0 | O33: 0 | P33: 60.03355953 | Q33: 8.583908575 | R33: 3 | S33: 3 | T33: 65 | U33: 58 | V33: 26 | W33: 73 | X33: 28 | Y33: 29 | Z33: 3.86 | AA33: 1.29 | AB33: 10.07 | AC33: 0 | AD33: 0 | AE33: 65 | AF33: 8 | AG33: 3 | AH33: 3 | AI33: 57 | AJ33: 51 | AK33: 21 | AL33: 60 | AM33: 20 | AN33: 21 | AO33: 3.15 | AP33: 1.26 | AQ33: 9.47 | AR33: 0 | AS33: 0 | AT33: 57 | AU33: 8 | AV33: 3 | AW33: 3 | AX33: 55.3 | AY33: 50 | AZ33: 22 | BA33: 58 | BB33: 27 | BC33: 24.67230769 | BD33: 4.39 | BE33: 1.3 | BF33: 9.43 | BG33: 0 | BH33: 0 | BI33: 59 | BJ33: 9 | BK33: 3 | BL33: 3 | BM33: 65 | BN33: 58 | BO33: 26 | BP33: 70 | BQ33: 30 | BR33: 26 | BS33: 4.13 | BT33: 1.29 | BU33: 9.75 | BV33: 0 | BW33: 0 | BX33: 65 | BY33: 9 | BZ33: 2 | CA33: 3 | CB33: 63.7 | CC33: 56 | CD33: 27 | CE33: 64 | CF33: 29 | CG33: 24 | CH33: 4.07 | CI33: 1.31 | CJ33: 9.042386185 | CK33: 0 | CL33: 0 | CM33: 61 | CN33: 9 | CO33: 3 | CP33: 3 | CQ33: 65 | CR33: 55 | CS33: 26 | CT33: 73 | CU33: 27 | CV33: 29 | CW33: 3.76 | CX33: 1.24 | CY33: 10.06 | CZ33: 0 | DA33: 0 | DB33: 65 | DC33: 8 | DD33: =(('Guts-2'!$I$1*0.01)*C33)+(('Guts-2'!$I$7*0.01)*R33)+(('Guts-2'!$I$3*0.01)*AG33)+(('Guts-2'!$I$9*0.01)*AV33)+(('Guts-2'!$I$4*0.01)*BK33)+(('Guts-2'!$I$2*0.01)*BZ33)+(('Guts-2'!$I$8*0.01)*CO33) -> 2.8 | DE33: =(('Guts-2'!$I$1*0.01)*D33)+(('Guts-2'!$I$7*0.01)*S33)+(('Guts-2'!$I$3*0.01)*AH33)+(('Guts-2'!$I$9*0.01)*AW33)+(('Guts-2'!$I$4*0.01)*BL33)+(('Guts-2'!$I$2*0.01)*CA33)+(('Guts-2'!$I$8*0.01)*CP33) -> 3 | DF33: =(('Guts-2'!$I$1*0.01)*E33)+(('Guts-2'!$I$7*0.01)*T33)+(('Guts-2'!$I$3*0.01)*AI33)+(('Guts-2'!$I$9*0.01)*AX33)+(('Guts-2'!$I$4*0.01)*BM33)+(('Guts-2'!$I$2*0.01)*CB33)+(('Guts-2'!$I$8*0.01)*CQ33) -> 62.8 | DG33: =(('Guts-2'!$I$1*0.01)*F33)+(('Guts-2'!$I$7*0.01)*U33)+(('Guts-2'!$I$3*0.01)*AJ33)+(('Guts-2'!$I$9*0.01)*AY33)+(('Guts-2'!$I$4*0.01)*BN33)+(('Guts-2'!$I$2*0.01)*CC33)+(('Guts-2'!$I$8*0.01)*CR33) -> 56 | DH33: =(('Guts-2'!$I$1*0.01)*G33)+(('Guts-2'!$I$7*0.01)*V33)+(('Guts-2'!$I$3*0.01)*AK33)+(('Guts-2'!$I$9*0.01)*AZ33)+(('Guts-2'!$I$4*0.01)*BO33)+(('Guts-2'!$I$2*0.01)*CD33)+(('Guts-2'!$I$8*0.01)*CS33) -> 25.4 | DI33: =(('Guts-2'!$I$1*0.01)*H33)+(('Guts-2'!$I$7*0.01)*W33)+(('Guts-2'!$I$3*0.01)*AL33)+(('Guts-2'!$I$9*0.01)*BA33)+(('Guts-2'!$I$4*0.01)*BP33)+(('Guts-2'!$I$2*0.01)*CE33)+(('Guts-2'!$I$8*0.01)*CT33) -> 67.6 | DJ33: =(('Guts-2'!$I$1*0.01)*I33)+(('Guts-2'!$I$7*0.01)*X33)+(('Guts-2'!$I$3*0.01)*AM33)+(('Guts-2'!$I$9*0.01)*BB33)+(('Guts-2'!$I$4*0.01)*BQ33)+(('Guts-2'!$I$2*0.01)*CF33)+(('Guts-2'!$I$8*0.01)*CU33) -> 28.4 | DK33: =(('Guts-2'!$I$1*0.01)*J33)+(('Guts-2'!$I$7*0.01)*Y33)+(('Guts-2'!$I$3*0.01)*AN33)+(('Guts-2'!$I$9*0.01)*BC33)+(('Guts-2'!$I$4*0.01)*BR33)+(('Guts-2'!$I$2*0.01)*CG33)+(('Guts-2'!$I$8*0.01)*CV33) -> 26.53446154 | DL33: 4.070063694 | DM33: 1.296178344 | DN33: 9.687898089 | DO33: =(('Guts-2'!$I$1*0.01)*N33)+(('Guts-2'!$I$7*0.01)*AC33)+(('Guts-2'!$I$3*0.01)*AR33)+(('Guts-2'!$I$9*0.01)*BG33)+(('Guts-2'!$I$4*0.01)*BV33)+(('Guts-2'!$I$2*0.01)*CK33)+(('Guts-2'!$I$8*0.01)*CZ33) -> 0 | DP33: =(('Guts-2'!$I$1*0.01)*O33)+(('Guts-2'!$I$7*0.01)*AD33)+(('Guts-2'!$I$3*0.01)*AS33)+(('Guts-2'!$I$9*0.01)*BH33)+(('Guts-2'!$I$4*0.01)*BW33)+(('Guts-2'!$I$2*0.01)*CL33)+(('Guts-2'!$I$8*0.01)*DA33) -> 0 | DQ33: =(('Guts-2'!$I$1*0.01)*P33)+(('Guts-2'!$I$7*0.01)*AE33)+(('Guts-2'!$I$3*0.01)*AT33)+(('Guts-2'!$I$9*0.01)*BI33)+(('Guts-2'!$I$4*0.01)*BX33)+(('Guts-2'!$I$2*0.01)*CM33)+(('Guts-2'!$I$8*0.01)*DB33) -> 63 | DR33: =(('Guts-2'!$I$1*0.01)*Q33)+(('Guts-2'!$I$7*0.01)*AF33)+(('Guts-2'!$I$3*0.01)*AU33)+(('Guts-2'!$I$9*0.01)*BJ33)+(('Guts-2'!$I$4*0.01)*BY33)+(('Guts-2'!$I$2*0.01)*CN33)+(('Guts-2'!$I$8*0.01)*DC33) -> 8.6 | DS33: 2.852023465 | DT33: 2.955866199 | DU33: 58 | DV33: 51.7564554 | DW33: 22.49789474 | DX33: 62.23736849 | DY33: 23.13112011 | DZ33: 18 | EA33: 3.589311741 | EB33: 1.280247416 | EC33: 9.657522697 | ED33: 0 | EE33: 0 | EF33: 58 | EG33: 7.827170009 | EH33: 2.852023465 | EI33: 2.955866199 | EJ33: 58 | EK33: 51.7564554 | EL33: 22.49789474 | EM33: 62.23736849 | EN33: 23.13112011 | EO33: 18 | EP33: 3.589311741 | EQ33: 1.280247416 | ER33: 9.657522697 | ES33: 0 | ET33: 0 | EU33: 58 | EV33: 7.827170009 | EW33: =VLOOKUP($A33,'Import (Projections)'!$O$2:$X$8997,COLUMN(B31),FALSE) ->  | EX33: =VLOOKUP($A33,'Import (Projections)'!$O$2:$X$8997,COLUMN(C31),FALSE) ->  | EY33: =VLOOKUP($A33,'Import (Projections)'!$O$2:$X$8997,COLUMN(D31),FALSE) ->  | EZ33: =VLOOKUP($A33,'Import (Projections)'!$O$2:$X$8997,COLUMN(E31),FALSE) ->  | FA33: =VLOOKUP($A33,'Import (Projections)'!$O$2:$X$8997,COLUMN(F31),FALSE) ->  | FB33: =VLOOKUP($A33,'Import (Projections)'!$O$2:$X$8997,COLUMN(G31),FALSE) ->  | FC33: =VLOOKUP($A33,'Import (Projections)'!$O$2:$X$8997,COLUMN(H31),FALSE) ->  | FD33: =VLOOKUP($A33,'Import (Projections)'!$O$2:$X$8997,COLUMN(I31),FALSE) ->  | FI33: =VLOOKUP($A33,'Import (Projections)'!$O$2:$X$8997,COLUMN(J31),FALSE) ->  | FL33: =IFERROR(IFERROR(AVERAGE(FP33,FT33),IFERROR(FT33,IFERROR(FP33,0)))*CHOOSE('Guts-2'!$D$28,O33,AD33,AS33,BH33,BW33,CL33,DA33,DP33,EE33,ET33,FI33,),0) -> 0 | FM33: =IFERROR(IFERROR(AVERAGE(FQ33,FS33),IFERROR(FS33,IFERROR(FQ33,0)))*CHOOSE('Guts-2'!$D$28,O33,AD33,AS33,BH33,BW33,CL33,DA33,DP33,EE33,ET33,FI33,),0) -> 0 | FN33: 5 | FO33: 0.2349488233 | FP33: 0 | FQ33: 0 | FR33: 0.2693269564 | FS33: 0 | FT33: 0 | FW33: 5
A34: Ken Giles | B34: gileske01 | C34: 3.777801561 | D34: 3.707503379 | E34: 67.76666667 | F34: 59.52558111 | G34: 24.42451097 | H34: 86.4338592 | I34: 22.43841573 | J34: 13.05303682 | K34: 2.980015862 | L34: 1.238811 | M34: 11.47916477 | N34: 0 | O34: 0 | P34: 67.70625114 | Q34: 5.198921054 | R34: 4 | S34: 3 | T34: 65 | U34: 50 | V34: 24 | W34: 85 | X34: 22 | Y34: 27 | Z34: 2.98 | AA34: 1.13 | AB34: 11.79 | AC34: 0 | AD34: 0 | AE34: 65 | AF34: 6 | AG34: 4 | AH34: 3 | AI34: 68 | AJ34: 45 | AK34: 23 | AL34: 99 | AM34: 20 | AN34: 39 | AO34: 2.61 | AP34: 1 | AQ34: 13.1 | AR34: 0 | AS34: 0 | AT34: 68 | AU34: 5 | AV34: 5 | AW34: 3 | AX34: 70 | AY34: 57 | AZ34: 24 | BA34: 96 | BB34: 24 | BC34: 39.11764706 | BD34: 3.09 | BE34: 1.16 | BF34: 12.34 | BG34: 0 | BH34: 0 | BI34: 70 | BJ34: 7 | BK34: 4 | BL34: 3 | BM34: 65 | BN34: 51 | BO34: 23 | BP34: 87 | BQ34: 22 | BR34: 32 | BS34: 3.03 | BT34: 1.14 | BU34: 12.07 | BV34: 0 | BW34: 0 | BX34: 65 | BY34: 6 | BZ34: 3 | CA34: 2 | CB34: 71 | CC34: 60 | CD34: 30 | CE34: 80 | CF34: 27 | CG34: 37 | CH34: 3.39 | CI34: 1.25 | CJ34: 10.14084507 | CK34: 0 | CL34: 0 | CM34: 72 | CN34: 8 | CO34: 4 | CP34: 3 | CQ34: 65 | CR34: 48 | CS34: 24 | CT34: 85 | CU34: 21 | CV34: 27 | CW34: 2.93 | CX34: 1.1 | CY34: 11.76 | CZ34: 0 | DA34: 0 | DB34: 65 | DC34: 6 | DD34: =(('Guts-2'!$I$1*0.01)*C34)+(('Guts-2'!$I$7*0.01)*R34)+(('Guts-2'!$I$3*0.01)*AG34)+(('Guts-2'!$I$9*0.01)*AV34)+(('Guts-2'!$I$4*0.01)*BK34)+(('Guts-2'!$I$2*0.01)*BZ34)+(('Guts-2'!$I$8*0.01)*CO34) -> 4 | DE34: =(('Guts-2'!$I$1*0.01)*D34)+(('Guts-2'!$I$7*0.01)*S34)+(('Guts-2'!$I$3*0.01)*AH34)+(('Guts-2'!$I$9*0.01)*AW34)+(('Guts-2'!$I$4*0.01)*BL34)+(('Guts-2'!$I$2*0.01)*CA34)+(('Guts-2'!$I$8*0.01)*CP34) -> 2.8 | DF34: =(('Guts-2'!$I$1*0.01)*E34)+(('Guts-2'!$I$7*0.01)*T34)+(('Guts-2'!$I$3*0.01)*AI34)+(('Guts-2'!$I$9*0.01)*AX34)+(('Guts-2'!$I$4*0.01)*BM34)+(('Guts-2'!$I$2*0.01)*CB34)+(('Guts-2'!$I$8*0.01)*CQ34) -> 67.2 | DG34: =(('Guts-2'!$I$1*0.01)*F34)+(('Guts-2'!$I$7*0.01)*U34)+(('Guts-2'!$I$3*0.01)*AJ34)+(('Guts-2'!$I$9*0.01)*AY34)+(('Guts-2'!$I$4*0.01)*BN34)+(('Guts-2'!$I$2*0.01)*CC34)+(('Guts-2'!$I$8*0.01)*CR34) -> 53.6 | DH34: =(('Guts-2'!$I$1*0.01)*G34)+(('Guts-2'!$I$7*0.01)*V34)+(('Guts-2'!$I$3*0.01)*AK34)+(('Guts-2'!$I$9*0.01)*AZ34)+(('Guts-2'!$I$4*0.01)*BO34)+(('Guts-2'!$I$2*0.01)*CD34)+(('Guts-2'!$I$8*0.01)*CS34) -> 25 | DI34: =(('Guts-2'!$I$1*0.01)*H34)+(('Guts-2'!$I$7*0.01)*W34)+(('Guts-2'!$I$3*0.01)*AL34)+(('Guts-2'!$I$9*0.01)*BA34)+(('Guts-2'!$I$4*0.01)*BP34)+(('Guts-2'!$I$2*0.01)*CE34)+(('Guts-2'!$I$8*0.01)*CT34) -> 86.6 | DJ34: =(('Guts-2'!$I$1*0.01)*I34)+(('Guts-2'!$I$7*0.01)*X34)+(('Guts-2'!$I$3*0.01)*AM34)+(('Guts-2'!$I$9*0.01)*BB34)+(('Guts-2'!$I$4*0.01)*BQ34)+(('Guts-2'!$I$2*0.01)*CF34)+(('Guts-2'!$I$8*0.01)*CU34) -> 23.4 | DK34: =(('Guts-2'!$I$1*0.01)*J34)+(('Guts-2'!$I$7*0.01)*Y34)+(('Guts-2'!$I$3*0.01)*AN34)+(('Guts-2'!$I$9*0.01)*BC34)+(('Guts-2'!$I$4*0.01)*BR34)+(('Guts-2'!$I$2*0.01)*CG34)+(('Guts-2'!$I$8*0.01)*CV34) -> 32.42352941 | DL34: 3.133928571 | DM34: 1.169642857 | DN34: 11.59821429 | DO34: =(('Guts-2'!$I$1*0.01)*N34)+(('Guts-2'!$I$7*0.01)*AC34)+(('Guts-2'!$I$3*0.01)*AR34)+(('Guts-2'!$I$9*0.01)*BG34)+(('Guts-2'!$I$4*0.01)*BV34)+(('Guts-2'!$I$2*0.01)*CK34)+(('Guts-2'!$I$8*0.01)*CZ34) -> 0 | DP34: =(('Guts-2'!$I$1*0.01)*O34)+(('Guts-2'!$I$7*0.01)*AD34)+(('Guts-2'!$I$3*0.01)*AS34)+(('Guts-2'!$I$9*0.01)*BH34)+(('Guts-2'!$I$4*0.01)*BW34)+(('Guts-2'!$I$2*0.01)*CL34)+(('Guts-2'!$I$8*0.01)*DA34) -> 0 | DQ34: =(('Guts-2'!$I$1*0.01)*P34)+(('Guts-2'!$I$7*0.01)*AE34)+(('Guts-2'!$I$3*0.01)*AT34)+(('Guts-2'!$I$9*0.01)*BI34)+(('Guts-2'!$I$4*0.01)*BX34)+(('Guts-2'!$I$2*0.01)*CM34)+(('Guts-2'!$I$8*0.01)*DB34) -> 67.4 | DR34: =(('Guts-2'!$I$1*0.01)*Q34)+(('Guts-2'!$I$7*0.01)*AF34)+(('Guts-2'!$I$3*0.01)*AU34)+(('Guts-2'!$I$9*0.01)*BJ34)+(('Guts-2'!$I$4*0.01)*BY34)+(('Guts-2'!$I$2*0.01)*CN34)+(('Guts-2'!$I$8*0.01)*DC34) -> 6.6 | DS34: 3.999046587 | DT34: 3.023406593 | DU34: 68 | DV34: 53.88643744 | DW34: 24.56318546 | DX34: 94.85965028 | DY34: 21.80923077 | DZ34: 28 | EA34: 2.886515837 | EB34: 1.153670925 | EC34: 12.55495371 | ED34: 0 | EE34: 0 | EF34: 68 | EG34: 6.079518229 | EH34: 3.999046587 | EI34: 3.023406593 | EJ34: 68 | EK34: 53.88643744 | EL34: 24.56318546 | EM34: 94.85965028 | EN34: 21.80923077 | EO34: 28 | EP34: 2.886515837 | EQ34: 1.153670925 | ER34: 12.55495371 | ES34: 0 | ET34: 0 | EU34: 68 | EV34: 6.079518229 | EW34: =VLOOKUP($A34,'Import (Projections)'!$O$2:$X$8997,COLUMN(B32),FALSE) ->  | EX34: =VLOOKUP($A34,'Import (Projections)'!$O$2:$X$8997,COLUMN(C32),FALSE) ->  | EY34: =VLOOKUP($A34,'Import (Projections)'!$O$2:$X$8997,COLUMN(D32),FALSE) ->  | EZ34: =VLOOKUP($A34,'Import (Projections)'!$O$2:$X$8997,COLUMN(E32),FALSE) ->  | FA34: =VLOOKUP($A34,'Import (Projections)'!$O$2:$X$8997,COLUMN(F32),FALSE) ->  | FB34: =VLOOKUP($A34,'Import (Projections)'!$O$2:$X$8997,COLUMN(G32),FALSE) ->  | FC34: =VLOOKUP($A34,'Import (Projections)'!$O$2:$X$8997,COLUMN(H32),FALSE) ->  | FD34: =VLOOKUP($A34,'Import (Projections)'!$O$2:$X$8997,COLUMN(I32),FALSE) ->  | FI34: =VLOOKUP($A34,'Import (Projections)'!$O$2:$X$8997,COLUMN(J32),FALSE) ->  | FL34: =IFERROR(IFERROR(AVERAGE(FP34,FT34),IFERROR(FT34,IFERROR(FP34,0)))*CHOOSE('Guts-2'!$D$28,O34,AD34,AS34,BH34,BW34,CL34,DA34,DP34,EE34,ET34,FI34,),0) -> 0 | FM34: =IFERROR(IFERROR(AVERAGE(FQ34,FS34),IFERROR(FS34,IFERROR(FQ34,0)))*CHOOSE('Guts-2'!$D$28,O34,AD34,AS34,BH34,BW34,CL34,DA34,DP34,EE34,ET34,FI34,),0) -> 0 | FN34: 9 | FO34: 0.2286741864 | FP34: 0 | FQ34: 0 | FR34: 0.3563369266 | FS34: 0 | FT34: 0 | FU34: 2 | FV34: 12 | FW34: 6
A35: Mychal Givens | B35: givenmy01 | C35: 5.920658704 | D35: 2.564646236 | E35: 74.22857143 | F35: 60.80333803 | G35: 32.5661196 | H35: 80.51481158 | I35: 28.87810002 | J35: 4.053036816 | K35: 3.501386261 | L35: 1.257864133 | M35: 9.762188471 | N35: 0 | O35: 0 | P35: 58.42053685 | Q35: 5.966826856 | R35: 3 | S35: 2 | T35: 55 | U35: 47 | V35: 24 | W35: 63 | X35: 23 | Y35: 2 | Z35: 3.71 | AA35: 1.28 | AB35: 10.31 | AC35: 0 | AD35: 0 | AE35: 55 | AF35: 6 | AV35: 6 | AW35: 3 | AX35: 79.3 | AY35: 63 | AZ35: 31 | BA35: 101 | BB35: 26 | BC35: 2.883636364 | BD35: 2.95 | BE35: 1.18 | BF35: 11.46 | BG35: 0 | BH35: 0 | BI35: 63 | BJ35: 7 | BK35: 4 | BL35: 2 | BM35: 55 | BN35: 45 | BO35: 23 | BP35: 67 | BQ35: 20 | BR35: 1 | BS35: 3.33 | BT35: 1.23 | BU35: 10.88 | BV35: 0 | BW35: 0 | BX35: 55 | BY35: 6 | BZ35: 4 | CA35: 2 | CB35: 84 | CC35: 71 | CD35: 35 | CE35: 94 | CF35: 30 | CG35: 0 | CH35: 3.24 | CI35: 1.26 | CJ35: 10.07142857 | CK35: 0 | CL35: 0 | CM35: 81 | CN35: 8 | CO35: 3 | CP35: 3 | CQ35: 65 | CR35: 53 | CS35: 28 | CT35: 74 | CU35: 26 | CV35: 2 | CW35: 3.66 | CX35: 1.25 | CY35: 10.28 | CZ35: 0 | DA35: 0 | DB35: 65 | DC35: 7 | DD35: =(('Guts-2'!$I$1*0.01)*C35)+(('Guts-2'!$I$7*0.01)*R35)+(('Guts-2'!$I$3*0.01)*AG35)+(('Guts-2'!$I$9*0.01)*AV35)+(('Guts-2'!$I$4*0.01)*BK35)+(('Guts-2'!$I$2*0.01)*BZ35)+(('Guts-2'!$I$8*0.01)*CO35) ->  | DE35: =(('Guts-2'!$I$1*0.01)*D35)+(('Guts-2'!$I$7*0.01)*S35)+(('Guts-2'!$I$3*0.01)*AH35)+(('Guts-2'!$I$9*0.01)*AW35)+(('Guts-2'!$I$4*0.01)*BL35)+(('Guts-2'!$I$2*0.01)*CA35)+(('Guts-2'!$I$8*0.01)*CP35) ->  | DF35: =(('Guts-2'!$I$1*0.01)*E35)+(('Guts-2'!$I$7*0.01)*T35)+(('Guts-2'!$I$3*0.01)*AI35)+(('Guts-2'!$I$9*0.01)*AX35)+(('Guts-2'!$I$4*0.01)*BM35)+(('Guts-2'!$I$2*0.01)*CB35)+(('Guts-2'!$I$8*0.01)*CQ35) ->  | DG35: =(('Guts-2'!$I$1*0.01)*F35)+(('Guts-2'!$I$7*0.01)*U35)+(('Guts-2'!$I$3*0.01)*AJ35)+(('Guts-2'!$I$9*0.01)*AY35)+(('Guts-2'!$I$4*0.01)*BN35)+(('Guts-2'!$I$2*0.01)*CC35)+(('Guts-2'!$I$8*0.01)*CR35) ->  | DH35: =(('Guts-2'!$I$1*0.01)*G35)+(('Guts-2'!$I$7*0.01)*V35)+(('Guts-2'!$I$3*0.01)*AK35)+(('Guts-2'!$I$9*0.01)*AZ35)+(('Guts-2'!$I$4*0.01)*BO35)+(('Guts-2'!$I$2*0.01)*CD35)+(('Guts-2'!$I$8*0.01)*CS35) ->  | DI35: =(('Guts-2'!$I$1*0.01)*H35)+(('Guts-2'!$I$7*0.01)*W35)+(('Guts-2'!$I$3*0.01)*AL35)+(('Guts-2'!$I$9*0.01)*BA35)+(('Guts-2'!$I$4*0.01)*BP35)+(('Guts-2'!$I$2*0.01)*CE35)+(('Guts-2'!$I$8*0.01)*CT35) ->  | DJ35: =(('Guts-2'!$I$1*0.01)*I35)+(('Guts-2'!$I$7*0.01)*X35)+(('Guts-2'!$I$3*0.01)*AM35)+(('Guts-2'!$I$9*0.01)*BB35)+(('Guts-2'!$I$4*0.01)*BQ35)+(('Guts-2'!$I$2*0.01)*CF35)+(('Guts-2'!$I$8*0.01)*CU35) ->  | DK35: =(('Guts-2'!$I$1*0.01)*J35)+(('Guts-2'!$I$7*0.01)*Y35)+(('Guts-2'!$I$3*0.01)*AN35)+(('Guts-2'!$I$9*0.01)*BC35)+(('Guts-2'!$I$4*0.01)*BR35)+(('Guts-2'!$I$2*0.01)*CG35)+(('Guts-2'!$I$8*0.01)*CV35) ->  | DO35: =(('Guts-2'!$I$1*0.01)*N35)+(('Guts-2'!$I$7*0.01)*AC35)+(('Guts-2'!$I$3*0.01)*AR35)+(('Guts-2'!$I$9*0.01)*BG35)+(('Guts-2'!$I$4*0.01)*BV35)+(('Guts-2'!$I$2*0.01)*CK35)+(('Guts-2'!$I$8*0.01)*CZ35) ->  | DP35: =(('Guts-2'!$I$1*0.01)*O35)+(('Guts-2'!$I$7*0.01)*AD35)+(('Guts-2'!$I$3*0.01)*AS35)+(('Guts-2'!$I$9*0.01)*BH35)+(('Guts-2'!$I$4*0.01)*BW35)+(('Guts-2'!$I$2*0.01)*CL35)+(('Guts-2'!$I$8*0.01)*DA35) ->  | DQ35: =(('Guts-2'!$I$1*0.01)*P35)+(('Guts-2'!$I$7*0.01)*AE35)+(('Guts-2'!$I$3*0.01)*AT35)+(('Guts-2'!$I$9*0.01)*BI35)+(('Guts-2'!$I$4*0.01)*BX35)+(('Guts-2'!$I$2*0.01)*CM35)+(('Guts-2'!$I$8*0.01)*DB35) ->  | DR35: =(('Guts-2'!$I$1*0.01)*Q35)+(('Guts-2'!$I$7*0.01)*AF35)+(('Guts-2'!$I$3*0.01)*AU35)+(('Guts-2'!$I$9*0.01)*BJ35)+(('Guts-2'!$I$4*0.01)*BY35)+(('Guts-2'!$I$2*0.01)*CN35)+(('Guts-2'!$I$8*0.01)*DC35) ->  | EH35: 3 | EI35: 2 | EJ35: 55 | EK35: 47 | EL35: 24 | EM35: 63 | EN35: 23 | EO35: 2 | EP35: 3.71 | EQ35: 1.28 | ER35: 10.31 | ES35: 0 | ET35: 0 | EU35: 55 | EV35: 6 | EW35: =VLOOKUP($A35,'Import (Projections)'!$O$2:$X$8997,COLUMN(B33),FALSE) ->  | EX35: =VLOOKUP($A35,'Import (Projections)'!$O$2:$X$8997,COLUMN(C33),FALSE) ->  | EY35: =VLOOKUP($A35,'Import (Projections)'!$O$2:$X$8997,COLUMN(D33),FALSE) ->  | EZ35: =VLOOKUP($A35,'Import (Projections)'!$O$2:$X$8997,COLUMN(E33),FALSE) ->  | FA35: =VLOOKUP($A35,'Import (Projections)'!$O$2:$X$8997,COLUMN(F33),FALSE) ->  | FB35: =VLOOKUP($A35,'Import (Projections)'!$O$2:$X$8997,COLUMN(G33),FALSE) ->  | FC35: =VLOOKUP($A35,'Import (Projections)'!$O$2:$X$8997,COLUMN(H33),FALSE) ->  | FD35: =VLOOKUP($A35,'Import (Projections)'!$O$2:$X$8997,COLUMN(I33),FALSE) ->  | FI35: =VLOOKUP($A35,'Import (Projections)'!$O$2:$X$8997,COLUMN(J33),FALSE) ->  | FL35: =IFERROR(IFERROR(AVERAGE(FP35,FT35),IFERROR(FT35,IFERROR(FP35,0)))*CHOOSE('Guts-2'!$D$28,O35,AD35,AS35,BH35,BW35,CL35,DA35,DP35,EE35,ET35,FI35,),0) -> 0 | FM35: =IFERROR(IFERROR(AVERAGE(FQ35,FS35),IFERROR(FS35,IFERROR(FQ35,0)))*CHOOSE('Guts-2'!$D$28,O35,AD35,AS35,BH35,BW35,CL35,DA35,DP35,EE35,ET35,FI35,),0) -> 0 | FN35: 25 | FO35: 0.2205461843 | FP35: 0 | FQ35: 0 | FR35: 0.1880054668 | FS35: 0 | FT35: 0 | FU35: 0 | FV35: 35 | FW35: 15
